Workbook

Sheet Prices (hidden)
A1: Vendor PN | B1: Vendor Description | C1: USD | D1: CAD | E1: Vendor PN | G1: Vendor Description
A2: 2114G85000 | B2: Q21 LOADER DM MF RD EURO MC4 | C2: 5006 | D2: =C2*1.1 -> 5506.6 | E2: 2114G85000 | G2: Q21 LOADER DM MF RD EURO MC4
A3: 2113E85000 | B3: Q21 LOADER DS CASE RED EURO MC4 | C3: 5006 | D3: =C3*1.1 -> 5506.6 | E3: 2113E85000 | G3: Q21 LOADER DS CASE RED EURO MC4
A4: 2614G85000 | B4: Q26 LOADER DM MF RD EURO MC4 | C4: 7574 | D4: 8331.4 | E4: 2614G85000 | G4: Q26 LOADER DM MF RD EURO MC4
A5: 2614485000 | B5: Q26 LOADER DM KU Orange EURO MC4 | C5: 7574 | D5: 8331.4 | E5: 2614485000 | G5: Q26 LOADER DM KU Orange EURO MC4
A6: 2614A15000 | B6: Q26 LOADER DM Quicke Grey SSL MC4 | C6: 7574 | D6: 8331.4 | E6: 2614A15000 | G6: Q26 LOADER DM Quicke Grey SSL MC4
A7: 2614G15000 | B7: Q26 LOADER DM MF RD SSL MC4 | C7: 7574 | D7: 8331.4 | E7: 2614G15000 | G7: Q26 LOADER DM MF RD SSL MC4
A8: 2614P15000 | B8: Q26 LOADER DM NH BLUE SSL MC4 | C8: 7574 | D8: 8331.4 | E8: 2614P15000 | G8: Q26 LOADER DM NH BLUE SSL MC4
A9: 2613A15000 | B9: Q26 LOADER DS Quicke Grey SSL MC4 | C9: 7574 | D9: 8331.4 | E9: 2613A15000 | G9: Q26 LOADER DS Quicke Grey SSL MC4
A10: 3114A85000 | B10: Q31 LOADER DM Quicke Grey EURO MC4 | C10: 5453 | D10: 5998.3 | E10: 3114A85000 | G10: Q31 LOADER DM Quicke Grey EURO MC4
A11: 3114P85000 | B11: Q31 LOADER DM NH BLUE EURO MC4 | C11: 5453 | D11: 5998.3 | E11: 3114P85000 | G11: Q31 LOADER DM NH BLUE EURO MC4
A12: 3114G15000 | B12: Q31 LOADER DM MF RD SSL MC4 | C12: 5453 | D12: 5998.3 | E12: 3114G15000 | G12: Q31 LOADER DM MF RD SSL MC4
A13: 3114E15000 | B13: Q31 LOADER DM CASE RED SSL MC4 | C13: 5453 | D13: 5998.3 | E13: 3114E15000 | G13: Q31 LOADER DM CASE RED SSL MC4
A14: 3111A81000 | B14: Q31 LOADER BASIC US Quicke Grey EURO | C14: 5453 | D14: 5998.3 | E14: 3111A81000 | G14: Q31 LOADER BASIC US Quicke Grey EURO
A15: 3111A11000 | B15: Q31 LOADER BASIC US Quicke Grey SSL | C15: 5453 | D15: 5998.3 | E15: 3111A11000 | G15: Q31 LOADER BASIC US Quicke Grey SSL
A16: 3614A85000 | B16: Q36 LOADER DM Quicke Grey EURO MC4 | C16: 8488 | D16: 9336.8 | E16: 3614A85000 | G16: Q36 LOADER DM Quicke Grey EURO MC4
A17: 3614G85000 | B17: Q36 LOADER DM MF RD EURO MC4 | C17: 8488 | D17: 9336.8 | E17: 3614G85000 | G17: Q36 LOADER DM MF RD EURO MC4
A18: 3614485000 | B18: Q36 LOADER DM KU Orange EURO MC4 | C18: 8488 | D18: 9336.8 | E18: 3614485000 | G18: Q36 LOADER DM KU Orange EURO MC4
A19: 3614E85000 | B19: Q36 LOADER DM CASE RED EURO MC4 | C19: 8488 | D19: 9336.8 | E19: 3614E85000 | G19: Q36 LOADER DM CASE RED EURO MC4
A20: 3614A15000 | B20: Q36 LOADER DM Quicke Grey SSL MC4 | C20: 8488 | D20: 9336.8 | E20: 3614A15000 | G20: Q36 LOADER DM Quicke Grey SSL MC4
A21: 3614415000 | B21: Q36 LOADER DM KU Orange SSL MC4 | C21: 8488 | D21: 9336.8 | E21: 3614415000 | G21: Q36 LOADER DM KU Orange SSL MC4
A22: 3614E15000 | B22: Q36 LOADER DM CASE RED SSL MC4 | C22: 8488 | D22: 9336.8 | E22: 3614E15000 | G22: Q36 LOADER DM CASE RED SSL MC4
A23: 3814215000 | B23: Q38 LOADER DM JD Green SSL MC4 | C23: 8899 | D23: 9788.9 | E23: 3814215000 | G23: Q38 LOADER DM JD Green SSL MC4
A24: 4114A85000 | B24: Q41 LOADER DM Quicke Grey EURO MC4 | C24: 6784 | D24: 7462.4 | E24: 4114A85000 | G24: Q41 LOADER DM Quicke Grey EURO MC4
A25: 4114P85000 | B25: Q41 LOADER DM NH BLUE EURO MC4 | C25: 6784 | D25: 7462.4 | E25: 4114P85000 | G25: Q41 LOADER DM NH BLUE EURO MC4
A26: 4114A15000 | B26: Q41 LOADER DM Quicke Grey SSL MC4 | C26: 6784 | D26: 7462.4 | E26: 4114A15000 | G26: Q41 LOADER DM Quicke Grey SSL MC4
A27: 4114P15000 | B27: Q41 LOADER DM NH BLUE SSL MC4 | C27: 6784 | D27: 7462.4 | E27: 4114P15000 | G27: Q41 LOADER DM NH BLUE SSL MC4
A28: 4114E15000 | B28: Q41 LOADER DM CASE RED SSL MC4 | C28: 6784 | D28: 7462.4 | E28: 4114E15000 | G28: Q41 LOADER DM CASE RED SSL MC4
A29: 4614A85000 | B29: Q46 LOADER DM Quicke Grey EURO MC4 | C29: 9057 | D29: 9962.7 | E29: 4614A85000 | G29: Q46 LOADER DM Quicke Grey EURO MC4
A30: 4614P85000 | B30: Q46 LOADER DM NH BLUE EURO MC4 | C30: 9057 | D30: 9962.7 | E30: 4614P85000 | G30: Q46 LOADER DM NH BLUE EURO MC4
A31: 4814E85000 | B31: Q48 LOADER DM CASE RED EURO MC4 | C31: 9466 | D31: 10412.6 | E31: 4814E85000 | G31: Q48 LOADER DM CASE RED EURO MC4
A32: 5114A85000 | B32: Q51 LOADER DM Quicke Grey EURO MC4 | C32: 7142 | D32: 7856.2 | E32: 5114A85000 | G32: Q51 LOADER DM Quicke Grey EURO MC4
A33: 5114G85000 | B33: Q51 LOADER DM MF RD EURO MC4 | C33: 7142 | D33: 7856.2 | E33: 5114G85000 | G33: Q51 LOADER DM MF RD EURO MC4
A34: 5114285000 | B34: Q51 LOADER DM JD Green EURO MC4 | C34: 7142 | D34: 7856.2 | E34: 5114285000 | G34: Q51 LOADER DM JD Green EURO MC4
A35: 5114E85000 | B35: Q51 LOADER DM CASE RED EURO MC4 | C35: 7142 | D35: 7856.2 | E35: 5114E85000 | G35: Q51 LOADER DM CASE RED EURO MC4
A36: 5111A81000 | B36: Q51 LOADER BASIC US Quicke Grey EURO | C36: 7142 | D36: 7856.2 | E36: 5111A81000 | G36: Q51 LOADER BASIC US Quicke Grey EURO
A37: 5614A85000 | B37: Q56 LOADER DM Quicke Grey EURO MC4 | C37: 10197 | D37: 11216.7 | E37: 5614A85000 | G37: Q56 LOADER DM Quicke Grey EURO MC4
A38: 5614285000 | B38: Q56 LOADER DM JD Green EURO MC4 | C38: 10197 | D38: 11216.7 | E38: 5614285000 | G38: Q56 LOADER DM JD Green EURO MC4
A39: 5614P85000 | B39: Q56 LOADER DM NH BLUE EURO MC4 | C39: 10197 | D39: 11216.7 | E39: 5614P85000 | G39: Q56 LOADER DM NH BLUE EURO MC4
A40: 5614885060 | B40: Q56 LOADER DM DEUTZ GREEN W/SD EURO MC4 | C40: 11168 | D40: 12284.8 | E40: 5614885060 | G40: Q56 LOADER DM DEUTZ GREEN W/SD EURO MC4
A41: 6114A85000 | B41: Q61 LOADER DM Quicke Grey EURO MC4 | C41: 8875 | D41: 9762.5 | E41: 6114A85000 | G41: Q61 LOADER DM Quicke Grey EURO MC4
A42: 6114285000 | B42: Q61 LOADER DM JD Green EURO MC4 | C42: 8875 | D42: 9762.5 | E42: 6114285000 | G42: Q61 LOADER DM JD Green EURO MC4
A43: 6114P85000 | B43: Q61 LOADER DM NH BLUE EURO MC4 | C43: 8875 | D43: 9762.5 | E43: 6114P85000 | G43: Q61 LOADER DM NH BLUE EURO MC4
A44: 6614885060 | B44: Q66 DEUTZ GREEN W SOFT DRIVE | C44: 11576 | D44: 12733.6 | E44: 6614885060 | G44: Q66 DEUTZ GREEN W SOFT DRIVE
A45: 6614A85000 | B45: Q66 LOADER DM Quicke Grey EURO MC4 | C45: 10604 | D45: 11664.4 | E45: 6614A85000 | G45: Q66 LOADER DM Quicke Grey EURO MC4
A46: 6614285000 | B46: Q66 LOADER DM JD Green EURO MC4 | C46: 10604 | D46: 11664.4 | E46: 6614285000 | G46: Q66 LOADER DM JD Green EURO MC4
A47: 6612A81000 | B47: Q66 LOADER BASIC UM Quicke Grey EURO | C47: 10604 | D47: 11664.4 | E47: 6612A81000 | G47: Q66 LOADER BASIC UM Quicke Grey EURO
A48: 6814A85000 | B48: Q68 LOADER DM Quicke Grey EURO MC4 | C48: 10955 | D48: 12050.5 | E48: 6814A85000 | G48: Q68 LOADER DM Quicke Grey EURO MC4
A49: 6814285000 | B49: Q68 LOADER DM JD Green EURO MC4 | C49: 10955 | D49: 12050.5 | E49: 6814285000 | G49: Q68 LOADER DM JD Green EURO MC4
A50: 6814E85000 | B50: Q68 LOADER DM CASE RED EURO MC4 | C50: 10955 | D50: 12050.5 | E50: 6814E85000 | G50: Q68 LOADER DM CASE RED EURO MC4
A51: 7614A85000 | B51: Q76 LOADER DM Quicke Grey EURO MC4 | C51: 11282 | D51: 12410.2 | E51: 7614A85000 | G51: Q76 LOADER DM Quicke Grey EURO MC4
A52: 7614P85000 | B52: Q76 LOADER DM NH BLUE EURO MC4 | C52: 11282 | D52: 12410.2 | E52: 7614P85000 | G52: Q76 LOADER DM NH BLUE EURO MC4
A53: 7614E85000 | B53: Q76 LOADER DM CASE RED EURO MC4 | C53: 11282 | D53: 12410.2 | E53: 7614E85000 | G53: Q76 LOADER DM CASE RED EURO MC4
A54: 7814A85000 | B54: Q78 LOADER DM Quicke Grey EURO MC4 | C54: 11633 | D54: 12796.3 | E54: 7814A85000 | G54: Q78 LOADER DM Quicke Grey EURO MC4
A55: 7814P85000 | B55: Q78 LOADER DM NH BLUE EURO MC4 | C55: 11633 | D55: 12796.3 | E55: 7814P85000 | G55: Q78 LOADER DM NH BLUE EURO MC4
A56: 7814E85000 | B56: Q78 LOADER DM CASE RED EURO MC4 | C56: 11633 | D56: 12796.3 | E56: 7814E85000 | G56: Q78 LOADER DM CASE RED EURO MC4
A57: 8813A85000 | B57: Q88 LOADER DL Quicke Grey EURO MC4 | C57: 15082 | D57: 16590.2 | E57: 8813A85000 | G57: Q88 LOADER DL Quicke Grey EURO MC4
A58: 8813E85000 | B58: Q88 LOADER DL CASE RED EURO MC4 | C58: 15082 | D58: 16590.2 | E58: 8813E85000 | G58: Q88 LOADER DL CASE RED EURO MC4
A59: 14100573 | B59: REAR EXT. MF 2605/2615 2WD | C59: 346 | D59: 380.6 | E59: 14100573 | G59: REAR EXT. MF 2605/2615 2WD
A60: 14200010 | B60: SUBF SET CASE FARMALL N | C60: 1615 | D60: 1776.5 | E60: 14200010 | G60: SUBF SET CASE FARMALL N
A61: 14200014 | B61: SUBF S BM CNH WM 65,75/FARMALL | C61: 1615 | D61: 1776.5 | E61: 14200014 | G61: SUBF S BM CNH WM 65,75/FARMALL
A62: 14200015 | B62: SUBF SET BM MF 2650-2680 | C62: 1615 | D62: 1776.5 | E62: 14200015 | G62: SUBF SET BM MF 2650-2680
A63: 14200034 | B63: SUBF SET BM KUBOTA M8540-9540 | C63: 1615 | D63: 1776.5 | E63: 14200034 | G63: SUBF SET BM KUBOTA M8540-9540
A64: 14200055 | B64: SUBF SET BM MCCORMICK CX70-105 | C64: 1615 | D64: 1776.5 | E64: 14200055 | G64: SUBF SET BM MCCORMICK CX70-105
A65: 14200065 | B65: SUBF SET BM MCCORM T-M/LAN 5H | C65: 1615 | D65: 1776.5 | E65: 14200065 | G65: SUBF SET BM MCCORM T-M/LAN 5H
A66: 14200074 | B66: SUBF SET BM KUBOTA M5040-7040 | C66: 1615 | D66: 1776.5 | E66: 14200074 | G66: SUBF SET BM KUBOTA M5040-7040
A67: 14200084 | B67: SUBF S BM CNH T5000/FARM U/JXU | C67: 1615 | D67: =C67*1.1 -> 1776.5 | E67: 14200084 | G67: SUBF S BM CNH T5000/FARM U/JXU
A68: 14200094 | B68: SUBF BM CNH T4040,4050/85C-95C | C68: 1615 | D68: 1776.5 | E68: 14200094 | G68: SUBF BM CNH T4040,4050/85C-95C
A69: 14200104 | B69: SUBF BM CNH T4020,4030/65C-75C | C69: 1615 | D69: 1776.5 | E69: 14200104 | G69: SUBF BM CNH T4020,4030/65C-75C
A70: 14200114 | B70: SUBF S BM CNH TD5040-50/ 90-95 | C70: 1615 | D70: 1776.5 | E70: 14200114 | G70: SUBF S BM CNH TD5040-50/ 90-95
A71: 14200117 | B71: SUBFRAME SET CNH TD5050/TD95/JX95/Farmall 90/95 | C71: 1615 | D71: 1776.5 | E71: 14200117 | G71: SUBFRAME SET CNH TD5050/TD95/JX95/Farmall 90/95
A72: 14200124 | B72: SUBF S BM CNH TD5010-30/60-80 | C72: 1615 | D72: 1776.5 | E72: 14200124 | G72: SUBF S BM CNH TD5010-30/60-80
A73: 14200134 | B73: SUBF SET BM JD 5E SERIES | C73: 1615 | D73: 1776.5 | E73: 14200134 | G73: SUBF SET BM JD 5E SERIES
A74: 14200154 | B74: SUBF S BM CNH WM 45,55/FARMALL | C74: 1615 | D74: 1776.5 | E74: 14200154 | G74: SUBF S BM CNH WM 45,55/FARMALL
A75: 14200174 | B75: SUBF SET BM MF 2600-FWA | C75: 1615 | D75: 1776.5 | E75: 14200174 | G75: SUBF SET BM MF 2600-FWA
A76: 14200184 | B76: SUBF SET BM MF 2615 2WD | C76: 1615 | D76: 1776.5 | E76: 14200184 | G76: SUBF SET BM MF 2615 2WD
A77: 14200195 | B77: SUBF SET BM SAME DORADO 3 90 | C77: 1615 | D77: 1776.5 | E77: 14200195 | G77: SUBF SET BM SAME DORADO 3 90
A78: 14200225 | B78: SUBF SET BM SAME DORADO 60-80 | C78: 1615 | D78: 1776.5 | E78: 14200225 | G78: SUBF SET BM SAME DORADO 60-80
A79: 14200245 | B79: SUBF S BM DEUTZ AGROF 410-430 | C79: 1615 | D79: 1776.5 | E79: 14200245 | G79: SUBF S BM DEUTZ AGROF 410-430
A80: 14200255 | B80: SUBF SET BM SAME EXPLORER 95 | C80: 1615 | D80: 1776.5 | E80: 14200255 | G80: SUBF SET BM SAME EXPLORER 95
A81: 14200284 | B81: SUBF S BM DEUTZ AGROTR 80-100 | C81: 1615 | D81: 1776.5 | E81: 14200284 | G81: SUBF S BM DEUTZ AGROTR 80-100
A82: 14200285 | B82: SUBF SET BM VALTRA A-SER | C82: 1615 | D82: 1776.5 | E82: 14200285 | G82: SUBF SET BM VALTRA A-SER
A83: 14200304 | B83: SUBF SET BM MF 2625/35 2WD | C83: 1615 | D83: 1776.5 | E83: 14200304 | G83: SUBF SET BM MF 2625/35 2WD
A84: 14200305 | B84: SUBF S BM DEUTZ AGROl 310-320 | C84: 1615 | D84: 1776.5 | E84: 14200305 | G84: SUBF S BM DEUTZ AGROl 310-320
A85: 14200335 | B85: SUBF SET BM MF 3600 STD | C85: 1615 | D85: 1776.5 | E85: 14200335 | G85: SUBF SET BM MF 3600 STD
A86: 14200344 | B86: SUBF S BM DEUTZ AGROTR K410-30 | C86: 1615 | D86: 1776.5 | E86: 14200344 | G86: SUBF S BM DEUTZ AGROTR K410-30
A87: 14200374 | B87: SUBF SET BM KUBOTA M8540-9540 | C87: 1615 | D87: 1776.5 | E87: 14200374 | G87: SUBF SET BM KUBOTA M8540-9540
A88: 14200385 | B88: SUBF S BM DEUTZ AGROFARM T | C88: 1615 | D88: 1776.5 | E88: 14200385 | G88: SUBF S BM DEUTZ AGROFARM T
A89: 14200395 | B89: SUBF S BM DEUTZ AGROFARM TB | C89: 1615 | D89: 1776.5 | E89: 14200395 | G89: SUBF S BM DEUTZ AGROFARM TB
A90: 14200445 | B90: SUBF S BM CNH TDD/JX | C90: 1615 | D90: 1776.5 | E90: 14200445 | G90: SUBF S BM CNH TDD/JX
A91: 14200455 | B91: SUBF SET BM CNH TDD/JX 80-90 | C91: 1615 | D91: 1776.5 | E91: 14200455 | G91: SUBF SET BM CNH TDD/JX 80-90
A92: 14200465 | B92: SUBF S BM CNH TL75-100 | C92: 1615 | D92: 1776.5 | E92: 14200465 | G92: SUBF S BM CNH TL75-100
A93: 14200485 | B93: SUBF S BM CNH TN55D-75D/JX1060 | C93: 1615 | D93: 1776.5 | E93: 14200485 | G93: SUBF S BM CNH TN55D-75D/JX1060
A94: 14200487 | B94: SUBF S BM CNH TN/TNA/TND/TNDA/ | C94: 1615 | D94: 1776.5 | E94: 14200487 | G94: SUBF S BM CNH TN/TNA/TND/TNDA/
A95: 14200495 | B95: SUBF S BM CNH T4020-4030 SS | C95: 1615 | D95: 1776.5 | E95: 14200495 | G95: SUBF S BM CNH T4020-4030 SS
A96: 14200507 | B96: Farmall 75N, 95N | C96: 1615 | D96: 1776.5 | E96: 14200507 | G96: Farmall 75N, 95N
A97: 14200545 | B97: SUBF SET BM MCCORMICK CX100 | C97: 1615 | D97: 1776.5 | E97: 14200545 | G97: SUBF SET BM MCCORMICK CX100
A98: 14200555 | B98: SUBF SET BM LANDINI ALPINE 70-85 | C98: 1615 | D98: 1776.5 | E98: 14200555 | G98: SUBF SET BM LANDINI ALPINE 70-85
A99: 14200564 | B99: SUBF SET BM JD 5M | C99: 1615 | D99: 1776.5 | E99: 14200564 | G99: SUBF SET BM JD 5M
A100: 14200575 | B100: SUBF S BM ZETOR PROXIMA/PLUS | C100: 1615 | D100: 1776.5 | E100: 14200575 | G100: SUBF S BM ZETOR PROXIMA/PLUS
A101: 14200585 | B101: SUBF SET BM C-MAX / POWERFARM | C101: 1615 | D101: 1776.5 | E101: 14200585 | G101: SUBF SET BM C-MAX / POWERFARM
A102: 14200595 | B102: SUBF SET BM McC,Land/5H, T-Max | C102: 1615 | D102: 1776.5 | E102: 14200595 | G102: SUBF SET BM McC,Land/5H, T-Max
A103: 14200604 | B103: SUBF SET BM JD 6D | C103: 1615 | D103: 1776.5 | E103: 14200604 | G103: SUBF SET BM JD 6D
A104: 14200615 | B104: SUBF SET BM MCC/LAND CL/TECH | C104: 1615 | D104: 1776.5 | E104: 14200615 | G104: SUBF SET BM MCC/LAND CL/TECH
A105: 14200694 | B105: SUBF SET BM KUBOTA M95X-105X | C105: 1615 | D105: 1776.5 | E105: 14200694 | G105: SUBF SET BM KUBOTA M95X-105X
A106: 14200704 | B106: SUBF SET BM KUBOTA M100X-110X | C106: 1615 | D106: 1776.5 | E106: 14200704 | G106: SUBF SET BM KUBOTA M100X-110X
A107: 14200805 | B107: MCCORMICK X10.75M,90M SUBFRAME | C107: 1615 | D107: 1776.5 | E107: 14200805 | G107: MCCORMICK X10.75M,90M SUBFRAME
A108: 14200884 | B108: SUBF SET BM JD 5425,5425N,5525 | C108: 1615 | D108: 1776.5 | E108: 14200884 | G108: SUBF SET BM JD 5425,5425N,5525
A109: 14200925 | B109: SUBF SET BM MF 4225-4365 | C109: 1615 | D109: 1776.5 | E109: 14200925 | G109: SUBF SET BM MF 4225-4365
A110: 14200942 | B110: SUBF REPAIR KIT MF2600 FWA | C110: 1615 | D110: 1776.5 | E110: 14200942 | G110: SUBF REPAIR KIT MF2600 FWA
A111: 14201014 | B111: SUBF SET BM CNH T4/FARMALL C | C111: 1615 | D111: 1776.5 | E111: 14201014 | G111: SUBF SET BM CNH T4/FARMALL C
A112: 14201024 | B112: SUBF SET BM CNH T4/FARMALL C | C112: 1615 | D112: 1776.5 | E112: 14201024 | G112: SUBF SET BM CNH T4/FARMALL C
A113: 14201094 | B113: JD 6000 - 6010 SUB 200 SERIES | C113: 1615 | D113: 1776.5 | E113: 14201094 | G113: JD 6000 - 6010 SUB 200 SERIES
A114: 14201115 | B114: SUBF BM MCC X10.55 | C114: 1615 | D114: 1776.5 | E114: 14201115 | G114: SUBF BM MCC X10.55
A115: 14201175 | B115: SUBF BM LANDINI REX 80/90/100/110 | C115: 1615 | D115: 1776.5 | E115: 14201175 | G115: SUBF BM LANDINI REX 80/90/100/110
A116: 14201385 | B116: SUBF BM ZETOR MAJOR 80 | C116: 1615 | D116: 1776.5 | E116: 14201385 | G116: SUBF BM ZETOR MAJOR 80
A117: 14110006 | B117: GRILL GUARD KIT MF2605-2615 2WD | C117: 297 | D117: 326.7 | E117: 14110006 | G117: GRILL GUARD KIT MF2605-2615 2WD
A118: 14200003 | B118: GRILL GUARD CNH TT3020-3040 | C118: 297 | D118: 326.7 | E118: 14200003 | G118: GRILL GUARD CNH TT3020-3040
A119: 14200004 | B119: GRILL GUARD CNH TT TT60A-75A | C119: 297 | D119: 326.7 | E119: 14200004 | G119: GRILL GUARD CNH TT TT60A-75A
A120: 14220001 | B120: GRILL GUARD KIT CNH WM 45,55 | C120: 297 | D120: 326.7 | E120: 14220001 | G120: GRILL GUARD KIT CNH WM 45,55
A121: 14220002 | B121: GRILL GUARD KIT CNH WM 65,75 | C121: 297 | D121: 326.7 | E121: 14220002 | G121: GRILL GUARD KIT CNH WM 65,75
A122: 14220004 | B122: GRILL GUARD KIT MF 2650-2680 | C122: 297 | D122: 326.7 | E122: 14220004 | G122: GRILL GUARD KIT MF 2650-2680
A123: 14220011 | B123: GRILL GUARD KIT JD 5E | C123: 297 | D123: 326.7 | E123: 14220011 | G123: GRILL GUARD KIT JD 5E
A124: 14220013 | B124: GRILL GUARD KIT MF 3600 | C124: 297 | D124: 326.7 | E124: 14220013 | G124: GRILL GUARD KIT MF 3600
A125: 14220017 | B125: GRILL GUARD MCCORM CX70-105 | C125: 297 | D125: 326.7 | E125: 14220017 | G125: GRILL GUARD MCCORM CX70-105
A126: 14220018 | B126: GRILL GUARD KIT CNH T4000/FAR | C126: 297 | D126: 326.7 | E126: 14220018 | G126: GRILL GUARD KIT CNH T4000/FAR
A127: 14220021 | B127: GRILL GUARD CNH TD5050/TD95/JX95/Farmall 90/95 | C127: 297 | D127: 326.7 | E127: 14220021 | G127: GRILL GUARD CNH TD5050/TD95/JX95/Farmall 90/95
A128: 14220030 | B128: GRILL GUARD MCCORM CX100 | C128: 297 | D128: 326.7 | E128: 14220030 | G128: GRILL GUARD MCCORM CX100
A129: 14220032 | B129: GRILL GUARD KIT JD 5M | C129: 297 | D129: 326.7 | E129: 14220032 | G129: GRILL GUARD KIT JD 5M
A130: 14220034 | B130: GRILL GUARD BM MCC/LAND | C130: 297 | D130: 326.7 | E130: 14220034 | G130: GRILL GUARD BM MCC/LAND
A131: 14220036 | B131: GRILL GUARD KIT JD 6D | C131: 297 | D131: =C131*1.1 -> 326.7 | E131: 14220036 | G131: GRILL GUARD KIT JD 6D
A132: 14220040 | B132: GRILL GUARD BM MCC/LAND | C132: 297 | D132: 326.7 | E132: 14220040 | G132: GRILL GUARD BM MCC/LAND
A133: 14220043 | B133: GRILL GUARD KIT CNH TDD/JX | C133: 297 | D133: 326.7 | E133: 14220043 | G133: GRILL GUARD KIT CNH TDD/JX
A134: 14220044 | B134: GRILL GUARD KIT BM KUBOTA 40-S | C134: 297 | D134: 326.7 | E134: 14220044 | G134: GRILL GUARD KIT BM KUBOTA 40-S
A135: 14220046 | B135: GRILL GUARD CNH TN55D-75D/JX10 | C135: 297 | D135: 326.7 | E135: 14220046 | G135: GRILL GUARD CNH TN55D-75D/JX10
A136: 14220047 | B136: GRILL GUARD KIT CNH TD5000/JX | C136: 297 | D136: 326.7 | E136: 14220047 | G136: GRILL GUARD KIT CNH TD5000/JX
A137: 14220048 | B137: GRILL GUARD KIT CNH T5000/JXU | C137: 297 | D137: 326.7 | E137: 14220048 | G137: GRILL GUARD KIT CNH T5000/JXU
A138: 14220049 | B138: GRILL GUARD KIT CNH T4000/65C- | C138: 297 | D138: 326.7 | E138: 14220049 | G138: GRILL GUARD KIT CNH T4000/65C-
A139: 14220050 | B139: GRILL GUARD KIT CNH TDD/JX 80- | C139: 297 | D139: 326.7 | E139: 14220050 | G139: GRILL GUARD KIT CNH TDD/JX 80-
A140: 14220052 | B140: GRILL GUARD KIT CNH TL70-100 | C140: 297 | D140: 326.7 | E140: 14220052 | G140: GRILL GUARD KIT CNH TL70-100
A141: 14220053 | B141: GRILL GUARD S KUBOTA M95X-105X | C141: 297 | D141: 326.7 | E141: 14220053 | G141: GRILL GUARD S KUBOTA M95X-105X
A142: 14220054 | B142: GRILL GUARD S KUBOTA MX100-110 | C142: 297 | D142: 326.7 | E142: 14220054 | G142: GRILL GUARD S KUBOTA MX100-110
A143: 14220073 | B143: GRILL GUARD KIT | C143: 297 | D143: 326.7 | E143: 14220073 | G143: GRILL GUARD KIT
A144: 14220078 | B144: GRILL GUARD KIT MF 4225-4365 | C144: 297 | D144: 326.7 | E144: 14220078 | G144: GRILL GUARD KIT MF 4225-4365
A145: 14220083 | B145: GRILL GUARD KIT CNH T4/FARMALL | C145: 297 | D145: 326.7 | E145: 14220083 | G145: GRILL GUARD KIT CNH T4/FARMALL
A146: 14220089 | B146: JD 6000 - 6010 GRILL GUARD 200 SERIES | C146: 297 | D146: 326.7 | E146: 14220089 | G146: JD 6000 - 6010 GRILL GUARD 200 SERIES
A147: 14220096 | B147: MCCORMICK X10.75M,90M GRILL GUARD | C147: 297 | D147: 326.7 | E147: 14220096 | G147: MCCORMICK X10.75M,90M GRILL GUARD
A148: 14220097 | B148: MCCORMICK X10.55 GRILL GUARD | C148: 297 | D148: 326.7 | E148: 14220097 | G148: MCCORMICK X10.55 GRILL GUARD
A149: 325505 | B149: SUBFR FORD 29-4110 | C149: 2308 | D149: 2538.8 | E149: 325505 | G149: SUBFR FORD 29-4110
A150: 340215 | B150: SUBFR MF 399 | C150: 2905 | D150: 3195.5 | E150: 340215 | G150: SUBFR MF 399
A151: 341124 | B151: SUBFR FORD 34-4630 | C151: 2364 | D151: 2600.4 | E151: 341124 | G151: SUBFR FORD 34-4630
A152: 341384 | B152: SUBFR JD 1750-1950 CC2 | C152: 2364 | D152: 2600.4 | E152: 341384 | G152: SUBFR JD 1750-1950 CC2
A153: 341505 | B153: SUBFR MF 365-398 | C153: 2364 | D153: 2600.4 | E153: 341505 | G153: SUBFR MF 365-398
A154: 341555 | B154: SUBFRAME AGCO-A 4650, 4660 | C154: 2308 | D154: 2538.8 | E154: 341555 | G154: SUBFRAME AGCO-A 4650, 4660
A155: 341575 | B155: SUBFRAME AGCO-ALLIS | C155: 2308 | D155: 2538.8 | E155: 341575 | G155: SUBFRAME AGCO-ALLIS
A156: 341585 | B156: SUBFRAME AGCO-ALLIS | C156: 2308 | D156: 2538.8 | E156: 341585 | G156: SUBFRAME AGCO-ALLIS
A157: 341645 | B157: SUBFRAME AGCO-ALLIS | C157: 2308 | D157: 2538.8 | E157: 341645 | G157: SUBFRAME AGCO-ALLIS
A158: 341715 | B158: SUBFRAME AGCO-WHITE 6065 | C158: 2308 | D158: 2538.8 | E158: 341715 | G158: SUBFRAME AGCO-WHITE 6065
A159: 341725 | B159: SUBFRAME AGCO-WHITE 6085 | C159: 2308 | D159: 2538.8 | E159: 341725 | G159: SUBFRAME AGCO-WHITE 6085
A160: 341925 | B160: SUBFR ZETOR 5011-7745 | C160: 2364 | D160: 2600.4 | E160: 341925 | G160: SUBFR ZETOR 5011-7745
A161: 341954 | B161: SUBFRAME DEUTZ | C161: 2364 | D161: 2600.4 | E161: 341954 | G161: SUBFRAME DEUTZ
A162: 342005 | B162: SUBFR KUBOTA M521 | C162: 2308 | D162: 2538.8 | E162: 342005 | G162: SUBFR KUBOTA M521
A163: 342015 | B163: SUBFR KUBOTA M541 | C163: 2308 | D163: 2538.8 | E163: 342015 | G163: SUBFR KUBOTA M541
A164: 342024 | B164: *SUBFR KUBOTA M542 | C164: 2308 | D164: 2538.8 | E164: 342024 | G164: *SUBFR KUBOTA M542
A165: 342035 | B165: SUBF.FORD 56-7610 N.AM | C165: 2364 | D165: 2600.4 | E165: 342035 | G165: SUBF.FORD 56-7610 N.AM
A166: 342045 | B166: SUBF.FORD 67-7710 N.AM | C166: 2364 | D166: 2600.4 | E166: 342045 | G166: SUBF.FORD 67-7710 N.AM
A167: 342065 | B167: SUBFR KUBOTA M511 | C167: 2308 | D167: 2538.8 | E167: 342065 | G167: SUBFR KUBOTA M511
A168: 342084 | B168: *SUBFR KUBOTA 75-9580 | C168: 2308 | D168: 2538.8 | E168: 342084 | G168: *SUBFR KUBOTA 75-9580
A169: 342105 | B169: SUBF SET KUBOTA M4700F-5400F | C169: 2308 | D169: 2538.8 | E169: 342105 | G169: SUBF SET KUBOTA M4700F-5400F
A170: 342125 | B170: SUBFRAME KUBOTA 7030 SU | C170: 2308 | D170: 2538.8 | E170: 342125 | G170: SUBFRAME KUBOTA 7030 SU
A171: 342154 | B171: SUBFR SET KUBOTA M8200,M9000 | C171: 2308 | D171: 2538.8 | E171: 342154 | G171: SUBFR SET KUBOTA M8200,M9000
A172: 343235 | B172: SUBFR FORD 4830-5030 | C172: 2364 | D172: 2600.4 | E172: 343235 | G172: SUBFR FORD 4830-5030
A173: 343375 | B173: SUBFR SET MF 365-398 | C173: 2364 | D173: 2600.4 | E173: 343375 | G173: SUBFR SET MF 365-398
A174: 343415 | B174: SUBFR SET MF 396-399 | C174: 2905 | D174: 3195.5 | E174: 343415 | G174: SUBFR SET MF 396-399
A175: 343485 | B175: SUBFR ZETOR 4340-7745 | C175: 2308 | D175: 2538.8 | E175: 343485 | G175: SUBFR ZETOR 4340-7745
A176: 343605 | B176: SUBFR SET MF377-1007/LANDINI | C176: 2364 | D176: 2600.4 | E176: 343605 | G176: SUBFR SET MF377-1007/LANDINI
A177: 343614 | B177: SUBFR SET LAND 50/ MF233-253 | C177: 2308 | D177: 2538.8 | E177: 343614 | G177: SUBFR SET LAND 50/ MF233-253
A178: 343634 | B178: SUBFR LANDINI 65-85/MF273-393 | C178: 2308 | D178: 2538.8 | E178: 343634 | G178: SUBFR LANDINI 65-85/MF273-393
A179: 343635 | B179: SUBFR LANDINI BLIZZARD | C179: 2364 | D179: 2600.4 | E179: 343635 | G179: SUBFR LANDINI BLIZZARD
A180: 343845 | B180: SUBFR SET MF 3075-6150 | C180: 2364 | D180: 2600.4 | E180: 343845 | G180: SUBFR SET MF 3075-6150
A181: 344224 | B181: SUBFR SET CASE MAXXUM 5120 | C181: 2364 | D181: 2600.4 | E181: 344224 | G181: SUBFR SET CASE MAXXUM 5120
A182: 344444 | B182: SUBFRAME MF 261 2WD | C182: 2308 | D182: 2538.8 | E182: 344444 | G182: SUBFRAME MF 261 2WD
A183: 344455 | B183: SUBFR MF 362 ROPS | C183: 2308 | D183: 2538.8 | E183: 344455 | G183: SUBFR MF 362 ROPS
A184: 344534 | B184: SUBFR SET FORD 5640-7740 | C184: 2308 | D184: 2538.8 | E184: 344534 | G184: SUBFR SET FORD 5640-7740
A185: 344614 | B185: SUBFR SET MF 362-372-382 | C185: 2364 | D185: 2600.4 | E185: 344614 | G185: SUBFR SET MF 362-372-382
A186: 344675 | B186: SUBFR DEUTZ AGROPLUS 60 | C186: 2364 | D186: 2600.4 | E186: 344675 | G186: SUBFR DEUTZ AGROPLUS 60
A187: 344854 | B187: SUBFR. NEWH 3010 S 2WD | C187: 2308 | D187: 2538.8 | E187: 344854 | G187: SUBFR. NEWH 3010 S 2WD
A188: 344935 | B188: SUBFR JD 22-2850 SG2 | C188: 2364 | D188: 2600.4 | E188: 344935 | G188: SUBFR JD 22-2850 SG2
A189: 345004 | B189: SUBFRAME CASE 3210-3220 ROPS | C189: 2308 | D189: 2538.8 | E189: 345004 | G189: SUBFRAME CASE 3210-3220 ROPS
A190: 345014 | B190: SUBFRAME CASE 3230-4240 ROPS | C190: 2308 | D190: 2538.8 | E190: 345014 | G190: SUBFRAME CASE 3230-4240 ROPS
A191: 345205 | B191: SUBFR SET CASE 585-995, 3230-4 | C191: 2364 | D191: 2600.4 | E191: 345205 | G191: SUBFR SET CASE 585-995, 3230-4
A192: 345275 | B192: SUBF SET JD 4020 | C192: 2905 | D192: 3195.5 | E192: 345275 | G192: SUBF SET JD 4020
A193: 345345 | B193: SUBFR SET LANDINI GLOBUS 60,70 | C193: 2308 | D193: 2538.8 | E193: 345345 | G193: SUBFR SET LANDINI GLOBUS 60,70
A194: 345375 | B194: SUBFR SET ZETOR 7540 | C194: 2308 | D194: 2538.8 | E194: 345375 | G194: SUBFR SET ZETOR 7540
A195: 345385 | B195: SUBFR ZETOR 8540-9540 | C195: 2364 | D195: =C195*1.1 -> 2600.4 | E195: 345385 | G195: SUBFR ZETOR 8540-9540
A196: 345434 | B196: SUBFR SET CASE CX50-60 | C196: 2308 | D196: 2538.8 | E196: 345434 | G196: SUBFR SET CASE CX50-60
A197: 345475 | B197: SUBFRAME AGCO-WHITE 6065 | C197: 2308 | D197: 2538.8 | E197: 345475 | G197: SUBFRAME AGCO-WHITE 6065
A198: 345495 | B198: SUBFRAME AGCO-ALLIS 8745,8765 | C198: 2308 | D198: 2538.8 | E198: 345495 | G198: SUBFRAME AGCO-ALLIS 8745,8765
A199: 345505 | B199: SUBFRAME AGCO-ALLIS 8745,8765 | C199: 2308 | D199: 2538.8 | E199: 345505 | G199: SUBFRAME AGCO-ALLIS 8745,8765
A200: 345515 | B200: SUBFRAME AGCO-WHITE 6410,6510 | C200: 2308 | D200: 2538.8 | E200: 345515 | G200: SUBFRAME AGCO-WHITE 6410,6510
... 1932 more rows

Sheet Notes (hidden)
B1: Description
E2: CAD
A3: 1, | B3: Hydraulic Set 15097BFA for Load Sense tractors | E3: January 1, 2018
A4: 2, | B4: Deluxe Hose Set for use with factory blue joystick | E4: Options | F4: =TOC!AM35 -> 44
A5: 3, | B5: Subframe adapted for tractors with/without 2.5 tonne front hitch | E5: Implements | F5: =TOC!AM37 -> 46
A6: 4, | B6: DS Subframe 900mm - order a DS Base Loader
A7: 5, | B7: For Tractors with Underslung Exhaust
A8: 6, | B8: For Tractors with Vertical Cab Corner Post Exhaust
A9: 7, | B9: Deluxe hose kit is only compatible prior to SN T262090
A10: 8, | B10: Front weight bracket must be removed
A11: 9, | B11: Not compatible with 60" tread spacing and R30 tires
A12: 10, | B12: Order conversion kit #5034021 (new loader to older valves)
A13: 11, | B13: US Width "ORDER BASIC LOADER"
A14: 12, | B14: UM Width
A15: 13, | B15: For Cab Tractors order hydraulic set 317204
A16: 14, | B16: For tractors without Bosch Valve or Power Beyond Plate use Hyd Set 15063BAC
A17: 15, | B17: For ROPS Tractors order Hyd Set 15076BAA
A18: 16, | B18: Subframe designed for Horizontal Exhaust only
A19: 17, | B19: Tractor must be equipped with Power Beyond Plate
A20: 18, | B20: Subframe includes Front Brackets only. If tractor does not have rear brackets, order 14321996 at $0 as well.
A21: 19, | B21: Order Ergodrive 15325BAA load sensing for serial numbers up to 1008085 (2008)
A22: 20, | B22: Loader Q3/Q3s must be ordered with long bearing boxes for tractors with front wheels larger then 420/70 R24.
A23: 21, | B23: If tractor has 75 litre hyd pump & no front-axle suspension, a special plug is needed for L-S signal. Order from SDF: Ref No: 04454514.4.
A24: 22, | B24: Hose kit 10377307C does not fit tractors with air pressure equipment.
A25: 23, | B25: Tractors manufactured after 2006-09-01 and without front-axle suspension a special plug is needed for L-S signal. Order from SDF: Ref No. 04454514.4.
A26: 24, | B26: Hose kit 10378307C doesn't fit tractors equipped with adaptor plate at rear hydraulics for front hitch.
A27: 25, | B27: For Tractors w/o Power beyond. Order shuttle valve 2.3729.686.0 from SDF
A28: 26, | B28: Adapted for tractors with or without front axle suspension
A29: 27, | B29: If tractor is equipped with Sauter front hitch, contact Sauter for more information.
A30: 28, | B30: Q4 and Q4s will fit if tires are less than 14.9X24
A31: 29, | B31: For Tractors built prior to 2004, use Hydraulic Set 15006BAA , also fits tractors built after 2004 with 3 remotes
A32: 30, | B32: To use hydraulic set, Non Premium Tractors must be equipped with John Deere Power Beyond Plate
A33: 31, | B33: For "N" Narrow only use X21 or X26
A34: 32, | B34: X21, X26 not compatible with the front weight bracket
A35: 33, | B35: Tractor must be equiped with JD power beyond plate # R259621 and adaptor set # RE251179.
A36: 34, | B36: Q6/Q6s is compatible with 2WD
A37: 35, | B37: Order subframe 14324824 for tractors produced before SN 340001
A38: 36, | B38: If the tractor has a front hitch,order subframe 14326154
A39: 37, | B39: If the tractor has a front hitch, order subframe 14326364
A40: 38, | B40: If the tractor has a front hitch, order subframe 14326314
A41: 39, | B41: If the tractor has Zuidberg front hitch, order subframe 14340044
A42: 40, | B42: Q51/Q56/Q58 is not compatible with front hitch.
A43: 41, | B43: Required to order part # RE58763 & R196840 from JD for hydraulic connection.
A44: 42, | B44: If tractor has original front linkage, use 14327334
A45: 43, | B45: Subframe does not include Grill Guard. Order GG No.14220113 for tractors without front hitch. $0
A46: 44, | B46: Subframe does not include Grill Guard. Order GG No.14220114 for tractors with JD front hitch. $0
A47: 45, | B47: Power beyond plate for Hydraulic Set must be ordered from John Deere
A48: 46, | B48: Order conversion kit #5034021 (new loader to older valves)
A49: 47, | B49: Hose kit serviced from rear remotes
A50: 48, | B50: Steering must be limited to accommodate for the subframe side rail
A51: 49, | B51: Joystick Bracket will need to be fabricated for Cab Tractors
A52: 50, | B52: For M5040 ROPS < SN 83013/M60/85/9540 ROPS < SN 21001 M7040 ROPS < SN 13001 / M6040 CAB < SN 83098 / M7040 CAB < SN 83151 / M8540 CAB < SN 83060 / M9540 CAB < SN 83314 - Order Hydraulic Kit No. 15124BEA
A53: 51, | B53: Low Profile models will require modifications to the underslung exhaust.
A54: 52, | B54: Requires Retaining Fork Set 10348131 ($0)
A55: 53, | B55: Kubota front weight frame (M9265) has to be removed or modified
A56: 54, | B56: Will only fit FIXED front axle
A57: 55, | B57: Adapted for Models with Serial Number S
A58: 56, | B58: Will not fit Tractors with Tier 2 Green engines
A59: 57, | B59: If equipped with Bondioli and Pavesi rear remote valve and SN between BV11001 - BV33001, a metric PB sleeve (AGCO part # 6286183M1), adaptor #10 JIC female to #12 JIC male (Quicke part # 5028039 - $0) are required.
A60: 58, | B60: For Steepnose Tractors order Grill Guard 14323661
A61: 59, | B61: Q3, Q3s only compatible with Front Tires 13.6XR24 or smaller
A62: 60, | B62: On Open Center Twin Flow Tractors combining valve cannot be used
A63: 61, | B63: For Load Sensing Tractors order Hydraulic Set 15097BFA.
A64: 62, | B64: Subframe adapted for tractors with or without front hitch
A65: 63, | B65: Order Hydraulic Set 15022BAA for Tractors with Open Center Hydraulic Systems.
A66: 64, | B66: On open center Twin Flow tractors combining valve cannot be used
A67: 65, | B67: Order hydraulic set 15020BAA for load sense tractors up to SN T008085.
A68: 66, | B68: Order rear axle extension set 14100573. $311
A69: 67, | B69: Order 15100BFA for tractors after serial no T008085 with open centre hyd system.
A70: 68, | B70: Hose set Deluxe will only fit tractors with joystick in the armrest.
A71: 69, | B71: Provide Tractor serial number at time of order
A72: 70, | B72: Please call Alo with tractor details to ensure correct subframe
A73: 71, | B73: Will not fit tractors with hydraulic connections in front of Cab or ROPS.
A74: 72, | B74: Use 15174BAA for Open Center Hydraulic Systems.
A75: 73, | B75: Use 15106BAA for Open Center Hydraulic Systems on 6100 series or 317070 for Open Center on 3050 to 3065.
A76: 74, | B76: For Cab Tractors order hydraulic set 15102BAA.
A77: 75, | B77: Hydraulic Set is only compatible with the HUSCO rear remote valve
A78: 76, | B78: For tractors up to Serial Number 57260B 18014
A79: 77, | B79: For tractors greater than Serial Number 57260B 18014
A80: 78, | B80: For tractors greater than Serial Number C45009
A81: 79, | B81: For tractors up to Serial Number C45008
A82: 80, | B82: Q3, Q3s loaders are not recommended with tires larger than 13.6 X 24
A83: 81, | B83: 15199BAA will fit ROPS and tractors with factory cab joystick. Cab Tractors without factory joystick order 15197BAC.
A84: 82, | B84: For tractors without Bosch valve without a power beyond order Hydraulic Set 15063BAA.
A85: 83, | B85: For tractors without Bosch valve but with a Power Beyond plate between the 2nd and 3rd section, order Hydraulic Set 15044BAA.
A86: 84, | B86: On XTX215 Tractors with Serial Number less than JE3500994 use subframe 14320044.
A87: 85, | B87: Max Tire Size X31-X36 is 440 60R 24
A88: 86, | B88: Subframe will fit platform and footstep versions.
A89: 87, | B89: Base loader requires Extended Bearing Boxes
A90: 88, | B90: The hydraulic sets don't fit the tractors with the hydraulic trailer brake valve.
A91: 89, | B91: Tractors must be equipped with Power Beyond plate for the valve
A92: 90, | B92: Order Subframe set 14320725 for Serial Numbers prior to 116199B
A93: 91, | B93: Order Hyd Set 15087BAA for Serial Numbers prior to 116199B
A94: 92, | B94: For open-center systems, use valve kit no. 15089BAA
A95: 93, | B95: Q6/6s must be ordered with extended bearing boxes for supersteer models only.
A96: 94, | B96: If tractor does not have pre-installed connections to hydraulic auxillary valve, use 15024BAA.
A97: 95, | B97: Order P/B Plate from New Holland for Open Center Systems
A98: 96, | B98: Order 15231BAA for Load Sense hyd system or twin pump tractors.
A99: 97, | B99: Order 15242BAA Load Sense Valve for double pump tractors.
A100: 98, | B100: Valve is serviced from the tractor remote valves
A101: 99, | B101: Subframe is Special Order. Longer leadtimes should be expected. Call for availability.
A102: B1, | B102: Subframe designed for tractors with New Axle when Serial Number is >K36108 for 6000 series and >K41108 for 8000 series order adapter kit 10347271 ($155)
A103: B2, | B103: Hydraulic Set is designed for Hi Tech models or all chassis > Serial Number L17307
A104: B3, | B104: Subframe will fit all options except Zuidburg front hitch
A105: B4, | B105: Hydraulic Set joystick mounts on the left hand side.
A106: B5, | B106: Subframe for tractor with or without Zuidberg front hitch
A107: B6, | B107: Order additional kit 14321621 for tractors before SN K36108 ($155)
A108: B7, | B108: Subframe includes Front Brackets only. If tractor does not have rear brackets, order 14322836 at $0 as well.
A109: B8, | B109: Designed for tractors with under slung exhaust pipe.
A110: B9, | B110: Will only fit 4wd tractors.
A111: 100, | B111: Subframe includes Front Brackets only. If tractor does not have rear brackets, order 14322836 at $0 as well.
A112: 101, | B112: The fuel line has to be modified on tractors fitted with dual fuel tanks. Rear axle extensions are not required on some models.
A113: 102, | B113: Only fits tractors manufactured after Jan 1, 2008
A114: 103, | B114: Does not fit tractors with mid electric valves
A115: 104, | B115: Loader size Q6m and larger, NOT AVAILABLE IN MASSEY FERGUSON RED.
A116: A1, | B116: Designed for Rops tractors or tractors with a factory cab
A117: A2, | B117: Subframe will not fit with mid mount mower
A118: A3, | B118: Designed for Rops Tractors only.
A119: A4, | B119: Tractor must be equipped with factory joystick and valve
A120: A5, | B120: Order JD part no S1290468 to complete
A121: A6, | B121: Optional rear extensions available. (14400563)
A122: A7, | B122: Designed for tractors with Max front Wheel size 24x8.-12
A123: A8, | B123: Not Designed for Supersteer models
A124: A9, | B124: Order CNH part no. SBA340171000 to complete.
A125: A10, | B125: Add Mechanical Self Levelling 160c - 5221797 180c - 5221798
A126: 105, | B126: Does Not Fit TierIV Tractors
A127: 106, | B127: Subframe Does not include Grill Guard. Order Grille Guard 14220130 for tractors without front Linkage
A128: C1, | B128: Only fits tractors manufactured after 1st Jan 2008
A129: C2, | B129: The fuel line has to be modified on tractors fitted with dual fuel tanks. Rear Axle Extensions not required on some models
A130: C3, | B130: Does not fit tractors with electric mid valves
A131: C4, | B131: Subframe Set does not include Grill Guard. Order Grill Guard for tractors without front hitch 14220130
A132: C5, | B132: If Tractor is not equipped with Loader ready mounts order 60011324
A133: C6, | B133: Order hydraulic set 15359FCA for tractors with a 83 or 84l hydraulic pump.
A134: C7, | B134: If tractor is equipped with electric parking brake (EPB) order additional kit: 10418704
A135: C8, | B135: If the tractor has a drawbar bracket, please order set 60013258.
A136: C9, | B136: Will not fit tractors with front axle disc brakes.
A137: D1, | B137: Order Hose set 10378409A services the loader from the 2 remote valves. The male coupler tips are not included in the set.
A138: D2, | B138: Tractor Serial number and country of manufacture, required before ordering.
A139: D3, | B139: Order hydraulic set 15440xxx for tractors fitted with plugged oil pipes for connection of the valves P/T/LS-connections.
A140: D4, | B140: ErgoDrive (Mechanical Joystick) will not fit tractors with multi-function armrest.
A141: D5, | B141: Subframe no longer in Production. Check for Availability.
A142: D6, | B142: To utilize Kubota Factory Electric Joystick to Use with Alo Electrodrive Order Hyd Kit 60012835
A143: D7, | B143: Tractor must be equipped with JD original Power beyond plate number: AL206034 (studs L173498 qty 3 is needed) or ALO PB-kit 5034184.
A144: E1, | B144: Designed for tractors with Factory Cab
A145: E2, | B145: Tractor comes standard with factory joystick and midmount valve
A146: E3, | B146: 15353BAA fits tractors without factory joystick
A147: E4, | B147: Q3,X31,Q3s,X36 will not fit if Tractor is equipped with Zuidberg front hitch
A148: E5, | B148: For Tractors w/o Power beyond and 90liter pump. Order shuttle valve 2.3729.686.0 from SDF
A149: E6, | B149: Order 5034301 for tractors fitted with original front linkage
A150: E7, | B150: 15317xxx fits tractors with a 60 litre pump. For tractors with a 90 litre pump, please order 15340xxx.
A151: E8, | B151: Order Delux Hose Kit 10378394E, for Tractors equipped electric joystick
A152: E9, | B152: Order Delux Hose Kit 10378396E, for Tractors equipped electric joystick
A153: F1, | B153: Only Cab tractors have been test fitted.
A154: ,
A155: ,
A156: ,
A157: ,
A158: ,
A159: ,
A160: ,
A161: ,
A162: ,
A163: ,
A164: ,
A165: ,
A166: ,
A167: ,
A168: ,
A169: ,

Sheet Implements (hidden)
A1: EURO
A4: Q3 | B4: 11254051F | C4: 11251728F | D4: 11253993F | E4: 11253989F | F4: 11253979F | G4: 11254764F | H4: 11254765F | I4: 11254832F | J4: 11254840F
A5: Q3s | B5: 11254051F | C5: 11251728F | D5: 11253993F | E5: 11253989F | F5: 11253979F | G5: 11254764F | H5: 11254765F | I5: 11254832F | J5: 11254840F
A6: Q4 | B6: 11254051F | C6: 11251728F | D6: 11253979F | E6: 11253975F | F6: 11250533F | G6: 11250536F | H6: 11250534F | I6: 11250537F | J6: 11254765F | K6: 11250358F | L6: 11254832F | M6: 11254840F | S6: 11251698F | T6: There is a special offer on these items ask your Rep!
A7: Q4s | B7: 11254051F | C7: 11251728F | D7: 11253979F | E7: 11253975F | F7: 11250533F | G7: 11250536F | H7: 11250534F | I7: 11250537F | J7: 11254765F | K7: 11250358F | L7: 11254832F | M7: 11254840F | S7: 11251728F | T7: There is a special offer on these items ask your Rep!
A8: Q5 | B8: 11254051F | C8: 11251728F | D8: 11253979F | E8: 11253975F | F8: 11250533F | G8: 11250536F | H8: 11250534F | I8: 11250537F | J8: 11254765F | K8: 11250358F | L8: 11254832F | M8: 11254840F | S8: 11251694F | T8: There is a special offer on these items ask your Rep!
A9: Q5s | B9: 11254051F | C9: 11251728F | D9: 11253979F | E9: 11253975F | F9: 11250533F | G9: 11250536F | H9: 11250534F | I9: 11250537F | J9: 11254765F | K9: 11250358F | L9: 11254832F | M9: 11254840F | S9: 11251720F | T9: There is a special offer on these items ask your Rep!
A10: Q6 | B10: 11254051F | C10: 11251728F | D10: 11253979F | E10: 11253975F | F10: 11250533F | G10: 11250536F | H10: 11250534F | I10: 11250537F | J10: 11254765F | K10: 11250358F | L10: 11254832F | M10: 11254840F | S10: 11252738F | T10: There is a special offer on these items ask your Rep!
A11: Q6m | B11: 11254051F | C11: 11251728F | D11: 11253979F | E11: 11253975F | F11: 11250533F | G11: 11250536F | H11: 11250534F | I11: 11250537F | J11: 11254765F | K11: 11250358F | L11: 11254832F | M11: 11254840F | S11: 11252748F | T11: There is a special offer on these items ask your Rep!
A12: Q7m | B12: 11254051F | C12: 11251728F | D12: 11253979F | E12: 11253975F | F12: 11250534F | G12: 11250537F | H12: 11250535F | I12: 11250538F | J12: 11254765F | K12: 11250358F | L12: 11254832F | M12: 11254840F | S12: 11250533F | T12: ="" -> 
A13: Q8m | B13: 11254051F | C13: 11251728F | D13: 11253979F | E13: 11253975F | F13: 11250534F | G13: 11250537F | H13: 11250535F | I13: 11250538F | J13: 11254765F | K13: 11250358F | L13: 11254832F | M13: 11254840F | S13: 11250536F | T13: ="" -> 
A14: Q98 | B14: 11254051F | C14: 11251728F | D14: 11253979F | E14: 11253975F | F14: 11262087F | G14: 11250768F | H14: 11250358F | I14: 11254832F | J14: 11254840F | S14: 11250534F | T14: ="" -> 
A15: 160C | S15: 11250537F | T15: ="" -> 
A16: 180C | S16: 11250768F | T16: ="" -> 
A17: X11 | B17: 11254051F | C17: 11251728F | D17: 11253993F | E17: 11253989F | F17: 11253979F | G17: 11254764F | H17: 11254765F | S17: 11250358F | T17: ="" -> 
A18: X16 | B18: 11254051F | C18: 11251728F | D18: 11253993F | E18: 11253989F | F18: 11253979F | G18: 11254764F | H18: 11254765F | S18: 11252008F | T18: ="" -> 
A19: X21 | B19: 11254051F | C19: 11251728F | D19: 11253993F | E19: 11253989F | F19: 11253979F | G19: 11254764F | H19: 11254765F | S19: 11250358F | T19: ="" -> 
A20: X26 | B20: 11254051F | C20: 11251728F | D20: 11253993F | E20: 11253989F | F20: 11253979F | G20: 11254764F | H20: 11254765F | S20: 11252008F | T20: ="" -> 
A21: X31 | B21: 11254051F | C21: 11251728F | D21: 11253993F | E21: 11253989F | F21: 11253979F | G21: 11254764F | H21: 11254765F | S21: 11252018F | T21: ="" -> 
A22: X36 | B22: 11254051F | C22: 11251728F | D22: 11253993F | E22: 11253989F | F22: 11253979F | G22: 11254764F | H22: 11254765F | S22: 11254051F | T22: There is a special offer on these items ask your Rep!
A23: X41 | B23: 11254051F | C23: 11251728F | D23: 11253979F | E23: 11253975F | F23: 11254764F | G23: 11254765F | H23: 11254832F | I23: 11254840F | S23: 11254065F | T23: There is a special offer on these items ask your Rep!
A24: X46 | B24: 11254051F | C24: 11251728F | D24: 11253979F | E24: 11253975F | F24: 11254764F | G24: 11254765F | H24: 11254832F | I24: 11254840F | S24: 11252311F | T24: There is a special offer on these items ask your Rep!
A25: X51 | B25: 11254051F | C25: 11251728F | D25: 11253979F | E25: 11253975F | F25: 11254764F | G25: 11254765F | H25: 11254832F | I25: 11254840F | S25: 11252331F | T25: There is a special offer on these items ask your Rep!
A26: X56 | B26: 11254051F | C26: 11251728F | D26: 11253979F | E26: 11253975F | F26: 11254764F | G26: 11254765F | H26: 11254832F | I26: 11254840F | S26: 11252341F | T26: There is a special offer on these items ask your Rep!
S27: 11251718F | T27: There is a special offer on these items ask your Rep!
A28: Skid Steer | S28: 11250535F | T28: ="" -> 
A31: Q3 | B31: 11254065F | C31: 11251720F | D31: 11253992F | E31: 11253988F | F31: 11253978F | S31: 11253978F | T31: There is a special offer on these items ask your Rep!
A32: Q3s | B32: 11254065F | C32: 11251720F | D32: 11253992F | E32: 11253988F | F32: 11253978F | S32: 11253975F | T32: There is a special offer on these items ask your Rep!
A33: Q4 | B33: 11254065F | C33: 11251720F | D33: 11253988F | E33: 11253978F | F33: 11253974F | S33: 11253979F | T33: There is a special offer on these items ask your Rep!
A34: Q4s | B34: 11254065F | C34: 11251720F | D34: 11253988F | E34: 11253978F | F34: 11253974F | S34: 11253988F | T34: There is a special offer on these items ask your Rep!
A35: Q5 | S35: 11253989F | T35: There is a special offer on these items ask your Rep!
A36: Q5s | S36: 11253992F | T36: There is a special offer on these items ask your Rep!
A37: Q6 | S37: 11253993F | T37: There is a special offer on these items ask your Rep!
A38: Q6m | S38: 11254764F | T38: ="" -> 
A39: Q7m | S39: 11254765F | T39: ="" -> 
A40: Q8m | S40: 11254832F | T40: ="" -> 
A41: Q98 | S41: 11254840F | T41: ="" -> 
A42: 130C | B42: 11254065F | D42: 11253992F
A43: 160C | B43: 11254065F | C43: 11251720F | D43: 11253992F
A44: 180C | B44: 11254065F | C44: 11251720F | D44: 11253992F
A45: X11 | B45: 11254065F | C45: 11251720F | D45: 11253992F | E45: 11253988F | F45: 11253978F
A46: X16 | B46: 11254065F | C46: 11251720F | D46: 11253992F | E46: 11253988F | F46: 11253978F
A47: X21 | B47: 11254065F | C47: 11251720F | D47: 11253992F | E47: 11253988F | F47: 11253978F
A48: X26 | B48: 11254065F | C48: 11251720F | D48: 11253992F | E48: 11253988F | F48: 11253978F
A49: X31 | B49: 11254065F | C49: 11251720F | D49: 11253992F | E49: 11253988F | F49: 11253978F
A50: X36 | B50: 11254065F | C50: 11251720F | D50: 11253992F | E50: 11253988F | F50: 11253978F
A51: X41 | B51: 11254065F | C51: 11251720F | D51: 11253988F | E51: 11253978F | F51: 11253974F
A52: X46 | B52: 11254065F | C52: 11251720F | D52: 11253988F | E52: 11253978F | F52: 11253974F
A53: X51
A54: X56

Sheet Buckets (hidden)
A1: EURO Buckets
A4: Q3 | B4: 11251588F | C4: 11251598F | D4: 11251038F | E4: 11251048F | F4: 11251128F | G4: 11251138F | H4: 11251078F | I4: 11251158F | J4: 11252158F
A5: Q3s | B5: 11251588F | C5: 11251598F | D5: 11251038F | E5: 11251048F | F5: 11251128F | G5: 11251138F | H5: 11251078F | I5: 11251158F | J5: 11252158F
A6: Q4 | B6: 11251038F | C6: 11251048F | D6: 11251058F | E6: 11251078F | F6: 11251148F | G6: 11251158F | H6: 11252158F | I6: ="" -> 
A7: Q4s | B7: 11251038F | C7: 11251048F | D7: 11251058F | E7: 11251078F | F7: 11251148F | G7: 11251158F | H7: 11252158F | I7: ="" -> 
A8: Q5 | B8: 11251038F | C8: 11251048F | D8: 11251058F | E8: 11251078F | F8: 11251088F | G8: 11251158F | H8: 11251808F | I8: 11252158F
A9: Q5s | B9: 11251038F | C9: 11251048F | D9: 11251058F | E9: 11251078F | F9: 11251088F | G9: 11251158F | H9: 11251808F | I9: 11252158F
A10: Q6 | B10: 11251048F | C10: 11251058F | D10: 11251078F | E10: 11251088F | F10: 11251808F | G10: 11251818F | H10: ="" ->  | I10: ="" -> 
A11: Q6m | B11: 11251048F | C11: 11251058F | D11: 11251078F | E11: 11251088F | F11: 11251808F | G11: 11251818F | H11: ="" ->  | I11: ="" -> 
A12: Q7m | B12: 11251048F | C12: 11251058F | D12: 11251078F | E12: 11251088F | F12: 11251098F | G12: 11251808F | H12: 11251818F | I12: 11251828F
A13: Q8m | B13: 11251058F | C13: 11251088F | D13: 11251098F | E13: 11251818F | F13: 11251828F | H13: ="" ->  | I13: ="" -> 
A14: Q98 | B14: 11251087F | C14: 11251097F | H14: ="" ->  | I14: ="" -> 
A15: 160C | B15: 11251938F
A16: 180C | B16: 11251938F
A17: X11 | B17: 11251948F | C17: 11251588F | D17: 11251038F | H17: ="" ->  | I17: ="" -> 
A18: X16 | B18: 11251948F | C18: 11251588F | D18: 11251038F | H18: ="" ->  | I18: ="" -> 
A19: X21 | B19: 11251948F | C19: 11251958F | D19: 11251588F | E19: 11251598F | F19: 11251038F | G19: 11251048F | H19: ="" ->  | I19: ="" -> 
A20: X26 | B20: 11251948F | C20: 11251958F | D20: 11251588F | E20: 11251598F | F20: 11251038F | G20: 11251048F | H20: ="" ->  | I20: ="" -> 
A21: X31 | B21: 11251948F | C21: 11251958F | D21: 11251588F | E21: 11251598F | F21: 11251038F | G21: 11251048F | H21: ="" ->  | I21: ="" -> 
A22: X36 | B22: 11251948F | C22: 11251958F | D22: 11251588F | E22: 11251598F | F22: 11251038F | G22: 11251048F | H22: ="" ->  | I22: ="" -> 
A23: X41 | B23: 11251948F | C23: 11251958F | D23: 11251588F | E23: 11251598F | F23: 11251038F | G23: 11251048F | H23: 11251058F | I23: ="" -> 
A24: X46 | B24: 11251948F | C24: 11251958F | D24: 11251588F | E24: 11251598F | F24: 11251038F | G24: 11251048F | H24: 11251058F | I24: ="" -> 
A25: X51 | B25: 11251948F | C25: 11251958F | D25: 11251588F | E25: 11251598F | F25: 11251038F | G25: 11251048F | H25: 11251058F | I25: ="" -> 
A26: X56 | B26: 11251948F | C26: 11251958F | D26: 11251588F | E26: 11251598F | F26: 11251038F | G26: 11251048F | H26: 11251058F | I26: ="" -> 
A28: Skid Steer Buckets
A31: Q3 | B31: 11251721F | C31: 11251821F
A32: Q3s | B32: 11251721F | C32: 11251821F
A33: Q4 | B33: 11251721F | C33: 11251821F
A34: Q4s | B34: 11251721F | C34: 11251821F
A35: Q5
A36: Q5s
A37: Q6
A38: Q6m
A39: Q7m
A40: Q8m
A41: Q98
A42: 130C | B42: 11252207F | C42: 11252208F
A43: 160C | B43: 11252207F | C43: 11252208F | D43: 11252209F
A44: 180C | B44: 11252207F | C44: 11252208F | D44: 11252209F
A45: X11 | B45: 11251941F | C45: 11251721F
A46: X16 | B46: 11251941F | C46: 11251721F
A47: X21 | B47: 11251941F | C47: 11251951F | D47: 11251721F | E47: 11251821F
A48: X26 | B48: 11251941F | C48: 11251951F | D48: 11251721F | E48: 11251821F
A49: X31 | B49: 11251941F | C49: 11251951F | D49: 11251721F | E49: 11251821F
A50: X36 | B50: 11251941F | C50: 11251951F | D50: 11251721F | E50: 11251821F
A51: X41 | B51: 11251941F | C51: 11251951F | D51: 11251721F | E51: 11251821F
A52: X46 | B52: 11251941F | C52: 11251951F | D52: 11251721F | E52: 11251821F
A53: X51 | B53: 11251941F | C53: 11251951F | D53: 11251721F | E53: 11251821F
A54: X56 | B54: 11251941F | C54: 11251951F | D54: 11251721F | E54: 11251821F
A56: PIN ON BUCKETS
A57: 100C | B57: 11252199F | C57: 11252200F
A58: 140C | B58: 11252201F | C58: 11252203F

Sheet LOADERpro
I1: LOADERpro18.2
B3: Dealer Name: | I3: Date: | U3: Note 1 | V3: =VLOOKUP(T$11,loaders,5,0) ->  | W3: =VLOOKUP(V3,Notes!A:B,2,0) -> 
U4: Note 2 | V4: =VLOOKUP(T$11,loaders,6,0) ->  | W4: =VLOOKUP(V4,Notes!A:B,2,0) -> 
B5: Contact: | I5: P.O. No. | R5: =VLOOKUP(P18,Options!F:Y,20,0) ->  | U5: Note 3 | V5: =VLOOKUP(T$11,loaders,7,0) ->  | W5: =VLOOKUP(V5,Notes!A:B,2,0) ->  | X5: =IF(ISERROR(R5),"",R5) -> 
R6: =VLOOKUP(P18,Options!F:Z,21,0) ->  | U6: Note 4 | V6: =VLOOKUP(T$11,loaders,8,0) ->  | W6: =VLOOKUP(V6,Notes!A:B,2,0) ->  | X6: =IF(ISERROR(R6),"",R6) -> 
B7: Address: | I7: Dealer No. | R7: =VLOOKUP(P18,Options!F:AA,22,0) ->  | X7: =IF(ISERROR(R7),"",R7) -> 
F9: State: | K9: Valid thru April 30, 2018
S10: AGCO
S11: Buhler
B12: Tractor Make: | S12: Case IH | T12: =IF(S$26="AGCO",AGCO!A1,IF(S$26="AGCO White",'AGCO White'!A1,IF(S$26="AGCO Allis",'AGCO Allis'!A1,IF(S$26="Buhler",Buhler!A1,IF(S$26="Case IH",Case!A1,IF(S$26="Challenger",Challenger!A1,IF(S$26="Deutz",Deutz!A1,IF(S$26="John Deere",'John Deere'!A1,IF(S$26="Kubota",Kubota!A1,IF(S$26="Landini",Landini!A1,IF(S$26="Massey Ferguson",MF!A1,IF(S$26="McCormick",McCormick!A1,IF(S$26="New Holland",NH!A1,IF(S$26="Kioti",KIOTI!A1,IF(S$26="Mahindra",MAHINDRA!A1,IF(S$26="Valtra",Valtra!A1,IF(S$26="","",0))))))))))))))))) -> 
S13: Challenger | T13: =IF(S$26="AGCO",AGCO!A2,IF(S$26="AGCO White",'AGCO White'!A2,IF(S$26="AGCO Allis",'AGCO Allis'!A2,IF(S$26="Buhler",Buhler!A2,IF(S$26="Case IH",Case!A2,IF(S$26="Challenger",Challenger!A2,IF(S$26="Deutz",Deutz!A2,IF(S$26="John Deere",'John Deere'!A2,IF(S$26="Kubota",Kubota!A2,IF(S$26="Landini",Landini!A2,IF(S$26="Massey Ferguson",MF!A2,IF(S$26="McCormick",McCormick!A2,IF(S$26="New Holland",NH!A2,IF(S$26="Kioti",KIOTI!A2,IF(S$26="Mahindra",MAHINDRA!A2,IF(S$26="Valtra",Valtra!A2,IF(S$26="","",0))))))))))))))))) -> 
B14: Tractor Model: | Q14: =VLOOKUP(T11,OEM,2,0) ->  | S14: Deutz | T14: =IF(S$26="AGCO",AGCO!A3,IF(S$26="AGCO White",'AGCO White'!A3,IF(S$26="AGCO Allis",'AGCO Allis'!A3,IF(S$26="Buhler",Buhler!A3,IF(S$26="Case IH",Case!A3,IF(S$26="Challenger",Challenger!A3,IF(S$26="Deutz",Deutz!A3,IF(S$26="John Deere",'John Deere'!A3,IF(S$26="Kubota",Kubota!A3,IF(S$26="Landini",Landini!A3,IF(S$26="Massey Ferguson",MF!A3,IF(S$26="McCormick",McCormick!A3,IF(S$26="New Holland",NH!A3,IF(S$26="Kioti",KIOTI!A3,IF(S$26="Mahindra",MAHINDRA!A3,IF(S$26="Valtra",Valtra!A3,IF(S$26="","",0))))))))))))))))) ->  | AA14: =IF(X17="Quicke Black","Quicke Silver Decals","") -> 
S15: John Deere | T15: =IF(S$26="AGCO",AGCO!A4,IF(S$26="AGCO White",'AGCO White'!A4,IF(S$26="AGCO Allis",'AGCO Allis'!A4,IF(S$26="Buhler",Buhler!A4,IF(S$26="Case IH",Case!A4,IF(S$26="Challenger",Challenger!A4,IF(S$26="Deutz",Deutz!A4,IF(S$26="John Deere",'John Deere'!A4,IF(S$26="Kubota",Kubota!A4,IF(S$26="Landini",Landini!A4,IF(S$26="Massey Ferguson",MF!A4,IF(S$26="McCormick",McCormick!A4,IF(S$26="New Holland",NH!A4,IF(S$26="Kioti",KIOTI!A4,IF(S$26="Mahindra",MAHINDRA!A4,IF(S$26="Valtra",Valtra!A4,IF(S$26="","",0))))))))))))))))) ->  | AA15: =IF(X17="Quicke Black","Case IH Red Decals","") -> 
S16: Kioti | T16: =IF(S$26="AGCO",AGCO!A5,IF(S$26="AGCO White",'AGCO White'!A5,IF(S$26="AGCO Allis",'AGCO Allis'!A5,IF(S$26="Buhler",Buhler!A5,IF(S$26="Case IH",Case!A5,IF(S$26="Challenger",Challenger!A5,IF(S$26="Deutz",Deutz!A5,IF(S$26="John Deere",'John Deere'!A5,IF(S$26="Kubota",Kubota!A5,IF(S$26="Landini",Landini!A5,IF(S$26="Massey Ferguson",MF!A5,IF(S$26="McCormick",McCormick!A5,IF(S$26="New Holland",NH!A5,IF(S$26="Kioti",KIOTI!A5,IF(S$26="Mahindra",MAHINDRA!A5,IF(S$26="Valtra",Valtra!A5,IF(S$26="","",0))))))))))))))))) ->  | AA16: =IF(X17="Quicke Black","John Deere Green Decals","") -> 
B17: Tractor Specifics: | E17: Version: | G17: =IF(ISERROR(VLOOKUP(T11,loaders,3,0)),"",VLOOKUP(T11,loaders,3,0)) ->  | J17: =IF(ISERROR(VLOOKUP(T11,loaders,2,0)),"",VLOOKUP(T11,loaders,2,0)) ->  | K17: WD | M17: Width: | N17: =IF(ISERROR(P17),"",P17) ->  | P17: =VLOOKUP(T11,loaders,4,0) ->  | S17: Kubota | T17: =IF(S$26="AGCO",AGCO!A6,IF(S$26="AGCO White",'AGCO White'!A6,IF(S$26="AGCO Allis",'AGCO Allis'!A6,IF(S$26="Buhler",Buhler!A6,IF(S$26="Case IH",Case!A6,IF(S$26="Challenger",Challenger!A6,IF(S$26="Deutz",Deutz!A6,IF(S$26="John Deere",'John Deere'!A6,IF(S$26="Kubota",Kubota!A6,IF(S$26="Landini",Landini!A6,IF(S$26="Massey Ferguson",MF!A6,IF(S$26="McCormick",McCormick!A6,IF(S$26="New Holland",NH!A6,IF(S$26="Kioti",KIOTI!A6,IF(S$26="Mahindra",MAHINDRA!A6,IF(S$26="Valtra",Valtra!A6,IF(S$26="","",0))))))))))))))))) ->  | V17: =IF(OR(W18="XA",W18="QD",W18="CA"),"","Quicke Black") ->  | AA17: =IF(X17="Quicke Black","Kubota Orange Decals","") -> 
B18: Notes: | C18: =IF(ISERROR(Q14),"",Q14) ->  | P18: =VLOOKUP(P19,Options!A:F,6,0) -> 0 | S18: Landini | T18: =IF(S$26="AGCO",AGCO!A7,IF(S$26="AGCO White",'AGCO White'!A7,IF(S$26="AGCO Allis",'AGCO Allis'!A7,IF(S$26="Buhler",Buhler!A7,IF(S$26="Case IH",Case!A7,IF(S$26="Challenger",Challenger!A7,IF(S$26="Deutz",Deutz!A7,IF(S$26="John Deere",'John Deere'!A7,IF(S$26="Kubota",Kubota!A7,IF(S$26="Landini",Landini!A7,IF(S$26="Massey Ferguson",MF!A7,IF(S$26="McCormick",McCormick!A7,IF(S$26="New Holland",NH!A7,IF(S$26="Kioti",KIOTI!A7,IF(S$26="Mahindra",MAHINDRA!A7,IF(S$26="Valtra",Valtra!A7,IF(S$26="","",0))))))))))))))))) ->  | V18: =IF(OR(W18="XA",W18="QD",W18="CA"),"Quicke Grey","") ->  | W18: =VLOOKUP(P19,Options!A1:C28,3,0) ->  | X18: =IF(ISERROR(V17),"",V17) ->  | AA18: =IF(X17="Quicke Black","New Holland Blue Decals","") -> 
B19: 1 | C19: =IF(ISERROR(W3),"",W3) ->  | S19: Mahindra | T19: =IF(S$26="AGCO",AGCO!A8,IF(S$26="AGCO White",'AGCO White'!A8,IF(S$26="AGCO Allis",'AGCO Allis'!A8,IF(S$26="Buhler",Buhler!A8,IF(S$26="Case IH",Case!A8,IF(S$26="Challenger",Challenger!A8,IF(S$26="Deutz",Deutz!A8,IF(S$26="John Deere",'John Deere'!A8,IF(S$26="Kubota",Kubota!A8,IF(S$26="Landini",Landini!A8,IF(S$26="Massey Ferguson",MF!A8,IF(S$26="McCormick",McCormick!A8,IF(S$26="New Holland",NH!A8,IF(S$26="Kioti",KIOTI!A8,IF(S$26="Mahindra",MAHINDRA!A8,IF(S$26="Valtra",Valtra!A8,IF(S$26="","",0))))))))))))))))) ->  | V19: =IF(OR(Options!F$45="U",Options!E$45="1"),"","John Deere Green") -> 
B20: 2 | C20: =IF(ISERROR(W4),"",W4) ->  | P20: =IF(ISERROR(VLOOKUP(T$11,loaders,9,0)),"",VLOOKUP(T$11,loaders,9,0)) ->  | S20: Massey Ferguson | T20: =IF(S$26="AGCO",AGCO!A9,IF(S$26="AGCO White",'AGCO White'!A9,IF(S$26="AGCO Allis",'AGCO Allis'!A9,IF(S$26="Buhler",Buhler!A9,IF(S$26="Case IH",Case!A9,IF(S$26="Challenger",Challenger!A9,IF(S$26="Deutz",Deutz!A9,IF(S$26="John Deere",'John Deere'!A9,IF(S$26="Kubota",Kubota!A9,IF(S$26="Landini",Landini!A9,IF(S$26="Massey Ferguson",MF!A9,IF(S$26="McCormick",McCormick!A9,IF(S$26="New Holland",NH!A9,IF(S$26="Kioti",KIOTI!A9,IF(S$26="Mahindra",MAHINDRA!A9,IF(S$26="Valtra",Valtra!A9,IF(S$26="","",0))))))))))))))))) ->  | V20: =IF(OR(Options!F$45="U",Options!E$45="1"),"","Kubota Orange") -> 
B21: 3 | C21: =IF(ISERROR(W5),"",W5) ->  | P21: =IF(ISERROR(VLOOKUP(T$11,loaders,10,0)),"",VLOOKUP(T$11,loaders,10,0)) ->  | S21: McCormick | T21: =IF(S$26="AGCO",AGCO!A10,IF(S$26="AGCO White",'AGCO White'!A10,IF(S$26="AGCO Allis",'AGCO Allis'!A10,IF(S$26="Buhler",Buhler!A10,IF(S$26="Case IH",Case!A10,IF(S$26="Challenger",Challenger!A10,IF(S$26="Deutz",Deutz!A10,IF(S$26="John Deere",'John Deere'!A10,IF(S$26="Kubota",Kubota!A10,IF(S$26="Landini",Landini!A10,IF(S$26="Massey Ferguson",MF!A10,IF(S$26="McCormick",McCormick!A10,IF(S$26="New Holland",NH!A10,IF(S$26="Kioti",KIOTI!A10,IF(S$26="Mahindra",MAHINDRA!A10,IF(S$26="Valtra",Valtra!A10,IF(S$26="","",0))))))))))))))))) ->  | V21: =IF(OR(Options!F$45="U",Options!E$45="1"),"","Massey Ferguson Red") -> 
B22: 4 | C22: =IF(ISERROR(W6),"",W6) ->  | P22: =IF(ISERROR(VLOOKUP(T$11,loaders,11,0)),"",VLOOKUP(T$11,loaders,11,0)) ->  | S22: New Holland | T22: =IF(S$26="AGCO",AGCO!A11,IF(S$26="AGCO White",'AGCO White'!A11,IF(S$26="AGCO Allis",'AGCO Allis'!A11,IF(S$26="Buhler",Buhler!A11,IF(S$26="Case IH",Case!A11,IF(S$26="Challenger",Challenger!A11,IF(S$26="Deutz",Deutz!A11,IF(S$26="John Deere",'John Deere'!A11,IF(S$26="Kubota",Kubota!A11,IF(S$26="Landini",Landini!A11,IF(S$26="Massey Ferguson",MF!A11,IF(S$26="McCormick",McCormick!A11,IF(S$26="New Holland",NH!A11,IF(S$26="Kioti",KIOTI!A11,IF(S$26="Mahindra",MAHINDRA!A11,IF(S$26="Valtra",Valtra!A11,IF(S$26="","",0))))))))))))))))) ->  | V22: =IF(OR(Options!F$45="U",Options!E$45="1"),"","New Holland Blue") ->  | AE22: =VLOOKUP(AD22,Prices!B:D,2,0) ->  | AF22: =VLOOKUP(AD22,Prices!B:D,3,0) ->  | AG22: =VLOOKUP(AD22,Prices!B:E,4,0) ->  | AK22: =IF(Options!K35="Q","1","0") -> 
P23: =IF(ISERROR(VLOOKUP(T$11,loaders,12,0)),"",VLOOKUP(T$11,loaders,12,0)) ->  | S23: Valtra | T23: =IF(S$26="AGCO",AGCO!A12,IF(S$26="AGCO White",'AGCO White'!A12,IF(S$26="AGCO Allis",'AGCO Allis'!A12,IF(S$26="Buhler",Buhler!A12,IF(S$26="Case IH",Case!A13,IF(S$26="Challenger",Challenger!A12,IF(S$26="Deutz",Deutz!A12,IF(S$26="John Deere",'John Deere'!A12,IF(S$26="Kubota",Kubota!A12,IF(S$26="Landini",Landini!A12,IF(S$26="Massey Ferguson",MF!A12,IF(S$26="McCormick",McCormick!A12,IF(S$26="New Holland",NH!A12,IF(S$26="Kioti",KIOTI!A12,IF(S$26="Mahindra",MAHINDRA!A12,IF(S$26="Valtra",Valtra!A12,IF(S$26="","",0))))))))))))))))) ->  | V23: =IF(OR(Options!F$45="U",Options!E$45="1"),"","Case IH Red") -> 
I24: Loader Code: | K24: =Options!M36 ->  | P24: =IF(ISERROR(VLOOKUP(T$11,loaders,13,0)),"",VLOOKUP(T$11,loaders,13,0)) ->  | S24: ="" ->  | T24: =IF(S$26="AGCO",AGCO!A13,IF(S$26="AGCO White",'AGCO White'!A13,IF(S$26="AGCO Allis",'AGCO Allis'!A13,IF(S$26="Buhler",Buhler!A13,IF(S$26="Case IH",Case!A14,IF(S$26="Challenger",Challenger!A13,IF(S$26="Deutz",Deutz!A13,IF(S$26="John Deere",'John Deere'!A13,IF(S$26="Kubota",Kubota!A13,IF(S$26="Landini",Landini!A13,IF(S$26="Massey Ferguson",MF!A13,IF(S$26="McCormick",McCormick!A13,IF(S$26="New Holland",NH!A13,IF(S$26="Kioti",KIOTI!A13,IF(S$26="Mahindra",MAHINDRA!A13,IF(S$26="Valtra",Valtra!A13,IF(S$26="","",0))))))))))))))))) ->  | V24: =IF(OR(Options!F$45="U",Options!E$45="1"),"","Deutz Green") ->  | AK24: =IF(X17="Quicke Black","0","400") -> 400
B25: Select Loader: | G25: Color Matched Decals (Q Series) | L25: List Price | P25: =IF(ISERROR(VLOOKUP(T$11,loaders,14,0)),"",VLOOKUP(T$11,loaders,14,0)) ->  | S25: ="" ->  | T25: =IF(S$26="AGCO",AGCO!A14,IF(S$26="AGCO White",'AGCO White'!A14,IF(S$26="AGCO Allis",'AGCO Allis'!A14,IF(S$26="Buhler",Buhler!A14,IF(S$26="Case IH",Case!A15,IF(S$26="Challenger",Challenger!A14,IF(S$26="Deutz",Deutz!A14,IF(S$26="John Deere",'John Deere'!A14,IF(S$26="Kubota",Kubota!A14,IF(S$26="Landini",Landini!A14,IF(S$26="Massey Ferguson",MF!A14,IF(S$26="McCormick",McCormick!A14,IF(S$26="New Holland",NH!A14,IF(S$26="Kioti",KIOTI!A14,IF(S$26="Mahindra",MAHINDRA!A14,IF(S$26="Valtra",Valtra!A14,IF(S$26="","",0))))))))))))))))) ->  | Z25: =IF(ISERROR(Options!B39),"",Options!B39) ->  | AD25: =IF(Q$12="Skid Steer",VLOOKUP(P$19,Buckets!A$29:F$56,2,0),IF(Q12="Euro",VLOOKUP(P$19,Buckets!A$2:K$26,2,0),IF(Q12="PIN ON",VLOOKUP(P$19,Buckets!A$57:K$58,2,0),""))) ->  | AE25: =IF(ISERROR(VLOOKUP(AD25,vmaster,2,0)),"",VLOOKUP(AD25,vmaster,2,0)) ->  | AI25: USD | AJ25: CAD
B26: Loader Color: | L26: =IF($M$48="USD",AI27,AJ27) ->  | P26: =IF(ISERROR(VLOOKUP(T$11,loaders,15,0)),"",VLOOKUP(T$11,loaders,15,0)) ->  | T26: =IF(S$26="AGCO",AGCO!A15,IF(S$26="AGCO White",'AGCO White'!A15,IF(S$26="AGCO Allis",'AGCO Allis'!A15,IF(S$26="Buhler",Buhler!A15,IF(S$26="Case IH",Case!A16,IF(S$26="Challenger",Challenger!A15,IF(S$26="Deutz",Deutz!A15,IF(S$26="John Deere",'John Deere'!A15,IF(S$26="Kubota",Kubota!A15,IF(S$26="Landini",Landini!A15,IF(S$26="Massey Ferguson",MF!A15,IF(S$26="McCormick",McCormick!A15,IF(S$26="New Holland",NH!A15,IF(S$26="Kioti",KIOTI!A15,IF(S$26="Mahindra",MAHINDRA!A15,IF(S$26="Valtra",Valtra!A15,IF(S$26="","",0))))))))))))))))) ->  | X26: =IF(Q48="3 Function Hose Kit","3 Function Diverter Valve",IF(Q48="2 Function Hose Kit","3 Function Diverter Valve","3 Function Diverter Valve")) -> 3 Function Diverter Valve | Y26: =VLOOKUP(P19,Options!A1:K28,11,0) ->  | AA26: =VLOOKUP(T11,loaders,26,0) ->  | AB26: =IF(AA26=1,"5034021","") ->  | AD26: =IF(Q12="Skid Steer",VLOOKUP(P$19,Buckets!A$29:F$56,3,0),IF(Q12="Euro",VLOOKUP(P$19,Buckets!A$2:K$26,3,0),IF(Q12="PIN ON",VLOOKUP(P$19,Buckets!A$57:K$58,3,0),""))) ->  | AI26: =IF($K$24="","",VLOOKUP(Options!$A$42,Prices!A:D,3,0)) ->  | AJ26: =IF($K$24="","",VLOOKUP(Options!$A$42,Prices!A:D,4,0)) ->  | AK26: =AK24*AK22 -> 
B27: Quick Attach: | G27: =IF(Options!K35="Q",Loaders!A25,"") ->  | L27: =Loaders!B25 -> 0 | P27: =IF(ISERROR(VLOOKUP(T$11,loaders,16,0)),"",VLOOKUP(T$11,loaders,16,0)) ->  | T27: =IF(S$26="AGCO",AGCO!A16,IF(S$26="AGCO White",'AGCO White'!A16,IF(S$26="AGCO Allis",'AGCO Allis'!A16,IF(S$26="Buhler",Buhler!A16,IF(S$26="Case IH",Case!A17,IF(S$26="Challenger",Challenger!A16,IF(S$26="Deutz",Deutz!A16,IF(S$26="John Deere",'John Deere'!A16,IF(S$26="Kubota",Kubota!A16,IF(S$26="Landini",Landini!A16,IF(S$26="Massey Ferguson",MF!A16,IF(S$26="McCormick",McCormick!A16,IF(S$26="New Holland",NH!A16,IF(S$26="Kioti",KIOTI!A16,IF(S$26="Mahindra",MAHINDRA!A16,IF(S$26="Valtra",Valtra!A16,IF(S$26="","",0))))))))))))))))) ->  | X27: =IF(Z25="XA","",IF(Z25="CA","",IF(Q48="2 Function Hose Kit","",IF(Q48="3 Function Hose Kit","",IF(AA26=1,"","Live 3rd Function"))))) ->  | AD27: =IF(Q12="Skid Steer",VLOOKUP(P$19,Buckets!A$29:F$56,4,0),IF(Q12="Euro",VLOOKUP(P$19,Buckets!A$2:K$26,4,0),IF(Q12="PIN ON",VLOOKUP(P$19,Buckets!A$57:K$58,4,0),""))) ->  | AI27: =IF(K24="","",AI26+AK26) ->  | AJ27: =IF(K24="","",AJ26+AK26) -> 
B28: Subframe: | J28: =IF(R32="","",R28) ->  | L28: =IF($M$48="USD",AI28,AJ28) ->  | P28: =IF(M48="USD",AI28,AJ28) ->  | R28: =VLOOKUP(T11,loaders,17,0) ->  | T28: =IF(S$26="AGCO",AGCO!A17,IF(S$26="AGCO White",'AGCO White'!A17,IF(S$26="AGCO Allis",'AGCO Allis'!A17,IF(S$26="Buhler",Buhler!A17,IF(S$26="Case IH",Case!A18,IF(S$26="Challenger",Challenger!A17,IF(S$26="Deutz",Deutz!A17,IF(S$26="John Deere",'John Deere'!A17,IF(S$26="Kubota",Kubota!A17,IF(S$26="Landini",Landini!A17,IF(S$26="Massey Ferguson",MF!A17,IF(S$26="McCormick",McCormick!A17,IF(S$26="New Holland",NH!A17,IF(S$26="Kioti",KIOTI!A17,IF(S$26="Mahindra",MAHINDRA!A17,IF(S$26="Valtra",Valtra!A17,IF(S$26="","",0))))))))))))))))) ->  | U28: Yes | AD28: =IF(Q12="Skid Steer",VLOOKUP(P$19,Buckets!A$29:F$54,5,0),IF(Q12="Euro",VLOOKUP(P$19,Buckets!A$2:K$26,5,0),IF(Q12="PIN ON",VLOOKUP(P$19,Buckets!A$57:K$58,5,0),""))) ->  | AI28: =IF($J$28="","",VLOOKUP($J$28,Prices!A:D,3,0)) ->  | AJ28: =IF($J$28="","",VLOOKUP($J$28,Prices!A:D,4,0)) -> 
B29: Hydraulics: | J29: =IF(ISERROR(Q49),"",Q49) ->  | T29: =IF(S$26="AGCO",AGCO!A18,IF(S$26="AGCO White",'AGCO White'!A18,IF(S$26="AGCO Allis",'AGCO Allis'!A18,IF(S$26="Buhler",Buhler!A18,IF(S$26="Case IH",Case!A19,IF(S$26="Challenger",Challenger!A18,IF(S$26="Deutz",Deutz!A18,IF(S$26="John Deere",'John Deere'!A18,IF(S$26="Kubota",Kubota!A18,IF(S$26="Landini",Landini!A18,IF(S$26="Massey Ferguson",MF!A18,IF(S$26="McCormick",McCormick!A18,IF(S$26="New Holland",NH!A18,IF(S$26="Kioti",KIOTI!A18,IF(S$26="Mahindra",MAHINDRA!A18,IF(S$26="Valtra",Valtra!A18,IF(S$26="","",0))))))))))))))))) ->  | U29: No | X29: 2 Function Mechanical | Y29: 5034284 | AD29: =IF(Q12="Skid Steer",VLOOKUP(P$19,Buckets!A$29:F$54,6,0),IF(Q12="Euro",VLOOKUP(P$19,Buckets!A$2:K$26,6,0),IF(Q12="PIN ON",VLOOKUP(P$19,Buckets!A$57:K$58,6,0),""))) ->  | AI29: =IF(J29="","",VLOOKUP(J29,Prices!A:D,3,0)) ->  | AJ29: =IF(J29="","",VLOOKUP(J29,Prices!A:D,4,0)) -> 
B30: Loader Options: | E30: =IF(P19="","",VLOOKUP(P19,Options!A1:P28,16,0)) ->  | R30: =VLOOKUP(R$28,Prices!A:D,2,0) ->  | T30: =IF(S$26="AGCO",AGCO!A19,IF(S$26="AGCO White",'AGCO White'!A19,IF(S$26="AGCO Allis",'AGCO Allis'!A19,IF(S$26="Buhler",Buhler!A19,IF(S$26="Case IH",Case!A20,IF(S$26="Challenger",Challenger!A19,IF(S$26="Deutz",Deutz!A19,IF(S$26="John Deere",'John Deere'!A19,IF(S$26="Kubota",Kubota!A19,IF(S$26="Landini",Landini!A19,IF(S$26="Massey Ferguson",MF!A19,IF(S$26="McCormick",McCormick!A19,IF(S$26="New Holland",NH!A19,IF(S$26="Kioti",KIOTI!A19,IF(S$26="Mahindra",MAHINDRA!A19,IF(S$26="Valtra",Valtra!A19,IF(S$26="","",0))))))))))))))))) ->  | X30: 2 Function Electric | Y30: 5034283 | AD30: =IF(Q12="Skid Steer",VLOOKUP(P$19,Buckets!A$29:F$54,7,0),IF(Q12="Euro",VLOOKUP(P$19,Buckets!A$2:K$26,7,0),IF(Q12="PIN ON",VLOOKUP(P$19,Buckets!A$57:K$58,7,0),""))) ->  | AI30: =IF(J30="","",VLOOKUP(J30,vmaster,3,0)) ->  | AJ30: =IF(J30="","",VLOOKUP(J30,vmaster,4,0)) -> 
B31: Soft Drive: | J31: =IF(U26="YES",VLOOKUP(Options!A42,Options!A1:I28,9,0),"") ->  | L31: =IF($M$48="USD",AI31,AJ31) ->  | T31: =IF(S$26="AGCO",AGCO!A20,IF(S$26="AGCO White",'AGCO White'!A20,IF(S$26="AGCO Allis",'AGCO Allis'!A20,IF(S$26="Buhler",Buhler!A20,IF(S$26="Case IH",Case!A21,IF(S$26="Challenger",Challenger!A20,IF(S$26="Deutz",Deutz!A20,IF(S$26="John Deere",'John Deere'!A20,IF(S$26="Kubota",Kubota!A20,IF(S$26="Landini",Landini!A20,IF(S$26="Massey Ferguson",MF!A20,IF(S$26="McCormick",McCormick!A20,IF(S$26="New Holland",NH!A20,IF(S$26="Kioti",KIOTI!A20,IF(S$26="Mahindra",MAHINDRA!A20,IF(S$26="Valtra",Valtra!A20,IF(S$26="","",0))))))))))))))))) ->  | AD31: =IF(Q12="Skid Steer",VLOOKUP(P$19,Buckets!A$29:F$54,8,0),IF(Q12="Euro",VLOOKUP(P$19,Buckets!A$2:K$26,8,0),IF(Q12="PIN ON",VLOOKUP(P$19,Buckets!A$57:K$58,8,0),""))) ->  | AI31: =IF(J31="","",VLOOKUP(J31,Prices!A:D,3,0)) ->  | AJ31: =IF(J31="","",VLOOKUP(J31,Prices!A:D,4,0)) -> 
B32: 3rd Function: | J32: =Y32 ->  | L32: =IF($M$48="USD",AI32,AJ32) ->  | T32: =IF(S$26="AGCO",AGCO!A21,IF(S$26="AGCO White",'AGCO White'!A21,IF(S$26="AGCO Allis",'AGCO Allis'!A21,IF(S$26="Buhler",Buhler!A21,IF(S$26="Case IH",Case!A22,IF(S$26="Challenger",Challenger!A21,IF(S$26="Deutz",Deutz!A21,IF(S$26="John Deere",'John Deere'!A21,IF(S$26="Kubota",Kubota!A21,IF(S$26="Landini",Landini!A21,IF(S$26="Massey Ferguson",MF!A21,IF(S$26="McCormick",McCormick!A21,IF(S$26="New Holland",NH!A21,IF(S$26="Kioti",KIOTI!A21,IF(S$26="Mahindra",MAHINDRA!A21,IF(S$26="Valtra",Valtra!A21,IF(S$26="","",0))))))))))))))))) ->  | U32: =IF(U26="Yes",VLOOKUP(P19,Options!A1:H28,7),"") ->  | X32: =IF(X28="3 Function Diverter Valve",Y26,IF(X28="Live 3rd Function",VLOOKUP(Q48,X29:Y30,2,0),"")) ->  | Y32: =IF(ISERROR(X32),"",X32) ->  | AD32: =IF(Q12="Skid Steer",VLOOKUP(P$19,Buckets!A$29:F$54,9,0),IF(Q12="Euro",VLOOKUP(P$19,Buckets!A$2:K$26,9,0),IF(Q12="PIN ON",VLOOKUP(P$19,Buckets!A$57:K$58,9,0),""))) ->  | AI32: =IF(J32="","",VLOOKUP(J32,Prices!A:D,3,0)) ->  | AJ32: =IF(J32="","",VLOOKUP(J32,Prices!A:D,4,0)) -> 
F33: =IF(X28="Live 3rd Function","Live 3rd Hose Kit",IF(Q46="3 Function Hose Kit","Live 3rd Hose Kit",IF(Q48=1,"Electric Handle Kit",""))) ->  | J33: =IF(F33="Live 3rd Hose Kit",VLOOKUP(P19,Options!A1:L28,12,0),IF(F33="Electric Handle Kit","5102162F","")) ->  | T33: =IF(S$26="AGCO",AGCO!A22,IF(S$26="AGCO White",'AGCO White'!A22,IF(S$26="AGCO Allis",'AGCO Allis'!A22,IF(S$26="Buhler",Buhler!A22,IF(S$26="Case IH",Case!A23,IF(S$26="Challenger",Challenger!A22,IF(S$26="Deutz",Deutz!A22,IF(S$26="John Deere",'John Deere'!A22,IF(S$26="Kubota",Kubota!A22,IF(S$26="Landini",Landini!A22,IF(S$26="Massey Ferguson",MF!A22,IF(S$26="McCormick",McCormick!A22,IF(S$26="New Holland",NH!A22,IF(S$26="Kioti",KIOTI!A22,IF(S$26="Mahindra",MAHINDRA!A22,IF(S$26="Valtra",Valtra!A22,IF(S$26="","",0))))))))))))))))) ->  | U33: =IF(U26="Yes",VLOOKUP(P19,Options!A1:I28,8),"") ->  | AD33: =IF(Q20="Skid Steer",VLOOKUP(P$19,Buckets!A$29:F$54,2,0),IF(Q20="Euro",VLOOKUP(P$19,Buckets!A$2:K$26,2,0),IF(Q20="PIN ON",VLOOKUP(P$19,Buckets!A$57:K$58,2,0),""))) ->  | AI33: =IF(J33="","",VLOOKUP(J33,Prices!A:D,3,0)) ->  | AJ33: =IF(J33="","",VLOOKUP(J33,Prices!A:D,4,0)) -> 
C34: =VLOOKUP(J34,Prices!A:B,2,0) ->  | J34: =VLOOKUP(J28,'Loader Details'!Q:R,2,0) ->  | Q34: 2 Function Mechanical | R34: =VLOOKUP(T11,'Loader Details'!A:AB,20,0) ->  | T34: =IF(S$26="AGCO",AGCO!A23,IF(S$26="AGCO White",'AGCO White'!A23,IF(S$26="AGCO Allis",'AGCO Allis'!A23,IF(S$26="Buhler",Buhler!A23,IF(S$26="Case IH",Case!A24,IF(S$26="Challenger",Challenger!A23,IF(S$26="Deutz",Deutz!A23,IF(S$26="John Deere",'John Deere'!A23,IF(S$26="Kubota",Kubota!A23,IF(S$26="Landini",Landini!A23,IF(S$26="Massey Ferguson",MF!A23,IF(S$26="McCormick",McCormick!#REF!,IF(S$26="New Holland",NH!A23,IF(S$26="Kioti",KIOTI!A23,IF(S$26="Mahindra",MAHINDRA!A23,IF(S$26="Valtra",Valtra!A23,IF(S$26="","",0))))))))))))))))) ->  | U34: =IF(N17="US",U33,U32) ->  | AD34: =IF(Q21="Skid Steer",VLOOKUP(P$19,Buckets!A$29:F$54,2,0),IF(Q21="Euro",VLOOKUP(P$19,Buckets!A$2:K$26,2,0),IF(Q21="PIN ON",VLOOKUP(P$19,Buckets!A$57:K$58,2,0),""))) ->  | AI34: =IF(J34="","",VLOOKUP(J34,Prices!A:D,3,0)) ->  | AJ34: =IF(J34="","",VLOOKUP(J34,Prices!A:D,4,0)) -> 
Q35: 2 Function Hose Kit | R35: =VLOOKUP(T11,'Loader Details'!A:AB,22,0) ->  | T35: =IF(S$26="AGCO",AGCO!A24,IF(S$26="AGCO White",'AGCO White'!A24,IF(S$26="AGCO Allis",'AGCO Allis'!A24,IF(S$26="Buhler",Buhler!A24,IF(S$26="Case IH",Case!A25,IF(S$26="Challenger",Challenger!A24,IF(S$26="Deutz",Deutz!A24,IF(S$26="John Deere",'John Deere'!A24,IF(S$26="Kubota",Kubota!#REF!,IF(S$26="Landini",Landini!A24,IF(S$26="Massey Ferguson",MF!A24,IF(S$26="McCormick",McCormick!#REF!,IF(S$26="New Holland",NH!A24,IF(S$26="Kioti",KIOTI!A24,IF(S$26="Mahindra",MAHINDRA!A24,IF(S$26="Valtra",Valtra!A24,IF(S$26="","",0))))))))))))))))) ->  | U35: =IF(N17="US",U33,U32) -> 
B36: Other: | F36: =IF(ISERROR(VLOOKUP(C36,vmaster,2,0)),"",VLOOKUP(C36,vmaster,2,0)) ->  | L36: =IF($M$48="USD",AI36,AJ36) ->  | Q36: 2 Function Electric | R36: =VLOOKUP(T11,'Loader Details'!A:AB,21,0) ->  | T36: =IF(S$26="AGCO",AGCO!A25,IF(S$26="AGCO White",'AGCO White'!A25,IF(S$26="AGCO Allis",'AGCO Allis'!A25,IF(S$26="Buhler",Buhler!A25,IF(S$26="Case IH",Case!A26,IF(S$26="Challenger",Challenger!A25,IF(S$26="Deutz",Deutz!A25,IF(S$26="John Deere",'John Deere'!A25,IF(S$26="Kubota",Kubota!A25,IF(S$26="Landini",Landini!A25,IF(S$26="Massey Ferguson",MF!A25,IF(S$26="McCormick",McCormick!A23,IF(S$26="New Holland",NH!A25,IF(S$26="Kioti",KIOTI!A25,IF(S$26="Mahindra",MAHINDRA!A25,IF(S$26="Valtra",Valtra!A25,IF(S$26="","",0))))))))))))))))) ->  | AI36: =IF(C36="","",VLOOKUP(C36,Prices!A:D,3,0)) ->  | AJ36: =IF(C36="","",VLOOKUP(C36,Prices!A:D,4,0)) -> 
B37: Implements: | Q37: 3 Function Hose Kit | R37: =VLOOKUP(T11,'Loader Details'!A:AB,23,0) ->  | T37: =IF(S$26="AGCO",AGCO!A26,IF(S$26="AGCO White",'AGCO White'!A26,IF(S$26="AGCO Allis",'AGCO Allis'!A26,IF(S$26="Buhler",Buhler!A26,IF(S$26="Case IH",Case!A27,IF(S$26="Challenger",Challenger!A26,IF(S$26="Deutz",Deutz!A26,IF(S$26="John Deere",'John Deere'!A26,IF(S$26="Kubota",Kubota!A26,IF(S$26="Landini",Landini!A26,IF(S$26="Massey Ferguson",MF!A26,IF(S$26="McCormick",McCormick!A24,IF(S$26="New Holland",NH!A26,IF(S$26="Kioti",KIOTI!A26,IF(S$26="Mahindra",MAHINDRA!A26,IF(S$26="Valtra",Valtra!A26,IF(S$26="","",0))))))))))))))))) ->  | AI37: =IF(J37="","",VLOOKUP(J37,vmaster,3,0)) ->  | AJ37: =IF(J37="","",VLOOKUP(C37,vmaster,4,0)) -> 
B38: Bucket: | J38: =IF(ISERROR(AE22),"",AG22) ->  | L38: =IF($M$48="USD",AI38,AJ38) ->  | Q38: Compact Loader Valve - Cab Tractors | R38: =VLOOKUP(T11,'Loader Details'!A:AB,27,0) ->  | T38: =IF(S$26="AGCO",AGCO!A27,IF(S$26="AGCO White",'AGCO White'!A27,IF(S$26="AGCO Allis",'AGCO Allis'!A27,IF(S$26="Buhler",Buhler!A27,IF(S$26="Case IH",Case!A28,IF(S$26="Challenger",Challenger!A27,IF(S$26="Deutz",Deutz!A27,IF(S$26="John Deere",'John Deere'!A27,IF(S$26="Kubota",Kubota!A27,IF(S$26="Landini",Landini!A27,IF(S$26="Massey Ferguson",MF!A27,IF(S$26="McCormick",McCormick!A25,IF(S$26="New Holland",NH!A27,IF(S$26="Kioti",KIOTI!A27,IF(S$26="Mahindra",MAHINDRA!A27,IF(S$26="Valtra",Valtra!A27,IF(S$26="","",0))))))))))))))))) ->  | AI38: =IF(J38="","",VLOOKUP(J38,Prices!A:D,3,0)) ->  | AJ38: =IF(J38="","",VLOOKUP(J38,Prices!A:D,4,0)) -> 
B39: Implement: | J39: =IF(ISERROR(Q66),"",Q66) ->  | L39: =IF($M$48="USD",AI39,AJ39) ->  | Q39: Compact Loader Valve - Rops Tractors | R39: =VLOOKUP(T11,'Loader Details'!A:AB,28,0) ->  | T39: =IF(S$26="AGCO",AGCO!A28,IF(S$26="AGCO White",'AGCO White'!A28,IF(S$26="AGCO Allis",'AGCO Allis'!A28,IF(S$26="Buhler",Buhler!A28,IF(S$26="Case IH",Case!A29,IF(S$26="Challenger",Challenger!A28,IF(S$26="Deutz",Deutz!A28,IF(S$26="John Deere",'John Deere'!A28,IF(S$26="Kubota",Kubota!A28,IF(S$26="Landini",Landini!A28,IF(S$26="Massey Ferguson",MF!A28,IF(S$26="McCormick",McCormick!A26,IF(S$26="New Holland",NH!A28,IF(S$26="Kioti",KIOTI!A28,IF(S$26="Mahindra",MAHINDRA!A28,IF(S$26="Valtra",Valtra!A28,IF(S$26="","",0))))))))))))))))) ->  | AI39: =IF(J39="","",VLOOKUP(J39,Prices!A:D,3,0)) ->  | AJ39: =IF(J39="","",VLOOKUP(J39,Prices!A:D,4,0)) -> 
B40: =IF(ISERROR(Q66),"",VLOOKUP(Q66,Implements!S:T,2,0)) ->  | Q40: =IF(R34="","","2 Function Mechanical") ->  | R40: =IF(ISERROR(Q40),"",Q40) ->  | T40: =IF(S$26="AGCO",AGCO!A29,IF(S$26="AGCO White",'AGCO White'!A29,IF(S$26="AGCO Allis",'AGCO Allis'!A29,IF(S$26="Buhler",Buhler!A29,IF(S$26="Case IH",Case!A30,IF(S$26="Challenger",Challenger!A29,IF(S$26="Deutz",Deutz!A29,IF(S$26="John Deere",'John Deere'!A29,IF(S$26="Kubota",Kubota!A29,IF(S$26="Landini",Landini!A29,IF(S$26="Massey Ferguson",MF!A29,IF(S$26="McCormick",McCormick!A27,IF(S$26="New Holland",NH!A29,IF(S$26="Kioti",KIOTI!A29,IF(S$26="Mahindra",MAHINDRA!A29,IF(S$26="Valtra",Valtra!A29,IF(S$26="","",0))))))))))))))))) ->  | AI40: =IF(C41="","",VLOOKUP(C41,Prices!A:D,3,0)) ->  | AJ40: =IF(C41="","",VLOOKUP(C41,Prices!A:D,4,0)) -> 
B41: Other: | F41: =IF(ISERROR(VLOOKUP(C41,vmaster,2,0)),"",VLOOKUP(C41,vmaster,2,0)) ->  | L41: =IF($M$48="USD",AI40,AJ40) ->  | Q41: =IF(R35="","","2 Function Hose Kit") ->  | R41: =IF(ISERROR(Q41),"",Q41) ->  | T41: =IF(S$26="AGCO",AGCO!A30,IF(S$26="AGCO White",'AGCO White'!A30,IF(S$26="AGCO Allis",'AGCO Allis'!A30,IF(S$26="Buhler",Buhler!A30,IF(S$26="Case IH",Case!A31,IF(S$26="Challenger",Challenger!A30,IF(S$26="Deutz",Deutz!A30,IF(S$26="John Deere",'John Deere'!A30,IF(S$26="Kubota",Kubota!A30,IF(S$26="Landini",Landini!A30,IF(S$26="Massey Ferguson",MF!A30,IF(S$26="McCormick",McCormick!A28,IF(S$26="New Holland",NH!A30,IF(S$26="Kioti",KIOTI!A30,IF(S$26="Mahindra",MAHINDRA!A30,IF(S$26="Valtra",Valtra!A30,IF(S$26="","",0))))))))))))))))) -> 
Q42: =IF(R36="","","2 Function Electric") ->  | T42: =IF(S$26="AGCO",AGCO!A31,IF(S$26="AGCO White",'AGCO White'!A31,IF(S$26="AGCO Allis",'AGCO Allis'!A31,IF(S$26="Buhler",Buhler!A31,IF(S$26="Case IH",Case!A32,IF(S$26="Challenger",Challenger!A31,IF(S$26="Deutz",Deutz!A31,IF(S$26="John Deere",'John Deere'!A31,IF(S$26="Kubota",Kubota!A31,IF(S$26="Landini",Landini!A31,IF(S$26="Massey Ferguson",MF!A31,IF(S$26="McCormick",McCormick!A29,IF(S$26="New Holland",NH!A31,IF(S$26="Kioti",KIOTI!A31,IF(S$26="Mahindra",MAHINDRA!A31,IF(S$26="Valtra",Valtra!A31,IF(S$26="","",0))))))))))))))))) -> 
B43: Comments: | J43: List Price: | L43: =SUM(L26:O42) -> 0 | Q43: =IF(R37="","","3 Function Hose Kit") ->  | T43: =IF(S$26="AGCO",AGCO!A32,IF(S$26="AGCO White",'AGCO White'!A32,IF(S$26="AGCO Allis",'AGCO Allis'!A32,IF(S$26="Buhler",Buhler!A32,IF(S$26="Case IH",Case!A33,IF(S$26="Challenger",Challenger!A32,IF(S$26="Deutz",Deutz!A32,IF(S$26="John Deere",'John Deere'!A32,IF(S$26="Kubota",Kubota!A32,IF(S$26="Landini",Landini!A32,IF(S$26="Massey Ferguson",MF!A32,IF(S$26="McCormick",McCormick!A30,IF(S$26="New Holland",NH!A32,IF(S$26="Kioti",KIOTI!A32,IF(S$26="Mahindra",MAHINDRA!A32,IF(S$26="Valtra",Valtra!A32,IF(S$26="","",0))))))))))))))))) -> 
Q44: =IF(R38="","","Compact Loader Valve - Cab Tractors") ->  | T44: =IF(S$26="AGCO",AGCO!A33,IF(S$26="AGCO White",'AGCO White'!A33,IF(S$26="AGCO Allis",'AGCO Allis'!A33,IF(S$26="Buhler",Buhler!A33,IF(S$26="Case IH",Case!A34,IF(S$26="Challenger",Challenger!A33,IF(S$26="Deutz",Deutz!A33,IF(S$26="John Deere",'John Deere'!A33,IF(S$26="Kubota",Kubota!A33,IF(S$26="Landini",Landini!A33,IF(S$26="Massey Ferguson",MF!A33,IF(S$26="McCormick",McCormick!A31,IF(S$26="New Holland",NH!A33,IF(S$26="Kioti",KIOTI!A33,IF(S$26="Mahindra",MAHINDRA!A33,IF(S$26="Valtra",Valtra!A33,IF(S$26="","",0))))))))))))))))) -> 
J45: Freight: | L45: =IF(H9="","",VLOOKUP(LOADERpro!P18,Options!F3:M28,8,0)) ->  | Q45: =IF(R39="","","Compact Loader Valve - Rops Tractors") ->  | T45: =IF(S$26="AGCO",AGCO!A34,IF(S$26="AGCO White",'AGCO White'!A34,IF(S$26="AGCO Allis",'AGCO Allis'!A34,IF(S$26="Buhler",Buhler!A34,IF(S$26="Case IH",Case!A35,IF(S$26="Challenger",Challenger!A34,IF(S$26="Deutz",Deutz!A34,IF(S$26="John Deere",'John Deere'!A34,IF(S$26="Kubota",Kubota!A34,IF(S$26="Landini",Landini!A34,IF(S$26="Massey Ferguson",MF!A34,IF(S$26="McCormick",McCormick!A32,IF(S$26="New Holland",NH!A34,IF(S$26="Kioti",KIOTI!A34,IF(S$26="Mahindra",MAHINDRA!A34,IF(S$26="Valtra",Valtra!A34,IF(S$26="","",0))))))))))))))))) -> 
Q46: =IF(R40="","","Compact Loader Valve - Cab Tractors") ->  | T46: =IF(S$26="AGCO",AGCO!A35,IF(S$26="AGCO White",'AGCO White'!A35,IF(S$26="AGCO Allis",'AGCO Allis'!A35,IF(S$26="Buhler",Buhler!A35,IF(S$26="Case IH",Case!A36,IF(S$26="Challenger",Challenger!A35,IF(S$26="Deutz",Deutz!A35,IF(S$26="John Deere",'John Deere'!A35,IF(S$26="Kubota",Kubota!A35,IF(S$26="Landini",Landini!A35,IF(S$26="Massey Ferguson",MF!A35,IF(S$26="McCormick",McCormick!A33,IF(S$26="New Holland",NH!A35,IF(S$26="Kioti",KIOTI!A35,IF(S$26="Mahindra",MAHINDRA!A35,IF(S$26="Valtra",Valtra!A35,IF(S$26="","",0))))))))))))))))) ->  | AI46: =IF(J47="","",VLOOKUP(J47,Prices!A:D,3,0)) ->  | AJ46: =IF(J47="","",VLOOKUP(J47,Prices!A:D,4,0)) -> 
J47: Expedited Rate: | L47: =Options!X28 ->  | Q47: =IF(R41="","","Compact Loader Valve - Rops Tractors") ->  | R47: =IF(ISERROR(Q47),"",Q47) ->  | T47: =IF(S$26="AGCO",AGCO!A36,IF(S$26="AGCO White",'AGCO White'!A36,IF(S$26="AGCO Allis",'AGCO Allis'!A36,IF(S$26="Buhler",Buhler!A36,IF(S$26="Case IH",Case!A37,IF(S$26="Challenger",Challenger!A36,IF(S$26="Deutz",Deutz!A36,IF(S$26="John Deere",'John Deere'!A36,IF(S$26="Kubota",Kubota!A36,IF(S$26="Landini",Landini!A36,IF(S$26="Massey Ferguson",MF!A36,IF(S$26="McCormick",McCormick!A34,IF(S$26="New Holland",NH!A36,IF(S$26="Kioti",KIOTI!A36,IF(S$26="Mahindra",MAHINDRA!A36,IF(S$26="Valtra",Valtra!A36,IF(S$26="","",0))))))))))))))))) ->  | AI47: =IF(J48="","",VLOOKUP(J48,vmaster,3,0)) ->  | AJ47: =IF(J48="","",VLOOKUP(J48,vmaster,4,0)) -> 
J48: Prices in | M48: USD | R48: =IF(OR(Q50=1,Q51=1),1,"") ->  | T48: =IF(S$26="AGCO",AGCO!A37,IF(S$26="AGCO White",'AGCO White'!A37,IF(S$26="AGCO Allis",'AGCO Allis'!A37,IF(S$26="Buhler",Buhler!A37,IF(S$26="Case IH",Case!A38,IF(S$26="Challenger",Challenger!A37,IF(S$26="Deutz",Deutz!A37,IF(S$26="John Deere",'John Deere'!A37,IF(S$26="Kubota",Kubota!A37,IF(S$26="Landini",Landini!A37,IF(S$26="Massey Ferguson",MF!A37,IF(S$26="McCormick",McCormick!A34,IF(S$26="New Holland",NH!A37,IF(S$26="Kioti",KIOTI!A37,IF(S$26="Mahindra",MAHINDRA!A37,IF(S$26="Valtra",Valtra!A37,IF(S$26="","",0))))))))))))))))) -> 
B49: Expedited rate pertains to large loaders that cannot ship LTL. Loader will ship as soon as it becomes available. | Q49: =VLOOKUP(Q48,Q34:R39,2,0) ->  | T49: =IF(S$26="AGCO",AGCO!A38,IF(S$26="AGCO White",'AGCO White'!A38,IF(S$26="AGCO Allis",'AGCO Allis'!A38,IF(S$26="Buhler",Buhler!A38,IF(S$26="Case IH",Case!A39,IF(S$26="Challenger",Challenger!A38,IF(S$26="Deutz",Deutz!A38,IF(S$26="John Deere",'John Deere'!A38,IF(S$26="Kubota",Kubota!A38,IF(S$26="Landini",Landini!A38,IF(S$26="Massey Ferguson",MF!A38,IF(S$26="McCormick",McCormick!A35,IF(S$26="New Holland",NH!A38,IF(S$26="Kioti",KIOTI!A38,IF(S$26="Mahindra",MAHINDRA!A38,IF(S$26="Valtra",Valtra!A38,IF(S$26="","",0))))))))))))))))) -> 
Q50: =IF(AND(Q48="2 Function Hose Kit",X28="3 Function Diverter Valve"),1,"") ->  | T50: =IF(S$26="AGCO",AGCO!A39,IF(S$26="AGCO White",'AGCO White'!A39,IF(S$26="AGCO Allis",'AGCO Allis'!A39,IF(S$26="Buhler",Buhler!A39,IF(S$26="Case IH",Case!A40,IF(S$26="Challenger",Challenger!A39,IF(S$26="Deutz",Deutz!A39,IF(S$26="John Deere",'John Deere'!A39,IF(S$26="Kubota",Kubota!A39,IF(S$26="Landini",Landini!A39,IF(S$26="Massey Ferguson",MF!A39,IF(S$26="McCormick",McCormick!A36,IF(S$26="New Holland",NH!A39,IF(S$26="Kioti",KIOTI!A39,IF(S$26="Mahindra",MAHINDRA!A39,IF(S$26="Valtra",Valtra!A39,IF(S$26="","",0))))))))))))))))) -> 
T51: =IF(S$26="AGCO",AGCO!A40,IF(S$26="AGCO White",'AGCO White'!A40,IF(S$26="AGCO Allis",'AGCO Allis'!A40,IF(S$26="Buhler",Buhler!A40,IF(S$26="Case IH",Case!A41,IF(S$26="Challenger",Challenger!A40,IF(S$26="Deutz",Deutz!A49,IF(S$26="John Deere",'John Deere'!A40,IF(S$26="Kubota",Kubota!A42,IF(S$26="Landini",Landini!A40,IF(S$26="Massey Ferguson",MF!A40,IF(S$26="McCormick",McCormick!A37,IF(S$26="New Holland",NH!A40,IF(S$26="Kioti",KIOTI!A40,IF(S$26="Mahindra",MAHINDRA!A40,IF(S$26="Valtra",Valtra!A40,IF(S$26="","",0))))))))))))))))) -> 
T52: =IF(S$26="AGCO",AGCO!A41,IF(S$26="AGCO White",'AGCO White'!A41,IF(S$26="AGCO Allis",'AGCO Allis'!A41,IF(S$26="Buhler",Buhler!A41,IF(S$26="Case IH",Case!A42,IF(S$26="Challenger",Challenger!A41,IF(S$26="Deutz",Deutz!A50,IF(S$26="John Deere",'John Deere'!A41,IF(S$26="Kubota",Kubota!A43,IF(S$26="Landini",Landini!A41,IF(S$26="Massey Ferguson",MF!A41,IF(S$26="McCormick",McCormick!A38,IF(S$26="New Holland",NH!A41,IF(S$26="Kioti",KIOTI!A41,IF(S$26="Mahindra",MAHINDRA!A41,IF(S$26="Valtra",Valtra!A41,IF(S$26="","",0))))))))))))))))) -> 
Q53: =IF(Q$12="Euro",VLOOKUP(P$19,Implements!A$2:O$26,2,0),IF(Q$12="Skid Steer",VLOOKUP(P$19,Implements!A$29:O$54,2,0),"")) ->  | R53: =IF(ISERROR(VLOOKUP(Q53,vmaster,2,0)),"",VLOOKUP(Q53,vmaster,2,0)) ->  | T53: =IF(S$26="AGCO",AGCO!A42,IF(S$26="AGCO White",'AGCO White'!A42,IF(S$26="AGCO Allis",'AGCO Allis'!A42,IF(S$26="Buhler",Buhler!A42,IF(S$26="Case IH",Case!A43,IF(S$26="Challenger",Challenger!A42,IF(S$26="Deutz",Deutz!A51,IF(S$26="John Deere",'John Deere'!A42,IF(S$26="Kubota",Kubota!A44,IF(S$26="Landini",Landini!A42,IF(S$26="Massey Ferguson",MF!A42,IF(S$26="McCormick",McCormick!A39,IF(S$26="New Holland",NH!A42,IF(S$26="Kioti",KIOTI!A42,IF(S$26="Mahindra",MAHINDRA!A42,IF(S$26="Valtra",Valtra!A42,IF(S$26="","",0))))))))))))))))) ->  | X53: =Options!L35 ->  | Y53: =VLOOKUP(X53,Prices!A:C,3,FALSE) -> 
Q54: =IF(Q$12="Euro",VLOOKUP(P$19,Implements!A$2:O$26,3,0),IF(Q$12="Skid Steer",VLOOKUP(P$19,Implements!A$29:O$54,3,0),"")) ->  | T54: =IF(S$26="AGCO",AGCO!A43,IF(S$26="AGCO White",'AGCO White'!A43,IF(S$26="AGCO Allis",'AGCO Allis'!A43,IF(S$26="Buhler",Buhler!A43,IF(S$26="Case IH",Case!A44,IF(S$26="Challenger",Challenger!A43,IF(S$26="Deutz",Deutz!A52,IF(S$26="John Deere",'John Deere'!A43,IF(S$26="Kubota",Kubota!A45,IF(S$26="Landini",Landini!A43,IF(S$26="Massey Ferguson",MF!A43,IF(S$26="McCormick",McCormick!A40,IF(S$26="New Holland",NH!A43,IF(S$26="Kioti",KIOTI!A43,IF(S$26="Mahindra",MAHINDRA!A43,IF(S$26="Valtra",Valtra!A43,IF(S$26="","",0))))))))))))))))) -> 
Q55: =IF(Q$12="Euro",VLOOKUP(P$19,Implements!A$2:O$26,4,0),IF(Q$12="Skid Steer",VLOOKUP(P$19,Implements!A$29:O$54,4,0),"")) ->  | T55: =IF(S$26="AGCO",AGCO!A44,IF(S$26="AGCO White",'AGCO White'!A44,IF(S$26="AGCO Allis",'AGCO Allis'!A44,IF(S$26="Buhler",Buhler!A44,IF(S$26="Case IH",Case!A45,IF(S$26="Challenger",Challenger!A44,IF(S$26="Deutz",Deutz!A53,IF(S$26="John Deere",'John Deere'!A44,IF(S$26="Kubota",Kubota!A46,IF(S$26="Landini",Landini!A44,IF(S$26="Massey Ferguson",MF!A44,IF(S$26="McCormick",McCormick!A41,IF(S$26="New Holland",NH!A44,IF(S$26="Kioti",KIOTI!A44,IF(S$26="Mahindra",MAHINDRA!A44,IF(S$26="Valtra",Valtra!A44,IF(S$26="","",0))))))))))))))))) -> 
Q56: =IF(Q$12="Euro",VLOOKUP(P$19,Implements!A$2:O$26,5,0),IF(Q$12="Skid Steer",VLOOKUP(P$19,Implements!A$29:O$54,5,0),"")) ->  | T56: =IF(S$26="AGCO",AGCO!A45,IF(S$26="AGCO White",'AGCO White'!A45,IF(S$26="AGCO Allis",'AGCO Allis'!A45,IF(S$26="Buhler",Buhler!A45,IF(S$26="Case IH",Case!A46,IF(S$26="Challenger",Challenger!A45,IF(S$26="Deutz",Deutz!A54,IF(S$26="John Deere",'John Deere'!A45,IF(S$26="Kubota",Kubota!A47,IF(S$26="Landini",Landini!A45,IF(S$26="Massey Ferguson",MF!A45,IF(S$26="McCormick",McCormick!A42,IF(S$26="New Holland",NH!A45,IF(S$26="Kioti",KIOTI!A45,IF(S$26="Mahindra",MAHINDRA!A45,IF(S$26="Valtra",Valtra!A45,IF(S$26="","",0))))))))))))))))) -> 
Q57: =IF(Q$12="Euro",VLOOKUP(P$19,Implements!A$2:O$26,6,0),IF(Q$12="Skid Steer",VLOOKUP(P$19,Implements!A$29:O$54,6,0),"")) ->  | R57: =IF(ISERROR(VLOOKUP(Q57,Prices!A:E,2,0)),"",VLOOKUP(Q57,Prices!A:E,2,0)) ->  | T57: =IF(S$26="AGCO",AGCO!A46,IF(S$26="AGCO White",'AGCO White'!A46,IF(S$26="AGCO Allis",'AGCO Allis'!A46,IF(S$26="Buhler",Buhler!A46,IF(S$26="Case IH",Case!A47,IF(S$26="Challenger",Challenger!A46,IF(S$26="Deutz",Deutz!A55,IF(S$26="John Deere",'John Deere'!A46,IF(S$26="Kubota",Kubota!A48,IF(S$26="Landini",Landini!A46,IF(S$26="Massey Ferguson",MF!A46,IF(S$26="McCormick",McCormick!A43,IF(S$26="New Holland",NH!A46,IF(S$26="Kioti",KIOTI!A46,IF(S$26="Mahindra",MAHINDRA!A46,IF(S$26="Valtra",Valtra!A46,IF(S$26="","",0))))))))))))))))) -> 
Q58: =IF(Q$12="Euro",VLOOKUP(P$19,Implements!A$2:O$26,7,0),IF(Q$12="Skid Steer",VLOOKUP(P$19,Implements!A$29:O$54,7,0),"")) ->  | R58: =IF(ISERROR(VLOOKUP(Q58,Prices!A:E,2,0)),"",VLOOKUP(Q58,Prices!A:E,2,0)) ->  | T58: =IF(S$26="AGCO",AGCO!A47,IF(S$26="AGCO White",'AGCO White'!A47,IF(S$26="AGCO Allis",'AGCO Allis'!A47,IF(S$26="Buhler",Buhler!A47,IF(S$26="Case IH",Case!A48,IF(S$26="Challenger",Challenger!A47,IF(S$26="Deutz",Deutz!A56,IF(S$26="John Deere",'John Deere'!A47,IF(S$26="Kubota",Kubota!A49,IF(S$26="Landini",Landini!A47,IF(S$26="Massey Ferguson",MF!A47,IF(S$26="McCormick",McCormick!A44,IF(S$26="New Holland",NH!A47,IF(S$26="Kioti",KIOTI!A47,IF(S$26="Mahindra",MAHINDRA!A47,IF(S$26="Valtra",Valtra!A47,IF(S$26="","",0))))))))))))))))) -> 
Q59: =IF(Q$12="Euro",VLOOKUP(P$19,Implements!A$2:O$26,8,0),IF(Q$12="Skid Steer",VLOOKUP(P$19,Implements!A$29:O$54,8,0),"")) ->  | R59: =IF(ISERROR(VLOOKUP(Q59,Prices!A:E,2,0)),"",VLOOKUP(Q59,Prices!A:E,2,0)) ->  | T59: =IF(S$26="AGCO",AGCO!A48,IF(S$26="AGCO White",'AGCO White'!A48,IF(S$26="AGCO Allis",'AGCO Allis'!A48,IF(S$26="Buhler",Buhler!A48,IF(S$26="Case IH",Case!A49,IF(S$26="Challenger",Challenger!A48,IF(S$26="Deutz",Deutz!A57,IF(S$26="John Deere",'John Deere'!A48,IF(S$26="Kubota",Kubota!A50,IF(S$26="Landini",Landini!A48,IF(S$26="Massey Ferguson",MF!A48,IF(S$26="McCormick",McCormick!A45,IF(S$26="New Holland",NH!A48,IF(S$26="Kioti",KIOTI!A48,IF(S$26="Mahindra",MAHINDRA!A48,IF(S$26="Valtra",Valtra!A48,IF(S$26="","",0))))))))))))))))) -> 
Q60: =IF(Q$12="Euro",VLOOKUP(P$19,Implements!A$2:O$26,9,0),IF(Q$12="Skid Steer",VLOOKUP(P$19,Implements!A$29:O$54,9,0),"")) ->  | R60: =IF(ISERROR(VLOOKUP(Q60,Prices!A:E,2,0)),"",VLOOKUP(Q60,Prices!A:E,2,0)) ->  | T60: =IF(S$26="AGCO",AGCO!A49,IF(S$26="AGCO White",'AGCO White'!A49,IF(S$26="AGCO Allis",'AGCO Allis'!A49,IF(S$26="Buhler",Buhler!A49,IF(S$26="Case IH",Case!A50,IF(S$26="Challenger",Challenger!A49,IF(S$26="Deutz",Deutz!A58,IF(S$26="John Deere",'John Deere'!A49,IF(S$26="Kubota",Kubota!A51,IF(S$26="Landini",Landini!A49,IF(S$26="Massey Ferguson",MF!A49,IF(S$26="McCormick",McCormick!A46,IF(S$26="New Holland",NH!A49,IF(S$26="Kioti",KIOTI!A49,IF(S$26="Mahindra",MAHINDRA!A49,IF(S$26="Valtra",Valtra!A49,IF(S$26="","",0))))))))))))))))) -> 
Q61: =IF(Q$12="Euro",VLOOKUP(P$19,Implements!A$2:O$26,10,0),IF(Q$12="Skid Steer",VLOOKUP(P$19,Implements!A$29:O$54,10,0),"")) ->  | R61: =IF(ISERROR(VLOOKUP(Q61,Prices!A:E,2,0)),"",VLOOKUP(Q61,Prices!A:E,2,0)) ->  | T61: =IF(S$26="AGCO",AGCO!A50,IF(S$26="AGCO White",'AGCO White'!A50,IF(S$26="AGCO Allis",'AGCO Allis'!A50,IF(S$26="Buhler",Buhler!A50,IF(S$26="Case IH",Case!A51,IF(S$26="Challenger",Challenger!A50,IF(S$26="Deutz",Deutz!A59,IF(S$26="John Deere",'John Deere'!A50,IF(S$26="Kubota",Kubota!A52,IF(S$26="Landini",Landini!A50,IF(S$26="Massey Ferguson",MF!A50,IF(S$26="McCormick",McCormick!A47,IF(S$26="New Holland",NH!A50,IF(S$26="Kioti",KIOTI!A50,IF(S$26="Mahindra",MAHINDRA!A50,IF(S$26="Valtra",Valtra!A50,IF(S$26="","",0))))))))))))))))) -> 
Q62: =IF(Q$12="Euro",VLOOKUP(P$19,Implements!A$2:O$26,11,0),IF(Q$12="Skid Steer",VLOOKUP(P$19,Implements!A$29:O$54,11,0),"")) ->  | R62: =IF(ISERROR(VLOOKUP(Q62,Prices!A:E,2,0)),"",VLOOKUP(Q62,Prices!A:E,2,0)) ->  | T62: =IF(S$26="AGCO",AGCO!A51,IF(S$26="AGCO White",'AGCO White'!A51,IF(S$26="AGCO Allis",'AGCO Allis'!A51,IF(S$26="Buhler",Buhler!A51,IF(S$26="Case IH",Case!A52,IF(S$26="Challenger",Challenger!A51,IF(S$26="Deutz",Deutz!A60,IF(S$26="John Deere",'John Deere'!A51,IF(S$26="Kubota",Kubota!A53,IF(S$26="Landini",Landini!A51,IF(S$26="Massey Ferguson",MF!A51,IF(S$26="McCormick",McCormick!A48,IF(S$26="New Holland",NH!A51,IF(S$26="Kioti",KIOTI!A51,IF(S$26="Mahindra",MAHINDRA!A51,IF(S$26="Valtra",Valtra!A51,IF(S$26="","",0))))))))))))))))) -> 
Q63: =IF(Q$12="Euro",VLOOKUP(P$19,Implements!A$2:O$26,12,0),IF(Q$12="Skid Steer",VLOOKUP(P$19,Implements!A$29:O$54,12,0),"")) ->  | R63: =IF(ISERROR(VLOOKUP(Q63,Prices!A:E,2,0)),"",VLOOKUP(Q63,Prices!A:E,2,0)) ->  | T63: =IF(S$26="AGCO",AGCO!A52,IF(S$26="AGCO White",'AGCO White'!A52,IF(S$26="AGCO Allis",'AGCO Allis'!A52,IF(S$26="Buhler",Buhler!A52,IF(S$26="Case IH",Case!A53,IF(S$26="Challenger",Challenger!A52,IF(S$26="Deutz",Deutz!A61,IF(S$26="John Deere",'John Deere'!A52,IF(S$26="Kubota",Kubota!A54,IF(S$26="Landini",Landini!A52,IF(S$26="Massey Ferguson",MF!A52,IF(S$26="McCormick",McCormick!A49,IF(S$26="New Holland",NH!A52,IF(S$26="Kioti",KIOTI!A52,IF(S$26="Mahindra",MAHINDRA!A52,IF(S$26="Valtra",Valtra!A52,IF(S$26="","",0))))))))))))))))) -> 
Q64: =IF(Q$12="Euro",VLOOKUP(P$19,Implements!A$2:O$26,13,0),IF(Q$12="Skid Steer",VLOOKUP(P$19,Implements!A$29:O$54,13,0),"")) ->  | R64: =IF(ISERROR(VLOOKUP(Q64,Prices!A:E,2,0)),"",VLOOKUP(Q64,Prices!A:E,2,0)) ->  | T64: =IF(S$26="AGCO",AGCO!A53,IF(S$26="AGCO White",'AGCO White'!A53,IF(S$26="AGCO Allis",'AGCO Allis'!A53,IF(S$26="Buhler",Buhler!A53,IF(S$26="Case IH",Case!A54,IF(S$26="Challenger",Challenger!A53,IF(S$26="Deutz",Deutz!A62,IF(S$26="John Deere",'John Deere'!A53,IF(S$26="Kubota",Kubota!A55,IF(S$26="Landini",Landini!A53,IF(S$26="Massey Ferguson",MF!A53,IF(S$26="McCormick",McCormick!A50,IF(S$26="New Holland",NH!A53,IF(S$26="Kioti",KIOTI!A53,IF(S$26="Mahindra",MAHINDRA!A53,IF(S$26="Valtra",Valtra!A53,IF(S$26="","",0))))))))))))))))) -> 
T65: =IF(S$26="AGCO",AGCO!A54,IF(S$26="AGCO White",'AGCO White'!A54,IF(S$26="AGCO Allis",'AGCO Allis'!A54,IF(S$26="Buhler",Buhler!A54,IF(S$26="Case IH",Case!A55,IF(S$26="Challenger",Challenger!A54,IF(S$26="Deutz",Deutz!A63,IF(S$26="John Deere",'John Deere'!A54,IF(S$26="Kubota",Kubota!A56,IF(S$26="Landini",Landini!A54,IF(S$26="Massey Ferguson",MF!A54,IF(S$26="McCormick",McCormick!A51,IF(S$26="New Holland",NH!A54,IF(S$26="Kioti",KIOTI!A54,IF(S$26="Mahindra",MAHINDRA!A54,IF(S$26="Valtra",Valtra!A54,IF(S$26="","",0))))))))))))))))) -> 
Q66: =VLOOKUP(R50,Prices!B:E,4,0) ->  | T66: =IF(S$26="AGCO",AGCO!A55,IF(S$26="AGCO White",'AGCO White'!A55,IF(S$26="AGCO Allis",'AGCO Allis'!A55,IF(S$26="Buhler",Buhler!A55,IF(S$26="Case IH",Case!A56,IF(S$26="Challenger",Challenger!A55,IF(S$26="Deutz",Deutz!A64,IF(S$26="John Deere",'John Deere'!A55,IF(S$26="Kubota",Kubota!A57,IF(S$26="Landini",Landini!A55,IF(S$26="Massey Ferguson",MF!A55,IF(S$26="McCormick",McCormick!A52,IF(S$26="New Holland",NH!A55,IF(S$26="Kioti",KIOTI!A55,IF(S$26="Mahindra",MAHINDRA!A55,IF(S$26="Valtra",Valtra!A55,IF(S$26="","",0))))))))))))))))) -> 
T67: =IF(S$26="AGCO",AGCO!A56,IF(S$26="AGCO White",'AGCO White'!A56,IF(S$26="AGCO Allis",'AGCO Allis'!A56,IF(S$26="Buhler",Buhler!A56,IF(S$26="Case IH",Case!A59,IF(S$26="Challenger",Challenger!A56,IF(S$26="Deutz",Deutz!A65,IF(S$26="John Deere",'John Deere'!A56,IF(S$26="Kubota",Kubota!A58,IF(S$26="Landini",Landini!A56,IF(S$26="Massey Ferguson",MF!A56,IF(S$26="McCormick",McCormick!A53,IF(S$26="New Holland",NH!A56,IF(S$26="Kioti",KIOTI!A56,IF(S$26="Mahindra",MAHINDRA!A56,IF(S$26="Valtra",Valtra!A56,IF(S$26="","",0))))))))))))))))) -> 
T68: =IF(S$26="AGCO",AGCO!A57,IF(S$26="AGCO White",'AGCO White'!A57,IF(S$26="AGCO Allis",'AGCO Allis'!A57,IF(S$26="Buhler",Buhler!A57,IF(S$26="Case IH",Case!A56,IF(S$26="Challenger",Challenger!A57,IF(S$26="Deutz",Deutz!A66,IF(S$26="John Deere",'John Deere'!A57,IF(S$26="Kubota",Kubota!A59,IF(S$26="Landini",Landini!A57,IF(S$26="Massey Ferguson",MF!A57,IF(S$26="McCormick",McCormick!A54,IF(S$26="New Holland",NH!A57,IF(S$26="Kioti",KIOTI!A57,IF(S$26="Mahindra",MAHINDRA!A57,IF(S$26="Valtra",Valtra!A57,IF(S$26="","",0))))))))))))))))) -> 
T69: =IF(S$26="AGCO",AGCO!A58,IF(S$26="AGCO White",'AGCO White'!A58,IF(S$26="AGCO Allis",'AGCO Allis'!A58,IF(S$26="Buhler",Buhler!A58,IF(S$26="Case IH",Case!A57,IF(S$26="Challenger",Challenger!A58,IF(S$26="Deutz",Deutz!A67,IF(S$26="John Deere",'John Deere'!A58,IF(S$26="Kubota",Kubota!A60,IF(S$26="Landini",Landini!A58,IF(S$26="Massey Ferguson",MF!A58,IF(S$26="McCormick",McCormick!A55,IF(S$26="New Holland",NH!A58,IF(S$26="Kioti",KIOTI!A58,IF(S$26="Mahindra",MAHINDRA!A58,IF(S$26="Valtra",Valtra!A58,IF(S$26="","",0))))))))))))))))) -> 
T70: =IF(S$26="AGCO",AGCO!A59,IF(S$26="AGCO White",'AGCO White'!A59,IF(S$26="AGCO Allis",'AGCO Allis'!A59,IF(S$26="Buhler",Buhler!A59,IF(S$26="Case IH",Case!A58,IF(S$26="Challenger",Challenger!A59,IF(S$26="Deutz",Deutz!A68,IF(S$26="John Deere",'John Deere'!A54,IF(S$26="Kubota",Kubota!A61,IF(S$26="Landini",Landini!A59,IF(S$26="Massey Ferguson",MF!A59,IF(S$26="McCormick",McCormick!A56,IF(S$26="New Holland",NH!A59,IF(S$26="Kioti",KIOTI!A59,IF(S$26="Mahindra",MAHINDRA!A59,IF(S$26="Valtra",Valtra!A59,IF(S$26="","",0))))))))))))))))) -> 
T71: =IF(S$26="AGCO",AGCO!A60,IF(S$26="AGCO White",'AGCO White'!A60,IF(S$26="AGCO Allis",'AGCO Allis'!A60,IF(S$26="Buhler",Buhler!A60,IF(S$26="Case IH",Case!A59,IF(S$26="Challenger",Challenger!A60,IF(S$26="Deutz",Deutz!A69,IF(S$26="John Deere",'John Deere'!A55,IF(S$26="Kubota",Kubota!A62,IF(S$26="Landini",Landini!A60,IF(S$26="Massey Ferguson",MF!A60,IF(S$26="McCormick",McCormick!A57,IF(S$26="New Holland",NH!A60,IF(S$26="Kioti",KIOTI!A60,IF(S$26="Mahindra",MAHINDRA!A60,IF(S$26="Valtra",Valtra!A60,IF(S$26="","",0))))))))))))))))) -> 
T72: =IF(S$26="AGCO",AGCO!A61,IF(S$26="AGCO White",'AGCO White'!A61,IF(S$26="AGCO Allis",'AGCO Allis'!A61,IF(S$26="Buhler",Buhler!A61,IF(S$26="Case IH",Case!A60,IF(S$26="Challenger",Challenger!A61,IF(S$26="Deutz",Deutz!A70,IF(S$26="John Deere",'John Deere'!A56,IF(S$26="Kubota",Kubota!A63,IF(S$26="Landini",Landini!A61,IF(S$26="Massey Ferguson",MF!A61,IF(S$26="McCormick",McCormick!A58,IF(S$26="New Holland",NH!A61,IF(S$26="Kioti",KIOTI!A61,IF(S$26="Mahindra",MAHINDRA!A61,IF(S$26="Valtra",Valtra!A61,IF(S$26="","",0))))))))))))))))) -> 
T73: =IF(S$26="AGCO",AGCO!A62,IF(S$26="AGCO White",'AGCO White'!A62,IF(S$26="AGCO Allis",'AGCO Allis'!A62,IF(S$26="Buhler",Buhler!A62,IF(S$26="Case IH",Case!A61,IF(S$26="Challenger",Challenger!A62,IF(S$26="Deutz",Deutz!A71,IF(S$26="John Deere",'John Deere'!A57,IF(S$26="Kubota",Kubota!A64,IF(S$26="Landini",Landini!A62,IF(S$26="Massey Ferguson",MF!A62,IF(S$26="McCormick",McCormick!A59,IF(S$26="New Holland",NH!A62,IF(S$26="Kioti",KIOTI!A62,IF(S$26="Mahindra",MAHINDRA!A62,IF(S$26="Valtra",Valtra!A62,IF(S$26="","",0))))))))))))))))) -> 
T74: =IF(S$26="AGCO",AGCO!A63,IF(S$26="AGCO White",'AGCO White'!A63,IF(S$26="AGCO Allis",'AGCO Allis'!A63,IF(S$26="Buhler",Buhler!A63,IF(S$26="Case IH",Case!A62,IF(S$26="Challenger",Challenger!A63,IF(S$26="Deutz",Deutz!A72,IF(S$26="John Deere",'John Deere'!A58,IF(S$26="Kubota",Kubota!A65,IF(S$26="Landini",Landini!A63,IF(S$26="Massey Ferguson",MF!A63,IF(S$26="McCormick",McCormick!A60,IF(S$26="New Holland",NH!A63,IF(S$26="Kioti",KIOTI!A63,IF(S$26="Mahindra",MAHINDRA!A63,IF(S$26="Valtra",Valtra!A63,IF(S$26="","",0))))))))))))))))) -> 
T75: =IF(S$26="AGCO",AGCO!A64,IF(S$26="AGCO White",'AGCO White'!A64,IF(S$26="AGCO Allis",'AGCO Allis'!A64,IF(S$26="Buhler",Buhler!A64,IF(S$26="Case IH",Case!A63,IF(S$26="Challenger",Challenger!A64,IF(S$26="Deutz",Deutz!A73,IF(S$26="John Deere",'John Deere'!A59,IF(S$26="Kubota",Kubota!A66,IF(S$26="Landini",Landini!A64,IF(S$26="Massey Ferguson",MF!A64,IF(S$26="McCormick",McCormick!A61,IF(S$26="New Holland",NH!A64,IF(S$26="Kioti",KIOTI!A64,IF(S$26="Mahindra",MAHINDRA!A64,IF(S$26="Valtra",Valtra!A64,IF(S$26="","",0))))))))))))))))) -> 
T76: =IF(S$26="AGCO",AGCO!A65,IF(S$26="AGCO White",'AGCO White'!A65,IF(S$26="AGCO Allis",'AGCO Allis'!A65,IF(S$26="Buhler",Buhler!A65,IF(S$26="Case IH",Case!A64,IF(S$26="Challenger",Challenger!A65,IF(S$26="Deutz",Deutz!A74,IF(S$26="John Deere",'John Deere'!A60,IF(S$26="Kubota",Kubota!A67,IF(S$26="Landini",Landini!A65,IF(S$26="Massey Ferguson",MF!A65,IF(S$26="McCormick",McCormick!A62,IF(S$26="New Holland",NH!A65,IF(S$26="Kioti",KIOTI!A65,IF(S$26="Mahindra",MAHINDRA!A65,IF(S$26="Valtra",Valtra!A65,IF(S$26="","",0))))))))))))))))) -> 
T77: =IF(S$26="AGCO",AGCO!A66,IF(S$26="AGCO White",'AGCO White'!A66,IF(S$26="AGCO Allis",'AGCO Allis'!A66,IF(S$26="Buhler",Buhler!A66,IF(S$26="Case IH",Case!A65,IF(S$26="Challenger",Challenger!A66,IF(S$26="Deutz",Deutz!A75,IF(S$26="John Deere",'John Deere'!A61,IF(S$26="Kubota",Kubota!A68,IF(S$26="Landini",Landini!A66,IF(S$26="Massey Ferguson",MF!A66,IF(S$26="McCormick",McCormick!A63,IF(S$26="New Holland",NH!A66,IF(S$26="Kioti",KIOTI!A66,IF(S$26="Mahindra",MAHINDRA!A66,IF(S$26="Valtra",Valtra!A66,IF(S$26="","",0))))))))))))))))) -> 
T78: =IF(S$26="AGCO",AGCO!A67,IF(S$26="AGCO White",'AGCO White'!A67,IF(S$26="AGCO Allis",'AGCO Allis'!A67,IF(S$26="Buhler",Buhler!A67,IF(S$26="Case IH",Case!A66,IF(S$26="Challenger",Challenger!A67,IF(S$26="Deutz",Deutz!A76,IF(S$26="John Deere",'John Deere'!A62,IF(S$26="Kubota",Kubota!A69,IF(S$26="Landini",Landini!A67,IF(S$26="Massey Ferguson",MF!A67,IF(S$26="McCormick",McCormick!A64,IF(S$26="New Holland",NH!A67,IF(S$26="Kioti",KIOTI!A67,IF(S$26="Mahindra",MAHINDRA!A67,IF(S$26="Valtra",Valtra!A67,IF(S$26="","",0))))))))))))))))) -> 
T79: =IF(S$26="AGCO",AGCO!A68,IF(S$26="AGCO White",'AGCO White'!A68,IF(S$26="AGCO Allis",'AGCO Allis'!A68,IF(S$26="Buhler",Buhler!A68,IF(S$26="Case IH",Case!A67,IF(S$26="Challenger",Challenger!A68,IF(S$26="Deutz",Deutz!A77,IF(S$26="John Deere",'John Deere'!A63,IF(S$26="Kubota",Kubota!A70,IF(S$26="Landini",Landini!A68,IF(S$26="Massey Ferguson",MF!A68,IF(S$26="McCormick",McCormick!A65,IF(S$26="New Holland",NH!A68,IF(S$26="Kioti",KIOTI!A68,IF(S$26="Mahindra",MAHINDRA!A68,IF(S$26="Valtra",Valtra!A68,IF(S$26="","",0))))))))))))))))) -> 
T80: =IF(S$26="AGCO",AGCO!A69,IF(S$26="AGCO White",'AGCO White'!A69,IF(S$26="AGCO Allis",'AGCO Allis'!A69,IF(S$26="Buhler",Buhler!A69,IF(S$26="Case IH",Case!A68,IF(S$26="Challenger",Challenger!A69,IF(S$26="Deutz",Deutz!A78,IF(S$26="John Deere",'John Deere'!A64,IF(S$26="Kubota",Kubota!A71,IF(S$26="Landini",Landini!A69,IF(S$26="Massey Ferguson",MF!A69,IF(S$26="McCormick",McCormick!A66,IF(S$26="New Holland",NH!A69,IF(S$26="Kioti",KIOTI!A69,IF(S$26="Mahindra",MAHINDRA!A69,IF(S$26="Valtra",Valtra!A69,IF(S$26="","",0))))))))))))))))) -> 
T81: =IF(S$26="AGCO",AGCO!A70,IF(S$26="AGCO White",'AGCO White'!A70,IF(S$26="AGCO Allis",'AGCO Allis'!A70,IF(S$26="Buhler",Buhler!A70,IF(S$26="Case IH",Case!A69,IF(S$26="Challenger",Challenger!A70,IF(S$26="Deutz",Deutz!A79,IF(S$26="John Deere",'John Deere'!A65,IF(S$26="Kubota",Kubota!A72,IF(S$26="Landini",Landini!A70,IF(S$26="Massey Ferguson",MF!A70,IF(S$26="McCormick",McCormick!A67,IF(S$26="New Holland",NH!A70,IF(S$26="Kioti",KIOTI!A70,IF(S$26="Mahindra",MAHINDRA!A70,IF(S$26="Valtra",Valtra!A70,IF(S$26="","",0))))))))))))))))) -> 
T82: =IF(S$26="AGCO",AGCO!A71,IF(S$26="AGCO White",'AGCO White'!A71,IF(S$26="AGCO Allis",'AGCO Allis'!A71,IF(S$26="Buhler",Buhler!A71,IF(S$26="Case IH",Case!A70,IF(S$26="Challenger",Challenger!A71,IF(S$26="Deutz",Deutz!A80,IF(S$26="John Deere",'John Deere'!A66,IF(S$26="Kubota",Kubota!A73,IF(S$26="Landini",Landini!A71,IF(S$26="Massey Ferguson",MF!A71,IF(S$26="McCormick",McCormick!A68,IF(S$26="New Holland",NH!A71,IF(S$26="Kioti",KIOTI!A71,IF(S$26="Mahindra",MAHINDRA!A71,IF(S$26="Valtra",Valtra!A71,IF(S$26="","",0))))))))))))))))) -> 
T83: =IF(S$26="AGCO",AGCO!A72,IF(S$26="AGCO White",'AGCO White'!A72,IF(S$26="AGCO Allis",'AGCO Allis'!A72,IF(S$26="Buhler",Buhler!A72,IF(S$26="Case IH",Case!A71,IF(S$26="Challenger",Challenger!A72,IF(S$26="Deutz",Deutz!A81,IF(S$26="John Deere",'John Deere'!A67,IF(S$26="Kubota",Kubota!A74,IF(S$26="Landini",Landini!A72,IF(S$26="Massey Ferguson",MF!A72,IF(S$26="McCormick",McCormick!A69,IF(S$26="New Holland",NH!A72,IF(S$26="Kioti",KIOTI!A72,IF(S$26="Mahindra",MAHINDRA!A72,IF(S$26="Valtra",Valtra!A72,IF(S$26="","",0))))))))))))))))) -> 
T84: =IF(S$26="AGCO",AGCO!A73,IF(S$26="AGCO White",'AGCO White'!A73,IF(S$26="AGCO Allis",'AGCO Allis'!A73,IF(S$26="Buhler",Buhler!A73,IF(S$26="Case IH",Case!A72,IF(S$26="Challenger",Challenger!A73,IF(S$26="Deutz",Deutz!A82,IF(S$26="John Deere",'John Deere'!A68,IF(S$26="Kubota",Kubota!A75,IF(S$26="Landini",Landini!A73,IF(S$26="Massey Ferguson",MF!A73,IF(S$26="McCormick",McCormick!A70,IF(S$26="New Holland",NH!A73,IF(S$26="Kioti",KIOTI!A73,IF(S$26="Mahindra",MAHINDRA!A73,IF(S$26="Valtra",Valtra!A73,IF(S$26="","",0))))))))))))))))) -> 
T85: =IF(S$26="AGCO",AGCO!A74,IF(S$26="AGCO White",'AGCO White'!A74,IF(S$26="AGCO Allis",'AGCO Allis'!A74,IF(S$26="Buhler",Buhler!A74,IF(S$26="Case IH",Case!A73,IF(S$26="Challenger",Challenger!A74,IF(S$26="Deutz",Deutz!A83,IF(S$26="John Deere",'John Deere'!A69,IF(S$26="Kubota",Kubota!A76,IF(S$26="Landini",Landini!A74,IF(S$26="Massey Ferguson",MF!A74,IF(S$26="McCormick",McCormick!A71,IF(S$26="New Holland",NH!A74,IF(S$26="Kioti",KIOTI!A74,IF(S$26="Mahindra",MAHINDRA!A74,IF(S$26="Valtra",Valtra!A74,IF(S$26="","",0))))))))))))))))) -> 
T86: =IF(S$26="AGCO",AGCO!A75,IF(S$26="AGCO White",'AGCO White'!A75,IF(S$26="AGCO Allis",'AGCO Allis'!A75,IF(S$26="Buhler",Buhler!A75,IF(S$26="Case IH",Case!A74,IF(S$26="Challenger",Challenger!A75,IF(S$26="Deutz",Deutz!A84,IF(S$26="John Deere",'John Deere'!A70,IF(S$26="Kubota",Kubota!A77,IF(S$26="Landini",Landini!A75,IF(S$26="Massey Ferguson",MF!A75,IF(S$26="McCormick",McCormick!A72,IF(S$26="New Holland",NH!A75,IF(S$26="Kioti",KIOTI!A75,IF(S$26="Mahindra",MAHINDRA!A75,IF(S$26="Valtra",Valtra!A75,IF(S$26="","",0))))))))))))))))) -> 
T87: =IF(S$26="AGCO",AGCO!A76,IF(S$26="AGCO White",'AGCO White'!A76,IF(S$26="AGCO Allis",'AGCO Allis'!A76,IF(S$26="Buhler",Buhler!A76,IF(S$26="Case IH",Case!A75,IF(S$26="Challenger",Challenger!A76,IF(S$26="Deutz",Deutz!A85,IF(S$26="John Deere",'John Deere'!A71,IF(S$26="Kubota",Kubota!A78,IF(S$26="Landini",Landini!A76,IF(S$26="Massey Ferguson",MF!A76,IF(S$26="McCormick",McCormick!A73,IF(S$26="New Holland",NH!A76,IF(S$26="Kioti",KIOTI!A76,IF(S$26="Mahindra",MAHINDRA!A76,IF(S$26="Valtra",Valtra!A76,IF(S$26="","",0))))))))))))))))) -> 
T88: =IF(S$26="AGCO",AGCO!A77,IF(S$26="AGCO White",'AGCO White'!A77,IF(S$26="AGCO Allis",'AGCO Allis'!A77,IF(S$26="Buhler",Buhler!A77,IF(S$26="Case IH",Case!A76,IF(S$26="Challenger",Challenger!A77,IF(S$26="Deutz",Deutz!A86,IF(S$26="John Deere",'John Deere'!A72,IF(S$26="Kubota",Kubota!A79,IF(S$26="Landini",Landini!A77,IF(S$26="Massey Ferguson",MF!A77,IF(S$26="McCormick",McCormick!A74,IF(S$26="New Holland",NH!A77,IF(S$26="Kioti",KIOTI!A77,IF(S$26="Mahindra",MAHINDRA!A77,IF(S$26="Valtra",Valtra!A77,IF(S$26="","",0))))))))))))))))) -> 
T89: =IF(S$26="AGCO",AGCO!A78,IF(S$26="AGCO White",'AGCO White'!A78,IF(S$26="AGCO Allis",'AGCO Allis'!A78,IF(S$26="Buhler",Buhler!A78,IF(S$26="Case IH",Case!A77,IF(S$26="Challenger",Challenger!A78,IF(S$26="Deutz",Deutz!A87,IF(S$26="John Deere",'John Deere'!A73,IF(S$26="Kubota",Kubota!A80,IF(S$26="Landini",Landini!A78,IF(S$26="Massey Ferguson",MF!A78,IF(S$26="McCormick",McCormick!A75,IF(S$26="New Holland",NH!A78,IF(S$26="Kioti",KIOTI!A78,IF(S$26="Mahindra",MAHINDRA!A78,IF(S$26="Valtra",Valtra!A78,IF(S$26="","",0))))))))))))))))) -> 
T90: =IF(S$26="AGCO",AGCO!A79,IF(S$26="AGCO White",'AGCO White'!A79,IF(S$26="AGCO Allis",'AGCO Allis'!A79,IF(S$26="Buhler",Buhler!A79,IF(S$26="Case IH",Case!A78,IF(S$26="Challenger",Challenger!A79,IF(S$26="Deutz",Deutz!A88,IF(S$26="John Deere",'John Deere'!A74,IF(S$26="Kubota",Kubota!A81,IF(S$26="Landini",Landini!A79,IF(S$26="Massey Ferguson",MF!A79,IF(S$26="McCormick",McCormick!A76,IF(S$26="New Holland",NH!A79,IF(S$26="Kioti",KIOTI!A79,IF(S$26="Mahindra",MAHINDRA!A79,IF(S$26="Valtra",Valtra!A79,IF(S$26="","",0))))))))))))))))) -> 
T91: =IF(S$26="AGCO",AGCO!A80,IF(S$26="AGCO White",'AGCO White'!A80,IF(S$26="AGCO Allis",'AGCO Allis'!A80,IF(S$26="Buhler",Buhler!A80,IF(S$26="Case IH",Case!A79,IF(S$26="Challenger",Challenger!A80,IF(S$26="Deutz",Deutz!A89,IF(S$26="John Deere",'John Deere'!A75,IF(S$26="Kubota",Kubota!A82,IF(S$26="Landini",Landini!A80,IF(S$26="Massey Ferguson",MF!A80,IF(S$26="McCormick",McCormick!A77,IF(S$26="New Holland",NH!A80,IF(S$26="Kioti",KIOTI!A80,IF(S$26="Mahindra",MAHINDRA!A80,IF(S$26="Valtra",Valtra!A80,IF(S$26="","",0))))))))))))))))) -> 
T92: =IF(S$26="AGCO",AGCO!A81,IF(S$26="AGCO White",'AGCO White'!A81,IF(S$26="AGCO Allis",'AGCO Allis'!A81,IF(S$26="Buhler",Buhler!A81,IF(S$26="Case IH",Case!A80,IF(S$26="Challenger",Challenger!A81,IF(S$26="Deutz",Deutz!A90,IF(S$26="John Deere",'John Deere'!A76,IF(S$26="Kubota",Kubota!A83,IF(S$26="Landini",Landini!A81,IF(S$26="Massey Ferguson",MF!A81,IF(S$26="McCormick",McCormick!A78,IF(S$26="New Holland",NH!A81,IF(S$26="Kioti",KIOTI!A81,IF(S$26="Mahindra",MAHINDRA!A81,IF(S$26="Valtra",Valtra!A81,IF(S$26="","",0))))))))))))))))) -> 
T93: =IF(S$26="AGCO",AGCO!A82,IF(S$26="AGCO White",'AGCO White'!A82,IF(S$26="AGCO Allis",'AGCO Allis'!A82,IF(S$26="Buhler",Buhler!A82,IF(S$26="Case IH",Case!A81,IF(S$26="Challenger",Challenger!A82,IF(S$26="Deutz",Deutz!A91,IF(S$26="John Deere",'John Deere'!A77,IF(S$26="Kubota",Kubota!A84,IF(S$26="Landini",Landini!A82,IF(S$26="Massey Ferguson",MF!A82,IF(S$26="McCormick",McCormick!A79,IF(S$26="New Holland",NH!A82,IF(S$26="Kioti",KIOTI!A82,IF(S$26="Mahindra",MAHINDRA!A82,IF(S$26="Valtra",Valtra!A82,IF(S$26="","",0))))))))))))))))) -> 
T94: =IF(S$26="AGCO",AGCO!A83,IF(S$26="AGCO White",'AGCO White'!A83,IF(S$26="AGCO Allis",'AGCO Allis'!A83,IF(S$26="Buhler",Buhler!A83,IF(S$26="Case IH",Case!A82,IF(S$26="Challenger",Challenger!A83,IF(S$26="Deutz",Deutz!A92,IF(S$26="John Deere",'John Deere'!A78,IF(S$26="Kubota",Kubota!A85,IF(S$26="Landini",Landini!A83,IF(S$26="Massey Ferguson",MF!A83,IF(S$26="McCormick",McCormick!A80,IF(S$26="New Holland",NH!A83,IF(S$26="Kioti",KIOTI!A83,IF(S$26="Mahindra",MAHINDRA!A83,IF(S$26="Valtra",Valtra!A83,IF(S$26="","",0))))))))))))))))) -> 
T95: =IF(S$26="AGCO",AGCO!A84,IF(S$26="AGCO White",'AGCO White'!A84,IF(S$26="AGCO Allis",'AGCO Allis'!A84,IF(S$26="Buhler",Buhler!A84,IF(S$26="Case IH",Case!A83,IF(S$26="Challenger",Challenger!A84,IF(S$26="Deutz",Deutz!A93,IF(S$26="John Deere",'John Deere'!A79,IF(S$26="Kubota",Kubota!A86,IF(S$26="Landini",Landini!A84,IF(S$26="Massey Ferguson",MF!A84,IF(S$26="McCormick",McCormick!A81,IF(S$26="New Holland",NH!A84,IF(S$26="Kioti",KIOTI!A84,IF(S$26="Mahindra",MAHINDRA!A84,IF(S$26="Valtra",Valtra!A84,IF(S$26="","",0))))))))))))))))) -> 
T96: =IF(S$26="AGCO",AGCO!A85,IF(S$26="AGCO White",'AGCO White'!A85,IF(S$26="AGCO Allis",'AGCO Allis'!A85,IF(S$26="Buhler",Buhler!A85,IF(S$26="Case IH",Case!A84,IF(S$26="Challenger",Challenger!A85,IF(S$26="Deutz",Deutz!A94,IF(S$26="John Deere",'John Deere'!A80,IF(S$26="Kubota",Kubota!A87,IF(S$26="Landini",Landini!A85,IF(S$26="Massey Ferguson",MF!A85,IF(S$26="McCormick",McCormick!A82,IF(S$26="New Holland",NH!A85,IF(S$26="Kioti",KIOTI!A85,IF(S$26="Mahindra",MAHINDRA!A85,IF(S$26="Valtra",Valtra!A85,IF(S$26="","",0))))))))))))))))) -> 
T97: =IF(S$26="AGCO",AGCO!A86,IF(S$26="AGCO White",'AGCO White'!A86,IF(S$26="AGCO Allis",'AGCO Allis'!A86,IF(S$26="Buhler",Buhler!A86,IF(S$26="Case IH",Case!A85,IF(S$26="Challenger",Challenger!A86,IF(S$26="Deutz",Deutz!A95,IF(S$26="John Deere",'John Deere'!A81,IF(S$26="Kubota",Kubota!A88,IF(S$26="Landini",Landini!A86,IF(S$26="Massey Ferguson",MF!A86,IF(S$26="McCormick",McCormick!A83,IF(S$26="New Holland",NH!A86,IF(S$26="Kioti",KIOTI!A86,IF(S$26="Mahindra",MAHINDRA!A86,IF(S$26="Valtra",Valtra!A86,IF(S$26="","",0))))))))))))))))) -> 
T98: =IF(S$26="AGCO",AGCO!A87,IF(S$26="AGCO White",'AGCO White'!A87,IF(S$26="AGCO Allis",'AGCO Allis'!A87,IF(S$26="Buhler",Buhler!A87,IF(S$26="Case IH",Case!A86,IF(S$26="Challenger",Challenger!A87,IF(S$26="Deutz",Deutz!A96,IF(S$26="John Deere",'John Deere'!A82,IF(S$26="Kubota",Kubota!A89,IF(S$26="Landini",Landini!A87,IF(S$26="Massey Ferguson",MF!A81,IF(S$26="McCormick",McCormick!A84,IF(S$26="New Holland",NH!A83,IF(S$26="Kioti",KIOTI!A87,IF(S$26="Mahindra",MAHINDRA!A87,IF(S$26="Valtra",Valtra!A87,IF(S$26="","",0))))))))))))))))) -> 
T99: =IF(S$26="AGCO",AGCO!A88,IF(S$26="AGCO White",'AGCO White'!A88,IF(S$26="AGCO Allis",'AGCO Allis'!A88,IF(S$26="Buhler",Buhler!A88,IF(S$26="Case IH",Case!A87,IF(S$26="Challenger",Challenger!A88,IF(S$26="Deutz",Deutz!A97,IF(S$26="John Deere",'John Deere'!A83,IF(S$26="Kubota",Kubota!A90,IF(S$26="Landini",Landini!A88,IF(S$26="Massey Ferguson",MF!A82,IF(S$26="McCormick",McCormick!A85,IF(S$26="New Holland",NH!A84,IF(S$26="Kioti",KIOTI!A88,IF(S$26="Mahindra",MAHINDRA!A88,IF(S$26="Valtra",Valtra!A88,IF(S$26="","",0))))))))))))))))) -> 
T100: =IF(S$26="AGCO",AGCO!A89,IF(S$26="AGCO White",'AGCO White'!A89,IF(S$26="AGCO Allis",'AGCO Allis'!A89,IF(S$26="Buhler",Buhler!A89,IF(S$26="Case IH",Case!A88,IF(S$26="Challenger",Challenger!A89,IF(S$26="Deutz",Deutz!A98,IF(S$26="John Deere",'John Deere'!A84,IF(S$26="Kubota",Kubota!A91,IF(S$26="Landini",Landini!A89,IF(S$26="Massey Ferguson",MF!A83,IF(S$26="McCormick",McCormick!A86,IF(S$26="New Holland",NH!A85,IF(S$26="Kioti",KIOTI!A89,IF(S$26="Mahindra",MAHINDRA!A89,IF(S$26="Valtra",Valtra!A89,IF(S$26="","",0))))))))))))))))) -> 
T101: =IF(S$26="AGCO",AGCO!A90,IF(S$26="AGCO White",'AGCO White'!A90,IF(S$26="AGCO Allis",'AGCO Allis'!A90,IF(S$26="Buhler",Buhler!A90,IF(S$26="Case IH",Case!A89,IF(S$26="Challenger",Challenger!A90,IF(S$26="Deutz",Deutz!A99,IF(S$26="John Deere",'John Deere'!A85,IF(S$26="Kubota",Kubota!A92,IF(S$26="Landini",Landini!A90,IF(S$26="Massey Ferguson",MF!A84,IF(S$26="McCormick",McCormick!A87,IF(S$26="New Holland",NH!A86,IF(S$26="Kioti",KIOTI!A90,IF(S$26="Mahindra",MAHINDRA!A90,IF(S$26="Valtra",Valtra!A90,IF(S$26="","",0))))))))))))))))) -> 
T102: =IF(S$26="AGCO",AGCO!A91,IF(S$26="AGCO White",'AGCO White'!A91,IF(S$26="AGCO Allis",'AGCO Allis'!A91,IF(S$26="Buhler",Buhler!A91,IF(S$26="Case IH",Case!A90,IF(S$26="Challenger",Challenger!A91,IF(S$26="Deutz",Deutz!A100,IF(S$26="John Deere",'John Deere'!A86,IF(S$26="Kubota",Kubota!A93,IF(S$26="Landini",Landini!A91,IF(S$26="Massey Ferguson",MF!A85,IF(S$26="McCormick",McCormick!A88,IF(S$26="New Holland",NH!A87,IF(S$26="Kioti",KIOTI!A91,IF(S$26="Mahindra",MAHINDRA!A91,IF(S$26="Valtra",Valtra!A91,IF(S$26="","",0))))))))))))))))) -> 
T103: =IF(S$26="AGCO",AGCO!A92,IF(S$26="AGCO White",'AGCO White'!A92,IF(S$26="AGCO Allis",'AGCO Allis'!A92,IF(S$26="Buhler",Buhler!A92,IF(S$26="Case IH",Case!A91,IF(S$26="Challenger",Challenger!A92,IF(S$26="Deutz",Deutz!A101,IF(S$26="John Deere",'John Deere'!A87,IF(S$26="Kubota",Kubota!A94,IF(S$26="Landini",Landini!A92,IF(S$26="Massey Ferguson",MF!A86,IF(S$26="McCormick",McCormick!A89,IF(S$26="New Holland",NH!A88,IF(S$26="Kioti",KIOTI!A92,IF(S$26="Mahindra",MAHINDRA!A92,IF(S$26="Valtra",Valtra!A92,IF(S$26="","",0))))))))))))))))) -> 
T104: =IF(S$26="AGCO",AGCO!A93,IF(S$26="AGCO White",'AGCO White'!A93,IF(S$26="AGCO Allis",'AGCO Allis'!A93,IF(S$26="Buhler",Buhler!A93,IF(S$26="Case IH",Case!A92,IF(S$26="Challenger",Challenger!A93,IF(S$26="Deutz",Deutz!A102,IF(S$26="John Deere",'John Deere'!A88,IF(S$26="Kubota",Kubota!A95,IF(S$26="Landini",Landini!A93,IF(S$26="Massey Ferguson",MF!A87,IF(S$26="McCormick",McCormick!A90,IF(S$26="New Holland",NH!A89,IF(S$26="Kioti",KIOTI!A93,IF(S$26="Mahindra",MAHINDRA!A93,IF(S$26="Valtra",Valtra!A93,IF(S$26="","",0))))))))))))))))) -> 
T105: =IF(S$26="AGCO",AGCO!A94,IF(S$26="AGCO White",'AGCO White'!A94,IF(S$26="AGCO Allis",'AGCO Allis'!A94,IF(S$26="Buhler",Buhler!A94,IF(S$26="Case IH",Case!A93,IF(S$26="Challenger",Challenger!A94,IF(S$26="Deutz",Deutz!A103,IF(S$26="John Deere",'John Deere'!A89,IF(S$26="Kubota",Kubota!A96,IF(S$26="Landini",Landini!A94,IF(S$26="Massey Ferguson",MF!A88,IF(S$26="McCormick",McCormick!A91,IF(S$26="New Holland",NH!A90,IF(S$26="Kioti",KIOTI!A94,IF(S$26="Mahindra",MAHINDRA!A94,IF(S$26="Valtra",Valtra!A94,IF(S$26="","",0))))))))))))))))) -> 
T106: =IF(S$26="AGCO",AGCO!A95,IF(S$26="AGCO White",'AGCO White'!A95,IF(S$26="AGCO Allis",'AGCO Allis'!A95,IF(S$26="Buhler",Buhler!A95,IF(S$26="Case IH",Case!A94,IF(S$26="Challenger",Challenger!A95,IF(S$26="Deutz",Deutz!A104,IF(S$26="John Deere",'John Deere'!A90,IF(S$26="Kubota",Kubota!A97,IF(S$26="Landini",Landini!A95,IF(S$26="Massey Ferguson",MF!A89,IF(S$26="McCormick",McCormick!A92,IF(S$26="New Holland",NH!A91,IF(S$26="Kioti",KIOTI!A95,IF(S$26="Mahindra",MAHINDRA!A95,IF(S$26="Valtra",Valtra!A95,IF(S$26="","",0))))))))))))))))) -> 
T107: =IF(S$26="AGCO",AGCO!A96,IF(S$26="AGCO White",'AGCO White'!A96,IF(S$26="AGCO Allis",'AGCO Allis'!A96,IF(S$26="Buhler",Buhler!A96,IF(S$26="Case IH",Case!A95,IF(S$26="Challenger",Challenger!A96,IF(S$26="Deutz",Deutz!A105,IF(S$26="John Deere",'John Deere'!A91,IF(S$26="Kubota",Kubota!A98,IF(S$26="Landini",Landini!A96,IF(S$26="Massey Ferguson",MF!A90,IF(S$26="McCormick",McCormick!A93,IF(S$26="New Holland",NH!A92,IF(S$26="Kioti",KIOTI!A96,IF(S$26="Mahindra",MAHINDRA!A96,IF(S$26="Valtra",Valtra!A96,IF(S$26="","",0))))))))))))))))) -> 
T108: =IF(S$26="AGCO",AGCO!A97,IF(S$26="AGCO White",'AGCO White'!A97,IF(S$26="AGCO Allis",'AGCO Allis'!A97,IF(S$26="Buhler",Buhler!A97,IF(S$26="Case IH",Case!A96,IF(S$26="Challenger",Challenger!A97,IF(S$26="Deutz",Deutz!A106,IF(S$26="John Deere",'John Deere'!A92,IF(S$26="Kubota",Kubota!A99,IF(S$26="Landini",Landini!A97,IF(S$26="Massey Ferguson",MF!A91,IF(S$26="McCormick",McCormick!A94,IF(S$26="New Holland",NH!A93,IF(S$26="Kioti",KIOTI!A97,IF(S$26="Mahindra",MAHINDRA!A97,IF(S$26="Valtra",Valtra!A97,IF(S$26="","",0))))))))))))))))) -> 
T109: =IF(S$26="AGCO",AGCO!A98,IF(S$26="AGCO White",'AGCO White'!A98,IF(S$26="AGCO Allis",'AGCO Allis'!A98,IF(S$26="Buhler",Buhler!A98,IF(S$26="Case IH",Case!A97,IF(S$26="Challenger",Challenger!A98,IF(S$26="Deutz",Deutz!A107,IF(S$26="John Deere",'John Deere'!A93,IF(S$26="Kubota",Kubota!A100,IF(S$26="Landini",Landini!A98,IF(S$26="Massey Ferguson",MF!A92,IF(S$26="McCormick",McCormick!A95,IF(S$26="New Holland",NH!A94,IF(S$26="Kioti",KIOTI!A98,IF(S$26="Mahindra",MAHINDRA!A98,IF(S$26="Valtra",Valtra!A98,IF(S$26="","",0))))))))))))))))) -> 
T110: =IF(S$26="AGCO",AGCO!A99,IF(S$26="AGCO White",'AGCO White'!A99,IF(S$26="AGCO Allis",'AGCO Allis'!A99,IF(S$26="Buhler",Buhler!A99,IF(S$26="Case IH",Case!A98,IF(S$26="Challenger",Challenger!A99,IF(S$26="Deutz",Deutz!A108,IF(S$26="John Deere",'John Deere'!A94,IF(S$26="Kubota",Kubota!A101,IF(S$26="Landini",Landini!A99,IF(S$26="Massey Ferguson",MF!A93,IF(S$26="McCormick",McCormick!A96,IF(S$26="New Holland",NH!A95,IF(S$26="Kioti",KIOTI!A99,IF(S$26="Mahindra",MAHINDRA!A99,IF(S$26="Valtra",Valtra!A99,IF(S$26="","",0))))))))))))))))) -> 
T111: =IF(S$26="AGCO",AGCO!A100,IF(S$26="AGCO White",'AGCO White'!A100,IF(S$26="AGCO Allis",'AGCO Allis'!A100,IF(S$26="Buhler",Buhler!A100,IF(S$26="Case IH",Case!A99,IF(S$26="Challenger",Challenger!A100,IF(S$26="Deutz",Deutz!A109,IF(S$26="John Deere",'John Deere'!A95,IF(S$26="Kubota",Kubota!A102,IF(S$26="Landini",Landini!A100,IF(S$26="Massey Ferguson",MF!A94,IF(S$26="McCormick",McCormick!A97,IF(S$26="New Holland",NH!A96,IF(S$26="Kioti",KIOTI!A100,IF(S$26="Mahindra",MAHINDRA!A100,IF(S$26="Valtra",Valtra!A100,IF(S$26="","",0))))))))))))))))) -> 
T112: =IF(S$26="AGCO",AGCO!A101,IF(S$26="AGCO White",'AGCO White'!A101,IF(S$26="AGCO Allis",'AGCO Allis'!A101,IF(S$26="Buhler",Buhler!A101,IF(S$26="Case IH",Case!A100,IF(S$26="Challenger",Challenger!A101,IF(S$26="Deutz",Deutz!A110,IF(S$26="John Deere",'John Deere'!A96,IF(S$26="Kubota",Kubota!A103,IF(S$26="Landini",Landini!A101,IF(S$26="Massey Ferguson",MF!A95,IF(S$26="McCormick",McCormick!A98,IF(S$26="New Holland",NH!A97,IF(S$26="Kioti",KIOTI!A101,IF(S$26="Mahindra",MAHINDRA!A101,IF(S$26="Valtra",Valtra!A101,IF(S$26="","",0))))))))))))))))) -> 
T113: =IF(S$26="AGCO",AGCO!A102,IF(S$26="AGCO White",'AGCO White'!A102,IF(S$26="AGCO Allis",'AGCO Allis'!A102,IF(S$26="Buhler",Buhler!A102,IF(S$26="Case IH",Case!A101,IF(S$26="Challenger",Challenger!A102,IF(S$26="Deutz",Deutz!A111,IF(S$26="John Deere",'John Deere'!A97,IF(S$26="Kubota",Kubota!A104,IF(S$26="Landini",Landini!A102,IF(S$26="Massey Ferguson",MF!A96,IF(S$26="McCormick",McCormick!A99,IF(S$26="New Holland",NH!A98,IF(S$26="Kioti",KIOTI!A102,IF(S$26="Mahindra",MAHINDRA!A102,IF(S$26="Valtra",Valtra!A102,IF(S$26="","",0))))))))))))))))) -> 
T114: =IF(S$26="AGCO",AGCO!A103,IF(S$26="AGCO White",'AGCO White'!A103,IF(S$26="AGCO Allis",'AGCO Allis'!A103,IF(S$26="Buhler",Buhler!A103,IF(S$26="Case IH",Case!A102,IF(S$26="Challenger",Challenger!A103,IF(S$26="Deutz",Deutz!A112,IF(S$26="John Deere",'John Deere'!A98,IF(S$26="Kubota",Kubota!A105,IF(S$26="Landini",Landini!A103,IF(S$26="Massey Ferguson",MF!A97,IF(S$26="McCormick",McCormick!A100,IF(S$26="New Holland",NH!A99,IF(S$26="Kioti",KIOTI!A103,IF(S$26="Mahindra",MAHINDRA!A103,IF(S$26="Valtra",Valtra!A103,IF(S$26="","",0))))))))))))))))) -> 
T115: =IF(S$26="AGCO",AGCO!A104,IF(S$26="AGCO White",'AGCO White'!A104,IF(S$26="AGCO Allis",'AGCO Allis'!A104,IF(S$26="Buhler",Buhler!A104,IF(S$26="Case IH",Case!A103,IF(S$26="Challenger",Challenger!A104,IF(S$26="Deutz",Deutz!A113,IF(S$26="John Deere",'John Deere'!A99,IF(S$26="Kubota",Kubota!A106,IF(S$26="Landini",Landini!A104,IF(S$26="Massey Ferguson",MF!A98,IF(S$26="McCormick",McCormick!A101,IF(S$26="New Holland",NH!A100,IF(S$26="Kioti",KIOTI!A104,IF(S$26="Mahindra",MAHINDRA!A104,IF(S$26="Valtra",Valtra!A104,IF(S$26="","",0))))))))))))))))) -> 
T116: =IF(S$26="AGCO",AGCO!A105,IF(S$26="AGCO White",'AGCO White'!A105,IF(S$26="AGCO Allis",'AGCO Allis'!A105,IF(S$26="Buhler",Buhler!A105,IF(S$26="Case IH",Case!A104,IF(S$26="Challenger",Challenger!A105,IF(S$26="Deutz",Deutz!A114,IF(S$26="John Deere",'John Deere'!A100,IF(S$26="Kubota",Kubota!A107,IF(S$26="Landini",Landini!A105,IF(S$26="Massey Ferguson",MF!A99,IF(S$26="McCormick",McCormick!A102,IF(S$26="New Holland",NH!A101,IF(S$26="Kioti",KIOTI!A105,IF(S$26="Mahindra",MAHINDRA!A105,IF(S$26="Valtra",Valtra!A105,IF(S$26="","",0))))))))))))))))) -> 
T117: =IF(S$26="AGCO",AGCO!A106,IF(S$26="AGCO White",'AGCO White'!A106,IF(S$26="AGCO Allis",'AGCO Allis'!A106,IF(S$26="Buhler",Buhler!A106,IF(S$26="Case IH",Case!A105,IF(S$26="Challenger",Challenger!A106,IF(S$26="Deutz",Deutz!A115,IF(S$26="John Deere",'John Deere'!A101,IF(S$26="Kubota",Kubota!A108,IF(S$26="Landini",Landini!A106,IF(S$26="Massey Ferguson",MF!A100,IF(S$26="McCormick",McCormick!A103,IF(S$26="New Holland",NH!A101,IF(S$26="Kioti",KIOTI!A106,IF(S$26="Mahindra",MAHINDRA!A106,IF(S$26="Valtra",Valtra!A106,IF(S$26="","",0))))))))))))))))) -> 
T118: =IF(S$26="AGCO",AGCO!A107,IF(S$26="AGCO White",'AGCO White'!A107,IF(S$26="AGCO Allis",'AGCO Allis'!A107,IF(S$26="Buhler",Buhler!A107,IF(S$26="Case IH",Case!A106,IF(S$26="Challenger",Challenger!A107,IF(S$26="Deutz",Deutz!A116,IF(S$26="John Deere",'John Deere'!A102,IF(S$26="Kubota",Kubota!A109,IF(S$26="Landini",Landini!A107,IF(S$26="Massey Ferguson",MF!A101,IF(S$26="McCormick",McCormick!A104,IF(S$26="New Holland",NH!A102,IF(S$26="Kioti",KIOTI!A107,IF(S$26="Mahindra",MAHINDRA!A107,IF(S$26="Valtra",Valtra!A107,IF(S$26="","",0))))))))))))))))) -> 
T119: =IF(S$26="AGCO",AGCO!A108,IF(S$26="AGCO White",'AGCO White'!A108,IF(S$26="AGCO Allis",'AGCO Allis'!A108,IF(S$26="Buhler",Buhler!A108,IF(S$26="Case IH",Case!A107,IF(S$26="Challenger",Challenger!A108,IF(S$26="Deutz",Deutz!A117,IF(S$26="John Deere",'John Deere'!A103,IF(S$26="Kubota",Kubota!A110,IF(S$26="Landini",Landini!A108,IF(S$26="Massey Ferguson",MF!A102,IF(S$26="McCormick",McCormick!A105,IF(S$26="New Holland",NH!A103,IF(S$26="Kioti",KIOTI!A108,IF(S$26="Mahindra",MAHINDRA!A108,IF(S$26="Valtra",Valtra!A108,IF(S$26="","",0))))))))))))))))) -> 
T120: =IF(S$26="AGCO",AGCO!A109,IF(S$26="AGCO White",'AGCO White'!A109,IF(S$26="AGCO Allis",'AGCO Allis'!A109,IF(S$26="Buhler",Buhler!A109,IF(S$26="Case IH",Case!A108,IF(S$26="Challenger",Challenger!A109,IF(S$26="Deutz",Deutz!A118,IF(S$26="John Deere",'John Deere'!A104,IF(S$26="Kubota",Kubota!A111,IF(S$26="Landini",Landini!A109,IF(S$26="Massey Ferguson",MF!A103,IF(S$26="McCormick",McCormick!A106,IF(S$26="New Holland",NH!A104,IF(S$26="Kioti",KIOTI!A109,IF(S$26="Mahindra",MAHINDRA!A109,IF(S$26="Valtra",Valtra!A109,IF(S$26="","",0))))))))))))))))) -> 
T121: =IF(S$26="AGCO",AGCO!A110,IF(S$26="AGCO White",'AGCO White'!A110,IF(S$26="AGCO Allis",'AGCO Allis'!A110,IF(S$26="Buhler",Buhler!A110,IF(S$26="Case IH",Case!A109,IF(S$26="Challenger",Challenger!A110,IF(S$26="Deutz",Deutz!A119,IF(S$26="John Deere",'John Deere'!A105,IF(S$26="Kubota",Kubota!A112,IF(S$26="Landini",Landini!A110,IF(S$26="Massey Ferguson",MF!A104,IF(S$26="McCormick",McCormick!A107,IF(S$26="New Holland",NH!A105,IF(S$26="Kioti",KIOTI!A110,IF(S$26="Mahindra",MAHINDRA!A110,IF(S$26="Valtra",Valtra!A110,IF(S$26="","",0))))))))))))))))) -> 
T122: =IF(S$26="AGCO",AGCO!A111,IF(S$26="AGCO White",'AGCO White'!A111,IF(S$26="AGCO Allis",'AGCO Allis'!A111,IF(S$26="Buhler",Buhler!A111,IF(S$26="Case IH",Case!A110,IF(S$26="Challenger",Challenger!A111,IF(S$26="Deutz",Deutz!A120,IF(S$26="John Deere",'John Deere'!A106,IF(S$26="Kubota",Kubota!A113,IF(S$26="Landini",Landini!A111,IF(S$26="Massey Ferguson",MF!A105,IF(S$26="McCormick",McCormick!A108,IF(S$26="New Holland",NH!A106,IF(S$26="Kioti",KIOTI!A111,IF(S$26="Mahindra",MAHINDRA!A111,IF(S$26="Valtra",Valtra!A111,IF(S$26="","",0))))))))))))))))) -> 

Sheet Loaders (hidden)
B2: Q3 | C2: Q3s | D2: Q4 | E2: Q4s | F2: Q5 | G2: Q5s | H2: Q6 | I2: Q6m | J2: Q7m | K2: Q8m
A3: Quicke Silver Decals | B3: 60000055 | C3: =B3+1 -> 60000056 | D3: =C3+1 -> 60000057 | E3: 60000058 | F3: 60000059 | G3: 60000060 | H3: 60000061 | I3: 60000062 | J3: 60000063 | K3: 60000064
A4: Case IH Red Decals | B4: =B3+10 -> 60000065 | C4: =B4+1 -> 60000066 | D4: 60000067 | E4: 60000068 | F4: 60000069 | G4: 60000070 | H4: 60000071 | I4: 60000072 | J4: 60000073 | K4: 60000074
A5: John Deere Green Decals | B5: =B4+10 -> 60000075 | C5: 60000076 | D5: 60000077 | E5: 60000078 | F5: 60000079 | G5: 60000080 | H5: 60000081 | I5: 60000082 | J5: 60000083 | K5: 60000084
A6: Kubota Orange Decals | B6: 60000085 | C6: 60000086 | D6: 60000087 | E6: 60000088 | F6: 60000089 | G6: 60000090 | H6: 60000091 | I6: 60000092 | J6: 60000093 | K6: 60000094
A7: New Holland Blue Decals | B7: 60000095 | C7: 60000096 | D7: 60000097 | E7: 60000098 | F7: 60000099 | G7: 60000100 | H7: 60000101 | I7: 60000102 | J7: 60000103 | K7: 60000104
A9: =Options!A42 -> 0 | B9: =VLOOKUP(A9,A12:F22,2,0) ->  | C9: =VLOOKUP(B9,B12:G22,2,0) -> 
A10: =LOADERpro!AA12 -> 0 | B10: =VLOOKUP(A10,A2:K7,2,0) ->  | C10: =VLOOKUP(B10,B2:L7,2,0) -> 
B12: Quicke Silver Decals | C12: Kubota Orange Decals | D12: New Holland Blue Decals | E12: John Deere Green Decals | F12: Case IH Red Decals
A13: Q3 | B13: 60107576 | C13: 60032629-03 | D13: 60032629-11 | E13: 60032629-12 | F13: 60032629-13
A14: Q3s | B14: 60107572 | C14: 60032526-03 | D14: 60032526-11 | E14: 60032526-12 | F14: 60032526-13
A15: Q4 | B15: 60107579 | C15: 60032633-03 | D15: 60032633-11 | E15: 60032633-12 | F15: 60032633-13
A16: Q4s | B16: 60107577 | C16: 60032534-03 | D16: 60032534-11 | E16: 60032534-12 | F16: 60032534-13
A17: Q5 | B17: 60107591 | C17: 60032637-03 | D17: 60032637-11 | E17: 60032637-12 | F17: 60032637-13
A18: Q5s | B18: 60107590 | C18: 60032542-03 | D18: 60032542-11 | E18: 60032542-12 | F18: 60032542-13
A19: Q6 | B19: 60107596 | C19: 60032641-03 | D19: 60032641-11 | E19: 60032641-12 | F19: 60032641-13
A20: Q6m | B20: 60107595 | C20: 60032554-03 | D20: 60032554-11 | E20: 60032554-12 | F20: 60032554-13
A21: Q7m | B21: 60107960 | C21: 60032562-03 | D21: 60032562-11 | E21: 60032562-12 | F21: 60032562-13
A22: Q8m | B22: 60107600 | C22: 60032570-03 | D22: 60032570-11 | E22: 60032570-12 | F22: 60032570-13
A25: =IF(A10="Quicke Silver Decals",VLOOKUP(A9,A12:B22,2,0),IF(A10="Case IH Red Decals",VLOOKUP(A9,A12:F22,6,0),IF(A10="John Deere Green Decals",VLOOKUP(A9,A12:E22,5,0),IF(A10="Kubota Orange Decals",VLOOKUP(A9,A12:C22,3,0),IF(A10="New Holland Blue Decals",VLOOKUP(A9,A12:D22,4,0),""))))) ->  | B25: 0
A26: =A25 -> 
A27: Not Available with this Model

Sheet Options (hidden)
A3: Q3 | B3: 102733 | C3: Q | D3: 80002 | E3: 10002 | F3: 31 | G3: 1 | I3: 60019601 | K3: 60019997 | L3: 60030747 | M3: =IF(A$45="","",VLOOKUP(A$45,'trip costs'!A:K,7,0)) ->  | P3: Loader is Standard with MC4 , Soft Drive is a recommended option | V3: N/A | Y3: Euro | Z3: Skid Steer | AA3: ="" ->  | AB3: 104733
A4: Q3s | B4: 102136 | C4: Q | D4: 80005 | E4: 10005 | F4: 36 | G4: 1 | I4: 60019601 | K4: 60019997 | L4: 60030747 | M4: =VLOOKUP(A$45,'trip costs'!A:K,7,0) ->  | P4: Loader is Standard with MC4 , Soft Drive is a recommended option | V4: N/A | Y4: Euro | Z4: Skid Steer | AA4: ="" ->  | AB4: 104136
A5: Q4 | B5: 102741 | C5: Q | D5: 80002 | E5: 10002 | F5: 41 | G5: 1 | I5: 60019601 | K5: 60019997 | L5: 60030748 | M5: =VLOOKUP(A$45,'trip costs'!A:K,7,0) ->  | P5: Loader is Standard with MC4 , Soft Drive is a recommended option | V5: N/A | Y5: Euro | Z5: Skid Steer | AA5: ="" ->  | AB5: 104741
A6: Q4s | B6: 102146 | C6: Q | D6: 80005 | E6: 10005 | F6: 46 | G6: 1 | I6: 60019601 | K6: 60019997 | L6: 60030748 | M6: =VLOOKUP(A$45,'trip costs'!A:K,8,0) ->  | P6: Loader is Standard with MC4 , Soft Drive is a recommended option | V6: N/A | Y6: Euro | Z6: Skid Steer | AA6: ="" ->  | AB6: 104146
A7: Q5 | B7: 102751 | C7: Q | D7: 80002 | F7: 51 | G7: 1 | I7: 60019602 | K7: 60019997 | L7: 60030749 | M7: =VLOOKUP(A$45,'trip costs'!A:K,8,0) ->  | P7: Loader is Standard with MC4 , Soft Drive is a recommended option | V7: N/A | Y7: Euro | Z7: ="" ->  | AA7: ="" ->  | AB7: 104751
A8: Q5s | B8: 102156 | C8: Q | D8: 80008 | F8: 56 | G8: 1 | I8: 60019602 | K8: 60019997 | L8: 60030749 | M8: =VLOOKUP(A$45,'trip costs'!A:K,8,0) ->  | P8: Loader is Standard with MC4 and Soft Drive Installed | V8: N/A | Y8: Euro | Z8: ="" ->  | AA8: ="" ->  | AB8: 104156
A9: Q6 | B9: 102761 | C9: Q | D9: 80002 | F9: 61 | G9: 1 | I9: 60019602 | K9: 60019997 | L9: 60030751 | M9: =VLOOKUP(A$45,'trip costs'!A:K,8,0) ->  | P9: Loader is Standard with MC4 , Soft Drive is a recommended option | V9: N/A | Y9: Euro | Z9: ="" ->  | AA9: ="" ->  | AB9: 104761
A10: Q6m | B10: 102168 | C10: Q | D10: 80008 | F10: 66 | G10: 60019602 | I10: 60019602 | K10: 60019997 | L10: 60030751 | M10: =VLOOKUP(A$45,'trip costs'!A:K,9,0) ->  | P10: Loader is Standard with MC4 and Soft Drive Installed | V10: =M10*2 ->  | Y10: Euro | Z10: ="" ->  | AA10: ="" ->  | AB10: 104168
A11: Q7m | B11: 102178 | C11: Q | D11: 80008 | F11: 76 | G11: 1 | I11: 60019602 | K11: 60019997 | L11: 60030753 | M11: =VLOOKUP(A$45,'trip costs'!A:K,10,0) ->  | P11: Loader is Standard with MC4 and Soft Drive Installed | V11: =M11*2 ->  | Y11: Euro | Z11: ="" ->  | AA11: ="" ->  | AB11: 104178
A12: Q8m | B12: 102288 | C12: Q | D12: 80008 | F12: 88 | G12: 1 | I12: 60019602 | K12: 60019997 | L12: 60030755 | M12: =VLOOKUP(A$45,'trip costs'!A:K,11,0) ->  | P12: Loader is Standard with MC4 and Soft Drive Installed | Y12: Euro | Z12: ="" ->  | AA12: ="" ->  | AB12: 104288
A13: Q98 EURO | B13: 9810A75000 | C13: QD | D13: ="" ->  | E13: ="" ->  | F13: 98 | G13: 1 | I13: 5220655 | K13: 5220452 | L13: 9031996 | M13: =VLOOKUP(A$45,'trip costs'!A:K,11,0) ->  | P13: Loader is Standard with MC4 , Soft Drive is a recommended option | Y13: Euro | Z13: ="" ->  | AA13: ="" -> 
A14: 100C | C14: CA | F14: 10 | G14: A1 | H14: 1 | I14: ="" ->  | K14: ="" ->  | M14: =VLOOKUP(A$45,'trip costs'!A:K,4,0) ->  | P14: ="" ->  | V14: N/A | Y14: ="" ->  | Z14: ="" ->  | AA14: Pin On
A15: 130C | C15: CA | F15: 13 | G15: N1 | H15: 1 | I15: ="" ->  | K15: ="" ->  | M15: =VLOOKUP(A$45,'trip costs'!A:K,4,0) ->  | P15: ="" ->  | V15: N/A | Y15: ="" ->  | Z15: Skid Steer | AA15: ="" -> 
A16: 140C | C16: CA | F16: 14 | G16: A1 | H16: 1 | I16: ="" ->  | K16: ="" ->  | M16: =VLOOKUP(A$45,'trip costs'!A:K,4,0) ->  | P16: ="" ->  | V16: N/A | Y16: ="" ->  | Z16: ="" ->  | AA16: Pin On
A17: 160C | C17: CA | F17: 16 | G17: N1 | H17: 1 | I17: 5221796 | K17: 10550453 | M17: =VLOOKUP(A$45,'trip costs'!A:K,4,0) ->  | P17: ="" ->  | V17: N/A | Y17: ="" ->  | Z17: Skid Steer | AA17: ="" -> 
A18: 180C | C18: CA | F18: 18 | G18: N1 | H18: 1 | I18: 5221796 | K18: 10550453 | M18: =VLOOKUP(A$45,'trip costs'!A:K,4,0) ->  | P18: ="" ->  | V18: N/A | Y18: ="" ->  | Z18: Skid Steer | AA18: ="" -> 
A19: X11 | C19: XA | F19: 11 | G19: N1 | I19: 5034241 | K19: 60010002 | M19: =VLOOKUP(A$45,'trip costs'!A:K,5,0) ->  | P19: ="" ->  | V19: N/A | Y19: Euro | Z19: Skid Steer | AA19: ="" -> 
A20: X16 | C20: XA | F20: 16 | G20: N1 | I20: 5034241 | K20: 60010002 | M20: =VLOOKUP(A$45,'trip costs'!A:K,5,0) ->  | P20: ="" ->  | V20: N/A | Y20: Euro | Z20: Skid Steer | AA20: ="" -> 
A21: X21 | C21: XA | F21: 21 | G21: N1 | I21: 5034241 | K21: 60010002 | M21: =VLOOKUP(A$45,'trip costs'!A:K,5,0) ->  | P21: ="" ->  | V21: N/A | Y21: Euro | Z21: Skid Steer | AA21: ="" -> 
A22: X26 | C22: XA | F22: 26 | G22: P1 | H22: 1 | I22: 5034241 | K22: 60010002 | M22: =VLOOKUP(A$45,'trip costs'!A:K,6,0) ->  | P22: ="" ->  | V22: N/A | Y22: Euro | Z22: Skid Steer | AA22: ="" -> 
A23: X31 | C23: XA | F23: 31 | G23: N1 | I23: 5034241 | K23: 60010002 | M23: =VLOOKUP(A$45,'trip costs'!A:K,6,0) ->  | P23: ="" ->  | V23: N/A | Y23: Euro | Z23: Skid Steer | AA23: ="" -> 
A24: X36 | C24: XA | F24: 36 | G24: P1 | H24: 1 | I24: 5034241 | K24: 60010002 | M24: =VLOOKUP(A$45,'trip costs'!A:K,6,0) ->  | P24: ="" ->  | V24: N/A | Y24: Euro | Z24: Skid Steer | AA24: ="" -> 
A25: X41 | C25: XA | F25: 41 | G25: N1 | I25: 5034241 | K25: 60010002 | M25: =VLOOKUP(A$45,'trip costs'!A:K,7,0) ->  | P25: ="" ->  | V25: N/A | Y25: Euro | Z25: Skid Steer | AA25: ="" -> 
A26: X46 | C26: XA | F26: 46 | G26: P1 | H26: 1 | I26: 5034241 | K26: 60010002 | M26: =VLOOKUP(A$45,'trip costs'!A:K,7,0) ->  | P26: ="" ->  | V26: N/A | Y26: Euro | Z26: Skid Steer | AA26: ="" -> 
A27: X51 | C27: XA | F27: 51 | G27: N1 | I27: 5034241 | K27: 60010002 | M27: =VLOOKUP(A$45,'trip costs'!A:K,7,0) ->  | O27: =VLOOKUP(A42,A1:L28,11,0) ->  | P27: You should consider SoftDrive for this configuration! | V27: N/A | X27: =VLOOKUP(A42,A1:U28,20,0) ->  | Y27: Euro | Z27: ="" ->  | AA27: ="" -> 
A28: X56 | C28: XA | F28: 56 | G28: P1 | H28: 1 | I28: 5034241 | K28: 60010002 | M28: =VLOOKUP(A$45,'trip costs'!A:K,8,0) ->  | O28: =IF(ISERROR(O27),"",O27) ->  | P28: You should consider SoftDrive for this configuration! | V28: N/A | X28: =IF(ISERROR(X27),"",X27) ->  | Y28: Euro | Z28: ="" ->  | AA28: ="" -> 
B30: Q SL | C30: QNSL | E30: X NSL | F30: X SL
A31: Quicke Black | B31: 1717 | C31: 1700 | D31: Quicke Grey | E31: Q | F31: QQ
A32: John Deere Green | B32: 1201 | C32: 1200 | D32: John Deere Green | E32: 1 | F32: 11
A33: Kubota Orange | B33: 0301 | C33: 0300 | D33: Kubota Orange | E33: K | F33: KK
A34: Massey Red | B34: 1901 | C34: 1900 | D34: Massey Red | E34: M | F34: MM
A35: New Holland Blue | B35: 1101 | C35: 1100 | D35: New Holland Blue | E35: F | F35: FF | K35: =VLOOKUP(A42,A1:C28,3,0) ->  | L35: =IF(OR(K35="Q",K35="QD"),N40,N39) ->  | M35: =IF(ISERROR(L35),"",L35) -> 
A36: Case IH Red | B36: 1301 | C36: 1300 | D36: Case IH Red | E36: D | F36: DD | M36: =M35 -> 
A37: Deutz Green | B37: 1501 | C37: 1500 | D37: Deutz Green | E37: 8 | F37: 88 | I37: =VLOOKUP(LOADERpro!P19,A11:G28,6,0) -> 
H38: =IF(I37=1,H39,"") -> 
A39: X Code | B39: =VLOOKUP(A42,A14:C28,3,0) ->  | C39: =VLOOKUP(A42,A14:F28,6,0) ->  | D39: =VLOOKUP(A42,A14:G28,7,0) ->  | E39: =F45 ->  | F39: =IF(A44="Euro",8,IF(A44="Skid Steer",1,IF(A44="PIN ON","O",""))) ->  | G39: =IF(B39="CA","000","100") ->  | H39: =IF(A46="2",VLOOKUP(A43,D31:F37,3,0),VLOOKUP(A43,D31:F37,2,0)) ->  | I39: =IF(I37=1,H39,"") ->  | J39: =B39&C39&D39&E39&F39&G39&H39&I39 ->  | N39: =IF(ISERROR(J39),"",J39) -> 
A40: Q Code | B40: =IF(A43="QUICKE BLACK",VLOOKUP(A42,A3:AB28,28,0),VLOOKUP(A42,A1:E28,2,0)) ->  | C40: =IF(A46="2",VLOOKUP(A43,A31:C37,2,FALSE),IF(A46="1",VLOOKUP(A43,A31:C37,3,FALSE),"")) ->  | D40: =IF(A44="EURO",VLOOKUP(A42,A3:E28,4,0),IF(A44="SKID STEER",VLOOKUP(A42,A3:E28,5,0),"")) ->  | J40: =B40&C40&D40&E40&G40&H40 ->  | N40: =IF(ISERROR(J40),"",J40) -> 
D41: =LOADERpro!N17 ->  | H41: =IF(LOADERpro!N17="US",1000,IF(LOADERpro!N17="UM",1000,5000)) -> 5000
A42: =LOADERpro!P19 -> 0
A43: =LOADERpro!X17 -> 0
A44: =LOADERpro!Q12 -> 0
A45: =LOADERpro!H9 -> 0 | E45: =VLOOKUP(LOADERpro!R28,'Loader Details'!Q:Y,9,0) ->  | F45: =VLOOKUP(LOADERpro!R28,'Loader Details'!Q:X,8,0) -> 
A46: =IF(A42="Q98 EURO","3",IF(A42="Q4","1",IF(A42="Q3","1",IF(A42="Q5","1",IF(A42="Q6","1",IF(A42="X21","1",IF(A42="X31","1",IF(A42="X41","1",IF(A42="X51","1","2"))))))))) -> 2

Sheet trip costs (hidden)
A1: FREIGHT | B1: CLASS | E1: 6 | F1: 7 | G1: 7 | H1: 7 | I1: 7 | K1: 7
A2: RATES
A4: STATE | D4: 100-180C | E4: X21 | F4: Q21,X26,X31,X36 | G4: Q26-Q41 X41-X51 | H4: Q46-Q61, X56 | I4: Q66 | J4: Q76 | K4: Q88
A5: AL | B5: ALABAMA | D5: 249 | E5: 254 | F5: 306 | G5: 356 | H5: 406 | I5: 571 | J5: 626 | K5: 681
A6: AR | B6: ARKANSAS | D6: 361 | E6: 384 | F6: 461 | G6: 538 | H6: 615 | I6: 780 | J6: 835 | K6: 890
A7: AZ | B7: ARIZONA | D7: 477 | E7: 503 | F7: 603 | G7: 703 | H7: 803 | I7: 968 | J7: 1023 | K7: 1078
A8: CA | B8: CALIFORNIA | D8: 623 | E8: 655 | F8: 785 | G8: 840 | H8: 960 | I8: 1125 | J8: 1180 | K8: 1235
A9: CO | B9: COLORADO | D9: 482 | E9: 506 | F9: 607 | G9: 708 | H9: 743 | I9: 908 | J9: 963 | K9: 1018
A10: CT | B10: CONNECTICUT | D10: 350 | E10: 358 | F10: 429 | G10: 501 | H10: 571 | I10: 736 | J10: 791 | K10: 846
A11: DE | B11: DELAWARE | D11: 270 | E11: 276 | F11: 331 | G11: 386 | H11: 441 | I11: 606 | J11: 661 | K11: 716
A12: FL | B12: FLORIDA | D12: 332 | E12: 341 | F12: 409 | G12: 477 | H12: 546 | I12: 711 | J12: 766 | K12: 821
A13: GA | B13: GEORGIA | D13: 263 | E13: 268 | F13: 322 | G13: 376 | H13: 429 | I13: 594 | J13: 649 | K13: 704
A14: IA | B14: IOWA | D14: 340 | E14: 344 | F14: 413 | G14: 482 | H14: 550 | I14: 715 | J14: 770 | K14: 825
A15: ID | B15: IDAHO | D15: 554 | E15: 583 | F15: 700 | G15: 816 | H15: 933 | I15: 1098 | J15: 1153 | K15: 1208
A16: IL | B16: ILLINOIS | D16: 312 | E16: 316 | F16: 380 | G16: 442 | H16: 505 | I16: 670 | J16: 725 | K16: 780
A17: IN | B17: INDIANA | D17: 279 | E17: 283 | F17: 339 | G17: 364 | H17: 416 | I17: 581 | J17: 636 | K17: 691
A18: KS | B18: KANSAS | D18: 361 | E18: 384 | F18: 461 | G18: 538 | H18: 615 | I18: 780 | J18: 835 | K18: 890
A19: KY | B19: KENTUCKY | D19: 227 | E19: 227 | F19: 272 | G19: 317 | H19: 362 | I19: 527 | J19: 582 | K19: 637
A20: LA | B20: LOUISIANA | D20: 341 | E20: 363 | F20: 436 | G20: 508 | H20: 581 | I20: 746 | J20: 801 | K20: 856
A21: MA | B21: MASSACHUSETS | D21: 380 | E21: 404 | F21: 484 | G21: 564 | H21: 645 | I21: 810 | J21: 865 | K21: 920
A22: MD | B22: MARYLAND | D22: 256 | E22: 264 | F22: 316 | G22: 369 | H22: 421 | I22: 586 | J22: 641 | K22: 696
A23: ME | B23: MAINE | D23: 800 | E23: 850 | F23: 1021 | G23: 1190 | H23: 1361 | I23: 1526 | J23: 1581 | K23: 1636
A24: MI | B24: MICHIGAN | D24: 294 | E24: 297 | F24: 356 | G24: 383 | H24: 439 | I24: 604 | J24: 659 | K24: 714
A25: MN | B25: MINNESOTA | D25: 392 | E25: 417 | F25: 499 | G25: 583 | H25: 666 | I25: 831 | J25: 886 | K25: 941
A26: MO | B26: MISSOURI | D26: 372 | E26: 396 | F26: 474 | G26: 553 | H26: 633 | I26: 798 | J26: 853 | K26: 908
A27: MS | B27: MISSISSIPPI | D27: 293 | E27: 300 | F27: 360 | G27: 419 | H27: 480 | I27: 645 | J27: 700 | K27: 755
A28: MT | B28: MONTANA | D28: 603 | E28: 634 | F28: 760 | G28: 887 | H28: 1013 | I28: 1178 | J28: 1233 | K28: 1288
A29: NC | B29: NORTH CAROLINA | D29: 187 | E29: 187 | F29: 224 | G29: 262 | H29: 299 | I29: 464 | J29: 519 | K29: 574
A30: ND | B30: NORTH DAKOTA | D30: 441 | E30: 470 | F30: 563 | G30: 657 | H30: 688 | I30: 853 | J30: 908 | K30: 963
A31: NE | B31: NEBRASKA | D31: 395 | E31: 420 | F31: 504 | G31: 589 | H31: 672 | I31: 837 | J31: 892 | K31: 947
A32: NH | B32: NEW HAMPSHIRE | D32: 389 | E32: 415 | F32: 498 | G32: 581 | H32: 664 | I32: 829 | J32: 884 | K32: 939
A33: NJ | B33: NEW JERSEY | D33: 380 | E33: 404 | F33: 484 | G33: 564 | H33: 645 | I33: 810 | J33: 865 | K33: 920
A34: NM | B34: NEW MEXICO | D34: 422 | E34: 449 | F34: 539 | G34: 628 | H34: 718 | I34: 883 | J34: 938 | K34: 993
A35: NV | B35: NEVADA | D35: 515 | E35: 540 | F35: 649 | G35: 757 | H35: 865 | I35: 1030 | J35: 1085 | K35: 1140
A36: NY | B36: NEW YORK | D36: 344 | E36: 353 | F36: 422 | G36: 493 | H36: 564 | I36: 729 | J36: 784 | K36: 839
A37: OH | B37: OHIO | D37: 222 | E37: 222 | F37: 267 | G37: 311 | H37: 355 | I37: 520 | J37: 575 | K37: 630
A38: OK | B38: OKLAHOMA | D38: 361 | E38: 384 | F38: 461 | G38: 538 | H38: 615 | I38: 780 | J38: 835 | K38: 890
A39: OR | B39: OREGON | D39: 479 | E39: 664 | F39: 796 | G39: 851 | H39: 975 | I39: 1140 | J39: 1195 | K39: 1250
A40: PA | B40: PENNSYLVANIA | D40: 270 | E40: 276 | F40: 331 | G40: 386 | H40: 441 | I40: 606 | J40: 661 | K40: 716
A41: SC | B41: SOUTH CAROLINA | D41: 202 | E41: 202 | F41: 243 | G41: 284 | H41: 325 | I41: 490 | J41: 545 | K41: 600
A42: SD | B42: SOUTH DAKOTA | D42: 402 | E42: 427 | F42: 512 | G42: 597 | H42: 682 | I42: 847 | J42: 902 | K42: 957
A43: TN | B43: TENNESSEE | D43: 259 | E43: 264 | F43: 317 | G43: 370 | H43: 422 | I43: 587 | J43: 642 | K43: 697
A44: TX | B44: TEXAS | D44: 391 | E44: 416 | F44: 499 | G44: 582 | H44: 666 | I44: 831 | J44: 897 | K44: 941
A45: UT | B45: UTAH | D45: 543 | E45: 571 | F45: 685 | G45: 732 | H45: 836 | I45: 1001 | J45: 1056 | K45: 1111
A46: VT | B46: VERMONT | D46: 389 | E46: 415 | F46: 498 | G46: 581 | H46: 664 | I46: 829 | J46: 884 | K46: 939
A47: VA | B47: VIRGINIA | D47: 174 | E47: 174 | F47: 201 | G47: 233 | H47: 267 | I47: 432 | J47: 487 | K47: 542
A48: WA | B48: WASHINGTON | D48: 462 | E48: 645 | F48: 708 | G48: 827 | H48: 945 | I48: 1110 | J48: 1165 | K48: 1220
A49: WI | B49: WISCONSIN | D49: 387 | E49: 407 | F49: 488 | G49: 570 | H49: 651 | I49: 816 | J49: 871 | K49: 926
A50: WV | B50: WEST VIRGINIA | D50: 226 | E50: 226 | F50: 271 | G50: 316 | H50: 361 | I50: 526 | J50: 581 | K50: 636
A51: WY | B51: WYOMING | D51: 851 | E51: 906 | F51: 1087 | G51: 1268 | H51: 1450 | I51: 1615 | J51: 1670 | K51: 1725
A52: NS | D52: 400 | E52: 500 | F52: 500 | G52: 500 | H52: 500 | I52: 500 | J52: 500 | K52: 500
A53: AB | D53: 400 | E53: 600 | F53: 600 | G53: 600 | H53: 600 | I53: 600 | J53: 600 | K53: 600
A54: BC | D54: 500 | E54: 700 | F54: 700 | G54: 700 | H54: 700 | I54: 700 | J54: 700 | K54: 700
A55: SK | D55: 400 | E55: 600 | F55: 600 | G55: 600 | H55: 600 | I55: 600 | J55: 600 | K55: 600
A56: MB | D56: 400 | E56: 600 | F56: 600 | G56: 600 | H56: 600 | I56: 600 | J56: 600 | K56: 600
A57: ON | D57: 200 | E57: 250 | F57: 250 | G57: 300 | H57: 300 | I57: 300 | J57: 300 | K57: 300
A58: QC | D58: 300 | E58: 300 | F58: 300 | G58: 400 | H58: 400 | I58: 400 | J58: 400 | K58: 400
A59: NB | D59: 400 | E59: 500 | F59: 500 | G59: 500 | H59: 500 | I59: 500 | J59: 500 | K59: 500
A60: PE | D60: 400 | E60: 500 | F60: 500 | G60: 500 | H60: 500 | I60: 500 | J60: 500 | K60: 500
A61: NL | D61: 400 | E61: 500 | F61: 500 | G61: 500 | H61: 500 | I61: 500 | J61: 500 | K61: 500

Sheet Loader Details (hidden)
A1: Tractor Model | B1: 2/4 | C1: Version | D1: Width | E1: Note #1 | F1: Note #2 | G1: Note #3 | H1: Note #4 | I1: Loaders | J1: Loaders | K1: Loaders | L1: Loaders | M1: Loaders | N1: Loaders | O1: Loaders | P1: Loaders | Q1: Subframe | R1: Grill Guard | T1: 2 Mechanical | U1: 2 Electric | V1: 2 Hose | W1: 3 Hose | X1: X Width # | Y1: Q Width # | Z1: Conversion Kit | AA1: Cab | AB1: Rops
A2: ="" ->  | B2: ="" ->  | C2: ="" ->  | D2: ="" ->  | E2: ="" ->  | F2: ="" ->  | G2: ="" ->  | H2: ="" ->  | I2: ="" ->  | J2: ="" ->  | K2: ="" ->  | L2: ="" ->  | M2: ="" ->  | N2: ="" ->  | O2: ="" ->  | P2: ="" ->  | Q2: ="" ->  | R2: ="" ->  | S2: ="" ->  | T2: ="" ->  | U2: ="" ->  | V2: ="" ->  | W2: ="" ->  | X2: ="" ->  | Y2: ="" ->  | Z2: ="" ->  | AA2: ="" ->  | AB2: ="" ->  | AC2: ="" ->  | AD2: ="" ->  | AE2: ="" ->  | AF2: ="" ->  | AG2: ="" -> 
A3: ="" ->  | B3: ="" ->  | C3: ="" ->  | D3: ="" ->  | E3: ="" ->  | F3: ="" ->  | G3: ="" ->  | H3: ="" ->  | I3: ="" ->  | J3: ="" ->  | K3: ="" ->  | L3: ="" ->  | M3: ="" ->  | N3: ="" ->  | O3: ="" ->  | P3: ="" ->  | Q3: ="" ->  | R3: ="" ->  | S3: ="" ->  | T3: ="" ->  | U3: ="" ->  | V3: ="" ->  | W3: ="" ->  | X3: ="" ->  | Y3: ="" ->  | Z3: ="" ->  | AA3: ="" ->  | AB3: ="" ->  | AC3: ="" ->  | AD3: ="" ->  | AE3: ="" ->  | AF3: ="" ->  | AG3: ="" -> 
A4: LT75, 90 | B4: 2/4 | C4: ROPS/CAB | D4: =IF(E4=11,"US","DM") -> DM | E4: 1, | F4: ="" ->  | H4: ="" ->  | I4: X41 | J4: ="" ->  | K4: X46 | L4: ="" ->  | M4: Q4 | N4: ="" ->  | O4: Q4s | P4: ="" ->  | Q4: 14321115 | R4: ="" ->  | T4: 15013BFA | U4: ="" ->  | V4: ="" ->  | W4: ="" ->  | X4: =IF(D4="US","U","L") -> L | Y4: =IF(D4="DS","3",IF(D4="DM","4",IF(D4="US","1",IF(D4="UM","2",IF(D4="DL","3"))))) -> 4 | AA4: ="" ->  | AB4: ="" -> 
A5: LT "A" 75, 85, 90, 95 AUTO IV TIER II and III | B5: 2/4 | C5: ROPS/CAB | D5: DM | E5: 1, | F5: ="" ->  | H5: ="" ->  | I5: X41 | J5: X51 | K5: X46 | L5: X56 | M5: Q4 | N5: Q5 | O5: Q4s | P5: Q5s | Q5: 14322815 | R5: ="" ->  | T5: 15013BFA | U5: ="" ->  | V5: ="" ->  | W5: ="" ->  | X5: L | Y5: 4 | AA5: ="" ->  | AB5: ="" -> 
A6: LT "A" 75, 90 Speed Shift | B6: 2/4 | C6: ROPS/CAB | D6: DM | E6: 1, | F6: ="" ->  | H6: ="" ->  | I6: X41 | J6: X51 | K6: X46 | L6: X56 | M6: Q4 | N6: Q5 | O6: Q4s | P6: Q5s | Q6: 14322325 | R6: ="" ->  | T6: 15013BFA | U6: ="" ->  | V6: ="" ->  | W6: ="" ->  | X6: L | Y6: 4 | AA6: ="" ->  | AB6: ="" -> 
A7: RT 100, 120 Auto Quad | B7: 4 | C7: CAB | D7: DM | E7: 3, | F7: ="" ->  | G7: ="" ->  | H7: ="" ->  | I7: ="" ->  | J7: ="" ->  | K7: ="" ->  | L7: ="" ->  | M7: Q6 | N7: ="" ->  | O7: Q6m | P7: ="" ->  | Q7: 14320505 | R7: ="" ->  | T7: 15020BAA | U7: ="" ->  | V7: ="" ->  | W7: ="" ->  | X7: L | Y7: 4 | AA7: ="" ->  | AB7: ="" -> 
A8: RT 100, 120 Dyna VT | B8: 4 | C8: CAB | D8: DM | E8: 2, | F8: 3, | G8: ="" ->  | H8: ="" ->  | I8: ="" ->  | J8: ="" ->  | K8: ="" ->  | L8: ="" ->  | M8: Q6 | N8: ="" ->  | O8: Q6m | P8: ="" ->  | Q8: 14320515 | R8: ="" ->  | T8: 15020BAA | U8: ="" ->  | V8: ="" ->  | W8: ="" ->  | X8: L | Y8: 4 | AA8: ="" ->  | AB8: ="" -> 
A9: RT 135, 150 Auto Quad | B9: 4 | C9: CAB | D9: DM | E9: 3, | F9: ="" ->  | G9: ="" ->  | H9: ="" ->  | I9: ="" ->  | J9: ="" ->  | K9: ="" ->  | L9: ="" ->  | M9: ="" ->  | N9: ="" ->  | O9: Q7m | P9: ="" ->  | Q9: 14320945 | R9: ="" ->  | T9: 15020BAA | U9: ="" ->  | V9: ="" ->  | W9: ="" ->  | X9: L | Y9: 4 | AA9: ="" ->  | AB9: ="" -> 
A10: RT 135, 150 Dyna VT | B10: 4 | C10: CAB | D10: DM | E10: 2, | F10: 3, | G10: ="" ->  | H10: ="" ->  | I10: ="" ->  | J10: ="" ->  | K10: ="" ->  | L10: ="" ->  | M10: ="" ->  | N10: ="" ->  | O10: Q7m | P10: ="" ->  | Q10: 14320855 | R10: ="" ->  | T10: 15020BAA | U10: ="" ->  | V10: ="" ->  | W10: ="" ->  | X10: L | Y10: 4 | AA10: ="" ->  | AB10: ="" -> 
A11: RT "A" 100, 120 TIER 2 Auto IV | B11: 4 | C11: CAB | D11: DM | E11: 3, | F11: ="" ->  | G11: ="" ->  | H11: ="" ->  | I11: ="" ->  | J11: ="" ->  | K11: ="" ->  | L11: ="" ->  | M11: Q6 | N11: ="" ->  | O11: Q6m | P11: ="" ->  | Q11: 14322355 | R11: ="" ->  | T11: 15020BAA | U11: ="" ->  | V11: ="" ->  | W11: ="" ->  | X11: L | Y11: 4 | AA11: ="" ->  | AB11: ="" -> 
A12: RT "A" 100, 120 TIER 2 CVT | B12: 4 | C12: CAB | D12: DM | E12: 2, | F12: 3, | G12: ="" ->  | H12: ="" ->  | I12: ="" ->  | J12: ="" ->  | K12: ="" ->  | L12: ="" ->  | M12: Q6 | N12: ="" ->  | O12: Q6m | P12: ="" ->  | Q12: 14322345 | R12: ="" ->  | T12: 15020BAA | U12: ="" ->  | V12: ="" ->  | W12: ="" ->  | X12: L | Y12: 4 | AA12: ="" ->  | AB12: ="" -> 
A13: RT "A" 140, 155 TIER 2 Auto IV | B13: 4 | C13: CAB | D13: DM | E13: 3, | F13: ="" ->  | G13: ="" ->  | H13: ="" ->  | I13: ="" ->  | J13: ="" ->  | K13: ="" ->  | L13: ="" ->  | M13: ="" ->  | N13: ="" ->  | O13: Q7m | P13: ="" ->  | Q13: 14320415 | R13: ="" ->  | T13: 15020BAA | U13: ="" ->  | V13: ="" ->  | W13: ="" ->  | X13: L | Y13: 4 | AA13: ="" ->  | AB13: ="" -> 
A14: RT "A" 140, 155 TIER 2 CVT | B14: 4 | C14: CAB | D14: DM | E14: 2, | F14: 3, | G14: ="" ->  | H14: ="" ->  | I14: ="" ->  | J14: ="" ->  | K14: ="" ->  | L14: ="" ->  | M14: ="" ->  | N14: ="" ->  | O14: Q7m | P14: ="" ->  | Q14: 14320445 | R14: ="" ->  | T14: 15020BAA | U14: ="" ->  | V14: ="" ->  | W14: ="" ->  | X14: L | Y14: 4 | AA14: ="" ->  | AB14: ="" -> 
A15: RT "A" 110, 120 TIER 3 Auto VI | B15: 4 | C15: CAB | D15: DM | E15: 3, | F15: 7, | G15: ="" ->  | H15: ="" ->  | I15: ="" ->  | J15: ="" ->  | K15: ="" ->  | L15: ="" ->  | M15: Q6 | N15: ="" ->  | O15: Q6m | P15: ="" ->  | Q15: 14326235 | R15: ="" ->  | T15: 15020BAA | U15: 15015FCA | V15: ="" ->  | W15: ="" ->  | X15: L | Y15: 4 | AA15: ="" ->  | AB15: ="" -> 
A16: RT "A" 110, 120 TIER 3 CVT | B16: 4 | C16: CAB | D16: DM | E16: 3, | F16: 7, | G16: ="" ->  | H16: ="" ->  | I16: ="" ->  | J16: ="" ->  | K16: ="" ->  | L16: ="" ->  | M16: Q6 | N16: ="" ->  | O16: Q6m | P16: ="" ->  | Q16: 14326225 | R16: ="" ->  | T16: 15020BAA | U16: 15015FCA | V16: ="" ->  | W16: ="" ->  | X16: L | Y16: 4 | AA16: ="" ->  | AB16: ="" -> 
A17: RT "A" 140, 155 TIER 3 Auto VI | B17: 4 | C17: CAB | D17: DM | E17: 3, | F17: 7, | G17: ="" ->  | H17: ="" ->  | I17: ="" ->  | J17: ="" ->  | K17: ="" ->  | L17: ="" ->  | M17: ="" ->  | N17: ="" ->  | O17: Q7m | P17: ="" ->  | Q17: 14323295 | R17: ="" ->  | T17: 15020BAA | U17: 15015FCA | V17: ="" ->  | W17: ="" ->  | X17: L | Y17: 4 | AA17: ="" ->  | AB17: ="" -> 
A18: RT "A" 140, 155 TIER 3 CVT | B18: 4 | C18: CAB | D18: DM | E18: 2, | F18: 7, | G18: ="" ->  | H18: ="" ->  | I18: ="" ->  | J18: ="" ->  | K18: ="" ->  | L18: ="" ->  | M18: ="" ->  | N18: ="" ->  | O18: Q7m | P18: ="" ->  | Q18: 14325515 | R18: ="" ->  | T18: 15020BAA | U18: 15015FCA | V18: ="" ->  | W18: ="" ->  | X18: L | Y18: 4 | AA18: ="" ->  | AB18: ="" -> 
A19: RT 165A AUTO VI Tier 3 Serial # <T176049 | B19: 4 | C19: CAB | D19: DM | E19: 1, | F19: ="" ->  | G19: ="" ->  | H19: ="" ->  | I19: ="" ->  | J19: ="" ->  | K19: ="" ->  | L19: ="" ->  | M19: ="" ->  | N19: ="" ->  | O19: Q7m | P19: ="" ->  | Q19: 14322465 | R19: ="" ->  | T19: 15020BAA | U19: 15015FCA | V19: ="" ->  | W19: ="" ->  | X19: L | Y19: 4 | AA19: ="" ->  | AB19: ="" -> 
A20: RT 165A AUTO VI Tier 3 Serial # >T189041 | B20: 4 | C20: CAB | D20: DL | E20: 1, | F20: ="" ->  | G20: ="" ->  | H20: ="" ->  | I20: ="" ->  | J20: ="" ->  | K20: ="" ->  | L20: ="" ->  | M20: ="" ->  | N20: ="" ->  | O20: Q8m | P20: ="" ->  | Q20: 14330965 | R20: ="" ->  | T20: 15020BAA | U20: 15015FCA | V20: ="" ->  | W20: ="" ->  | X20: L | Y20: 3 | AA20: ="" ->  | AB20: ="" -> 
A21: RT 165A Tier 3 CVT | B21: 4 | C21: CAB | D21: DL | E21: 1, | F21: ="" ->  | G21: ="" ->  | H21: ="" ->  | I21: ="" ->  | J21: ="" ->  | K21: ="" ->  | L21: ="" ->  | M21: ="" ->  | N21: ="" ->  | O21: Q8m | P21: ="" ->  | Q21: 14331105 | R21: ="" ->  | T21: 15020BAA | U21: 15015FCA | V21: ="" ->  | W21: ="" ->  | X21: L | Y21: 3 | AA21: ="" ->  | AB21: ="" -> 
A22: RT 180A from serial # T198034 | B22: 4 | C22: CAB | D22: DL | E22: 1, | F22: ="" ->  | G22: ="" ->  | H22: ="" ->  | I22: ="" ->  | J22: ="" ->  | K22: ="" ->  | L22: ="" ->  | M22: ="" ->  | N22: ="" ->  | O22: Q8m | P22: ="" ->  | Q22: 14330965 | R22: ="" ->  | T22: 15020BAA | U22: 15015FCA | V22: ="" ->  | W22: ="" ->  | X22: L | Y22: 3 | AA22: ="" ->  | AB22: ="" -> 
A23: RT 180A Tier 3 CVT | B23: 4 | C23: CAB | D23: DL | E23: 1, | F23: ="" ->  | G23: ="" ->  | H23: ="" ->  | I23: ="" ->  | J23: ="" ->  | K23: ="" ->  | L23: ="" ->  | M23: ="" ->  | N23: ="" ->  | O23: Q8m | P23: ="" ->  | Q23: 14331105 | R23: ="" ->  | T23: 15020BAA | U23: 15015FCA | V23: ="" ->  | W23: ="" ->  | X23: L | Y23: 3 | AA23: ="" ->  | AB23: ="" -> 
A24: DT "A" 180, 200, 220, 240 | B24: 4 | C24: CAB | D24: DL | E24: 2, | F24: ="" ->  | G24: ="" ->  | H24: ="" ->  | I24: ="" ->  | J24: ="" ->  | K24: ="" ->  | L24: ="" ->  | M24: ="" ->  | N24: ="" ->  | O24: Q8m | P24: ="" ->  | Q24: 14330115 | R24: ="" ->  | T24: 15110BAA | U24: ="" ->  | V24: ="" ->  | W24: ="" ->  | X24: L | Y24: 3 | AA24: ="" ->  | AB24: ="" -> 
A25: DT "B" 205, 225, 250, 275 | B25: 4 | C25: CAB | D25: DL | E25: 8, | F25: ="" ->  | G25: ="" ->  | H25: ="" ->  | I25: ="" ->  | J25: ="" ->  | K25: ="" ->  | L25: ="" ->  | M25: ="" ->  | N25: ="" ->  | O25: Q8m | P25: ="" ->  | Q25: 14331054 | R25: ="" ->  | T25: ="" ->  | U25: 15177FCA | V25: ="" ->  | W25: ="" ->  | X25: L | Y25: 3 | AA25: ="" ->  | AB25: ="" -> 
A26: ="" ->  | B26: ="" ->  | C26: ="" ->  | D26: ="" ->  | E26: ="" ->  | F26: ="" ->  | G26: ="" ->  | H26: ="" ->  | I26: ="" ->  | J26: ="" ->  | K26: ="" ->  | L26: ="" ->  | M26: ="" ->  | N26: ="" ->  | O26: ="" ->  | P26: ="" ->  | Q26: ="" ->  | R26: ="" ->  | S26: ="" ->  | T26: ="" ->  | U26: ="" ->  | V26: ="" ->  | W26: ="" ->  | X26: ="" ->  | Y26: ="" ->  | Z26: ="" ->  | AA26: ="" ->  | AB26: ="" ->  | AC26: ="" ->  | AD26: ="" ->  | AE26: ="" ->  | AF26: ="" ->  | AG26: ="" -> 
A27: ="" ->  | B27: ="" ->  | C27: ="" ->  | D27: ="" ->  | E27: ="" ->  | F27: ="" ->  | G27: ="" ->  | H27: ="" ->  | I27: ="" ->  | J27: ="" ->  | K27: ="" ->  | L27: ="" ->  | M27: ="" ->  | N27: ="" ->  | O27: ="" ->  | P27: ="" ->  | Q27: ="" ->  | R27: ="" ->  | S27: ="" ->  | T27: ="" ->  | U27: ="" ->  | V27: ="" ->  | W27: ="" ->  | X27: ="" ->  | Y27: ="" ->  | Z27: ="" ->  | AA27: ="" ->  | AB27: ="" ->  | AC27: ="" ->  | AD27: ="" ->  | AE27: ="" ->  | AF27: ="" ->  | AG27: ="" -> 
A28: ="" ->  | B28: ="" ->  | C28: ="" ->  | D28: ="" ->  | E28: ="" ->  | F28: ="" ->  | G28: ="" ->  | H28: ="" ->  | I28: ="" ->  | J28: ="" ->  | K28: ="" ->  | L28: ="" ->  | M28: ="" ->  | N28: ="" ->  | O28: ="" ->  | P28: ="" ->  | Q28: ="" ->  | R28: ="" ->  | S28: ="" ->  | T28: ="" ->  | U28: ="" ->  | V28: ="" ->  | W28: ="" ->  | X28: ="" ->  | Y28: ="" ->  | Z28: ="" ->  | AA28: ="" ->  | AB28: ="" ->  | AC28: ="" ->  | AD28: ="" ->  | AE28: ="" ->  | AF28: ="" ->  | AG28: ="" -> 
A29: ="" ->  | B29: ="" ->  | C29: ="" ->  | D29: ="" ->  | E29: ="" ->  | F29: ="" ->  | G29: ="" ->  | H29: ="" ->  | I29: ="" ->  | J29: ="" ->  | K29: ="" ->  | L29: ="" ->  | M29: ="" ->  | N29: ="" ->  | O29: ="" ->  | P29: ="" ->  | Q29: ="" ->  | R29: ="" ->  | S29: ="" ->  | T29: ="" ->  | U29: ="" ->  | V29: ="" ->  | W29: ="" ->  | X29: ="" ->  | Y29: ="" ->  | Z29: ="" ->  | AA29: ="" ->  | AB29: ="" ->  | AC29: ="" ->  | AD29: ="" ->  | AE29: ="" ->  | AF29: ="" ->  | AG29: ="" -> 
A31: Genesis 2145, 2160, 2180, 2210 | B31: 2/4 | C31: CAB | D31: DL | E31: 99 | I31: ="" ->  | J31: ="" ->  | K31: ="" ->  | L31: ="" ->  | M31: ="" ->  | N31: ="" ->  | O31: Q8m | P31: ="" ->  | Q31: 14330135 | R31: ="" ->  | T31: 15091BAA | U31: 15091FCA | V31: ="" ->  | W31: ="" ->  | X31: L | Y31: 3 | AA31: ="" ->  | AB31: ="" -> 
A32: ="" ->  | B32: ="" ->  | C32: ="" ->  | D32: ="" ->  | E32: ="" ->  | F32: ="" ->  | G32: ="" ->  | H32: ="" ->  | I32: ="" ->  | J32: ="" ->  | K32: ="" ->  | L32: ="" ->  | M32: ="" ->  | N32: ="" ->  | O32: ="" ->  | P32: ="" ->  | Q32: ="" ->  | R32: ="" ->  | S32: ="" ->  | T32: ="" ->  | U32: ="" ->  | V32: ="" ->  | W32: ="" ->  | X32: ="" ->  | Y32: ="" ->  | Z32: ="" ->  | AA32: ="" ->  | AB32: ="" ->  | AC32: ="" ->  | AD32: ="" ->  | AE32: ="" ->  | AF32: ="" -> 
A33: D35-45 / DX35-45 / FARMALL40-50 | B33: 4 | C33: ROPS/CAB | D33: CM | E33: A2, | H33: A10, | I33: 160C | J33: ="" ->  | K33: ="" ->  | L33: ="" ->  | M33: ="" ->  | N33: ="" ->  | O33: ="" ->  | P33: ="" ->  | Q33: 14100095 | R33: 50035527 | S33: ="" ->  | T33: ="" ->  | U33: ="" ->  | V33: ="" ->  | W33: ="" ->  | X33: C | Y33: C | Z33: ="" ->  | AA33: 18001A | AB33: 18002B
A34: DX48, 55 / FARMALL 55, 60 | B34: 4 | C34: ROPS/CAB | D34: CM | E34: A1, | F34: A2, | H34: A10, | I34: 180C | J34: ="" ->  | K34: ="" ->  | L34: ="" ->  | M34: ="" ->  | N34: ="" ->  | O34: ="" ->  | P34: ="" ->  | Q34: 14100055 | R34: 14110004 | S34: ="" ->  | T34: ="" ->  | U34: ="" ->  | V34: ="" ->  | W34: ="" ->  | X34: C | Y34: C | Z34: ="" ->  | AA34: 18001A | AB34: 18002B
A35: FARMALL 30B, 35B | B35: 4 | C35: ROPS | D35: CM | E35: A2, | F35: A3, | G35: A4, | H35: A10, | I35: 140C | J35: 160C | K35: ="" ->  | L35: ="" ->  | M35: ="" ->  | N35: ="" ->  | O35: ="" ->  | P35: ="" ->  | Q35: 14100014 | R35: 50062947 | S35: ="" ->  | T35: ="" ->  | U35: ="" ->  | V35: 28001D | W35: ="" ->  | X35: C | Y35: C | Z35: ="" ->  | AA35: ="" ->  | AB35: ="" -> 
A36: FARMALL 40B, 50B | B36: 4 | C36: ROPS | D36: CM | E36: A2, | F36: A3, | G36: A4, | H36: A10, | I36: 160C | J36: ="" ->  | K36: ="" ->  | L36: ="" ->  | M36: ="" ->  | N36: ="" ->  | O36: ="" ->  | P36: ="" ->  | Q36: 14100025 | R36: 50062947 | S36: ="" ->  | T36: ="" ->  | U36: ="" ->  | V36: 28001D | W36: ="" ->  | X36: C | Y36: C | Z36: ="" ->  | AA36: ="" ->  | AB36: ="" -> 
A37: FARMALL 30A, 35A | B37: 4 | C37: ROPS | D37: CM | E37: A2, | F37: ="" ->  | G37: ="" ->  | H37: ="" ->  | I37: 130C | J37: ="" ->  | K37: ="" ->  | L37: ="" ->  | M37: ="" ->  | N37: ="" ->  | O37: ="" ->  | P37: ="" ->  | Q37: 14120324 | R37: 14110054 | S37: ="" ->  | T37: ="" ->  | U37: ="" ->  | V37: 28001D | W37: ="" ->  | X37: C | Y37: C | Z37: ="" ->  | AA37: ="" ->  | AB37: ="" ->  | AE37: ="" -> 
A38: ="" ->  | B38: ="" ->  | C38: ="" ->  | D38: ="" ->  | E38: ="" ->  | F38: ="" ->  | G38: ="" ->  | H38: ="" ->  | I38: ="" ->  | J38: ="" ->  | K38: ="" ->  | L38: ="" ->  | M38: ="" ->  | N38: ="" ->  | O38: ="" ->  | P38: ="" ->  | Q38: ="" ->  | R38: ="" ->  | S38: ="" ->  | T38: ="" ->  | U38: ="" ->  | V38: ="" ->  | W38: ="" ->  | X38: ="" ->  | Y38: ="" ->  | Z38: ="" ->  | AA38: ="" ->  | AB38: ="" ->  | AC38: ="" ->  | AD38: ="" ->  | AE38: ="" ->  | AF38: ="" -> 
A39: ="" ->  | B39: ="" ->  | C39: ="" ->  | D39: ="" ->  | E39: ="" ->  | F39: ="" ->  | G39: ="" ->  | H39: ="" ->  | I39: ="" ->  | J39: ="" ->  | K39: ="" ->  | L39: ="" ->  | M39: ="" ->  | N39: ="" ->  | O39: ="" ->  | P39: ="" ->  | Q39: ="" ->  | R39: ="" ->  | S39: ="" ->  | T39: ="" ->  | U39: ="" ->  | V39: ="" ->  | W39: ="" ->  | X39: ="" ->  | Y39: ="" ->  | Z39: ="" ->  | AA39: ="" ->  | AB39: ="" ->  | AC39: ="" ->  | AD39: ="" ->  | AE39: ="" ->  | AF39: ="" -> 
A40: ="" ->  | B40: ="" ->  | C40: ="" ->  | D40: ="" ->  | E40: ="" ->  | F40: ="" ->  | G40: ="" ->  | H40: ="" ->  | I40: ="" ->  | J40: ="" ->  | K40: ="" ->  | L40: ="" ->  | M40: ="" ->  | N40: ="" ->  | O40: ="" ->  | P40: ="" ->  | Q40: ="" ->  | R40: ="" ->  | S40: ="" ->  | T40: ="" ->  | U40: ="" ->  | V40: ="" ->  | W40: ="" ->  | X40: ="" ->  | Y40: ="" ->  | Z40: ="" ->  | AA40: ="" ->  | AB40: ="" ->  | AC40: ="" ->  | AD40: ="" ->  | AE40: ="" ->  | AF40: ="" -> 
A41: ="" ->  | B41: ="" ->  | C41: ="" ->  | D41: ="" ->  | E41: ="" ->  | F41: ="" ->  | G41: ="" ->  | H41: ="" ->  | I41: ="" ->  | J41: ="" ->  | K41: ="" ->  | L41: ="" ->  | M41: ="" ->  | N41: ="" ->  | O41: ="" ->  | P41: ="" ->  | Q41: ="" ->  | R41: ="" ->  | S41: ="" ->  | T41: ="" ->  | U41: ="" ->  | V41: ="" ->  | W41: ="" ->  | X41: ="" ->  | Y41: ="" ->  | Z41: ="" ->  | AA41: ="" ->  | AB41: ="" ->  | AC41: ="" ->  | AD41: ="" ->  | AE41: ="" ->  | AF41: ="" -> 
A42: ="" ->  | B42: ="" ->  | C42: ="" ->  | D42: ="" ->  | E42: ="" ->  | F42: ="" ->  | G42: ="" ->  | H42: ="" ->  | I42: ="" ->  | J42: ="" ->  | K42: ="" ->  | L42: ="" ->  | M42: ="" ->  | N42: ="" ->  | O42: ="" ->  | P42: ="" ->  | Q42: ="" ->  | R42: ="" ->  | S42: ="" ->  | T42: ="" ->  | U42: ="" ->  | V42: ="" ->  | W42: ="" ->  | X42: ="" ->  | Y42: ="" ->  | Z42: ="" ->  | AA42: ="" ->  | AB42: ="" ->  | AC42: ="" ->  | AD42: ="" ->  | AE42: ="" ->  | AF42: ="" -> 
A43: ="" ->  | B43: ="" ->  | C43: ="" ->  | D43: ="" ->  | E43: ="" ->  | F43: ="" ->  | G43: ="" ->  | H43: ="" ->  | I43: ="" ->  | J43: ="" ->  | K43: ="" ->  | L43: ="" ->  | M43: ="" ->  | N43: ="" ->  | O43: ="" ->  | P43: ="" ->  | Q43: ="" ->  | R43: ="" ->  | S43: ="" ->  | T43: ="" ->  | U43: ="" ->  | V43: ="" ->  | W43: ="" ->  | X43: ="" ->  | Y43: ="" ->  | Z43: ="" ->  | AA43: ="" ->  | AB43: ="" ->  | AC43: ="" ->  | AD43: ="" ->  | AE43: ="" ->  | AF43: ="" -> 
A44: ="" ->  | B44: ="" ->  | C44: ="" ->  | D44: ="" ->  | E44: ="" ->  | F44: ="" ->  | G44: ="" ->  | H44: ="" ->  | I44: ="" ->  | J44: ="" ->  | K44: ="" ->  | L44: ="" ->  | M44: ="" ->  | N44: ="" ->  | O44: ="" ->  | P44: ="" ->  | Q44: ="" ->  | R44: ="" ->  | S44: ="" ->  | T44: ="" ->  | U44: ="" ->  | V44: ="" ->  | W44: ="" ->  | X44: ="" ->  | Y44: ="" ->  | Z44: ="" ->  | AA44: ="" ->  | AB44: ="" ->  | AC44: ="" ->  | AD44: ="" ->  | AE44: ="" ->  | AF44: ="" -> 
A45: ="" ->  | B45: ="" ->  | C45: ="" ->  | D45: ="" ->  | E45: ="" ->  | F45: ="" ->  | G45: ="" ->  | H45: ="" ->  | I45: ="" ->  | J45: ="" ->  | K45: ="" ->  | L45: ="" ->  | M45: ="" ->  | N45: ="" ->  | O45: ="" ->  | P45: ="" ->  | Q45: ="" ->  | R45: ="" ->  | S45: ="" ->  | T45: ="" ->  | U45: ="" ->  | V45: ="" ->  | W45: ="" ->  | X45: ="" ->  | Y45: ="" ->  | Z45: ="" ->  | AA45: ="" ->  | AB45: ="" ->  | AC45: ="" ->  | AD45: ="" ->  | AE45: ="" ->  | AF45: ="" -> 
A46: ="" ->  | B46: ="" ->  | C46: ="" ->  | D46: ="" ->  | E46: ="" ->  | F46: ="" ->  | G46: ="" ->  | H46: ="" ->  | I46: ="" ->  | J46: ="" ->  | K46: ="" ->  | L46: ="" ->  | M46: ="" ->  | N46: ="" ->  | O46: ="" ->  | P46: ="" ->  | Q46: ="" ->  | R46: ="" ->  | S46: ="" ->  | T46: ="" ->  | U46: ="" ->  | V46: ="" ->  | W46: ="" ->  | X46: ="" ->  | Y46: ="" ->  | Z46: ="" ->  | AA46: ="" ->  | AB46: ="" ->  | AC46: ="" ->  | AD46: ="" ->  | AE46: ="" ->  | AF46: ="" -> 
A47: ="" ->  | B47: ="" ->  | C47: ="" ->  | D47: ="" ->  | E47: ="" ->  | F47: ="" ->  | G47: ="" ->  | H47: ="" ->  | I47: ="" ->  | J47: ="" ->  | K47: ="" ->  | L47: ="" ->  | M47: ="" ->  | N47: ="" ->  | O47: ="" ->  | P47: ="" ->  | Q47: ="" ->  | R47: ="" ->  | S47: ="" ->  | T47: ="" ->  | U47: ="" ->  | V47: ="" ->  | W47: ="" ->  | X47: ="" ->  | Y47: ="" ->  | Z47: ="" ->  | AA47: ="" ->  | AB47: ="" ->  | AC47: ="" ->  | AD47: ="" ->  | AE47: ="" ->  | AF47: ="" -> 
A48: ="" ->  | B48: ="" ->  | C48: ="" ->  | D48: ="" ->  | E48: ="" ->  | F48: ="" ->  | G48: ="" ->  | H48: ="" ->  | I48: ="" ->  | J48: ="" ->  | K48: ="" ->  | L48: ="" ->  | M48: ="" ->  | N48: ="" ->  | O48: ="" ->  | P48: ="" ->  | Q48: ="" ->  | R48: ="" ->  | S48: ="" ->  | T48: ="" ->  | U48: ="" ->  | V48: ="" ->  | W48: ="" ->  | X48: ="" ->  | Y48: ="" ->  | Z48: ="" ->  | AA48: ="" ->  | AB48: ="" ->  | AC48: ="" ->  | AD48: ="" ->  | AE48: ="" ->  | AF48: ="" -> 
A49: ="" ->  | B49: ="" ->  | C49: ="" ->  | D49: ="" ->  | E49: ="" ->  | F49: ="" ->  | G49: ="" ->  | H49: ="" ->  | I49: ="" ->  | J49: ="" ->  | K49: ="" ->  | L49: ="" ->  | M49: ="" ->  | N49: ="" ->  | O49: ="" ->  | P49: ="" ->  | Q49: ="" ->  | R49: ="" ->  | S49: ="" ->  | T49: ="" ->  | U49: ="" ->  | V49: ="" ->  | W49: ="" ->  | X49: ="" ->  | Y49: ="" ->  | Z49: ="" ->  | AA49: ="" ->  | AB49: ="" ->  | AC49: ="" ->  | AD49: ="" ->  | AE49: ="" ->  | AF49: ="" -> 
A50: ="" ->  | B50: ="" ->  | C50: ="" ->  | D50: ="" ->  | E50: ="" ->  | F50: ="" ->  | G50: ="" ->  | H50: ="" ->  | I50: ="" ->  | J50: ="" ->  | K50: ="" ->  | L50: ="" ->  | M50: ="" ->  | N50: ="" ->  | O50: ="" ->  | P50: ="" ->  | Q50: ="" ->  | R50: ="" ->  | S50: ="" ->  | T50: ="" ->  | U50: ="" ->  | V50: ="" ->  | W50: ="" ->  | X50: ="" ->  | Y50: ="" ->  | Z50: ="" ->  | AA50: ="" ->  | AB50: ="" ->  | AC50: ="" ->  | AD50: ="" ->  | AE50: ="" ->  | AF50: ="" -> 
A51: ="" ->  | B51: ="" ->  | C51: ="" ->  | D51: ="" ->  | E51: ="" ->  | F51: ="" ->  | G51: ="" ->  | H51: ="" ->  | I51: ="" ->  | J51: ="" ->  | K51: ="" ->  | L51: ="" ->  | M51: ="" ->  | N51: ="" ->  | O51: ="" ->  | P51: ="" ->  | Q51: ="" ->  | R51: ="" ->  | S51: ="" ->  | T51: ="" ->  | U51: ="" ->  | V51: ="" ->  | W51: ="" ->  | X51: ="" ->  | Y51: ="" ->  | Z51: ="" ->  | AA51: ="" ->  | AB51: ="" ->  | AC51: ="" ->  | AD51: ="" ->  | AE51: ="" ->  | AF51: ="" -> 
A52: ="" ->  | B52: ="" ->  | C52: ="" ->  | D52: ="" ->  | E52: ="" ->  | F52: ="" ->  | G52: ="" ->  | H52: ="" ->  | I52: ="" ->  | J52: ="" ->  | K52: ="" ->  | L52: ="" ->  | M52: ="" ->  | N52: ="" ->  | O52: ="" ->  | P52: ="" ->  | Q52: ="" ->  | R52: ="" ->  | S52: ="" ->  | T52: ="" ->  | U52: ="" ->  | V52: ="" ->  | W52: ="" ->  | X52: ="" ->  | Y52: ="" ->  | Z52: ="" ->  | AA52: ="" ->  | AB52: ="" ->  | AC52: ="" ->  | AD52: ="" ->  | AE52: ="" ->  | AF52: ="" -> 
A53: ="" ->  | B53: ="" ->  | C53: ="" ->  | D53: ="" ->  | E53: ="" ->  | F53: ="" ->  | G53: ="" ->  | H53: ="" ->  | I53: ="" ->  | J53: ="" ->  | K53: ="" ->  | L53: ="" ->  | M53: ="" ->  | N53: ="" ->  | O53: ="" ->  | P53: ="" ->  | Q53: ="" ->  | R53: ="" ->  | S53: ="" ->  | T53: ="" ->  | U53: ="" ->  | V53: ="" ->  | W53: ="" ->  | X53: ="" ->  | Y53: ="" ->  | Z53: ="" ->  | AA53: ="" ->  | AB53: ="" ->  | AC53: ="" ->  | AD53: ="" ->  | AE53: ="" ->  | AF53: ="" -> 
A54: ="" ->  | B54: ="" ->  | C54: ="" ->  | D54: ="" ->  | E54: ="" ->  | F54: ="" ->  | G54: ="" ->  | H54: ="" ->  | I54: ="" ->  | J54: ="" ->  | K54: ="" ->  | L54: ="" ->  | M54: ="" ->  | N54: ="" ->  | O54: ="" ->  | P54: ="" ->  | Q54: ="" ->  | R54: ="" ->  | S54: ="" ->  | T54: ="" ->  | U54: ="" ->  | V54: ="" ->  | W54: ="" ->  | X54: ="" ->  | Y54: ="" ->  | Z54: ="" ->  | AA54: ="" ->  | AB54: ="" ->  | AC54: ="" ->  | AD54: ="" ->  | AE54: ="" ->  | AF54: ="" -> 
A55: ="" ->  | B55: ="" ->  | C55: ="" ->  | D55: ="" ->  | E55: ="" ->  | F55: ="" ->  | G55: ="" ->  | H55: ="" ->  | I55: ="" ->  | J55: ="" ->  | K55: ="" ->  | L55: ="" ->  | M55: ="" ->  | N55: ="" ->  | O55: ="" ->  | P55: ="" ->  | Q55: ="" ->  | R55: ="" ->  | S55: ="" ->  | T55: ="" ->  | U55: ="" ->  | V55: ="" ->  | W55: ="" ->  | X55: ="" ->  | Y55: ="" ->  | Z55: ="" ->  | AA55: ="" ->  | AB55: ="" ->  | AC55: ="" ->  | AD55: ="" ->  | AE55: ="" ->  | AF55: ="" -> 
A56: ="" ->  | B56: ="" ->  | C56: ="" ->  | D56: ="" ->  | E56: ="" ->  | F56: ="" ->  | G56: ="" ->  | H56: ="" ->  | I56: ="" ->  | J56: ="" ->  | K56: ="" ->  | L56: ="" ->  | M56: ="" ->  | N56: ="" ->  | O56: ="" ->  | P56: ="" ->  | Q56: ="" ->  | R56: ="" ->  | S56: ="" ->  | T56: ="" ->  | U56: ="" ->  | V56: ="" ->  | W56: ="" ->  | X56: ="" ->  | Y56: ="" ->  | Z56: ="" ->  | AA56: ="" ->  | AB56: ="" ->  | AC56: ="" ->  | AD56: ="" ->  | AE56: ="" ->  | AF56: ="" -> 
A57: ="" ->  | B57: ="" ->  | C57: ="" ->  | D57: ="" ->  | E57: ="" ->  | F57: ="" ->  | G57: ="" ->  | H57: ="" ->  | I57: ="" ->  | J57: ="" ->  | K57: ="" ->  | L57: ="" ->  | M57: ="" ->  | N57: ="" ->  | O57: ="" ->  | P57: ="" ->  | Q57: ="" ->  | R57: ="" ->  | S57: ="" ->  | T57: ="" ->  | U57: ="" ->  | V57: ="" ->  | W57: ="" ->  | X57: ="" ->  | Y57: ="" ->  | Z57: ="" ->  | AA57: ="" ->  | AB57: ="" ->  | AC57: ="" ->  | AD57: ="" ->  | AE57: ="" ->  | AF57: ="" -> 
A58: ="" ->  | B58: ="" ->  | C58: ="" ->  | D58: ="" ->  | E58: ="" ->  | F58: ="" ->  | G58: ="" ->  | H58: ="" ->  | I58: ="" ->  | J58: ="" ->  | K58: ="" ->  | L58: ="" ->  | M58: ="" ->  | N58: ="" ->  | O58: ="" ->  | P58: ="" ->  | Q58: ="" ->  | R58: ="" ->  | S58: ="" ->  | T58: ="" ->  | U58: ="" ->  | V58: ="" ->  | W58: ="" ->  | X58: ="" ->  | Y58: ="" ->  | Z58: ="" ->  | AA58: ="" ->  | AB58: ="" ->  | AC58: ="" ->  | AD58: ="" ->  | AE58: ="" ->  | AF58: ="" -> 
A59: ="" ->  | B59: ="" ->  | C59: ="" ->  | D59: ="" ->  | E59: ="" ->  | F59: ="" ->  | G59: ="" ->  | H59: ="" ->  | I59: ="" ->  | J59: ="" ->  | K59: ="" ->  | L59: ="" ->  | M59: ="" ->  | N59: ="" ->  | O59: ="" ->  | P59: ="" ->  | Q59: ="" ->  | R59: ="" ->  | S59: ="" ->  | T59: ="" ->  | U59: ="" ->  | V59: ="" ->  | W59: ="" ->  | X59: ="" ->  | Y59: ="" ->  | Z59: ="" ->  | AA59: ="" ->  | AB59: ="" ->  | AC59: ="" ->  | AD59: ="" ->  | AE59: ="" ->  | AF59: ="" -> 
A60: ="" ->  | B60: ="" ->  | C60: ="" ->  | D60: ="" ->  | E60: ="" ->  | F60: ="" ->  | G60: ="" ->  | H60: ="" ->  | I60: ="" ->  | J60: ="" ->  | K60: ="" ->  | L60: ="" ->  | M60: ="" ->  | N60: ="" ->  | O60: ="" ->  | P60: ="" ->  | Q60: ="" ->  | R60: ="" ->  | S60: ="" ->  | T60: ="" ->  | U60: ="" ->  | V60: ="" ->  | W60: ="" ->  | X60: ="" ->  | Y60: ="" ->  | Z60: ="" ->  | AA60: ="" ->  | AB60: ="" ->  | AC60: ="" ->  | AD60: ="" ->  | AE60: ="" ->  | AF60: ="" ->  | AG60: ="" ->  | AH60: ="" ->  | AI60: ="" ->  | AJ60: ="" ->  | AK60: ="" ->  | AL60: ="" ->  | AM60: ="" -> 
A61: Farmall 65C, 75C (Turkish Built) T4A,B | B61: ="" ->  | C61: ="" ->  | D61: ="" ->  | E61: ="" ->  | F61: ="" ->  | G61: ="" ->  | H61: ="" ->  | I61: ="" ->  | J61: ="" ->  | K61: ="" ->  | L61: ="" ->  | M61: ="" ->  | N61: ="" ->  | O61: ="" ->  | P61: ="" ->  | Q61: ="" ->  | R61: ="" ->  | S61: ="" ->  | T61: ="" ->  | U61: ="" ->  | V61: ="" -> 
A62: Farmall 90C, 100C, 110C, 120C T4 | B62: ="" ->  | C62: ="" ->  | D62: ="" ->  | E62: ="" ->  | F62: ="" ->  | G62: ="" ->  | H62: ="" ->  | I62: ="" ->  | J62: ="" ->  | K62: ="" ->  | L62: ="" ->  | M62: ="" ->  | N62: ="" ->  | O62: ="" ->  | P62: ="" ->  | Q62: ="" ->  | R62: ="" ->  | S62: ="" ->  | T62: ="" ->  | U62: ="" ->  | V62: ="" -> 
A63: Farmall 50A, 60A,70A T4 | B63: ="" ->  | C63: ="" ->  | D63: ="" ->  | E63: ="" ->  | F63: ="" ->  | G63: ="" ->  | H63: ="" ->  | I63: ="" ->  | J63: ="" ->  | K63: ="" ->  | L63: ="" ->  | M63: ="" ->  | N63: ="" ->  | O63: ="" ->  | P63: ="" ->  | Q63: ="" ->  | R63: ="" ->  | S63: ="" ->  | T63: ="" ->  | U63: ="" ->  | V63: ="" -> 
A64: ="" ->  | B64: ="" ->  | C64: ="" ->  | D64: ="" ->  | E64: ="" ->  | F64: ="" ->  | G64: ="" ->  | H64: ="" ->  | I64: ="" ->  | J64: ="" ->  | K64: ="" ->  | L64: ="" ->  | M64: ="" ->  | N64: ="" ->  | O64: ="" ->  | P64: ="" ->  | Q64: ="" ->  | R64: ="" ->  | S64: ="" ->  | T64: ="" ->  | U64: ="" ->  | V64: ="" -> 
A65: Farmall 85U, 95U, 105U, 115U EP T4A | B65: ="" ->  | C65: ="" ->  | D65: ="" ->  | E65: ="" ->  | F65: ="" ->  | G65: ="" ->  | H65: ="" ->  | I65: ="" ->  | J65: ="" ->  | K65: ="" ->  | L65: ="" ->  | M65: ="" ->  | N65: ="" ->  | O65: ="" ->  | P65: ="" ->  | Q65: ="" ->  | R65: ="" ->  | S65: ="" ->  | T65: ="" ->  | U65: ="" ->  | V65: ="" -> 
A66: Farmall 110U, 120U, 105U, 115U T4B | B66: ="" ->  | C66: ="" ->  | D66: ="" ->  | E66: ="" ->  | F66: ="" ->  | G66: ="" ->  | H66: ="" ->  | I66: ="" ->  | J66: ="" ->  | K66: ="" ->  | L66: ="" ->  | M66: ="" ->  | N66: ="" ->  | O66: ="" ->  | P66: ="" ->  | Q66: ="" ->  | R66: ="" ->  | S66: ="" ->  | T66: ="" ->  | U66: ="" ->  | V66: ="" -> 
A67: Farmall 110A, 120A, 130A, 140A T4A,B | B67: ="" ->  | C67: ="" ->  | D67: ="" ->  | E67: ="" ->  | F67: ="" ->  | G67: ="" ->  | H67: ="" ->  | I67: ="" ->  | J67: ="" ->  | K67: ="" ->  | L67: ="" ->  | M67: ="" ->  | N67: ="" ->  | O67: ="" ->  | P67: ="" ->  | Q67: ="" ->  | R67: ="" ->  | S67: ="" ->  | T67: ="" ->  | U67: ="" ->  | V67: ="" -> 
A68: Maxxum 115, 125,135,145,150 T4A,B | B68: ="" ->  | C68: ="" ->  | D68: ="" ->  | E68: ="" ->  | F68: ="" ->  | G68: ="" ->  | H68: ="" ->  | I68: ="" ->  | J68: ="" ->  | K68: ="" ->  | L68: ="" ->  | M68: ="" ->  | N68: ="" ->  | O68: ="" ->  | P68: ="" ->  | Q68: ="" ->  | R68: ="" ->  | S68: ="" ->  | T68: ="" ->  | U68: ="" ->  | V68: ="" -> 
A69: Puma 150,165,185,200,220,240 T4A,B | B69: ="" ->  | C69: ="" -> 
A70: ="" ->  | B70: ="" ->  | C70: ="" ->  | D70: ="" ->  | E70: ="" ->  | F70: ="" ->  | G70: ="" ->  | H70: ="" ->  | I70: ="" ->  | J70: ="" ->  | K70: ="" ->  | L70: ="" ->  | M70: ="" ->  | N70: ="" ->  | O70: ="" ->  | P70: ="" ->  | Q70: ="" ->  | R70: ="" ->  | S70: ="" ->  | T70: ="" ->  | U70: ="" ->  | V70: ="" -> 
A71: Magnum 180, 190, 210, 225 T4 | B71: ="" ->  | C71: ="" ->  | D71: ="" ->  | E71: ="" ->  | F71: ="" ->  | G71: ="" ->  | H71: ="" ->  | I71: ="" ->  | J71: ="" ->  | K71: ="" ->  | L71: ="" ->  | M71: ="" ->  | N71: ="" ->  | O71: ="" ->  | P71: ="" ->  | Q71: ="" ->  | R71: ="" ->  | S71: ="" ->  | T71: ="" ->  | U71: ="" ->  | V71: ="" -> 
A72: Magnum 235,260,290,315,340 T4 | B72: ="" ->  | C72: ="" ->  | D72: ="" ->  | E72: ="" ->  | F72: ="" ->  | G72: ="" ->  | H72: ="" ->  | I72: ="" ->  | J72: ="" ->  | K72: ="" ->  | L72: ="" ->  | M72: ="" ->  | N72: ="" ->  | O72: ="" ->  | P72: ="" ->  | Q72: ="" ->  | R72: ="" ->  | S72: ="" ->  | T72: ="" ->  | U72: ="" ->  | V72: ="" -> 
A73: ="" ->  | B73: ="" ->  | C73: ="" ->  | D73: ="" ->  | E73: ="" ->  | F73: ="" ->  | G73: ="" ->  | H73: ="" ->  | I73: ="" ->  | J73: ="" ->  | K73: ="" ->  | L73: ="" ->  | M73: ="" ->  | N73: ="" ->  | O73: ="" ->  | P73: ="" ->  | Q73: ="" ->  | R73: ="" ->  | S73: ="" ->  | T73: ="" ->  | U73: ="" ->  | V73: ="" -> 
A74: ="" ->  | B74: ="" ->  | C74: ="" ->  | D74: ="" ->  | E74: ="" ->  | F74: ="" ->  | G74: ="" ->  | H74: ="" ->  | I74: ="" ->  | J74: ="" ->  | K74: ="" ->  | L74: ="" ->  | M74: ="" ->  | N74: ="" ->  | O74: ="" ->  | P74: ="" ->  | Q74: ="" ->  | R74: ="" ->  | S74: ="" ->  | T74: ="" ->  | U74: ="" ->  | V74: ="" -> 
A75: ="" ->  | B75: ="" ->  | C75: ="" ->  | D75: ="" ->  | E75: ="" ->  | F75: ="" ->  | G75: ="" ->  | H75: ="" ->  | I75: ="" ->  | J75: ="" ->  | K75: ="" ->  | L75: ="" ->  | M75: ="" ->  | N75: ="" ->  | O75: ="" ->  | P75: ="" ->  | Q75: ="" ->  | R75: ="" ->  | S75: ="" ->  | T75: ="" ->  | U75: ="" ->  | V75: ="" -> 
A76: ="" ->  | B76: ="" ->  | C76: ="" ->  | D76: ="" ->  | E76: ="" ->  | F76: ="" ->  | G76: ="" ->  | H76: ="" ->  | I76: ="" ->  | J76: ="" ->  | K76: ="" ->  | L76: ="" ->  | M76: ="" ->  | N76: ="" ->  | O76: ="" ->  | P76: ="" ->  | Q76: ="" ->  | R76: ="" ->  | S76: ="" ->  | T76: ="" ->  | U76: ="" ->  | V76: ="" -> 
A77: ="" ->  | B77: ="" ->  | C77: ="" ->  | D77: ="" ->  | E77: ="" ->  | F77: ="" ->  | G77: ="" ->  | H77: ="" ->  | I77: ="" ->  | J77: ="" ->  | K77: ="" ->  | L77: ="" ->  | M77: ="" ->  | N77: ="" ->  | O77: ="" ->  | P77: ="" ->  | Q77: ="" ->  | R77: ="" ->  | S77: ="" ->  | T77: ="" ->  | U77: ="" ->  | V77: ="" -> 
A78: ="" ->  | B78: ="" ->  | C78: ="" ->  | D78: ="" ->  | E78: ="" ->  | F78: ="" ->  | G78: ="" ->  | H78: ="" ->  | I78: ="" ->  | J78: ="" ->  | K78: ="" ->  | L78: ="" ->  | M78: ="" ->  | N78: ="" ->  | O78: ="" ->  | P78: ="" ->  | Q78: ="" ->  | R78: ="" ->  | S78: ="" ->  | T78: ="" ->  | U78: ="" ->  | V78: ="" -> 
A79: ="" ->  | B79: ="" ->  | C79: ="" ->  | D79: ="" ->  | E79: ="" ->  | F79: ="" ->  | G79: ="" ->  | H79: ="" ->  | I79: ="" ->  | J79: ="" ->  | K79: ="" ->  | L79: ="" ->  | M79: ="" ->  | N79: ="" ->  | O79: ="" ->  | P79: ="" ->  | Q79: ="" ->  | R79: ="" ->  | S79: ="" ->  | T79: ="" ->  | U79: ="" ->  | V79: ="" -> 
A80: ="" ->  | B80: ="" ->  | C80: ="" ->  | D80: ="" ->  | E80: ="" ->  | F80: ="" ->  | G80: ="" ->  | H80: ="" ->  | I80: ="" ->  | J80: ="" ->  | K80: ="" ->  | L80: ="" ->  | M80: ="" ->  | N80: ="" ->  | O80: ="" ->  | P80: ="" ->  | Q80: ="" ->  | R80: ="" ->  | S80: ="" ->  | T80: ="" ->  | U80: ="" ->  | V80: ="" -> 
A81: ="" ->  | B81: ="" ->  | C81: ="" ->  | D81: ="" ->  | E81: ="" ->  | F81: ="" ->  | G81: ="" ->  | H81: ="" ->  | I81: ="" ->  | J81: ="" ->  | K81: ="" ->  | L81: ="" ->  | M81: ="" ->  | N81: ="" ->  | O81: ="" ->  | P81: ="" ->  | Q81: ="" ->  | R81: ="" ->  | S81: ="" ->  | T81: ="" ->  | U81: ="" ->  | V81: ="" -> 
A82: ="" ->  | B82: ="" ->  | C82: ="" ->  | D82: ="" ->  | E82: ="" ->  | F82: ="" ->  | G82: ="" ->  | H82: ="" ->  | I82: ="" ->  | J82: ="" ->  | K82: ="" ->  | L82: ="" ->  | M82: ="" ->  | N82: ="" ->  | O82: ="" ->  | P82: ="" ->  | Q82: ="" ->  | R82: ="" ->  | S82: ="" ->  | T82: ="" ->  | U82: ="" ->  | V82: ="" -> 
A83: ="" ->  | B83: ="" ->  | C83: ="" ->  | D83: ="" ->  | E83: ="" ->  | F83: ="" ->  | G83: ="" ->  | H83: ="" ->  | I83: ="" ->  | J83: ="" ->  | K83: ="" ->  | L83: ="" ->  | M83: ="" ->  | N83: ="" ->  | O83: ="" ->  | P83: ="" ->  | Q83: ="" ->  | R83: ="" ->  | S83: ="" ->  | T83: ="" ->  | U83: ="" ->  | V83: ="" -> 
A84: ="" ->  | B84: ="" ->  | C84: ="" ->  | D84: ="" ->  | E84: ="" ->  | F84: ="" ->  | G84: ="" ->  | H84: ="" ->  | I84: ="" ->  | J84: ="" ->  | K84: ="" ->  | L84: ="" ->  | M84: ="" ->  | N84: ="" ->  | O84: ="" ->  | P84: ="" ->  | Q84: ="" ->  | R84: ="" ->  | S84: ="" ->  | T84: ="" ->  | U84: ="" ->  | V84: ="" -> 
A85: ="" ->  | B85: ="" ->  | C85: ="" ->  | D85: ="" ->  | E85: ="" ->  | F85: ="" ->  | G85: ="" ->  | H85: ="" ->  | I85: ="" ->  | J85: ="" ->  | K85: ="" ->  | L85: ="" ->  | M85: ="" ->  | N85: ="" ->  | O85: ="" ->  | P85: ="" ->  | Q85: ="" ->  | R85: ="" ->  | S85: ="" ->  | T85: ="" ->  | U85: ="" ->  | V85: ="" -> 
A86: ="" ->  | B86: ="" ->  | C86: ="" ->  | D86: ="" ->  | E86: ="" ->  | F86: ="" ->  | G86: ="" ->  | H86: ="" ->  | I86: ="" ->  | J86: ="" ->  | K86: ="" ->  | L86: ="" ->  | M86: ="" ->  | N86: ="" ->  | O86: ="" ->  | P86: ="" ->  | Q86: ="" ->  | R86: ="" ->  | S86: ="" ->  | T86: ="" ->  | U86: ="" ->  | V86: ="" -> 
A87: ="" ->  | B87: ="" ->  | C87: ="" ->  | D87: ="" ->  | E87: ="" ->  | F87: ="" ->  | G87: ="" ->  | H87: ="" ->  | I87: ="" ->  | J87: ="" ->  | K87: ="" ->  | L87: ="" ->  | M87: ="" ->  | N87: ="" ->  | O87: ="" ->  | P87: ="" ->  | Q87: ="" ->  | R87: ="" ->  | S87: ="" ->  | T87: ="" ->  | U87: ="" ->  | V87: ="" -> 
B88: ="" ->  | C88: ="" ->  | D88: ="" ->  | E88: ="" ->  | F88: ="" ->  | G88: ="" ->  | H88: ="" ->  | I88: ="" ->  | J88: ="" ->  | K88: ="" ->  | L88: ="" ->  | M88: ="" ->  | N88: ="" ->  | O88: ="" ->  | P88: ="" ->  | Q88: ="" ->  | R88: ="" ->  | S88: ="" ->  | T88: ="" ->  | U88: ="" ->  | V88: ="" ->  | W88: ="" ->  | X88: ="" ->  | Y88: ="" ->  | Z88: ="" ->  | AA88: ="" ->  | AB88: ="" ->  | AC88: ="" ->  | AD88: ="" ->  | AE88: ="" ->  | AF88: ="" -> 
A89: Farmall 45A, 55A | B89: 2/4 | C89: ROPS | D89: =IF(E89=11,"US","DM") -> DM | E89: ="" ->  | F89: ="" ->  | G89: ="" ->  | H89: ="" ->  | I89: X11 | J89: ="" ->  | K89: X16 | L89: ="" ->  | M89: ="" ->  | N89: ="" ->  | O89: ="" ->  | P89: ="" ->  | Q89: 14350314 | R89: ="" ->  | S89: ="" ->  | T89: 15541BAA | U89: ="" ->  | V89: ="" ->  | W89: ="" ->  | X89: L | Y89: 4 | Z89: ="" ->  | AA89: ="" ->  | AB89: ="" ->  | AE89: ="" ->  | AF89: ="" -> 
A90: Farmall 65A, 75A | B90: 2/4 | C90: ROPS | D90: =IF(E90=11,"US","DM") -> DM | E90: ="" ->  | F90: ="" ->  | G90: ="" ->  | H90: ="" ->  | I90: X21 | J90: ="" ->  | K90: X26 | L90: ="" ->  | M90: ="" ->  | N90: ="" ->  | O90: ="" ->  | P90: ="" ->  | Q90: 14327694 | R90: ="" ->  | S90: ="" ->  | T90: 15463BAA | U90: ="" ->  | V90: ="" ->  | W90: ="" ->  | X90: =IF(D90="US","U","L") -> L | Y90: 4 | Z90: ="" ->  | AA90: ="" ->  | AB90: ="" ->  | AE90: ="" ->  | AF90: ="" -> 
A91: JX55, 60, 65, 70 | B91: 2/4 | C91: ROPS/CAB | D91: DM | I91: X21 | J91: X31 | K91: X26 | L91: X36 | M91: ="" ->  | N91: Q3 | O91: ="" ->  | P91: Q3s | Q91: 14321295 | R91: ="" ->  | T91: 15025BAA | U91: ="" ->  | V91: ="" ->  | W91: ="" ->  | X91: L | Y91: =IF(D91="DS","3",IF(D91="DM","4",IF(D91="US","1",IF(D91="UM","2",IF(D91="DL","3"))))) -> 4 | AA91: ="" ->  | AB91: ="" -> 
A92: JX75, 80, 85, 90 | B92: 2/4 | C92: ROPS/CAB | D92: DM | I92: X31 | J92: X41 | K92: X36 | L92: X46 | M92: Q3 | N92: Q4 | O92: Q3s | P92: Q4s | Q92: 14321285 | R92: ="" ->  | T92: 15025BAA | U92: ="" ->  | V92: ="" ->  | W92: ="" ->  | X92: L | Y92: 4 | AA92: ="" ->  | AB92: ="" -> 
A93: Farmall 90, 95, JX95 | B93: 2/4 | C93: ROPS/CAB | D93: DM | E93: 94, | I93: X41 | J93: ="" ->  | K93: X46 | L93: ="" ->  | M93: Q4 | N93: ="" ->  | O93: Q4s | P93: ="" ->  | Q93: 14324725 | R93: ="" ->  | T93: 15025BAA | U93: ="" ->  | V93: ="" ->  | W93: ="" ->  | X93: L | Y93: 4 | AA93: ="" ->  | AB93: ="" -> 
A94: Farmall 65C, 75C (Straddle Jesi) | B94: 2/4 | C94: ROPS/CAB | D94: =IF(E94=11,"US","DM") -> DM | E94: D2, | I94: X21 | J94: ="" ->  | K94: X26 | L94: ="" ->  | M94: ="" ->  | N94: ="" ->  | O94: ="" ->  | P94: ="" ->  | Q94: 14323765 | R94: ="" ->  | S94: ="" ->  | T94: 15053BAA | U94: ="" ->  | V94: 10378214D | W94: ="" ->  | X94: L | Y94: 4 | AA94: ="" ->  | AB94: ="" -> 
A95: Farmall 85C, 95C (Straddle Jesi) T3 | B95: 2/4 | C95: ROPS/CAB | D95: DM | E95: D2, | I95: X21 | J95: X31 | K95: X26 | L95: X36 | M95: ="" ->  | N95: Q3 | O95: ="" ->  | P95: Q3s | Q95: 14324025 | R95: ="" ->  | S95: ="" ->  | T95: 15053BAA | U95: ="" ->  | V95: 10378214D | W95: ="" ->  | X95: L | Y95: 4 | AA95: ="" ->  | AB95: ="" -> 
A96: JX1060C, 1070C, 1075C | B96: 2/4 | C96: ROPS/CAB | D96: DM | E96: 18, | I96: X21 | J96: X31 | K96: X26 | L96: X36 | M96: ="" ->  | N96: Q3 | O96: ="" ->  | P96: Q3s | Q96: 14321994 | R96: ="" ->  | T96: 15023BAA | U96: ="" ->  | V96: 10378214D | W96: ="" ->  | X96: L | Y96: 4 | AA96: ="" ->  | AB96: ="" -> 
A97: JX1085C, 1095C | B97: 2/4 | C97: ROPS/CAB | D97: DM | I97: X21 | J97: X31 | K97: X26 | L97: X36 | M97: ="" ->  | N97: Q3 | O97: ="" ->  | P97: Q3s | Q97: 14324025 | R97: ="" ->  | T97: 15023BAA | U97: ="" ->  | V97: 10378214D | W97: ="" ->  | X97: L | Y97: 4 | AA97: ="" ->  | AB97: ="" -> 
A98: FARMALL 85U, 95U, 105U (JESI) T3 | B98: 2/4 | C98: ROPS/CAB | D98: =IF(E98=11,"US","DM") -> DM | E98: D2, | I98: X31 | J98: X41 | K98: X36 | L98: X46 | M98: Q3 | N98: Q4 | O98: Q3s | P98: Q4s | Q98: 14323955 | R98: ="" ->  | T98: 15048BAA | U98: 15019FCA | V98: 10378209D | W98: ="" ->  | X98: =IF(D98="US","U","L") -> L | Y98: =IF(D98="DS","3",IF(D98="DM","4",IF(D98="US","1",IF(D98="UM","2",IF(D98="DL","3"))))) -> 4 | AA98: ="" ->  | AB98: ="" -> 
A99: JX1080U, JX1090U, 1100U (JESI) | B99: 2/4 | C99: ROPS/CAB | D99: DM | I99: X31 | J99: X41 | K99: X36 | L99: X46 | M99: Q3 | N99: Q4 | O99: Q3s | P99: Q4s | Q99: 14323955 | R99: ="" ->  | T99: 15048BAA | U99: 15019FCA | V99: 10378209D | W99: ="" ->  | X99: L | Y99: 4 | AA99: ="" ->  | AB99: ="" -> 
A100: Farmall 70, 80 | B100: 2/4 | C100: ROPS/CAB | D100: =IF(E100=11,"US","DM") -> DM | E100: 94, | I100: X21 | J100: X31 | K100: X26 | L100: X36 | M100: ="" ->  | N100: Q3 | O100: ="" ->  | P100: Q3s | Q100: 14325845 | R100: ="" ->  | T100: 15025BAA | U100: ="" ->  | V100: ="" ->  | W100: ="" ->  | X100: =IF(D100="US","U","L") -> L | Y100: =IF(D100="DS","3",IF(D100="DM","4",IF(D100="US","1",IF(D100="UM","2",IF(D100="DL","3"))))) -> 4 | AA100: ="" ->  | AB100: ="" -> 
A101: JX70, 80, 90, 100U | B101: 2/4 | C101: ROPS/CAB | D101: DM | I101: X31 | J101: X41 | K101: X36 | L101: X46 | M101: Q3 | N101: Q4 | O101: Q3s | P101: Q4s | Q101: 14321215 | R101: ="" ->  | T101: 15048BAA | U101: 15019FCA | V101: 10378209D | W101: ="" ->  | X101: L | Y101: 4 | AA101: ="" ->  | AB101: ="" -> 
A102: MXU 100, 110 Limited | B102: 2/4 | C102: ROPS/CAB | D102: DM | I102: X41 | J102: X51 | K102: X46 | L102: X56 | M102: Q4 | N102: Q5 | O102: Q4s | P102: Q5s | Q102: 14328424 | R102: ="" ->  | T102: 15039BAA | U102: 15039FCA | V102: 10378137D | W102: 10378141M | X102: L | Y102: 4 | AA102: ="" ->  | AB102: ="" -> 
A103: MXU 115, 125, 135 Limited (Closed Center) | B103: 2/4 | C103: ROPS/CAB | D103: =IF(E103=11,"US","DM") -> DM | I103: ="" ->  | J103: ="" ->  | K103: ="" ->  | L103: ="" ->  | M103: Q5 | N103: Q6 | O103: Q5s | P103: Q6m | Q103: 14323364 | R103: ="" ->  | T103: 15039BAA | U103: 15039FCA | V103: 10378137D | W103: 10378141M | X103: =IF(D103="US","U","L") -> L | Y103: =IF(D103="DS","3",IF(D103="DM","4",IF(D103="US","1",IF(D103="UM","2",IF(D103="DL","3"))))) -> 4 | AA103: ="" ->  | AB103: ="" -> 
A104: MXU 115, 130 Value (Open Center) | B104: 2/4 | C104: ROPS/CAB | D104: DM | I104: ="" ->  | J104: ="" ->  | K104: ="" ->  | L104: ="" ->  | M104: Q5 | N104: Q6 | O104: Q5s | P104: Q6m | Q104: 14323364 | R104: ="" ->  | T104: 15018BAB | U104: 15021FCA | V104: 10378137D | W104: 10378141M | X104: L | Y104: 4 | AA104: ="" ->  | AB104: ="" -> 
A105: Maxxum 110, 120, 130 T3 | B105: 2/4 | C105: ROPS/CAB | D105: DM | I105: X41 | J105: X51 | K105: X46 | L105: X56 | M105: Q4 | N105: Q5 | O105: Q4s | P105: Q5s | Q105: 14324847 | R105: ="" ->  | T105: 15302BAB | U105: 15039FCA | V105: 10378338D | W105: 10378338M | X105: L | Y105: 4 | AA105: ="" ->  | AB105: ="" -> 
A106: Maxxum 115,125,140 T3 | B106: 2/4 | C106: ROPS/CAB | D106: =IF(E106=11,"US","DM") -> DM | I106: ="" ->  | J106: ="" ->  | K106: ="" ->  | L106: ="" ->  | M106: Q5 | N106: Q6 | O106: Q5s | P106: Q6m | Q106: 14324857 | R106: ="" ->  | T106: 15302BAB | U106: 15039FCA | V106: 10378338D | W106: 10378338M | X106: =IF(D106="US","U","L") -> L | Y106: =IF(D106="DS","3",IF(D106="DM","4",IF(D106="US","1",IF(D106="UM","2",IF(D106="DL","3"))))) -> 4 | AA106: ="" ->  | AB106: ="" -> 
A107: MX 180 - 335 | B107: 4 | C107: CAB | D107: DL | E107: 17, | I107: ="" ->  | J107: ="" ->  | K107: ="" ->  | L107: ="" ->  | M107: ="" ->  | N107: ="" ->  | O107: Q8m | P107: ="" ->  | Q107: 14331324 | R107: ="" ->  | T107: 15090BAA | U107: 15090FCA | V107: ="" ->  | W107: ="" ->  | X107: L | Y107: 3 | AA107: ="" ->  | AB107: ="" -> 
A108: Magnum 180 - 280 (Teir III) | B108: 4 | C108: CAB | D108: DL | E108: 17, | F108: 105, | I108: ="" ->  | J108: ="" ->  | K108: ="" ->  | L108: ="" ->  | M108: ="" ->  | N108: ="" ->  | O108: Q8m | P108: ="" ->  | Q108: 14331324 | R108: ="" ->  | T108: 15090BAA | U108: 15090FCA | V108: ="" ->  | W108: ="" ->  | X108: L | Y108: 3 | AA108: ="" ->  | AB108: ="" -> 
A109: 3230-4240, C70 - C100 4WD | B109: 2/4 | C109: ROPS/CAB | D109: DM | E109: 13, | F109: 10, | I109: X31 | J109: X41 | K109: X36 | L109: X46 | M109: Q3 | N109: Q4 | O109: Q3s | P109: Q4s | Q109: 14322205 | R109: ="" ->  | S109: 1 | T109: 317204 | U109: ="" ->  | V109: ="" ->  | W109: ="" ->  | X109: L | Y109: 4 | Z109: 1 | AA109: ="" ->  | AB109: ="" -> 
A110: 3230-4240, C70 - C100 2WD | B110: 2 | C110: ROPS | D110: =IF(E110=11,"US","DM") -> DM | I110: X31 | J110: ="" ->  | K110: X36 | L110: ="" ->  | M110: Q3 | N110: ="" ->  | O110: Q3s | P110: ="" ->  | Q110: 14322244 | R110: ="" ->  | S110: 1 | T110: 10317683 | U110: ="" ->  | V110: ="" ->  | W110: ="" ->  | X110: =IF(D110="US","U","L") -> L | Y110: =IF(D110="DS","3",IF(D110="DM","4",IF(D110="US","1",IF(D110="UM","2",IF(D110="DL","3"))))) -> 4 | Z110: 1 | AA110: ="" ->  | AB110: ="" -> 
A111: 685-985 AND 695-995 4WD | B111: 2/4 | C111: ROPS/CAB | D111: DM | E111: 13, | F111: 10, | I111: X31 | J111: X41 | K111: X36 | L111: X46 | M111: Q3 | N111: Q4 | O111: Q3s | P111: Q4s | Q111: 14322205 | R111: ="" ->  | S111: 1 | T111: 317204 | U111: ="" ->  | V111: ="" ->  | W111: ="" ->  | X111: L | Y111: 4 | Z111: 1 | AA111: ="" ->  | AB111: ="" -> 
A112: 685-985 AND 695-995 2WD | B112: 2 | C112: ROPS | D112: =IF(E112=11,"US","DM") -> DM | I112: X31 | J112: ="" ->  | K112: X36 | L112: ="" ->  | M112: Q3 | N112: ="" ->  | O112: Q3s | P112: ="" ->  | Q112: 14322244 | R112: ="" ->  | S112: 1 | T112: 10317683 | U112: ="" ->  | V112: ="" ->  | W112: ="" ->  | X112: =IF(D112="US","U","L") -> L | Y112: =IF(D112="DS","3",IF(D112="DM","4",IF(D112="US","1",IF(D112="UM","2",IF(D112="DL","3"))))) -> 4 | Z112: 1 | AA112: ="" ->  | AB112: ="" -> 
A113: CX70, 80, 90, 100 | B113: 2/4 | C113: ROPS/CAB | D113: DM | I113: X31 | J113: X41 | K113: X36 | L113: X46 | M113: Q3 | N113: Q4 | O113: Q3s | P113: Q4s | Q113: 14322675 | R113: ="" ->  | T113: 15040BAA | U113: 15040FCA | V113: ="" ->  | W113: ="" ->  | X113: L | Y113: 4 | AA113: ="" ->  | AB113: ="" -> 
A114: 5130 - 5250 6 Cylinder | B114: 2/4 | C114: ROPS/CAB | D114: DM | I114: ="" ->  | J114: ="" ->  | K114: ="" ->  | L114: ="" ->  | M114: Q5 | N114: Q6 | O114: Q5s | P114: Q6m | Q114: 14320144 | R114: ="" ->  | T114: 15054BAC | U114: ="" ->  | V114: ="" ->  | W114: ="" ->  | X114: L | Y114: 4 | AA114: ="" ->  | AB114: ="" -> 
A115: MX80C - 100C | B115: 4 | C115: ROPS/CAB | D115: DM | E115: 14, | I115: X41 | J115: X51 | K115: X46 | L115: X56 | M115: Q4 | N115: Q5 | O115: Q4s | P115: Q5s | Q115: 14320164 | R115: ="" ->  | T115: 15044BAA | U115: 15044FCA | V115: ="" ->  | W115: ="" ->  | X115: L | Y115: 4 | AA115: ="" ->  | AB115: ="" -> 
A116: ="" ->  | B116: ="" ->  | C116: ="" ->  | D116: ="" ->  | E116: ="" ->  | F116: ="" ->  | G116: ="" ->  | H116: ="" ->  | I116: ="" ->  | J116: ="" ->  | K116: ="" ->  | L116: ="" ->  | M116: ="" ->  | N116: ="" ->  | O116: ="" ->  | P116: ="" ->  | Q116: ="" ->  | R116: ="" ->  | S116: ="" ->  | T116: ="" ->  | U116: ="" ->  | V116: ="" ->  | W116: ="" ->  | X116: ="" ->  | Y116: ="" ->  | Z116: ="" ->  | AA116: ="" ->  | AB116: ="" ->  | AC116: ="" ->  | AD116: ="" ->  | AE116: ="" ->  | AF116: ="" ->  | AG116: ="" ->  | AH116: ="" ->  | AI116: ="" ->  | AJ116: ="" ->  | AK116: ="" ->  | AL116: ="" ->  | AM116: ="" ->  | AN116: ="" ->  | AO116: ="" ->  | AP116: ="" ->  | AQ116: ="" ->  | AR116: ="" ->  | AS116: ="" ->  | AT116: ="" ->  | AU116: ="" ->  | AV116: ="" ->  | AW116: ="" ->  | AX116: ="" ->  | AY116: ="" ->  | AZ116: ="" ->  | BA116: ="" ->  | BB116: ="" ->  | BC116: ="" ->  | BD116: ="" ->  | BE116: ="" ->  | BF116: ="" ->  | BG116: ="" ->  | BH116: ="" -> 
A117: MX100-135 | B117: 2/4 | C117: ROPS/CAB | D117: DM | E117: 14, | I117: ="" ->  | J117: ="" ->  | K117: ="" ->  | L117: ="" ->  | M117: Q6 | N117: ="" ->  | O117: Q6m | P117: Q7m | Q117: 14320044 | R117: ="" ->  | T117: 15044BAA | U117: 15044FCA | V117: ="" ->  | W117: ="" ->  | X117: L | Y117: 4 | AA117: ="" ->  | AB117: ="" -> 
A118: MX150-170 | B118: 2/4 | C118: ROPS/CAB | D118: DM | E118: 14, | I118: ="" ->  | J118: ="" ->  | K118: ="" ->  | L118: ="" ->  | M118: ="" ->  | N118: ="" ->  | O118: Q7m | P118: ="" ->  | Q118: 14320044 | R118: ="" ->  | T118: 15044BAA | U118: 15044FCA | V118: ="" ->  | W118: ="" ->  | X118: L | Y118: 4 | AA118: ="" ->  | AB118: ="" -> 
A119: MXM 130, 140 Value (Open Center) | B119: 2/4 | C119: ROPS/CAB | D119: DM | E119: 100, | I119: ="" ->  | J119: ="" ->  | K119: ="" ->  | L119: ="" ->  | M119: Q6 | N119: ="" ->  | O119: Q6m | P119: ="" ->  | Q119: 14322834 | R119: ="" ->  | T119: 15089BAA | U119: ="" ->  | V119: 10378137D | W119: 10378141M | X119: L | Y119: 4 | AA119: ="" ->  | AB119: ="" -> 
A120: MXM 120, 130, 140, 155 Pro (Closed Center) | B120: 2/4 | C120: ROPS/CAB | D120: DM | E120: 100, | I120: ="" ->  | J120: ="" ->  | K120: ="" ->  | L120: ="" ->  | M120: Q6 | N120: ="" ->  | O120: Q6m | P120: ="" ->  | Q120: 14322834 | R120: ="" ->  | T120: 15052BAA | U120: 15052FCA | V120: 10378137D | W120: 10378141M | X120: L | Y120: 4 | AA120: ="" ->  | AB120: ="" -> 
A121: MXM 175, 190 Pro | B121: 2/4 | C121: ROPS/CAB | D121: DM | E121: 100, | I121: ="" ->  | J121: ="" ->  | K121: ="" ->  | L121: ="" ->  | M121: ="" ->  | N121: ="" ->  | O121: Q7m | P121: ="" ->  | Q121: 14322834 | R121: ="" ->  | T121: 15052BAA | U121: 15052FCA | V121: 10378137D | W121: 10378141M | X121: L | Y121: 4 | AA121: ="" ->  | AB121: ="" -> 
A122: Magnum 7110 - 7150 / 7210 - 7250 / 8910 - 8950 | B122: 2/4 | C122: CAB | D122: DL | I122: ="" ->  | J122: ="" ->  | K122: ="" ->  | L122: ="" ->  | M122: ="" ->  | N122: ="" ->  | O122: Q8m | P122: ="" ->  | Q122: 14330924 | R122: ="" ->  | T122: 15079BAA | U122: 15079FCA | V122: ="" ->  | W122: ="" ->  | X122: L | Y122: 3 | AA122: ="" ->  | AB122: ="" -> 
A123: 5120' | B123: 2/4 | C123: ROPS/CAB | D123: DM | I123: X41 | J123: ="" ->  | K123: X46 | L123: ="" ->  | M123: Q4 | N123: ="" ->  | O123: Q4s | P123: ="" ->  | Q123: 14326114 | R123: ="" ->  | T123: 15054BAC | U123: ="" ->  | V123: ="" ->  | W123: ="" ->  | X123: L | Y123: 4 | AA123: ="" ->  | AB123: ="" -> 
A124: ="" ->  | B124: ="" ->  | C124: ="" ->  | D124: ="" ->  | E124: ="" ->  | F124: ="" ->  | G124: ="" ->  | H124: ="" ->  | I124: ="" ->  | J124: ="" ->  | K124: ="" ->  | L124: ="" ->  | M124: ="" ->  | N124: ="" ->  | O124: ="" ->  | P124: ="" ->  | Q124: ="" ->  | R124: ="" ->  | S124: ="" ->  | T124: ="" ->  | U124: ="" ->  | V124: ="" ->  | W124: ="" ->  | X124: ="" ->  | Y124: ="" ->  | Z124: ="" ->  | AA124: ="" ->  | AB124: ="" ->  | AC124: ="" ->  | AD124: ="" ->  | AE124: ="" ->  | AF124: ="" ->  | AG124: ="" ->  | AH124: ="" ->  | AI124: ="" ->  | AJ124: ="" ->  | AK124: ="" -> 
A125: ="" ->  | B125: ="" ->  | C125: ="" ->  | D125: ="" ->  | E125: ="" ->  | F125: ="" ->  | G125: ="" ->  | H125: ="" ->  | I125: ="" ->  | J125: ="" ->  | K125: ="" ->  | L125: ="" ->  | M125: ="" ->  | N125: ="" ->  | O125: ="" ->  | P125: ="" ->  | Q125: ="" ->  | R125: ="" ->  | S125: ="" ->  | T125: ="" ->  | U125: ="" ->  | V125: ="" ->  | W125: ="" ->  | X125: ="" ->  | Y125: ="" ->  | Z125: ="" ->  | AA125: ="" ->  | AB125: ="" ->  | AC125: ="" ->  | AD125: ="" ->  | AE125: ="" ->  | AF125: ="" ->  | AG125: ="" ->  | AH125: ="" ->  | AI125: ="" ->  | AJ125: ="" ->  | AK125: ="" -> 
A126: ="" ->  | B126: ="" ->  | C126: ="" ->  | D126: ="" ->  | E126: ="" ->  | F126: ="" ->  | G126: ="" ->  | H126: ="" ->  | I126: ="" ->  | J126: ="" ->  | K126: ="" ->  | L126: ="" ->  | M126: ="" ->  | N126: ="" ->  | O126: ="" ->  | P126: ="" ->  | Q126: ="" ->  | R126: ="" ->  | S126: ="" ->  | T126: ="" ->  | U126: ="" ->  | V126: ="" ->  | W126: ="" ->  | X126: ="" ->  | Y126: ="" ->  | Z126: ="" ->  | AA126: ="" ->  | AB126: ="" ->  | AC126: ="" ->  | AD126: ="" ->  | AE126: ="" ->  | AF126: ="" ->  | AG126: ="" ->  | AH126: ="" ->  | AI126: ="" ->  | AJ126: ="" ->  | AK126: ="" -> 
A127: ="" ->  | B127: ="" ->  | C127: ="" ->  | D127: ="" ->  | E127: ="" ->  | F127: ="" ->  | G127: ="" ->  | H127: ="" ->  | I127: ="" ->  | J127: ="" ->  | K127: ="" ->  | L127: ="" ->  | M127: ="" ->  | N127: ="" ->  | O127: ="" ->  | P127: ="" ->  | Q127: ="" ->  | R127: ="" ->  | S127: ="" ->  | T127: ="" ->  | U127: ="" ->  | V127: ="" ->  | W127: ="" ->  | X127: ="" ->  | Y127: ="" ->  | Z127: ="" ->  | AA127: ="" ->  | AB127: ="" ->  | AC127: ="" ->  | AD127: ="" ->  | AE127: ="" ->  | AF127: ="" ->  | AG127: ="" ->  | AH127: ="" ->  | AI127: ="" ->  | AJ127: ="" ->  | AK127: ="" -> 
A128: ="" ->  | B128: ="" ->  | C128: ="" ->  | D128: ="" ->  | E128: ="" ->  | F128: ="" ->  | G128: ="" ->  | H128: ="" ->  | I128: ="" ->  | J128: ="" ->  | K128: ="" ->  | L128: ="" ->  | M128: ="" ->  | N128: ="" ->  | O128: ="" ->  | P128: ="" ->  | Q128: ="" ->  | R128: ="" ->  | S128: ="" ->  | T128: ="" ->  | U128: ="" ->  | V128: ="" ->  | W128: ="" ->  | X128: ="" ->  | Y128: ="" ->  | Z128: ="" ->  | AA128: ="" ->  | AB128: ="" ->  | AC128: ="" ->  | AD128: ="" ->  | AE128: ="" ->  | AF128: ="" ->  | AG128: ="" ->  | AH128: ="" ->  | AI128: ="" ->  | AJ128: ="" ->  | AK128: ="" -> 
A129: ="" ->  | B129: ="" ->  | C129: ="" ->  | D129: ="" ->  | E129: ="" ->  | F129: ="" ->  | G129: ="" ->  | H129: ="" ->  | I129: ="" ->  | J129: ="" ->  | K129: ="" ->  | L129: ="" ->  | M129: ="" ->  | N129: ="" ->  | O129: ="" ->  | P129: ="" ->  | Q129: ="" ->  | R129: ="" ->  | S129: ="" ->  | T129: ="" ->  | U129: ="" ->  | V129: ="" ->  | W129: ="" ->  | X129: ="" ->  | Y129: ="" ->  | Z129: ="" ->  | AA129: ="" ->  | AB129: ="" ->  | AC129: ="" ->  | AD129: ="" ->  | AE129: ="" ->  | AF129: ="" ->  | AG129: ="" ->  | AH129: ="" ->  | AI129: ="" ->  | AJ129: ="" ->  | AK129: ="" -> 
A130: ="" ->  | B130: ="" ->  | C130: ="" ->  | D130: ="" ->  | E130: ="" ->  | F130: ="" ->  | G130: ="" ->  | H130: ="" ->  | I130: ="" ->  | J130: ="" ->  | K130: ="" ->  | L130: ="" ->  | M130: ="" ->  | N130: ="" ->  | O130: ="" ->  | P130: ="" ->  | Q130: ="" ->  | R130: ="" ->  | S130: ="" ->  | T130: ="" ->  | U130: ="" ->  | V130: ="" ->  | W130: ="" ->  | X130: ="" ->  | Y130: ="" ->  | Z130: ="" ->  | AA130: ="" ->  | AB130: ="" ->  | AC130: ="" ->  | AD130: ="" ->  | AE130: ="" ->  | AF130: ="" ->  | AG130: ="" ->  | AH130: ="" ->  | AI130: ="" ->  | AJ130: ="" ->  | AK130: ="" -> 
A131: ="" ->  | B131: ="" ->  | C131: ="" ->  | D131: ="" ->  | E131: ="" ->  | F131: ="" ->  | G131: ="" ->  | H131: ="" ->  | I131: ="" ->  | J131: ="" ->  | K131: ="" ->  | L131: ="" ->  | M131: ="" ->  | N131: ="" ->  | O131: ="" ->  | P131: ="" ->  | Q131: ="" ->  | R131: ="" ->  | S131: ="" ->  | T131: ="" ->  | U131: ="" ->  | V131: ="" ->  | W131: ="" ->  | X131: ="" ->  | Y131: ="" ->  | Z131: ="" ->  | AA131: ="" ->  | AB131: ="" ->  | AC131: ="" ->  | AD131: ="" ->  | AE131: ="" ->  | AF131: ="" ->  | AG131: ="" ->  | AH131: ="" ->  | AI131: ="" ->  | AJ131: ="" ->  | AK131: ="" -> 
A132: ="" ->  | B132: ="" ->  | C132: ="" ->  | D132: ="" ->  | E132: ="" ->  | F132: ="" ->  | G132: ="" ->  | H132: ="" ->  | I132: ="" ->  | J132: ="" ->  | K132: ="" ->  | L132: ="" ->  | M132: ="" ->  | N132: ="" ->  | O132: ="" ->  | P132: ="" ->  | Q132: ="" ->  | R132: ="" ->  | S132: ="" ->  | T132: ="" ->  | U132: ="" ->  | V132: ="" ->  | W132: ="" ->  | X132: ="" ->  | Y132: ="" ->  | Z132: ="" ->  | AA132: ="" ->  | AB132: ="" ->  | AC132: ="" ->  | AD132: ="" ->  | AE132: ="" ->  | AF132: ="" ->  | AG132: ="" ->  | AH132: ="" ->  | AI132: ="" ->  | AJ132: ="" ->  | AK132: ="" -> 
A133: ="" ->  | B133: ="" ->  | C133: ="" ->  | D133: ="" ->  | E133: ="" ->  | F133: ="" ->  | G133: ="" ->  | H133: ="" ->  | I133: ="" ->  | J133: ="" ->  | K133: ="" ->  | L133: ="" ->  | M133: ="" ->  | N133: ="" ->  | O133: ="" ->  | P133: ="" ->  | Q133: ="" ->  | R133: ="" ->  | S133: ="" ->  | T133: ="" ->  | U133: ="" ->  | V133: ="" ->  | W133: ="" ->  | X133: ="" ->  | Y133: ="" ->  | Z133: ="" ->  | AA133: ="" ->  | AB133: ="" ->  | AC133: ="" ->  | AD133: ="" ->  | AE133: ="" ->  | AF133: ="" ->  | AG133: ="" ->  | AH133: ="" ->  | AI133: ="" ->  | AJ133: ="" ->  | AK133: ="" -> 
A134: ="" ->  | B134: ="" ->  | C134: ="" ->  | D134: ="" ->  | E134: ="" ->  | F134: ="" ->  | G134: ="" ->  | H134: ="" ->  | I134: ="" ->  | J134: ="" ->  | K134: ="" ->  | L134: ="" ->  | M134: ="" ->  | N134: ="" ->  | O134: ="" ->  | P134: ="" ->  | Q134: ="" ->  | R134: ="" ->  | S134: ="" ->  | T134: ="" ->  | U134: ="" ->  | V134: ="" ->  | W134: ="" ->  | X134: ="" ->  | Y134: ="" ->  | Z134: ="" ->  | AA134: ="" ->  | AB134: ="" ->  | AC134: ="" ->  | AD134: ="" ->  | AE134: ="" ->  | AF134: ="" ->  | AG134: ="" ->  | AH134: ="" ->  | AI134: ="" ->  | AJ134: ="" ->  | AK134: ="" -> 
A135: ="" ->  | B135: ="" ->  | C135: ="" ->  | D135: ="" ->  | E135: ="" ->  | F135: ="" ->  | G135: ="" ->  | H135: ="" ->  | I135: ="" ->  | J135: ="" ->  | K135: ="" ->  | L135: ="" ->  | M135: ="" ->  | N135: ="" ->  | O135: ="" ->  | P135: ="" ->  | Q135: ="" ->  | R135: ="" ->  | S135: ="" ->  | T135: ="" ->  | U135: ="" ->  | V135: ="" ->  | W135: ="" ->  | X135: ="" ->  | Y135: ="" ->  | Z135: ="" ->  | AA135: ="" ->  | AB135: ="" ->  | AC135: ="" ->  | AD135: ="" ->  | AE135: ="" ->  | AF135: ="" ->  | AG135: ="" ->  | AH135: ="" ->  | AI135: ="" ->  | AJ135: ="" ->  | AK135: ="" -> 
A136: ="" ->  | B136: ="" ->  | C136: ="" ->  | D136: ="" ->  | E136: ="" ->  | F136: ="" ->  | G136: ="" ->  | H136: ="" ->  | I136: ="" ->  | J136: ="" ->  | K136: ="" ->  | L136: ="" ->  | M136: ="" ->  | N136: ="" ->  | O136: ="" ->  | P136: ="" ->  | Q136: ="" ->  | R136: ="" ->  | S136: ="" ->  | T136: ="" ->  | U136: ="" ->  | V136: ="" ->  | W136: ="" ->  | X136: ="" ->  | Y136: ="" ->  | Z136: ="" ->  | AA136: ="" ->  | AB136: ="" ->  | AC136: ="" ->  | AD136: ="" ->  | AE136: ="" ->  | AF136: ="" ->  | AG136: ="" ->  | AH136: ="" ->  | AI136: ="" ->  | AJ136: ="" ->  | AK136: ="" -> 
A137: ="" ->  | B137: ="" ->  | C137: ="" ->  | D137: ="" ->  | E137: ="" ->  | F137: ="" ->  | G137: ="" ->  | H137: ="" ->  | I137: ="" ->  | J137: ="" ->  | K137: ="" ->  | L137: ="" ->  | M137: ="" ->  | N137: ="" ->  | O137: ="" ->  | P137: ="" ->  | Q137: ="" ->  | R137: ="" ->  | S137: ="" ->  | T137: ="" ->  | U137: ="" ->  | V137: ="" ->  | W137: ="" ->  | X137: ="" ->  | Y137: ="" ->  | Z137: ="" ->  | AA137: ="" ->  | AB137: ="" ->  | AC137: ="" ->  | AD137: ="" ->  | AE137: ="" ->  | AF137: ="" ->  | AG137: ="" ->  | AH137: ="" ->  | AI137: ="" ->  | AJ137: ="" ->  | AK137: ="" -> 
A138: ="" ->  | B138: ="" ->  | C138: ="" ->  | D138: ="" ->  | E138: ="" ->  | F138: ="" ->  | G138: ="" ->  | H138: ="" ->  | I138: ="" ->  | J138: ="" ->  | K138: ="" ->  | L138: ="" ->  | M138: ="" ->  | N138: ="" ->  | O138: ="" ->  | P138: ="" ->  | Q138: ="" ->  | R138: ="" ->  | S138: ="" ->  | T138: ="" ->  | U138: ="" ->  | V138: ="" ->  | W138: ="" ->  | X138: ="" ->  | Y138: ="" ->  | Z138: ="" ->  | AA138: ="" ->  | AB138: ="" ->  | AC138: ="" ->  | AD138: ="" ->  | AE138: ="" ->  | AF138: ="" ->  | AG138: ="" ->  | AH138: ="" ->  | AI138: ="" ->  | AJ138: ="" ->  | AK138: ="" -> 
A139: ="" ->  | B139: ="" ->  | C139: ="" ->  | D139: ="" ->  | E139: ="" ->  | F139: ="" ->  | G139: ="" ->  | H139: ="" ->  | I139: ="" ->  | J139: ="" ->  | K139: ="" ->  | L139: ="" ->  | M139: ="" ->  | N139: ="" ->  | O139: ="" ->  | P139: ="" ->  | Q139: ="" ->  | R139: ="" ->  | S139: ="" ->  | T139: ="" ->  | U139: ="" ->  | V139: ="" ->  | W139: ="" ->  | X139: ="" ->  | Y139: ="" ->  | Z139: ="" ->  | AA139: ="" ->  | AB139: ="" ->  | AC139: ="" ->  | AD139: ="" ->  | AE139: ="" ->  | AF139: ="" ->  | AG139: ="" ->  | AH139: ="" ->  | AI139: ="" ->  | AJ139: ="" ->  | AK139: ="" -> 
A140: ="" ->  | B140: ="" ->  | C140: ="" ->  | D140: ="" ->  | E140: ="" ->  | F140: ="" ->  | G140: ="" ->  | H140: ="" ->  | I140: ="" ->  | J140: ="" ->  | K140: ="" ->  | L140: ="" ->  | M140: ="" ->  | N140: ="" ->  | O140: ="" ->  | P140: ="" ->  | Q140: ="" ->  | R140: ="" ->  | S140: ="" ->  | T140: ="" ->  | U140: ="" ->  | V140: ="" ->  | W140: ="" ->  | X140: ="" ->  | Y140: ="" ->  | Z140: ="" ->  | AA140: ="" ->  | AB140: ="" ->  | AC140: ="" ->  | AD140: ="" ->  | AE140: ="" ->  | AF140: ="" ->  | AG140: ="" ->  | AH140: ="" ->  | AI140: ="" ->  | AJ140: ="" ->  | AK140: ="" -> 
A141: ="" ->  | B141: ="" ->  | C141: ="" ->  | D141: ="" ->  | E141: ="" ->  | F141: ="" ->  | G141: ="" ->  | H141: ="" ->  | I141: ="" ->  | J141: ="" ->  | K141: ="" ->  | L141: ="" ->  | M141: ="" ->  | N141: ="" ->  | O141: ="" ->  | P141: ="" ->  | Q141: ="" ->  | R141: ="" ->  | S141: ="" ->  | T141: ="" ->  | U141: ="" ->  | V141: ="" ->  | W141: ="" ->  | X141: ="" ->  | Y141: ="" ->  | Z141: ="" ->  | AA141: ="" ->  | AB141: ="" ->  | AC141: ="" ->  | AD141: ="" ->  | AE141: ="" ->  | AF141: ="" ->  | AG141: ="" ->  | AH141: ="" ->  | AI141: ="" ->  | AJ141: ="" ->  | AK141: ="" -> 
A142: ="" ->  | B142: ="" ->  | C142: ="" ->  | D142: ="" ->  | E142: ="" ->  | F142: ="" ->  | G142: ="" ->  | H142: ="" ->  | I142: ="" ->  | J142: ="" ->  | K142: ="" ->  | L142: ="" ->  | M142: ="" ->  | N142: ="" ->  | O142: ="" ->  | P142: ="" ->  | Q142: ="" ->  | R142: ="" ->  | S142: ="" ->  | T142: ="" ->  | U142: ="" ->  | V142: ="" ->  | W142: ="" ->  | X142: ="" ->  | Y142: ="" ->  | Z142: ="" ->  | AA142: ="" ->  | AB142: ="" ->  | AC142: ="" ->  | AD142: ="" ->  | AE142: ="" ->  | AF142: ="" ->  | AG142: ="" ->  | AH142: ="" ->  | AI142: ="" ->  | AJ142: ="" ->  | AK142: ="" -> 
A143: ="" ->  | B143: ="" ->  | C143: ="" ->  | D143: ="" ->  | E143: ="" ->  | F143: ="" ->  | G143: ="" ->  | H143: ="" ->  | I143: ="" ->  | J143: ="" ->  | K143: ="" ->  | L143: ="" ->  | M143: ="" ->  | N143: ="" ->  | O143: ="" ->  | P143: ="" ->  | Q143: ="" ->  | R143: ="" ->  | S143: ="" ->  | T143: ="" ->  | U143: ="" ->  | V143: ="" ->  | W143: ="" ->  | X143: ="" ->  | Y143: ="" ->  | Z143: ="" ->  | AA143: ="" ->  | AB143: ="" ->  | AC143: ="" ->  | AD143: ="" ->  | AE143: ="" ->  | AF143: ="" ->  | AG143: ="" ->  | AH143: ="" ->  | AI143: ="" ->  | AJ143: ="" ->  | AK143: ="" -> 
A144: ="" ->  | B144: ="" ->  | C144: ="" ->  | D144: ="" ->  | E144: ="" ->  | F144: ="" ->  | G144: ="" ->  | H144: ="" ->  | I144: ="" ->  | J144: ="" ->  | K144: ="" ->  | L144: ="" ->  | M144: ="" ->  | N144: ="" ->  | O144: ="" ->  | P144: ="" ->  | Q144: ="" ->  | R144: ="" ->  | S144: ="" ->  | T144: ="" ->  | U144: ="" ->  | V144: ="" ->  | W144: ="" ->  | X144: ="" ->  | Y144: ="" ->  | Z144: ="" ->  | AA144: ="" ->  | AB144: ="" ->  | AC144: ="" ->  | AD144: ="" -> 
A145: MT455D,465D,475D,485D,495D | B145: ="" ->  | C145: ="" ->  | D145: ="" ->  | E145: ="" ->  | F145: ="" ->  | G145: ="" ->  | H145: ="" ->  | I145: ="" ->  | J145: ="" ->  | K145: ="" ->  | L145: ="" ->  | M145: ="" ->  | N145: ="" ->  | O145: ="" ->  | P145: ="" ->  | Q145: ="" ->  | R145: ="" ->  | S145: ="" ->  | T145: ="" ->  | U145: ="" ->  | V145: ="" ->  | W145: ="" ->  | X145: ="" ->  | Y145: ="" ->  | Z145: ="" ->  | AA145: ="" ->  | AB145: ="" ->  | AC145: ="" ->  | AD145: ="" -> 
A146: MT455E,465E,475E,485E,495E | B146: ="" ->  | C146: ="" ->  | D146: ="" ->  | E146: ="" ->  | F146: ="" ->  | G146: ="" ->  | H146: ="" ->  | I146: ="" ->  | J146: ="" ->  | K146: ="" ->  | L146: ="" ->  | M146: ="" ->  | N146: ="" ->  | O146: ="" ->  | P146: ="" ->  | Q146: ="" ->  | R146: ="" ->  | S146: ="" ->  | T146: ="" ->  | U146: ="" ->  | V146: ="" ->  | W146: ="" ->  | X146: ="" ->  | Y146: ="" ->  | Z146: ="" ->  | AA146: ="" ->  | AB146: ="" ->  | AC146: ="" ->  | AD146: ="" -> 
A147: MT525D - MT595D | B147: ="" ->  | C147: ="" ->  | D147: ="" ->  | E147: ="" ->  | F147: ="" ->  | G147: ="" ->  | H147: ="" ->  | I147: ="" ->  | J147: ="" ->  | K147: ="" ->  | L147: ="" ->  | M147: ="" ->  | N147: ="" ->  | O147: ="" ->  | P147: ="" ->  | Q147: ="" ->  | R147: ="" ->  | S147: ="" ->  | T147: ="" ->  | U147: ="" ->  | V147: ="" ->  | W147: ="" ->  | X147: ="" ->  | Y147: ="" ->  | Z147: ="" ->  | AA147: ="" ->  | AB147: ="" ->  | AC147: ="" ->  | AD147: ="" -> 
A148: MT515E - MT595E | B148: ="" ->  | C148: ="" ->  | D148: ="" ->  | E148: ="" ->  | F148: ="" ->  | G148: ="" ->  | H148: ="" ->  | I148: ="" ->  | J148: ="" ->  | K148: ="" ->  | L148: ="" ->  | M148: ="" ->  | N148: ="" ->  | O148: ="" ->  | P148: ="" ->  | Q148: ="" ->  | R148: ="" ->  | S148: ="" ->  | T148: ="" ->  | U148: ="" ->  | V148: ="" ->  | W148: ="" ->  | X148: ="" ->  | Y148: ="" ->  | Z148: ="" ->  | AA148: ="" ->  | AB148: ="" ->  | AC148: ="" ->  | AD148: ="" -> 
A149: MT645C - MT675C | B149: ="" ->  | C149: ="" ->  | D149: ="" ->  | E149: ="" ->  | F149: ="" ->  | G149: ="" ->  | H149: ="" ->  | I149: ="" ->  | J149: ="" ->  | K149: ="" ->  | L149: ="" ->  | M149: ="" ->  | N149: ="" ->  | O149: ="" ->  | P149: ="" ->  | Q149: ="" ->  | R149: ="" ->  | S149: ="" ->  | T149: ="" ->  | U149: ="" ->  | V149: ="" ->  | W149: ="" ->  | X149: ="" ->  | Y149: ="" ->  | Z149: ="" ->  | AA149: ="" ->  | AB149: ="" ->  | AC149: ="" ->  | AD149: ="" -> 
A150: MT645D - MT675D | B150: ="" ->  | C150: ="" ->  | D150: ="" ->  | E150: ="" ->  | F150: ="" ->  | G150: ="" ->  | H150: ="" ->  | I150: ="" ->  | J150: ="" ->  | K150: ="" ->  | L150: ="" ->  | M150: ="" ->  | N150: ="" ->  | O150: ="" ->  | P150: ="" ->  | Q150: ="" ->  | R150: ="" ->  | S150: ="" ->  | T150: ="" ->  | U150: ="" ->  | V150: ="" ->  | W150: ="" ->  | X150: ="" ->  | Y150: ="" ->  | Z150: ="" ->  | AA150: ="" ->  | AB150: ="" ->  | AC150: ="" ->  | AD150: ="" -> 
A151: MT645E - MT685E | B151: ="" ->  | C151: ="" ->  | D151: ="" ->  | E151: ="" ->  | F151: ="" ->  | G151: ="" ->  | H151: ="" ->  | I151: ="" ->  | J151: ="" ->  | K151: ="" ->  | L151: ="" ->  | M151: ="" ->  | N151: ="" ->  | O151: ="" ->  | P151: ="" ->  | Q151: ="" ->  | R151: ="" ->  | S151: ="" ->  | T151: ="" ->  | U151: ="" ->  | V151: ="" ->  | W151: ="" ->  | X151: ="" ->  | Y151: ="" ->  | Z151: ="" ->  | AA151: ="" ->  | AB151: ="" ->  | AC151: ="" ->  | AD151: ="" -> 
A152: ="" ->  | B152: ="" ->  | C152: ="" ->  | D152: ="" ->  | E152: ="" ->  | F152: ="" ->  | G152: ="" ->  | H152: ="" ->  | I152: ="" ->  | J152: ="" ->  | K152: ="" ->  | L152: ="" ->  | M152: ="" ->  | N152: ="" ->  | O152: ="" ->  | P152: ="" ->  | Q152: ="" ->  | R152: ="" ->  | S152: ="" ->  | T152: ="" ->  | U152: ="" ->  | V152: ="" ->  | W152: ="" ->  | X152: ="" ->  | Y152: ="" ->  | Z152: ="" ->  | AA152: ="" ->  | AB152: ="" ->  | AC152: ="" ->  | AD152: ="" -> 
A153: ="" ->  | B153: ="" ->  | C153: ="" ->  | D153: ="" ->  | E153: ="" ->  | F153: ="" ->  | G153: ="" ->  | H153: ="" ->  | I153: ="" ->  | J153: ="" ->  | K153: ="" ->  | L153: ="" ->  | M153: ="" ->  | N153: ="" ->  | O153: ="" ->  | P153: ="" ->  | Q153: ="" ->  | R153: ="" ->  | S153: ="" ->  | T153: ="" ->  | U153: ="" ->  | V153: ="" ->  | W153: ="" ->  | X153: ="" ->  | Y153: ="" ->  | Z153: ="" ->  | AA153: ="" ->  | AB153: ="" ->  | AC153: ="" ->  | AD153: ="" -> 
A154: ="" ->  | B154: ="" ->  | C154: ="" ->  | D154: ="" ->  | E154: ="" ->  | F154: ="" ->  | G154: ="" ->  | H154: ="" ->  | I154: ="" ->  | J154: ="" ->  | K154: ="" ->  | L154: ="" ->  | M154: ="" ->  | N154: ="" ->  | O154: ="" ->  | P154: ="" ->  | Q154: ="" ->  | R154: ="" ->  | S154: ="" ->  | T154: ="" ->  | U154: ="" ->  | V154: ="" ->  | W154: ="" ->  | X154: ="" ->  | Y154: ="" ->  | Z154: ="" ->  | AA154: ="" ->  | AB154: ="" ->  | AC154: ="" ->  | AD154: ="" -> 
A155: ="" ->  | B155: ="" ->  | C155: ="" ->  | D155: ="" ->  | E155: ="" ->  | F155: ="" ->  | G155: ="" ->  | H155: ="" ->  | I155: ="" ->  | J155: ="" ->  | K155: ="" ->  | L155: ="" ->  | M155: ="" ->  | N155: ="" ->  | O155: ="" ->  | P155: ="" ->  | Q155: ="" ->  | R155: ="" ->  | S155: ="" ->  | T155: ="" ->  | U155: ="" ->  | V155: ="" ->  | W155: ="" ->  | X155: ="" ->  | Y155: ="" ->  | Z155: ="" ->  | AA155: ="" ->  | AB155: ="" ->  | AC155: ="" ->  | AD155: ="" -> 
A156: ="" ->  | B156: ="" ->  | C156: ="" ->  | D156: ="" ->  | E156: ="" ->  | F156: ="" ->  | G156: ="" ->  | H156: ="" ->  | I156: ="" ->  | J156: ="" ->  | K156: ="" ->  | L156: ="" ->  | M156: ="" ->  | N156: ="" ->  | O156: ="" ->  | P156: ="" ->  | Q156: ="" ->  | R156: ="" ->  | S156: ="" ->  | T156: ="" ->  | U156: ="" ->  | V156: ="" ->  | W156: ="" ->  | X156: ="" ->  | Y156: ="" ->  | Z156: ="" ->  | AA156: ="" ->  | AB156: ="" ->  | AC156: ="" ->  | AD156: ="" -> 
A157: ="" ->  | B157: ="" ->  | C157: ="" ->  | D157: ="" ->  | E157: ="" ->  | F157: ="" ->  | G157: ="" ->  | H157: ="" ->  | I157: ="" ->  | J157: ="" ->  | K157: ="" ->  | L157: ="" ->  | M157: ="" ->  | N157: ="" ->  | O157: ="" ->  | P157: ="" ->  | Q157: ="" ->  | R157: ="" ->  | S157: ="" ->  | T157: ="" ->  | U157: ="" ->  | V157: ="" ->  | W157: ="" ->  | X157: ="" ->  | Y157: ="" ->  | Z157: ="" ->  | AA157: ="" ->  | AB157: ="" ->  | AC157: ="" ->  | AD157: ="" -> 
A158: ="" ->  | B158: ="" ->  | C158: ="" ->  | D158: ="" ->  | E158: ="" ->  | F158: ="" ->  | G158: ="" ->  | H158: ="" ->  | I158: ="" ->  | J158: ="" ->  | K158: ="" ->  | L158: ="" ->  | M158: ="" ->  | N158: ="" ->  | O158: ="" ->  | P158: ="" ->  | Q158: ="" ->  | R158: ="" ->  | S158: ="" ->  | T158: ="" ->  | U158: ="" ->  | V158: ="" ->  | W158: ="" ->  | X158: ="" ->  | Y158: ="" ->  | Z158: ="" ->  | AA158: ="" ->  | AB158: ="" ->  | AC158: ="" ->  | AD158: ="" -> 
A159: ="" ->  | B159: ="" ->  | C159: ="" ->  | D159: ="" ->  | E159: ="" ->  | F159: ="" ->  | G159: ="" ->  | H159: ="" ->  | I159: ="" ->  | J159: ="" ->  | K159: ="" ->  | L159: ="" ->  | M159: ="" ->  | N159: ="" ->  | O159: ="" ->  | P159: ="" ->  | Q159: ="" ->  | R159: ="" ->  | S159: ="" ->  | T159: ="" ->  | U159: ="" ->  | V159: ="" ->  | W159: ="" ->  | X159: ="" ->  | Y159: ="" ->  | Z159: ="" ->  | AA159: ="" ->  | AB159: ="" ->  | AC159: ="" ->  | AD159: ="" -> 
A160: ="" ->  | B160: ="" ->  | C160: ="" ->  | D160: ="" ->  | E160: ="" ->  | F160: ="" ->  | G160: ="" ->  | H160: ="" ->  | I160: ="" ->  | J160: ="" ->  | K160: ="" ->  | L160: ="" ->  | M160: ="" ->  | N160: ="" ->  | O160: ="" ->  | P160: ="" ->  | Q160: ="" ->  | R160: ="" ->  | S160: ="" ->  | T160: ="" ->  | U160: ="" ->  | V160: ="" ->  | W160: ="" ->  | X160: ="" ->  | Y160: ="" ->  | Z160: ="" ->  | AA160: ="" ->  | AB160: ="" ->  | AC160: ="" ->  | AD160: ="" -> 
A161: ="" ->  | B161: ="" ->  | C161: ="" ->  | D161: ="" ->  | E161: ="" ->  | F161: ="" ->  | G161: ="" ->  | H161: ="" ->  | I161: ="" ->  | J161: ="" ->  | K161: ="" ->  | L161: ="" ->  | M161: ="" ->  | N161: ="" ->  | O161: ="" ->  | P161: ="" ->  | Q161: ="" ->  | R161: ="" ->  | S161: ="" ->  | T161: ="" ->  | U161: ="" ->  | V161: ="" ->  | W161: ="" ->  | X161: ="" ->  | Y161: ="" ->  | Z161: ="" ->  | AA161: ="" ->  | AB161: ="" ->  | AC161: ="" ->  | AD161: ="" -> 
A162: ="" ->  | B162: ="" ->  | C162: ="" ->  | D162: ="" ->  | E162: ="" ->  | F162: ="" ->  | G162: ="" ->  | H162: ="" ->  | I162: ="" ->  | J162: ="" ->  | K162: ="" ->  | L162: ="" ->  | M162: ="" ->  | N162: ="" ->  | O162: ="" ->  | P162: ="" ->  | Q162: ="" ->  | R162: ="" ->  | S162: ="" ->  | T162: ="" ->  | U162: ="" ->  | V162: ="" ->  | W162: ="" ->  | X162: ="" ->  | Y162: ="" ->  | Z162: ="" ->  | AA162: ="" ->  | AB162: ="" ->  | AC162: ="" ->  | AD162: ="" -> 
A163: ="" ->  | B163: ="" ->  | C163: ="" ->  | D163: ="" ->  | E163: ="" ->  | F163: ="" ->  | G163: ="" ->  | H163: ="" ->  | I163: ="" ->  | J163: ="" ->  | K163: ="" ->  | L163: ="" ->  | M163: ="" ->  | N163: ="" ->  | O163: ="" ->  | P163: ="" ->  | Q163: ="" ->  | R163: ="" ->  | S163: ="" ->  | T163: ="" ->  | U163: ="" ->  | V163: ="" ->  | W163: ="" ->  | X163: ="" ->  | Y163: ="" ->  | Z163: ="" ->  | AA163: ="" ->  | AB163: ="" ->  | AC163: ="" ->  | AD163: ="" -> 
A164: ="" ->  | B164: ="" ->  | C164: ="" ->  | D164: ="" ->  | E164: ="" ->  | F164: ="" ->  | G164: ="" ->  | H164: ="" ->  | I164: ="" ->  | J164: ="" ->  | K164: ="" ->  | L164: ="" ->  | M164: ="" ->  | N164: ="" ->  | O164: ="" ->  | P164: ="" ->  | Q164: ="" ->  | R164: ="" ->  | S164: ="" ->  | T164: ="" ->  | U164: ="" ->  | V164: ="" ->  | W164: ="" ->  | X164: ="" ->  | Y164: ="" ->  | Z164: ="" ->  | AA164: ="" ->  | AB164: ="" ->  | AC164: ="" ->  | AD164: ="" -> 
A165: ="" ->  | B165: ="" ->  | C165: ="" ->  | D165: ="" ->  | E165: ="" ->  | F165: ="" ->  | G165: ="" ->  | H165: ="" ->  | I165: ="" ->  | J165: ="" ->  | K165: ="" ->  | L165: ="" ->  | M165: ="" ->  | N165: ="" ->  | O165: ="" ->  | P165: ="" ->  | Q165: ="" ->  | R165: ="" ->  | S165: ="" ->  | T165: ="" ->  | U165: ="" ->  | V165: ="" ->  | W165: ="" ->  | X165: ="" ->  | Y165: ="" ->  | Z165: ="" ->  | AA165: ="" ->  | AB165: ="" ->  | AC165: ="" ->  | AD165: ="" -> 
A166: ="" ->  | B166: ="" ->  | C166: ="" ->  | D166: ="" ->  | E166: ="" ->  | F166: ="" ->  | G166: ="" ->  | H166: ="" ->  | I166: ="" ->  | J166: ="" ->  | K166: ="" ->  | L166: ="" ->  | M166: ="" ->  | N166: ="" ->  | O166: ="" ->  | P166: ="" ->  | Q166: ="" ->  | R166: ="" ->  | S166: ="" ->  | T166: ="" ->  | U166: ="" ->  | V166: ="" ->  | W166: ="" ->  | X166: ="" ->  | Y166: ="" ->  | Z166: ="" ->  | AA166: ="" ->  | AB166: ="" ->  | AC166: ="" ->  | AD166: ="" -> 
A167: ="" ->  | B167: ="" ->  | C167: ="" ->  | D167: ="" ->  | E167: ="" ->  | F167: ="" ->  | G167: ="" ->  | H167: ="" ->  | I167: ="" ->  | J167: ="" ->  | K167: ="" ->  | L167: ="" ->  | M167: ="" ->  | N167: ="" ->  | O167: ="" ->  | P167: ="" ->  | Q167: ="" ->  | R167: ="" ->  | S167: ="" ->  | T167: ="" ->  | U167: ="" ->  | V167: ="" ->  | W167: ="" ->  | X167: ="" ->  | Y167: ="" ->  | Z167: ="" ->  | AA167: ="" ->  | AB167: ="" ->  | AC167: ="" ->  | AD167: ="" -> 
A168: ="" ->  | B168: ="" ->  | C168: ="" ->  | D168: ="" ->  | E168: ="" ->  | F168: ="" ->  | G168: ="" ->  | H168: ="" ->  | I168: ="" ->  | J168: ="" ->  | K168: ="" ->  | L168: ="" ->  | M168: ="" ->  | N168: ="" ->  | O168: ="" ->  | P168: ="" ->  | Q168: ="" ->  | R168: ="" ->  | S168: ="" ->  | T168: ="" ->  | U168: ="" ->  | V168: ="" ->  | W168: ="" ->  | X168: ="" ->  | Y168: ="" ->  | Z168: ="" ->  | AA168: ="" ->  | AB168: ="" ->  | AC168: ="" ->  | AD168: ="" -> 
A169: ="" ->  | B169: ="" ->  | C169: ="" ->  | D169: ="" ->  | E169: ="" ->  | F169: ="" ->  | G169: ="" ->  | H169: ="" ->  | I169: ="" ->  | J169: ="" ->  | K169: ="" ->  | L169: ="" ->  | M169: ="" ->  | N169: ="" ->  | O169: ="" ->  | P169: ="" ->  | Q169: ="" ->  | R169: ="" ->  | S169: ="" ->  | T169: ="" ->  | U169: ="" ->  | V169: ="" ->  | W169: ="" ->  | X169: ="" ->  | Y169: ="" ->  | Z169: ="" ->  | AA169: ="" ->  | AB169: ="" ->  | AC169: ="" ->  | AD169: ="" -> 
A170: ="" ->  | B170: ="" ->  | C170: ="" ->  | D170: ="" ->  | E170: ="" ->  | F170: ="" ->  | G170: ="" ->  | H170: ="" ->  | I170: ="" ->  | J170: ="" ->  | K170: ="" ->  | L170: ="" ->  | M170: ="" ->  | N170: ="" ->  | O170: ="" ->  | P170: ="" ->  | Q170: ="" ->  | R170: ="" ->  | S170: ="" ->  | T170: ="" ->  | U170: ="" ->  | V170: ="" ->  | W170: ="" ->  | X170: ="" ->  | Y170: ="" ->  | Z170: ="" ->  | AA170: ="" ->  | AB170: ="" ->  | AC170: ="" ->  | AD170: ="" -> 
A171: ="" ->  | B171: ="" ->  | C171: ="" ->  | D171: ="" ->  | E171: ="" ->  | F171: ="" ->  | G171: ="" ->  | H171: ="" ->  | I171: ="" ->  | J171: ="" ->  | K171: ="" ->  | L171: ="" ->  | M171: ="" ->  | N171: ="" ->  | O171: ="" ->  | P171: ="" ->  | Q171: ="" ->  | R171: ="" ->  | S171: ="" ->  | T171: ="" ->  | U171: ="" ->  | V171: ="" ->  | W171: ="" ->  | X171: ="" ->  | Y171: ="" ->  | Z171: ="" ->  | AA171: ="" ->  | AB171: ="" ->  | AC171: ="" ->  | AD171: ="" -> 
A172: ="" ->  | B172: ="" ->  | C172: ="" ->  | D172: ="" ->  | E172: ="" ->  | F172: ="" ->  | G172: ="" ->  | H172: ="" ->  | I172: ="" ->  | J172: ="" ->  | K172: ="" ->  | L172: ="" ->  | M172: ="" ->  | N172: ="" ->  | O172: ="" ->  | P172: ="" ->  | Q172: ="" ->  | R172: ="" ->  | S172: ="" ->  | T172: ="" ->  | U172: ="" ->  | V172: ="" ->  | W172: ="" ->  | X172: ="" ->  | Y172: ="" ->  | Z172: ="" ->  | AA172: ="" ->  | AB172: ="" ->  | AC172: ="" ->  | AD172: ="" -> 
A173: MT 315B, 325B, 335B and 345B | B173: 2/4 | C173: ROPS/CAB | D173: =IF(E173=11,"US","DM") -> DM | E173: ="" ->  | F173: ="" ->  | G173: ="" ->  | H173: ="" ->  | I173: X21 | J173: ="" ->  | K173: X26 | L173: ="" ->  | M173: ="" ->  | N173: ="" ->  | O173: ="" ->  | P173: ="" ->  | Q173: 14326695 | R173: ="" ->  | S173: ="" ->  | T173: 15094BAA | U173: ="" ->  | V173: ="" ->  | W173: ="" ->  | X173: =IF(D173="US","U","L") -> L | Y173: =IF(D173="DS","3",IF(D173="DM","4",IF(D173="US","1",IF(D173="UM","2",IF(D173="DL","3"))))) -> 4 | Z173: ="" ->  | AA173: ="" ->  | AB173: ="" ->  | AC173: ="" ->  | AD173: ="" -> 
A174: MT 425B Dyna-4 | B174: 2/4 | C174: ROPS/CAB | D174: DM | E174: ="" ->  | F174: ="" ->  | G174: ="" ->  | H174: ="" ->  | I174: X41 | J174: X51 | K174: X46 | L174: X56 | M174: Q4 | N174: Q5 | O174: Q4s | P174: Q5s | Q174: 14324425 | R174: ="" ->  | S174: ="" ->  | T174: 15013BFA | U174: 15013FCA | V174: ="" ->  | W174: ="" ->  | X174: L | Y174: 4 | Z174: ="" ->  | AA174: ="" ->  | AB174: ="" ->  | AC174: ="" ->  | AD174: ="" -> 
A175: MT 425B Speedshift | B175: 2/4 | C175: ROPS/CAB | D175: DM | E175: ="" ->  | F175: ="" ->  | G175: ="" ->  | H175: ="" ->  | I175: X41 | J175: X51 | K175: X46 | L175: X56 | M175: Q4 | N175: Q5 | O175: Q4s | P175: Q5s | Q175: 14322625 | R175: ="" ->  | S175: ="" ->  | T175: 15013BFA | U175: 15013FCA | V175: ="" ->  | W175: ="" ->  | X175: L | Y175: 4 | Z175: ="" ->  | AA175: ="" ->  | AB175: ="" ->  | AC175: ="" ->  | AD175: ="" -> 
A176: MT 445B, 455B, 465B Dyna 4 | B176: 2/4 | C176: ROPS/CAB | D176: DM | E176: ="" ->  | F176: ="" ->  | G176: ="" ->  | H176: ="" ->  | I176: X41 | J176: X51 | K176: X46 | L176: X56 | M176: Q4 | N176: Q5 | O176: Q4s | P176: Q5s | Q176: 14324425 | R176: ="" ->  | S176: ="" ->  | T176: 15013BFA | U176: 15013FCA | V176: ="" ->  | W176: ="" ->  | X176: L | Y176: 4 | Z176: ="" ->  | AA176: ="" ->  | AB176: ="" ->  | AC176: ="" ->  | AD176: ="" -> 
A177: MT 445B, 455B, 465B Speedshift | B177: 2/4 | C177: ROPS/CAB | D177: DM | E177: ="" ->  | F177: ="" ->  | G177: ="" ->  | H177: ="" ->  | I177: ="" ->  | J177: ="" ->  | K177: ="" ->  | L177: ="" ->  | M177: Q5 | N177: Q6 | O177: Q5s | P177: Q6m | Q177: 14322625 | R177: ="" ->  | S177: ="" ->  | T177: 15013BFA | U177: 15013FCA | V177: ="" ->  | W177: ="" ->  | X177: L | Y177: 4 | Z177: ="" ->  | AA177: ="" ->  | AB177: ="" ->  | AC177: ="" ->  | AD177: ="" -> 
A178: MT 525B Dyna Power VI | B178: 2/4 | C178: ROPS/CAB | D178: DM | E178: 19, | F178: ="" ->  | G178: ="" ->  | H178: ="" ->  | I178: ="" ->  | J178: ="" ->  | K178: ="" ->  | L178: ="" ->  | M178: Q5 | N178: Q6 | O178: Q5s | P178: Q6m | Q178: 14321305 | R178: ="" ->  | S178: ="" ->  | T178: 15324BFA | U178: 15324FCA | V178: ="" ->  | W178: ="" ->  | X178: L | Y178: 4 | Z178: ="" ->  | AA178: ="" ->  | AB178: ="" ->  | AC178: ="" ->  | AD178: ="" -> 
A179: MT 525B Dyna-VT | B179: 2/4 | C179: ROPS/CAB | D179: DM | E179: 19, | F179: ="" ->  | G179: ="" ->  | H179: ="" ->  | I179: ="" ->  | J179: ="" ->  | K179: ="" ->  | L179: ="" ->  | M179: Q5 | N179: Q6 | O179: Q5s | P179: Q6m | Q179: 14320435 | R179: ="" ->  | S179: ="" ->  | T179: 15324BFA | U179: 15324FCA | V179: ="" ->  | W179: ="" ->  | X179: L | Y179: 4 | Z179: ="" ->  | AA179: ="" ->  | AB179: ="" ->  | AC179: ="" ->  | AD179: ="" -> 
A180: MT 525B Dynashift | B180: 2/4 | C180: ROPS/CAB | D180: DM | E180: 19, | F180: ="" ->  | G180: ="" ->  | H180: ="" ->  | I180: ="" ->  | J180: ="" ->  | K180: ="" ->  | L180: ="" ->  | M180: Q5 | N180: Q6 | O180: Q5s | P180: Q6m | Q180: 14320395 | R180: ="" ->  | S180: ="" ->  | T180: 15324BFA | U180: 15324FCA | V180: ="" ->  | W180: ="" ->  | X180: L | Y180: 4 | Z180: ="" ->  | AA180: ="" ->  | AB180: ="" ->  | AC180: ="" ->  | AD180: ="" -> 
A181: MT 525B Tier3 Auto Power VI | B181: 2/4 | C181: ROPS/CAB | D181: DM | E181: 19, | F181: ="" ->  | G181: ="" ->  | H181: ="" ->  | I181: ="" ->  | J181: ="" ->  | K181: ="" ->  | L181: ="" ->  | M181: Q5 | N181: Q6 | O181: Q5s | P181: Q6m | Q181: 14322155 | R181: ="" ->  | S181: ="" ->  | T181: 15324BFA | U181: 15324FCA | V181: ="" ->  | W181: ="" ->  | X181: L | Y181: 4 | Z181: ="" ->  | AA181: ="" ->  | AB181: ="" ->  | AC181: ="" ->  | AD181: ="" -> 
A182: MT 525B Tier3 Tech Star CVT | B182: 2/4 | C182: ROPS/CAB | D182: DM | E182: 19, | F182: ="" ->  | G182: ="" ->  | H182: ="" ->  | I182: ="" ->  | J182: ="" ->  | K182: ="" ->  | L182: ="" ->  | M182: Q5 | N182: Q6 | O182: Q5s | P182: Q6m | Q182: 14323125 | R182: ="" ->  | S182: ="" ->  | T182: 15324BFA | U182: 15324FCA | V182: ="" ->  | W182: ="" ->  | X182: L | Y182: 4 | Z182: ="" ->  | AA182: ="" ->  | AB182: ="" ->  | AC182: ="" ->  | AD182: ="" -> 
A183: MT 535B & 545B Dyna Power VI | B183: 2/4 | C183: ROPS/CAB | D183: DM | E183: 19, | F183: ="" ->  | G183: ="" ->  | H183: ="" ->  | I183: ="" ->  | J183: ="" ->  | K183: ="" ->  | L183: ="" ->  | M183: ="" ->  | N183: Q6 | O183: ="" ->  | P183: Q6m | Q183: 14321305 | R183: ="" ->  | S183: ="" ->  | T183: 15324BFA | U183: 15324FCA | V183: ="" ->  | W183: ="" ->  | X183: L | Y183: 4 | Z183: ="" ->  | AA183: ="" ->  | AB183: ="" ->  | AC183: ="" ->  | AD183: ="" -> 
A184: MT 535B & 545B Dyna-VT | B184: 2/4 | C184: ROPS/CAB | D184: DM | E184: 19, | F184: ="" ->  | G184: ="" ->  | H184: ="" ->  | I184: ="" ->  | J184: ="" ->  | K184: ="" ->  | L184: ="" ->  | M184: ="" ->  | N184: Q6 | O184: ="" ->  | P184: Q6m | Q184: 14320435 | R184: ="" ->  | S184: ="" ->  | T184: 15324BFA | U184: 15324FCA | V184: ="" ->  | W184: ="" ->  | X184: L | Y184: 4 | Z184: ="" ->  | AA184: ="" ->  | AB184: ="" ->  | AC184: ="" ->  | AD184: ="" -> 
A185: MT 535B & 545B Dynashift | B185: 2/4 | C185: ROPS/CAB | D185: DM | E185: 19, | F185: ="" ->  | G185: ="" ->  | H185: ="" ->  | I185: ="" ->  | J185: ="" ->  | K185: ="" ->  | L185: ="" ->  | M185: ="" ->  | N185: Q6 | O185: ="" ->  | P185: Q6m | Q185: 14320395 | R185: ="" ->  | S185: ="" ->  | T185: 15324BFA | U185: 15324FCA | V185: ="" ->  | W185: ="" ->  | X185: L | Y185: 4 | Z185: ="" ->  | AA185: ="" ->  | AB185: ="" ->  | AC185: ="" ->  | AD185: ="" -> 
A186: MT 535B & 545B Tier3 Auto Power VI | B186: 2/4 | C186: ROPS/CAB | D186: DM | E186: 19, | F186: ="" ->  | G186: ="" ->  | H186: ="" ->  | I186: ="" ->  | J186: ="" ->  | K186: ="" ->  | L186: ="" ->  | M186: ="" ->  | N186: Q6 | O186: ="" ->  | P186: Q6m | Q186: 14322155 | R186: ="" ->  | S186: ="" ->  | T186: 15324BFA | U186: 15324FCA | V186: ="" ->  | W186: ="" ->  | X186: L | Y186: 4 | Z186: ="" ->  | AA186: ="" ->  | AB186: ="" ->  | AC186: ="" ->  | AD186: ="" -> 
A187: MT 535B & 545B Tier3 Tech Star CVT | B187: 2/4 | C187: ROPS/CAB | D187: DM | E187: 19, | F187: ="" ->  | G187: ="" ->  | H187: ="" ->  | I187: ="" ->  | J187: ="" ->  | K187: ="" ->  | L187: ="" ->  | M187: ="" ->  | N187: Q6 | O187: ="" ->  | P187: Q6m | Q187: 14323125 | R187: ="" ->  | S187: ="" ->  | T187: 15324BFA | U187: 15324FCA | V187: ="" ->  | W187: ="" ->  | X187: L | Y187: 4 | Z187: ="" ->  | AA187: ="" ->  | AB187: ="" ->  | AC187: ="" ->  | AD187: ="" -> 
A188: MT 555B & 565B Dyna-VT | B188: 2/4 | C188: ROPS/CAB | D188: DM | E188: 19, | F188: ="" ->  | G188: ="" ->  | H188: ="" ->  | I188: ="" ->  | J188: ="" ->  | K188: ="" ->  | L188: ="" ->  | M188: ="" ->  | N188: ="" ->  | O188: Q7m | P188: ="" ->  | Q188: 14321165 | R188: ="" ->  | S188: ="" ->  | T188: 15324BFA | U188: 15324FCA | V188: ="" ->  | W188: ="" ->  | X188: L | Y188: 4 | Z188: ="" ->  | AA188: ="" ->  | AB188: ="" ->  | AC188: ="" ->  | AD188: ="" -> 
A189: MT 555B & 565B Dynashift | B189: 2/4 | C189: ROPS/CAB | D189: DM | E189: 19, | F189: ="" ->  | G189: ="" ->  | H189: ="" ->  | I189: ="" ->  | J189: ="" ->  | K189: ="" ->  | L189: ="" ->  | M189: ="" ->  | N189: ="" ->  | O189: Q7m | P189: ="" ->  | Q189: 14321145 | R189: ="" ->  | S189: ="" ->  | T189: 15324BFA | U189: 15324FCA | V189: ="" ->  | W189: ="" ->  | X189: L | Y189: 4 | Z189: ="" ->  | AA189: ="" ->  | AB189: ="" ->  | AC189: ="" ->  | AD189: ="" -> 
A190: MT 555B, 565B, 575B Tier3 Auto Power VI | B190: 2/4 | C190: ROPS/CAB | D190: DM | E190: 19, | F190: ="" ->  | G190: ="" ->  | H190: ="" ->  | I190: ="" ->  | J190: ="" ->  | K190: ="" ->  | L190: ="" ->  | M190: ="" ->  | N190: ="" ->  | O190: Q7m | P190: ="" ->  | Q190: 14323315 | R190: ="" ->  | S190: ="" ->  | T190: 15324BFA | U190: 15324FCA | V190: ="" ->  | W190: ="" ->  | X190: L | Y190: 4 | Z190: ="" ->  | AA190: ="" ->  | AB190: ="" ->  | AC190: ="" ->  | AD190: ="" -> 
A191: MT 555B, 565B, 575B Tier3 Tech Star CVT | B191: 2/4 | C191: ROPS/CAB | D191: DM | E191: 19, | F191: ="" ->  | G191: ="" ->  | H191: ="" ->  | I191: ="" ->  | J191: ="" ->  | K191: ="" ->  | L191: ="" ->  | M191: ="" ->  | N191: ="" ->  | O191: Q7m | P191: ="" ->  | Q191: 14323325 | R191: ="" ->  | S191: ="" ->  | T191: 15324BFA | U191: 15324FCA | V191: ="" ->  | W191: ="" ->  | X191: L | Y191: 4 | Z191: ="" ->  | AA191: ="" ->  | AB191: ="" ->  | AC191: ="" ->  | AD191: ="" -> 
A192: MT 585B CVT, 595B CVT | B192: 2/4 | C192: ROPS/CAB | D192: DL | E192: ="" ->  | F192: ="" ->  | G192: ="" ->  | H192: ="" ->  | I192: ="" ->  | J192: ="" ->  | K192: ="" ->  | L192: ="" ->  | M192: ="" ->  | N192: ="" ->  | O192: Q8m | P192: ="" ->  | Q192: 14331105 | R192: ="" ->  | S192: ="" ->  | T192: 15324BFA | U192: 15324FCA | V192: ="" ->  | W192: ="" ->  | X192: L | Y192: 3 | Z192: ="" ->  | AA192: ="" ->  | AB192: ="" ->  | AC192: ="" ->  | AD192: ="" -> 
A193: MT 635B, 645B, 655B, 665B | B193: 2/4 | C193: ROPS/CAB | D193: DL | E193: ="" ->  | F193: ="" ->  | G193: ="" ->  | H193: ="" ->  | I193: ="" ->  | J193: ="" ->  | K193: ="" ->  | L193: ="" ->  | M193: ="" ->  | N193: ="" ->  | O193: Q8m | P193: ="" ->  | Q193: 14330115 | R193: ="" ->  | S193: ="" ->  | T193: 15110BAA | U193: ="" ->  | V193: ="" ->  | W193: ="" ->  | X193: L | Y193: 3 | Z193: ="" ->  | AA193: ="" ->  | AB193: ="" ->  | AC193: ="" ->  | AD193: ="" -> 
A194: ="" ->  | B194: ="" ->  | C194: ="" ->  | D194: ="" ->  | E194: ="" ->  | F194: ="" ->  | G194: ="" ->  | H194: ="" ->  | I194: ="" ->  | J194: ="" ->  | K194: ="" ->  | L194: ="" ->  | M194: ="" ->  | N194: ="" ->  | O194: ="" ->  | P194: ="" ->  | Q194: ="" ->  | R194: ="" ->  | S194: ="" ->  | T194: ="" ->  | U194: ="" ->  | V194: ="" ->  | W194: ="" ->  | X194: ="" ->  | Y194: ="" ->  | Z194: ="" ->  | AA194: ="" ->  | AB194: ="" ->  | AC194: ="" ->  | AD194: ="" -> 
A195: ="" ->  | B195: ="" ->  | C195: ="" ->  | D195: ="" ->  | E195: ="" ->  | F195: ="" ->  | G195: ="" ->  | H195: ="" ->  | I195: ="" ->  | J195: ="" ->  | K195: ="" ->  | L195: ="" ->  | M195: ="" ->  | N195: ="" ->  | O195: ="" ->  | P195: ="" ->  | Q195: ="" ->  | R195: ="" ->  | S195: ="" ->  | T195: ="" ->  | U195: ="" ->  | V195: ="" ->  | W195: ="" ->  | X195: ="" ->  | Y195: ="" ->  | Z195: ="" ->  | AA195: ="" ->  | AB195: ="" ->  | AC195: ="" ->  | AD195: ="" -> 
A196: ="" ->  | B196: ="" ->  | C196: ="" ->  | D196: ="" ->  | E196: ="" ->  | F196: ="" ->  | G196: ="" ->  | H196: ="" ->  | I196: ="" ->  | J196: ="" ->  | K196: ="" ->  | L196: ="" ->  | M196: ="" ->  | N196: ="" ->  | O196: ="" ->  | P196: ="" ->  | Q196: ="" ->  | R196: ="" ->  | S196: ="" ->  | T196: ="" ->  | U196: ="" ->  | V196: ="" ->  | W196: ="" ->  | X196: ="" ->  | Y196: ="" ->  | Z196: ="" ->  | AA196: ="" ->  | AB196: ="" ->  | AC196: ="" ->  | AD196: ="" -> 
A197: ="" ->  | B197: ="" ->  | C197: ="" ->  | D197: ="" ->  | E197: ="" ->  | F197: ="" ->  | G197: ="" ->  | H197: ="" ->  | I197: ="" ->  | J197: ="" ->  | K197: ="" ->  | L197: ="" ->  | M197: ="" ->  | N197: ="" ->  | O197: ="" ->  | P197: ="" ->  | Q197: ="" ->  | R197: ="" ->  | S197: ="" ->  | T197: ="" ->  | U197: ="" ->  | V197: ="" ->  | W197: ="" ->  | X197: ="" ->  | Y197: ="" ->  | Z197: ="" ->  | AA197: ="" ->  | AB197: ="" ->  | AC197: ="" ->  | AD197: ="" -> 
A198: ="" ->  | B198: ="" ->  | C198: ="" ->  | D198: ="" ->  | E198: ="" ->  | F198: ="" ->  | G198: ="" ->  | H198: ="" ->  | I198: ="" ->  | J198: ="" ->  | K198: ="" ->  | L198: ="" ->  | M198: ="" ->  | N198: ="" ->  | O198: ="" ->  | P198: ="" ->  | Q198: ="" ->  | R198: ="" ->  | S198: ="" ->  | T198: ="" ->  | U198: ="" ->  | V198: ="" ->  | W198: ="" ->  | X198: ="" ->  | Y198: ="" ->  | Z198: ="" ->  | AA198: ="" ->  | AB198: ="" ->  | AC198: ="" ->  | AD198: ="" -> 
A199: ="" ->  | B199: ="" ->  | C199: ="" ->  | D199: ="" ->  | E199: ="" ->  | F199: ="" ->  | G199: ="" ->  | H199: ="" ->  | I199: ="" ->  | J199: ="" ->  | K199: ="" ->  | L199: ="" ->  | M199: ="" ->  | N199: ="" ->  | O199: ="" ->  | P199: ="" ->  | Q199: ="" ->  | R199: ="" ->  | S199: ="" ->  | T199: ="" ->  | U199: ="" ->  | V199: ="" ->  | W199: ="" ->  | X199: ="" ->  | Y199: ="" ->  | Z199: ="" ->  | AA199: ="" ->  | AB199: ="" ->  | AC199: ="" ->  | AD199: ="" -> 
A200: ="" ->  | B200: ="" ->  | C200: ="" ->  | D200: ="" ->  | E200: ="" ->  | F200: ="" ->  | G200: ="" ->  | H200: ="" ->  | I200: ="" ->  | J200: ="" ->  | K200: ="" ->  | L200: ="" ->  | M200: ="" ->  | N200: ="" ->  | O200: ="" ->  | P200: ="" ->  | Q200: ="" ->  | R200: ="" ->  | S200: ="" ->  | T200: ="" ->  | U200: ="" ->  | V200: ="" ->  | W200: ="" ->  | X200: ="" ->  | Y200: ="" ->  | Z200: ="" ->  | AA200: ="" ->  | AB200: ="" ->  | AC200: ="" ->  | AD200: ="" ->  | AE200: ="" ->  | AF200: ="" ->  | AG200: ="" ->  | AH200: ="" ->  | AI200: ="" ->  | AJ200: ="" ->  | AK200: ="" ->  | AL200: ="" -> 
A201: Agrofarm 85, 100, 410, 420 and 430 | B201: 2/4 | C201: Cab/Rops | D201: =IF(E201=11,"US","DM") -> DM | E201: 20, | I201: X31 | J201: X41 | K201: X36 | L201: X46 | M201: Q3 | N201: Q4 | O201: Q3s | P201: Q4s | Q201: 14324585 | R201: ="" ->  | T201: 15154BAA | U201: 15154FCA | V201: ="" ->  | W201: ="" ->  | X201: =IF(D201="US","U","L") -> L | Y201: 4 | Z201: ="" ->  | AA201: ="" ->  | AB201: ="" -> 
... 603 more rows

Sheet OEM (hidden)
A1: Farmall 65C, 75C (Turkish Built) T4 | B1: MUST BE SOURCED THROUGH CNH
A2: Farmall 90C, 100C, 110C, 120C T4 | B2: MUST BE SOURCED THROUGH CNH
A3: Farmall 50A, 60A,70A T4 | B3: MUST BE SOURCED THROUGH CNH
A4: ="" ->  | B4: MUST BE SOURCED THROUGH CNH
A5: Farmall 85U, 95U, 105U, 115U EP T4 | B5: MUST BE SOURCED THROUGH CNH
A6: Farmall 110U, 120U, 105U, 115U T4 | B6: MUST BE SOURCED THROUGH CNH
A7: Farmall 110A, 120A, 130A, 140A T4 | B7: MUST BE SOURCED THROUGH CNH
A8: Maxxum 115, 125,135,145,150 T4 | B8: MUST BE SOURCED THROUGH CNH
A9: Puma 150,165,185,200,220,240 T4 | B9: MUST BE SOURCED THROUGH CNH
A10: ="" ->  | B10: MUST BE SOURCED THROUGH CNH
A11: Magnum 180, 190, 210, 225 T4 | B11: MUST BE SOURCED THROUGH CNH
A12: Magnum 235,260,290,315,340 T4 | B12: MUST BE SOURCED THROUGH CNH
A17: MT455D,465D,475D,485D,495D | B17: MUST BE SOURCED THROUGH AGCO
A18: MT455E,465E,475E,485E,495E | B18: MUST BE SOURCED THROUGH AGCO
A19: MT525D - MT595D | B19: MUST BE SOURCED THROUGH AGCO
A20: MT515E - MT595E | B20: MUST BE SOURCED THROUGH AGCO
A21: MT645C - MT675C | B21: MUST BE SOURCED THROUGH AGCO
A22: MT645D - MT675D | B22: MUST BE SOURCED THROUGH AGCO
A23: MT645E - MT685E | B23: MUST BE SOURCED THROUGH AGCO
A25: 2605, 2615, 2625, 2635 | B25: MUST BE SOURCED THROUGH AGCO
A26: 2600H | B26: MUST BE SOURCED THROUGH AGCO
A27: 4608, 4609, 4610 | B27: MUST BE SOURCED THROUGH AGCO
A28: 4600M | B28: MUST BE SOURCED THROUGH AGCO
A29: 5609, 5610, 5611, 5612, 5613 | B29: MUST BE SOURCED THROUGH AGCO
A30: 6614, 6615, 6616 | B30: MUST BE SOURCED THROUGH AGCO
A31: 7614, 7615, 7616, 7618 | B31: MUST BE SOURCED THROUGH AGCO
A32: 7619, 7620, 7622 | B32: MUST BE SOURCED THROUGH AGCO
A33: 7624, 7626 | B33: MUST BE SOURCED THROUGH AGCO
A34: 8650, 8660, 8670, 8680 TIER 3 and Tier 4i | B34: MUST BE SOURCED THROUGH AGCO
A35: 4707, 4708, 4709, 4710 Global | B35: MUST BE SOURCED THROUGH AGCO
A36: 5710, 5711 Global | B36: MUST BE SOURCED THROUGH AGCO
A37: 6711, 6712, 6713 Global | B37: MUST BE SOURCED THROUGH AGCO
A38: 5711SL,5712SL,5713SL | B38: MUST BE SOURCED THROUGH AGCO
A39: 6714S,6715S,6716S | B39: MUST BE SOURCED THROUGH AGCO
A40: 7714, 7715, 7716, 7718 | B40: MUST BE SOURCED THROUGH AGCO
A41: 7719, 7720, 7722 | B41: MUST BE SOURCED THROUGH AGCO
A42: 7724, 7726 | B42: MUST BE SOURCED THROUGH AGCO
A43: 8727, 8730, 8730, 8732, 8735, 8737 | B43: MUST BE SOURCED THROUGH AGCO
A50: Workmaster 50, 60, 70 | B50: MUST BE SOURCED THROUGH CNH
A51: Powerstar T4.65, T4.75 T4B | B51: MUST BE SOURCED THROUGH CNH
A52: T4.85 - 120 T4 | B52: MUST BE SOURCED THROUGH CNH
A53: T5.95 - 120 T4 | B53: MUST BE SOURCED THROUGH CNH
A54: T6.120, .140, .150, .160 | B54: MUST BE SOURCED THROUGH CNH
A55: T6.155, .165, .175 | B55: MUST BE SOURCED THROUGH CNH
A56: T7.170, .185, .200, .210, .235 EP | B56: MUST BE SOURCED THROUGH CNH
A57: T7.220, .235, .250, .260, .270 EP | B57: MUST BE SOURCED THROUGH CNH
A58: T8.275, .300, .330, .360, .390, .420 | B58: MUST BE SOURCED THROUGH CNH
B59: MUST BE SOURCED THROUGH CNH
B60: MUST BE SOURCED THROUGH CNH
B61: MUST BE SOURCED THROUGH CNH

Sheet AGCO (hidden)
A1: LT75, 90
A2: LT "A" 75, 85, 90, 95 AUTO IV TIER II and III
A3: LT "A" 75, 90 Speed Shift
A4: RT 100, 120 Auto Quad
A5: RT 100, 120 Dyna VT
A6: RT 135, 150 Auto Quad
A7: RT 135, 150 Dyna VT
A8: RT "A" 100, 120 TIER 2 Auto IV
A9: RT "A" 100, 120 TIER 2 CVT
A10: RT "A" 140, 155 TIER 2 Auto IV
A11: RT "A" 140, 155 TIER 2 CVT
A12: RT "A" 110, 120 TIER 3 Auto VI
A13: RT "A" 110, 120 TIER 3 CVT
A14: RT "A" 140, 155 TIER 3 Auto VI
A15: RT "A" 140, 155 TIER 3 CVT
A16: RT 165A AUTO VI Tier 3 Serial # <T176049
A17: RT 165A AUTO VI Tier 3 Serial # >T189041
A18: RT 165A Tier 3 CVT
A19: RT 180A from serial # T198034
A20: RT 180A Tier 3 CVT
A21: DT "A" 180, 200, 220, 240
A22: DT "B" 205, 225, 250, 275
A23: ="" -> 
A24: ="" -> 
A25: ="" -> 
A26: ="" -> 
A27: ="" -> 
A28: ="" -> 
A29: ="" -> 
A30: ="" -> 
A31: ="" -> 
A32: ="" -> 
A33: ="" -> 
A34: ="" -> 
A35: ="" -> 
A36: ="" -> 
A37: ="" -> 
A38: ="" -> 
A39: ="" -> 
A40: ="" -> 
A41: ="" -> 
A42: ="" -> 
A43: ="" -> 
A44: ="" -> 
A45: ="" -> 
A46: ="" -> 
A47: ="" -> 
A48: ="" -> 
A49: ="" -> 
A50: ="" -> 
A51: ="" -> 
A52: ="" -> 
A53: ="" -> 
A54: ="" -> 
A55: ="" -> 
A56: ="" -> 
A57: ="" -> 
A58: ="" -> 
A59: ="" -> 
A60: ="" -> 
A61: ="" -> 
A62: ="" -> 
A63: ="" -> 
A64: ="" -> 
A65: ="" -> 
A66: ="" -> 
A67: ="" -> 
A68: ="" -> 
A69: ="" -> 
A70: ="" -> 
A71: ="" -> 
A72: ="" -> 
A73: ="" -> 
A74: ="" -> 
A75: ="" -> 
A76: ="" -> 
A77: ="" -> 
A78: ="" -> 
A79: ="" -> 
A80: ="" -> 
A81: ="" -> 
A82: ="" -> 
A83: ="" -> 
A84: ="" -> 
A85: ="" -> 
A86: ="" -> 
A87: ="" -> 
A88: ="" -> 
A89: ="" -> 
A90: ="" -> 
A91: ="" -> 
A92: ="" -> 
A93: ="" -> 
A94: ="" -> 
A95: ="" -> 
A96: ="" -> 
A97: ="" -> 
A98: ="" -> 
A99: ="" -> 
A100: ="" -> 
A101: ="" -> 
A102: ="" -> 
A103: ="" -> 
A104: ="" -> 
A105: ="" -> 
A106: ="" -> 
A107: ="" -> 
A108: ="" -> 
A109: ="" -> 
A110: ="" -> 
A111: ="" -> 
A112: ="" -> 
A113: ="" -> 
A114: ="" -> 
A115: ="" -> 
A116: ="" -> 
A117: ="" -> 
A118: ="" -> 
A119: ="" -> 
A120: ="" -> 
A121: ="" -> 
A122: ="" -> 
A123: ="" -> 
A124: ="" -> 
A125: ="" -> 
A126: ="" -> 
A127: ="" -> 
A128: ="" -> 
A129: ="" -> 
A130: ="" -> 
A131: ="" -> 
A132: ="" -> 
A133: ="" -> 
A134: ="" -> 
A135: ="" -> 
A136: ="" -> 
A137: ="" -> 
A138: ="" -> 
A139: ="" -> 
A140: ="" -> 
A141: ="" -> 
A142: ="" -> 
A143: ="" -> 
A144: ="" -> 
A145: ="" -> 
A146: ="" -> 
A147: ="" -> 
A148: ="" -> 
A149: ="" -> 
A150: ="" -> 
A151: ="" -> 
A152: ="" -> 
A153: ="" -> 
A154: ="" -> 
A155: ="" -> 
A156: ="" -> 
A157: ="" -> 
A158: ="" -> 
A159: ="" -> 
A160: ="" -> 
A161: ="" -> 
A162: ="" -> 
A163: ="" -> 
A164: ="" -> 
A165: ="" -> 
A166: ="" -> 
A167: ="" -> 
A168: ="" -> 
A169: ="" -> 
A170: ="" -> 
A171: ="" -> 
A172: ="" -> 
A173: ="" -> 
A174: ="" -> 
A175: ="" -> 
A176: ="" -> 
A177: ="" -> 
A178: ="" -> 
A179: ="" -> 
A180: ="" -> 
A181: ="" -> 
A182: ="" -> 
A183: ="" -> 
A184: ="" -> 
A185: ="" -> 
A186: ="" -> 
A187: ="" -> 
A188: ="" -> 
A189: ="" -> 
A190: ="" -> 
A191: ="" -> 
A192: ="" -> 
A193: ="" -> 
A194: ="" -> 
A195: ="" -> 
A196: ="" -> 
A197: ="" -> 
A198: ="" -> 
A199: ="" -> 
A200: ="" -> 
... 1 more rows

Sheet AGCO Allis (hidden)
A1: ="" -> 
A2: ="" -> 
A3: 8745, 8765 (Cummins Engine)
A4: ="" -> 
A5: 8775, 8785 (Cummins Engine)
A6: ="" -> 
A7: 5650, 5660
A8: 5670, 5680
A9: ="" -> 
A10: ="" -> 
A11: ="" -> 
A12: ="" -> 
A13: ="" -> 
A14: ="" -> 
A15: ="" -> 
A16: ="" -> 
A17: ="" -> 
A18: ="" -> 
A19: ="" -> 
A20: ="" -> 
A21: ="" -> 
A22: ="" -> 
A23: ="" -> 
A24: ="" -> 
A25: ="" -> 
A26: ="" -> 
A27: ="" -> 
A28: ="" -> 
A29: ="" -> 
A30: ="" -> 
A31: ="" -> 
A32: ="" -> 
A33: ="" -> 
A34: ="" -> 
A35: ="" -> 
A36: ="" -> 
A37: ="" -> 
A38: ="" -> 
A39: ="" -> 
A40: ="" -> 
A41: ="" -> 
A42: ="" -> 
A43: ="" -> 
A44: ="" -> 
A45: ="" -> 
A46: ="" -> 
A47: ="" -> 
A48: ="" -> 
A49: ="" -> 
A50: ="" -> 
A51: ="" -> 
A52: ="" -> 
A53: ="" -> 
A54: ="" -> 
A55: ="" -> 
A56: ="" -> 
A57: ="" -> 
A58: ="" -> 
A59: ="" -> 
A60: ="" -> 
A61: ="" -> 
A62: ="" -> 
A63: ="" -> 
A64: ="" -> 
A65: ="" -> 
A66: ="" -> 
A67: ="" -> 
A68: ="" -> 
A69: ="" -> 
A70: ="" -> 
A71: ="" -> 
A72: ="" -> 
A73: ="" -> 
A74: ="" -> 
A75: ="" -> 
A76: ="" -> 
A77: ="" -> 
A78: ="" -> 
A79: ="" -> 
A80: ="" -> 
A81: ="" -> 
A82: ="" -> 
A83: ="" -> 
A84: ="" -> 
A85: ="" -> 
A86: ="" -> 
A87: ="" -> 
A88: ="" -> 
A89: ="" -> 
A90: ="" -> 
A91: ="" -> 
A92: ="" -> 
A93: ="" -> 
A94: ="" -> 
A95: ="" -> 
A96: ="" -> 
A97: ="" -> 
A98: ="" -> 
A99: ="" -> 
A100: ="" -> 
A101: ="" -> 
A102: ="" -> 
A103: ="" -> 
A104: ="" -> 
A105: ="" -> 
A106: ="" -> 
A107: ="" -> 
A108: ="" -> 
A109: ="" -> 
A110: ="" -> 
A111: ="" -> 
A112: ="" -> 
A113: ="" -> 
A114: ="" -> 
A115: ="" -> 
A116: ="" -> 
A117: ="" -> 
A118: ="" -> 
A119: ="" -> 
A120: ="" -> 
A121: ="" -> 
A122: ="" -> 
A123: ="" -> 
A124: ="" -> 
A125: ="" -> 
A126: ="" -> 
A127: ="" -> 
A128: ="" -> 
A129: ="" -> 
A130: ="" -> 
A131: ="" -> 
A132: ="" -> 
A133: ="" -> 
A134: ="" -> 
A135: ="" -> 
A136: ="" -> 
A137: ="" -> 
A138: ="" -> 
A139: ="" -> 
A140: ="" -> 
A141: ="" -> 
A142: ="" -> 
A143: ="" -> 
A144: ="" -> 
A145: ="" -> 
A146: ="" -> 
A147: ="" -> 
A148: ="" -> 
A149: ="" -> 
A150: ="" -> 
A151: ="" -> 
A152: ="" -> 
A153: ="" -> 
A154: ="" -> 
A155: ="" -> 
A156: ="" -> 
A157: ="" -> 
A158: ="" -> 
A159: ="" -> 
A160: ="" -> 
A161: ="" -> 
A162: ="" -> 
A163: ="" -> 
A164: ="" -> 
A165: ="" -> 
A166: ="" -> 
A167: ="" -> 
A168: ="" -> 
A169: ="" -> 
A170: ="" -> 
A171: ="" -> 
A172: ="" -> 

Sheet AGCO White (hidden)
A1: 6410, 6510
A2: 6710, 6810'
A3: ="" -> 
A4: 6045 ROPS
A5: 6065 ROPS
A6: 6065 CAB
A7: ="" -> 
A8: ="" -> 
A9: ="" -> 
A10: ="" -> 
A11: ="" -> 
A12: ="" -> 
A13: ="" -> 
A14: ="" -> 
A15: ="" -> 
A16: ="" -> 
A17: ="" -> 
A18: ="" -> 
A19: ="" -> 
A20: ="" -> 
A21: ="" -> 
A22: ="" -> 
A23: ="" -> 
A24: ="" -> 
A25: ="" -> 
A26: ="" -> 
A27: ="" -> 
A28: ="" -> 
A29: ="" -> 
A30: ="" -> 
A31: ="" -> 
A32: ="" -> 
A33: ="" -> 
A34: ="" -> 
A35: ="" -> 
A36: ="" -> 
A37: ="" -> 
A38: ="" -> 
A39: ="" -> 
A40: ="" -> 
A41: ="" -> 
A42: ="" -> 
A43: ="" -> 
A44: ="" -> 
A45: ="" -> 
A46: ="" -> 
A47: ="" -> 
A48: ="" -> 
A49: ="" -> 
A50: ="" -> 
A51: ="" -> 
A52: ="" -> 
A53: ="" -> 
A54: ="" -> 
A55: ="" -> 
A56: ="" -> 
A57: ="" -> 
A58: ="" -> 
A59: ="" -> 
A60: ="" -> 
A61: ="" -> 
A62: ="" -> 
A63: ="" -> 
A64: ="" -> 
A65: ="" -> 
A66: ="" -> 
A67: ="" -> 
A68: ="" -> 
A69: ="" -> 
A70: ="" -> 
A71: ="" -> 
A72: ="" -> 
A73: ="" -> 
A74: ="" -> 
A75: ="" -> 
A76: ="" -> 
A77: ="" -> 
A78: ="" -> 
A79: ="" -> 
A80: ="" -> 
A81: ="" -> 
A82: ="" -> 
A83: ="" -> 
A84: ="" -> 
A85: ="" -> 
A86: ="" -> 
A87: ="" -> 
A88: ="" -> 
A89: ="" -> 
A90: ="" -> 
A91: ="" -> 
A92: ="" -> 
A93: ="" -> 
A94: ="" -> 
A95: ="" -> 
A96: ="" -> 
A97: ="" -> 
A98: ="" -> 
A99: ="" -> 
A100: ="" -> 
A101: ="" -> 
A102: ="" -> 
A103: ="" -> 
A104: ="" -> 
A105: ="" -> 
A106: ="" -> 
A107: ="" -> 
A108: ="" -> 
A109: ="" -> 
A110: ="" -> 
A111: ="" -> 
A112: ="" -> 
A113: ="" -> 
A114: ="" -> 
A115: ="" -> 
A116: ="" -> 
A117: ="" -> 
A118: ="" -> 
A119: ="" -> 
A120: ="" -> 
A121: ="" -> 
A122: ="" -> 
A123: ="" -> 
A124: ="" -> 
A125: ="" -> 
A126: ="" -> 
A127: ="" -> 
A128: ="" -> 
A129: ="" -> 
A130: ="" -> 
A131: ="" -> 
A132: ="" -> 
A133: ="" -> 
A134: ="" -> 
A135: ="" -> 
A136: ="" -> 
A137: ="" -> 
A138: ="" -> 
A139: ="" -> 
A140: ="" -> 
A141: ="" -> 
A142: ="" -> 
A143: ="" -> 
A144: ="" -> 
A145: ="" -> 
A146: ="" -> 
A147: ="" -> 
A148: ="" -> 
A149: ="" -> 
A150: ="" -> 
A151: ="" -> 
A152: ="" -> 
A153: ="" -> 
A154: ="" -> 
A155: ="" -> 
A156: ="" -> 
A157: ="" -> 
A158: ="" -> 
A159: ="" -> 
A160: ="" -> 
A161: ="" -> 
A162: ="" -> 
A163: ="" -> 
A164: ="" -> 
A165: ="" -> 
A166: ="" -> 
A167: ="" -> 
A168: ="" -> 
A169: ="" -> 
A170: ="" -> 
A171: ="" -> 

Sheet Buhler (hidden)
A1: Genesis 2145, 2160, 2180, 2210
A2: ="" -> 
A3: ="" -> 
A4: ="" -> 
A5: ="" -> 
A6: ="" -> 
A7: ="" -> 
A8: ="" -> 
A9: ="" -> 
A10: ="" -> 
A11: ="" -> 
A12: ="" -> 
A13: ="" -> 
A14: ="" -> 
A15: ="" -> 
A16: ="" -> 
A17: ="" -> 
A18: ="" -> 
A19: ="" -> 
A20: ="" -> 
A21: ="" -> 
A22: ="" -> 
A23: ="" -> 
A24: ="" -> 
A25: ="" -> 
A26: ="" -> 
A27: ="" -> 
A28: ="" -> 
A29: ="" -> 
A30: ="" -> 
A31: ="" -> 
A32: ="" -> 
A33: ="" -> 
A34: ="" -> 
A35: ="" -> 
A36: ="" -> 
A37: ="" -> 
A38: ="" -> 
A39: ="" -> 
A40: ="" -> 
A41: ="" -> 
A42: ="" -> 
A43: ="" -> 
A44: ="" -> 
A45: ="" -> 
A46: ="" -> 
A47: ="" -> 
A48: ="" -> 
A49: ="" -> 
A50: ="" -> 
A51: ="" -> 
A52: ="" -> 
A53: ="" -> 
A54: ="" -> 
A55: ="" -> 
A56: ="" -> 
A57: ="" -> 
A58: ="" -> 
A59: ="" -> 
A60: ="" -> 
A61: ="" -> 
A62: ="" -> 
A63: ="" -> 
A64: ="" -> 
A65: ="" -> 
A66: ="" -> 
A67: ="" -> 
A68: ="" -> 
A69: ="" -> 
A70: ="" -> 
A71: ="" -> 
A72: ="" -> 
A73: ="" -> 
A74: ="" -> 
A75: ="" -> 
A76: ="" -> 
A77: ="" -> 
A78: ="" -> 
A79: ="" -> 
A80: ="" -> 
A81: ="" -> 
A82: ="" -> 
A83: ="" -> 
A84: ="" -> 
A85: ="" -> 
A86: ="" -> 
A87: ="" -> 
A88: ="" -> 
A89: ="" -> 
A90: ="" -> 
A91: ="" -> 
A92: ="" -> 
A93: ="" -> 
A94: ="" -> 
A95: ="" -> 
A96: ="" -> 
A97: ="" -> 
A98: ="" -> 
A99: ="" -> 
A100: ="" -> 
A101: ="" -> 
A102: ="" -> 
A103: ="" -> 
A104: ="" -> 
A105: ="" -> 
A106: ="" -> 
A107: ="" -> 
A108: ="" -> 
A109: ="" -> 
A110: ="" -> 
A111: ="" -> 
A112: ="" -> 
A113: ="" -> 
A114: ="" -> 
A115: ="" -> 
A116: ="" -> 
A117: ="" -> 
A118: ="" -> 
A119: ="" -> 
A120: ="" -> 
A121: ="" -> 
A122: ="" -> 
A123: ="" -> 
A124: ="" -> 
A125: ="" -> 
A126: ="" -> 
A127: ="" -> 
A128: ="" -> 
A129: ="" -> 
A130: ="" -> 
A131: ="" -> 
A132: ="" -> 
A133: ="" -> 
A134: ="" -> 
A135: ="" -> 
A136: ="" -> 
A137: ="" -> 
A138: ="" -> 
A139: ="" -> 
A140: ="" -> 
A141: ="" -> 
A142: ="" -> 
A143: ="" -> 
A144: ="" -> 
A145: ="" -> 
A146: ="" -> 
A147: ="" -> 
A148: ="" -> 
A149: ="" -> 
A150: ="" -> 
A151: ="" -> 
A152: ="" -> 
A153: ="" -> 
A154: ="" -> 
A155: ="" -> 
A156: ="" -> 
A157: ="" -> 
A158: ="" -> 
A159: ="" -> 
A160: ="" -> 
A161: ="" -> 
A162: ="" -> 
A163: ="" -> 
A164: ="" -> 

Sheet Case (hidden)
A1: Farmall 65C, 75C (Turkish Built) T4A,B
A2: Farmall 90C, 100C, 110C, 120C T4
A3: Farmall 50A, 60A,70A T4
A4: ="" -> 
A5: Farmall 85U, 95U, 105U, 115U EP T4A
A6: Farmall 110U, 120U, 105U, 115U T4B
A7: Farmall 110A, 120A, 130A, 140A T4A,B
A8: Maxxum 115, 125,135,145,150 T4A,B
A9: Puma 150,165,185,200,220,240 T4A,B
A10: ="" -> 
A11: Magnum 180, 190, 210, 225 T4
A12: Magnum 235,260,290,315,340 T4
A13: ="" -> 
A14: Farmall 45A, 55A
A15: Farmall 65A, 75A
A16: JX55, 60, 65, 70
A17: JX75, 80, 85, 90
A18: Farmall 90, 95, JX95
A19: Farmall 65C, 75C (Straddle Jesi)
A20: Farmall 85C, 95C (Straddle Jesi) T3
A21: JX1060C, 1070C, 1075C
A22: JX1085C, 1095C
A23: FARMALL 85U, 95U, 105U (JESI) T3
A24: JX1080U, JX1090U, 1100U (JESI)
A25: Farmall 70, 80
A26: JX70, 80, 90, 100U
A27: MXU 100, 110 Limited
A28: MXU 115, 125, 135 Limited (Closed Center)
A29: MXU 115, 130 Value (Open Center)
A30: Maxxum 110, 120, 130 T3
A31: Maxxum 115,125,140 T3
A32: MX 180 - 335
A33: Magnum 180 - 280 (Teir III)
A34: 3230-4240, C70 - C100 4WD
A35: 3230-4240, C70 - C100 2WD
A36: 685-985 AND 695-995 4WD
A37: 685-985 AND 695-995 2WD
A38: CX70, 80, 90, 100
A39: 5130 - 5250 6 Cylinder
A40: MX80C - 100C
A41: ="" -> 
A42: MX100-135
A43: MX150-170
A44: MXM 130, 140 Value (Open Center)
A45: MXM 120, 130, 140, 155 Pro (Closed Center)
A46: MXM 175, 190 Pro
A47: Magnum 7110 - 7150 / 7210 - 7250 / 8910 - 8950
A48: 5120'
A49: ="" -> 
A50: D35-45 / DX35-45 / FARMALL40-50
A51: DX48, 55 / FARMALL 55, 60
A52: FARMALL 30B, 35B
A53: FARMALL 40B, 50B
A54: FARMALL 30A, 35A
A55: ="" -> 
A56: ="" -> 
A57: ="" -> 
A58: ="" -> 
A59: ="" -> 
A60: ="" -> 
A61: ="" -> 
A62: ="" -> 
A63: ="" -> 
A64: ="" -> 
A65: ="" -> 
A66: ="" -> 
A67: ="" -> 
A68: ="" -> 
A69: ="" -> 
A70: ="" -> 
A71: ="" -> 
A72: ="" -> 
A73: ="" -> 
A74: ="" -> 
A75: ="" -> 
A76: ="" -> 
A77: ="" -> 
A78: ="" -> 
A79: ="" -> 
A80: ="" -> 
A81: ="" -> 
A82: ="" -> 
A83: ="" -> 
A84: ="" -> 
A85: ="" -> 
A86: ="" -> 
A87: ="" -> 
A88: ="" -> 
A89: ="" -> 
A90: ="" -> 
A91: ="" -> 
A92: ="" -> 
A93: ="" -> 
A94: ="" -> 
A95: ="" -> 
A96: ="" -> 
A97: ="" -> 
A98: ="" -> 
A99: ="" -> 
A100: ="" -> 
A101: ="" -> 
A102: ="" -> 
A103: ="" -> 
A104: ="" -> 
A105: ="" -> 
A106: ="" -> 
A107: ="" -> 
A108: ="" -> 
A109: ="" -> 
A110: ="" -> 
A111: ="" -> 
A112: ="" -> 
A113: ="" -> 
A114: ="" -> 
A115: ="" -> 
A116: ="" -> 
A117: ="" -> 
A118: ="" -> 
A119: ="" -> 
A120: ="" -> 
A121: ="" -> 
A122: ="" -> 
A123: ="" -> 
A124: ="" -> 
A125: ="" -> 
A126: ="" -> 
A127: ="" -> 
A128: ="" -> 
A129: ="" -> 
A130: ="" -> 
A131: ="" -> 
A132: ="" -> 
A133: ="" -> 
A134: ="" -> 
A135: ="" -> 
A136: ="" -> 
A137: ="" -> 
A138: ="" -> 
A139: ="" -> 
A140: ="" -> 
A141: ="" -> 
A142: ="" -> 
A143: ="" -> 
A144: ="" -> 
A145: ="" -> 
A146: ="" -> 
A147: ="" -> 
A148: ="" -> 
A149: ="" -> 
A150: ="" -> 
A151: ="" -> 
A152: ="" -> 
A153: ="" -> 
A154: ="" -> 
A155: ="" -> 
A156: ="" -> 
A157: ="" -> 
A158: ="" -> 
A159: ="" -> 
A160: ="" -> 
A161: ="" -> 
A162: ="" -> 
A163: ="" -> 
A164: ="" -> 
A165: ="" -> 
A166: ="" -> 
A167: ="" -> 
A168: ="" -> 
A169: ="" -> 
A170: ="" -> 
A171: ="" -> 
A172: ="" -> 
A173: ="" -> 
A174: ="" -> 
A175: ="" -> 
A176: ="" -> 
A177: ="" -> 
A178: ="" -> 
A179: ="" -> 
A180: ="" -> 
A181: ="" -> 
A182: ="" -> 
A183: ="" -> 
A184: ="" -> 
A185: ="" -> 
A186: ="" -> 
A187: ="" -> 
A188: ="" -> 
A189: ="" -> 
A190: ="" -> 
A191: ="" -> 
A192: ="" -> 
A193: ="" -> 
A194: ="" -> 
A195: ="" -> 
A196: ="" -> 
A197: ="" -> 
A198: ="" -> 
A199: ="" -> 
A200: ="" -> 
... 17 more rows

Sheet Challenger (hidden)
A1: MT455D,465D,475D,485D,495D
A2: MT455E,465E,475E,485E,495E
A3: MT525D - MT595D
A4: MT515E - MT595E
A5: MT645C - MT675C
A6: MT645D - MT675D
A7: MT645E - MT685E
A8: MT 315B, 325B, 335B and 345B
A9: MT 425B Dyna-4
A10: MT 425B Speedshift
A11: MT 445B, 455B, 465B Dyna 4
A12: MT 445B, 455B, 465B Speedshift
A13: MT 525B Dyna Power VI
A14: MT 525B Dyna-VT
A15: MT 525B Dynashift
A16: MT 525B Tier3 Auto Power VI
A17: MT 525B Tier3 Tech Star CVT
A18: MT 535B & 545B Dyna Power VI
A19: MT 535B & 545B Dyna-VT
A20: MT 535B & 545B Dynashift
A21: MT 535B & 545B Tier3 Auto Power VI
A22: MT 535B & 545B Tier3 Tech Star CVT
A23: MT 555B & 565B Dyna-VT
A24: MT 555B & 565B Dynashift
A25: MT 555B, 565B, 575B Tier3 Auto Power VI
A26: MT 555B, 565B, 575B Tier3 Tech Star CVT
A27: MT 585B CVT, 595B CVT
A28: MT 635B, 645B, 655B, 665B
A29: ="" -> 
A30: ="" -> 
A31: ="" -> 
A32: ="" -> 
A33: ="" -> 
A34: ="" -> 
A35: ="" -> 
A36: ="" -> 
A37: ="" -> 
A38: ="" -> 
A39: ="" -> 
A40: ="" -> 
A41: ="" -> 
A42: ="" -> 
A43: ="" -> 
A44: ="" -> 
A45: ="" -> 
A46: ="" -> 
A47: ="" -> 
A48: ="" -> 
A49: ="" -> 
A50: ="" -> 
A51: ="" -> 
A52: ="" -> 
A53: ="" -> 
A54: ="" -> 
A55: ="" -> 
A56: ="" -> 
A57: ="" -> 
A58: ="" -> 
A59: ="" -> 
A60: ="" -> 
A61: ="" -> 
A62: ="" -> 
A63: ="" -> 
A64: ="" -> 
A65: ="" -> 
A66: ="" -> 
A67: ="" -> 
A68: ="" -> 
A69: ="" -> 
A70: ="" -> 
A71: ="" -> 
A72: ="" -> 
A73: ="" -> 
A74: ="" -> 
A75: ="" -> 
A76: ="" -> 
A77: ="" -> 
A78: ="" -> 
A79: ="" -> 
A80: ="" -> 
A81: ="" -> 
A82: ="" -> 
A83: ="" -> 
A84: ="" -> 
A85: ="" -> 
A86: ="" -> 
A87: ="" -> 
A88: ="" -> 
A89: ="" -> 
A90: ="" -> 
A91: ="" -> 
A92: ="" -> 
A93: ="" -> 
A94: ="" -> 
A95: ="" -> 
A96: ="" -> 
A97: ="" -> 
A98: ="" -> 
A99: ="" -> 
A100: ="" -> 
A101: ="" -> 
A102: ="" -> 
A103: ="" -> 
A104: ="" -> 
A105: ="" -> 
A106: ="" -> 
A107: ="" -> 
A108: ="" -> 
A109: ="" -> 
A110: ="" -> 
A111: ="" -> 
A112: ="" -> 
A113: ="" -> 
A114: ="" -> 
A115: ="" -> 
A116: ="" -> 
A117: ="" -> 
A118: ="" -> 
A119: ="" -> 
A120: ="" -> 
A121: ="" -> 
A122: ="" -> 
A123: ="" -> 
A124: ="" -> 
A125: ="" -> 
A126: ="" -> 
A127: ="" -> 
A128: ="" -> 
A129: ="" -> 
A130: ="" -> 
A131: ="" -> 
A132: ="" -> 
A133: ="" -> 
A134: ="" -> 
A135: ="" -> 
A136: ="" -> 
A137: ="" -> 
A138: ="" -> 
A139: ="" -> 
A140: ="" -> 
A141: ="" -> 
A142: ="" -> 
A143: ="" -> 
A144: ="" -> 
A145: ="" -> 
A146: ="" -> 
A147: ="" -> 
A148: ="" -> 
A149: ="" -> 
A150: ="" -> 
A151: ="" -> 
A152: ="" -> 
A153: ="" -> 
A154: ="" -> 
A155: ="" -> 
A156: ="" -> 
A157: ="" -> 
A158: ="" -> 
A159: ="" -> 
A160: ="" -> 
A161: ="" -> 
A162: ="" -> 
A163: ="" -> 
A164: ="" -> 
A165: ="" -> 
A166: ="" -> 
A167: ="" -> 
A168: ="" -> 
A169: ="" -> 
A170: ="" -> 
A171: ="" -> 
A172: ="" -> 
A173: ="" -> 
A174: ="" -> 
A175: ="" -> 
A176: ="" -> 
A177: ="" -> 
A178: ="" -> 
A179: ="" -> 
A180: ="" -> 
A181: ="" -> 
A182: ="" -> 
A183: ="" -> 
A184: ="" -> 
A185: ="" -> 
A186: ="" -> 
A187: ="" -> 
A188: ="" -> 
A189: ="" -> 
A190: ="" -> 
A191: ="" -> 
A192: ="" -> 
A193: ="" -> 
A194: ="" -> 

Sheet Deutz (hidden)
A1: Agrofarm 85, 100, 410, 420 and 430
A2: Agrolux 45-75
A3: Agroplus 310,315,320 + Ecoline
A4: Agrolplus 410,420 + Ecoline
A5: Agrofarm TTV420 and TTV430 + Profiline
A6: Agrofarm 410T and 420T
A7: Agrofarm 410TB and 420TB
A8: Agrotron K90-120, K410,420 and 430
A9: Agrotron K90-120, K410,420, 430 (Profiline)
A10: Agrotron K-110 and K-610
A11: Agrotron K-110 & K-610 (Profiline)
A12: Agrotron M410 and M420
A13: Agrotron TTV 410, 420, 430 + Profiline
A14: Agrotron M600 - M625 + Profiline
A15: Agrotron M640
A16: Agrotron M640 Profiline
A17: Agrotron TTV 610 and TTV 620
A18: Agrotron M650
A19: Agrotron M650 Profiline
A20: Agrotron TTV 630, TTV7210, 7230, 7250
A21: 5100 , 5110, 5120, 5130
A22: 5105 , 5115, 5125
A23: 5100 , 5110, 5120, 5130 Profiline and TTV
A24: Agrotron 6150, 6160
A25: Agrotron 6150, 6160 Profiline and TTV
A26: Agrotron 6150.4, 6160.4
A27: Agrotron 6150.4, 6160.4 Profiline and TTV
A28: Agrotron 6180, 6190
A29: Agrotron 6180, 6190 Profiline and TTV
A30: 6155, 6165, 6175, 6175
A31: 6155, 6165, 6175, 6175 Rcshift
A32: 6155, 6165, 6175, 6175 TTV
A33: 6205, 6215
A34: 6205, 6215 RCSHIFT
A35: 6205, 6215 TTV
A36: ="" -> 
A37: ="" -> 
A38: ="" -> 
A39: ="" -> 
A40: ="" -> 
A41: ="" -> 
A42: ="" -> 
A43: ="" -> 
A44: ="" -> 
A45: ="" -> 
A46: ="" -> 
A47: ="" -> 
A48: ="" -> 
A49: ="" -> 
A50: ="" -> 
A51: ="" -> 
A52: ="" -> 
A53: ="" -> 
A54: ="" -> 
A55: ="" -> 
A56: ="" -> 
A57: ="" -> 
A58: ="" -> 
A59: ="" -> 
A60: ="" -> 
A61: ="" -> 
A62: ="" -> 
A63: ="" -> 
A64: ="" -> 
A65: ="" -> 
A66: ="" -> 
A67: ="" -> 
A68: ="" -> 
A69: ="" -> 
A70: ="" -> 
A71: ="" -> 
A72: ="" -> 
A73: ="" -> 
A74: ="" -> 
A75: ="" -> 
A76: ="" -> 
A77: ="" -> 
A78: ="" -> 
A79: ="" -> 
A80: ="" -> 
A81: ="" -> 
A82: ="" -> 
A83: ="" -> 
A84: ="" -> 
A85: ="" -> 
A86: ="" -> 
A87: ="" -> 
A88: ="" -> 
A89: ="" -> 
A90: ="" -> 
A91: ="" -> 
A92: ="" -> 
A93: ="" -> 
A94: ="" -> 
A95: ="" -> 
A96: ="" -> 
A97: ="" -> 
A98: ="" -> 
A99: ="" -> 
A100: ="" -> 
A101: ="" -> 
A102: ="" -> 
A103: ="" -> 
A104: ="" -> 
A105: ="" -> 
A106: ="" -> 
A107: ="" -> 
A108: ="" -> 
A109: ="" -> 
A110: ="" -> 
A111: ="" -> 
A112: ="" -> 
A113: ="" -> 
A114: ="" -> 
A115: ="" -> 
A116: ="" -> 
A117: ="" -> 
A118: ="" -> 
A119: ="" -> 
A120: ="" -> 
A121: ="" -> 
A122: ="" -> 
A123: ="" -> 
A124: ="" -> 
A125: ="" -> 
A126: ="" -> 
A127: ="" -> 
A128: ="" -> 
A129: ="" -> 
A130: ="" -> 
A131: ="" -> 
A132: ="" -> 
A133: ="" -> 
A134: ="" -> 
A135: ="" -> 
A136: ="" -> 
A137: ="" -> 
A138: ="" -> 
A139: ="" -> 
A140: ="" -> 
A141: ="" -> 
A142: ="" -> 
A143: ="" -> 
A144: ="" -> 
A145: ="" -> 
A146: ="" -> 
A147: ="" -> 
A148: ="" -> 
A149: ="" -> 
A150: ="" -> 
A151: ="" -> 
A152: ="" -> 
A153: ="" -> 
A154: ="" -> 
A155: ="" -> 
A156: ="" -> 
A157: ="" -> 
A158: ="" -> 
A159: ="" -> 
A160: ="" -> 
A161: ="" -> 
A162: ="" -> 
A163: ="" -> 
A164: ="" -> 
A165: ="" -> 
A166: ="" -> 
A167: ="" -> 
A168: ="" -> 
A169: ="" -> 
A170: ="" -> 
A171: ="" -> 
A172: ="" -> 
A173: ="" -> 
A174: ="" -> 
A175: ="" -> 
A176: ="" -> 
A177: ="" -> 
A178: ="" -> 
A179: ="" -> 
A180: ="" -> 
A181: ="" -> 
A182: ="" -> 
A183: ="" -> 
A184: ="" -> 
A185: ="" -> 
A186: ="" -> 
A187: ="" -> 
A188: ="" -> 
A189: ="" -> 
A190: ="" -> 
A191: ="" -> 
A192: ="" -> 
A193: ="" -> 
A194: ="" -> 
A195: ="" -> 
A196: ="" -> 
A197: ="" -> 
A198: ="" -> 
A199: ="" -> 
A200: ="" -> 

Sheet John Deere (hidden)
A1: 5045E, 5055E, 5065E, 5075E (Teir 3)
A2: 5045E, 5055E, 5065E, 5075E (Teir 4)
A3: 5085E, 5100E (Teir 3)
A4: 5085E, 5100E (Teir4)
A5: 5083E, 5093E, 5101E, 5425, 5525, 5625, 5603
A6: 5065M, 5075M, 5085M (Teir 3&4i)
A7: 5095M, 5105M, 5100M, 5115M (Teir 3&4i)
A8: 5090R,5100R,5115R,5125R (Tier 4i)
A9: 6100D, 6115D, 6130D, 6140D
A10: 61105D, 6115D, 6130D, 60140D T4
A11: 6105E, 6120E, 6135E T4F
A12: 6110M,6120M,6130M T4i
A13: 6110M,6120M,6130M T4F
A14: 6110R,6120R, 6130R T4i
A15: 6110R,6120R, 6130R T4F
A16: 6140M, 6150M
A17: 6145M, 6155M
A18: 6140R, 6150R
A19: 6145R, 6155R
A20: 6170M, 6190M, 6210M
A21: 6175M, 6195M, 6215M
A22: 6170R, 6190R, 6210R
A23: 6175R, 6195R, 6215R
A24: 7200R, 7210R, 7215R, 7230R
A25: 7250R, 7260R, 7270R, 7280R, 7290R
A26: 8245R, 8270R, 8295R, 8320R, 8335R, 8345R
A27: 5105, 5205
A28: 5103, 5203, 5303, 5403
A29: 5225, 5325
A30: 6403'
A31: 6603'
A32: 6000, 6100, 6200, 6300, 6400, 6405
A33: 6010, 6110, 6210, 6310, 6410
A34: 6215, 6415, 6120, 6220, 6320, 6420
A35: 7200, 7300, 7400
A36: 7210, 7310, 7410, 7510, 6605, 7405
A37: 7600, 7700, 7800, 7610, 7710, 7810
A38: 6615, 6715, 7220, 7320, 7420, 7520
A39: 6120L , 6220L, 6320L, 6420L, 6520L
A40: 6230L, 6330L, 6430L
A41: 6230, 6330, 6430
A42: 7130, 7230, 7330
A43: 7430, 7530
A44: 7720, 7820, 7920, 7630, 7730, 7830, 7930
A45: 8100 - 8400, 8110 - 8410
A46: 2350, 2355 - 2750, 2755
A47: 5220, 5320
A48: 5420, 5520
A49: 5200-5310, 5400
A50: 5410, 5500, 5510
A51: 2950, 2955 - 3255
A52: 4020'
A53: 4420, 4230, 4430, 4240, 4440
A54: ="" -> 
A55: 5045D,5055D
A56: ="" -> 
A57: ="" -> 
A58: ="" -> 
A59: ="" -> 
A60: ="" -> 
A61: ="" -> 
A62: ="" -> 
A63: ="" -> 
A64: ="" -> 
A65: ="" -> 
A66: ="" -> 
A67: ="" -> 
A68: ="" -> 
A69: ="" -> 
A70: ="" -> 
A71: ="" -> 
A72: ="" -> 
A73: ="" -> 
A74: ="" -> 
A75: ="" -> 
A76: ="" -> 
A77: ="" -> 
A78: ="" -> 
A79: ="" -> 
A80: ="" -> 
A81: ="" -> 
A82: ="" -> 
A83: ="" -> 
A84: ="" -> 
A85: ="" -> 
A86: ="" -> 
A87: ="" -> 
A88: ="" -> 
A89: ="" -> 
A90: ="" -> 
A91: ="" -> 
A92: ="" -> 
A93: ="" -> 
A94: ="" -> 
A95: ="" -> 
A96: ="" -> 
A97: ="" -> 
A98: ="" -> 
A99: ="" -> 
A100: ="" -> 
A101: ="" -> 
A102: ="" -> 
A103: ="" -> 
A104: ="" -> 
A105: ="" -> 
A106: ="" -> 
A107: ="" -> 
A108: ="" -> 
A109: ="" -> 
A110: ="" -> 
A111: ="" -> 
A112: ="" -> 
A113: ="" -> 
A114: ="" -> 
A115: ="" -> 
A116: ="" -> 
A117: ="" -> 
A118: ="" -> 
A119: ="" -> 
A120: ="" -> 
A121: ="" -> 
A122: ="" -> 
A123: ="" -> 
A124: ="" -> 
A125: ="" -> 
A126: ="" -> 
A127: ="" -> 
A128: ="" -> 
A129: ="" -> 
A130: ="" -> 
A131: ="" -> 
A132: ="" -> 
A133: ="" -> 
A134: ="" -> 
A135: ="" -> 
A136: ="" -> 
A137: ="" -> 
A138: ="" -> 
A139: ="" -> 
A140: ="" -> 
A141: ="" -> 
A142: ="" -> 
A143: ="" -> 
A144: ="" -> 
A145: ="" -> 
A146: ="" -> 
A147: ="" -> 
A148: ="" -> 
A149: ="" -> 
A150: ="" -> 
A151: ="" -> 
A152: ="" -> 
A153: ="" -> 
A154: ="" -> 
A155: ="" -> 
A156: ="" -> 
A157: ="" -> 
A158: ="" -> 
A159: ="" -> 
A160: ="" -> 
A161: ="" -> 
A162: ="" -> 
A163: ="" -> 
A164: ="" -> 
A165: ="" -> 
A166: ="" -> 
A167: ="" -> 
A168: ="" -> 
A169: ="" -> 
A170: ="" -> 
A171: ="" -> 
A172: ="" -> 
A173: ="" -> 
A174: ="" -> 
A175: ="" -> 
A176: ="" -> 
A177: ="" -> 
A178: ="" -> 
A179: ="" -> 
A180: ="" -> 
A181: ="" -> 
A182: ="" -> 
A183: ="" -> 
A184: ="" -> 
A185: ="" -> 
A186: ="" -> 
A187: ="" -> 
A188: ="" -> 
A189: ="" -> 
A190: ="" -> 
A191: ="" -> 
A192: ="" -> 
A193: ="" -> 
A194: ="" -> 
A195: ="" -> 
A196: ="" -> 
A197: ="" -> 
A198: ="" -> 
A199: ="" -> 
A200: ="" -> 
... 15 more rows

Sheet Kubota (hidden)
A1: M4 Narrow
A2: M5 Narrow
A3: M5040,6040,7040/M5060,6060,7060
A4: M5-091, 101
A5: M6-101, 111
A6: M6-131, 141
A7: M6S-111
A8: M7-131, 151, 171
A9: M8540, 9540
A10: M8560, M9960 TIER 4I
A11: M95S, M105S
A12: M96S, M108S
A13: M95X, M105X, M108X
A14: M100X, M110X
A15: M110, M120
A16: M125X
A17: M126X, M135X
A18: M100GXDTCC, M110GXDTCC
A19: M126GXDTCC, M135GXDTCC
A20: M47/49/54/57/6800 ROPS
A21: M47/49/54/57/6800 CAB
A22: M8200, M9000 ROPS
A23: M8200, M9000 CAB
A24: ="" -> 
A25: B3200, B3300
A26: L2800, L3400,L3200,L3800,3301,L3901
A27: L3240 2/4WD, L3540, L3940
A28: L5240, L5740
A29: MX4700, MX5100
A30: ="" -> 
A31: ="" -> 
A32: ="" -> 
A33: ="" -> 
A34: ="" -> 
A35: ="" -> 
A36: ="" -> 
A37: ="" -> 
A38: ="" -> 
A39: ="" -> 
A40: ="" -> 
A41: ="" -> 
A42: ="" -> 
A43: ="" -> 
A44: ="" -> 
A45: ="" -> 
A46: ="" -> 
A47: ="" -> 
A48: ="" -> 
A49: ="" -> 
A50: ="" -> 
A51: ="" -> 
A52: ="" -> 
A53: ="" -> 
A54: ="" -> 
A55: ="" -> 
A56: ="" -> 
A57: ="" -> 
A58: ="" -> 
A59: ="" -> 
A60: ="" -> 
A61: ="" -> 
A62: ="" -> 
A63: ="" -> 
A64: ="" -> 
A65: ="" -> 
A66: ="" -> 
A67: ="" -> 
A68: ="" -> 
A69: ="" -> 
A70: ="" -> 
A71: ="" -> 
A72: ="" -> 
A73: ="" -> 
A74: ="" -> 
A75: ="" -> 
A76: ="" -> 
A77: ="" -> 
A78: ="" -> 
A79: ="" -> 
A80: ="" -> 
A81: ="" -> 
A82: ="" -> 
A83: ="" -> 
A84: ="" -> 
A85: ="" -> 
A86: ="" -> 
A87: ="" -> 
A88: ="" -> 
A89: ="" -> 
A90: ="" -> 
A91: ="" -> 
A92: ="" -> 
A93: ="" -> 
A94: ="" -> 
A95: ="" -> 
A96: ="" -> 
A97: ="" -> 
A98: ="" -> 
A99: ="" -> 
A100: ="" -> 
A101: ="" -> 
A102: ="" -> 
A103: ="" -> 
A104: ="" -> 
A105: ="" -> 
A106: ="" -> 
A107: ="" -> 
A108: ="" -> 
A109: ="" -> 
A110: ="" -> 
A111: ="" -> 
A112: ="" -> 
A113: ="" -> 
A114: ="" -> 
A115: ="" -> 
A116: ="" -> 
A117: ="" -> 
A118: ="" -> 
A119: ="" -> 
A120: ="" -> 
A121: ="" -> 
A122: ="" -> 
A123: ="" -> 
A124: ="" -> 
A125: ="" -> 
A126: ="" -> 
A127: ="" -> 
A128: ="" -> 
A129: ="" -> 
A130: ="" -> 
A131: ="" -> 
A132: ="" -> 
A133: ="" -> 
A134: ="" -> 
A135: ="" -> 
A136: ="" -> 
A137: ="" -> 
A138: ="" -> 
A139: ="" -> 
A140: ="" -> 
A141: ="" -> 
A142: ="" -> 
A143: ="" -> 
A144: ="" -> 
A145: ="" -> 
A146: ="" -> 
A147: ="" -> 
A148: ="" -> 
A149: ="" -> 
A150: ="" -> 
A151: ="" -> 
A152: ="" -> 
A153: ="" -> 
A154: ="" -> 
A155: ="" -> 
A156: ="" -> 
A157: ="" -> 
A158: ="" -> 
A159: ="" -> 
A160: ="" -> 
A161: ="" -> 
A162: ="" -> 
A163: ="" -> 
A164: ="" -> 
A165: ="" -> 
A166: ="" -> 
A167: ="" -> 
A168: ="" -> 
A169: ="" -> 
A170: ="" -> 
A171: ="" -> 
A172: ="" -> 
A173: ="" -> 
A174: ="" -> 
A175: ="" -> 
A176: ="" -> 
A177: ="" -> 
A178: ="" -> 
A179: ="" -> 
A180: ="" -> 
A181: ="" -> 
A182: ="" -> 
A183: ="" -> 

Sheet Landini (hidden)
A1: Alpine 70,80,85 Tier 3 STD / GT
A2: Powerfarm 60 TIER 2
A3: Powerfarm 75-105 TIER 2 & 90-110 TIER 3
A4: 5H 80, 90, 110, 115
A5: Vision 80, 85, 90 TIER 2
A6: Vision 95 - 105 TIER 2 & 3
A7: Powermondial 100, 105, 115
A8: Landpower 125, 135 TIER 2
A9: Landpower 145 TIER 2
A10: Landpower 165, 185 TIER 2
A11: Landpower 125, 135 TIER 3
A12: Landpower 145 TIER 3
A13: Landpower 165, 185 TIER 3
A14: 5865 ROPS
A15: 6865, 8865
A16: Mythos 90, 100, 105
A17: Mythos 115
A18: Legend 115-135 NG
A19: Legend 140 - 185 NG
A20: ="" -> 
A21: ="" -> 
A22: ="" -> 
A23: ="" -> 
A24: ="" -> 
A25: ="" -> 
A26: ="" -> 
A27: ="" -> 
A28: ="" -> 
A29: ="" -> 
A30: ="" -> 
A31: ="" -> 
A32: ="" -> 
A33: ="" -> 
A34: ="" -> 
A35: ="" -> 
A36: ="" -> 
A37: ="" -> 
A38: ="" -> 
A39: ="" -> 
A40: ="" -> 
A41: ="" -> 
A42: ="" -> 
A43: ="" -> 
A44: ="" -> 
A45: ="" -> 
A46: ="" -> 
A47: ="" -> 
A48: ="" -> 
A49: ="" -> 
A50: ="" -> 
A51: ="" -> 
A52: ="" -> 
A53: ="" -> 
A54: ="" -> 
A55: ="" -> 
A56: ="" -> 
A57: ="" -> 
A58: ="" -> 
A59: ="" -> 
A60: ="" -> 
A61: ="" -> 
A62: ="" -> 
A63: ="" -> 
A64: ="" -> 
A65: ="" -> 
A66: ="" -> 
A67: ="" -> 
A68: ="" -> 
A69: ="" -> 
A70: ="" -> 
A71: ="" -> 
A72: ="" -> 
A73: ="" -> 
A74: ="" -> 
A75: ="" -> 
A76: ="" -> 
A77: ="" -> 
A78: ="" -> 
A79: ="" -> 
A80: ="" -> 
A81: ="" -> 
A82: ="" -> 
A83: ="" -> 
A84: ="" -> 
A85: ="" -> 
A86: ="" -> 
A87: ="" -> 
A88: ="" -> 
A89: ="" -> 
A90: ="" -> 
A91: ="" -> 
A92: ="" -> 
A93: ="" -> 
A94: ="" -> 
A95: ="" -> 
A96: ="" -> 
A97: ="" -> 
A98: ="" -> 
A99: ="" -> 
A100: ="" -> 
A101: ="" -> 
A102: ="" -> 
A103: ="" -> 
A104: ="" -> 
A105: ="" -> 
A106: ="" -> 
A107: ="" -> 
A108: ="" -> 
A109: ="" -> 
A110: ="" -> 
A111: ="" -> 
A112: ="" -> 
A113: ="" -> 
A114: ="" -> 
A115: ="" -> 
A116: ="" -> 
A117: ="" -> 
A118: ="" -> 
A119: ="" -> 
A120: ="" -> 
A121: ="" -> 
A122: ="" -> 
A123: ="" -> 
A124: ="" -> 
A125: ="" -> 
A126: ="" -> 
A127: ="" -> 
A128: ="" -> 
A129: ="" -> 
A130: ="" -> 
A131: ="" -> 
A132: ="" -> 
A133: ="" -> 
A134: ="" -> 
A135: ="" -> 
A136: ="" -> 
A137: ="" -> 
A138: ="" -> 
A139: ="" -> 
A140: ="" -> 
A141: ="" -> 
A142: ="" -> 
A143: ="" -> 
A144: ="" -> 
A145: ="" -> 
A146: ="" -> 
A147: ="" -> 
A148: ="" -> 
A149: ="" -> 
A150: ="" -> 
A151: ="" -> 
A152: ="" -> 
A153: ="" -> 
A154: ="" -> 
A155: ="" -> 
A156: ="" -> 
A157: ="" -> 
A158: ="" -> 
A159: ="" -> 
A160: ="" -> 
A161: ="" -> 
A162: ="" -> 
A163: ="" -> 
A164: ="" -> 
A165: ="" -> 
A166: ="" -> 
A167: ="" -> 
A168: ="" -> 
A169: ="" -> 
A170: ="" -> 
A171: ="" -> 
A172: ="" -> 
A173: ="" -> 
A174: ="" -> 
A175: ="" -> 
A176: ="" -> 
A177: ="" -> 
A178: ="" -> 
A179: ="" -> 
A180: ="" -> 
A181: ="" -> 
A182: ="" -> 
A183: ="" -> 
A184: ="" -> 
A185: ="" -> 
A186: ="" -> 
A187: ="" -> 
A188: ="" -> 
A189: ="" -> 
A190: ="" -> 
A191: ="" -> 

Sheet MF (hidden)
A1: 2605, 2615, 2625, 2635
A2: 2600H
A3: 4608, 4609, 4610
A4: 4600M
A5: 5609, 5610, 5611, 5612, 5613
A6: 6614, 6615, 6616
A7: 7614, 7615, 7616, 7618
A8: 7619, 7620, 7622
A9: 7624, 7626
A10: 8650, 8660, 8670, 8680 TIER 3 and Tier 4i
A11: 4707, 4708, 4709, 4710 Global
A12: 5710, 5711 Global
A13: 6711, 6712, 6713 Global
A14: 5711SL,5712SL,5713SL
A15: 6714S,6715S,6716S
A16: 7714, 7715, 7716, 7718
A17: 7719, 7720, 7722
A18: 7724, 7726
A19: 8727, 8730, 8730, 8732, 8735, 8737
A20: 5425,35 Tier 2 & 3 Dyna IV (Perkins)
A21: 5445,55,60 Tier 2 & 3 Dyna IV (Perkins)
A22: 5425, 35, 45, 55, 60 with Speed Shift
A23: 5460 Teir 3 DynaIV (SISU)
A24: 5465 with Speed Shift TIER 2
A25: 5465 with DYNA IV TIER 2
A26: 5465,75 Teir 3 Dyna IV (Perkins)
A27: 5465,75 Teir 3 Dyna IV (SISU)
A28: 6465, 75, 80 with DYNA Shift TIER 2
A29: 6465, 75, 80 with DYNA VI TIER 2
A30: 6465, 75, 80 with DYNA VI TIER 3 (PERKINS)
A31: 6465, 75, 80 with DYNA VI TIER 3 (SISU)
A32: 6485, 90, 95 with DYNA Shift TIER 2
A33: 6485, 90, 95 with DYNA VI TIER 3
A34: 6497, 6499 with DYNA VI TIER 2 (SISU)
A35: 6497, 6499 with DYNA VI TIER 3 <176049
A36: 6497, 6499 with DYNA VI TIER 3 >T189041
A37: 7465, 75, 80 with DYNA VT TIER 2
A38: 7485, 90, 95 with DYNA VT TIER 2
A39: 7465, 75, 80 with DYNA VT TIER 3 (PERKINS)
A40: 7465, 75, 80 with DYNA VT TIER 3 (SISU)
A41: 8450, 60, 70, 80
A42: 2650, 2660, 2670, 2680 HD
A43: 431, 461
A44: 471, 481 ROPS
A45: 471, 481 CAB
A46: 491, 492,593, 596 ROPS
A47: 491, 492, 593, 596 CAB
A48: 533, 543, 563
A49: 3435, 3445, 3455 F & S Narrow
A50: 251XE, 451
A51: 573, 583
A52: 265, 271, 281, 283
A53: 271 X/XE, 281 X/XE
A54: 4225 - 4355, 4365 (4 Cyl) Cab
A55: 4260, 4263, 4270, 4360, 4370 (6 Cyl) Cab
A56: 6260 - 6280
A57: 6290`
A58: 6110 - 6140, 3050 - 3065
A59: 6160 - 6180
A60: ="" -> 
A61: GC2400, 2600
A62: 1529, 1532
A63: 1533,1540, 1635
A64: 1547, 1552, 1648, 1652, 1655
A65: 1560, 1660
A66: ="" -> 
A67: ="" -> 
A68: ="" -> 
A69: ="" -> 
A70: ="" -> 
A71: ="" -> 
A72: ="" -> 
A73: ="" -> 
A74: ="" -> 
A75: ="" -> 
A76: ="" -> 
A77: ="" -> 
A78: ="" -> 
A79: ="" -> 
A80: ="" -> 
A81: ="" -> 
A82: ="" -> 
A83: ="" -> 
A84: ="" -> 
A85: ="" -> 
A86: ="" -> 
A87: ="" -> 
A88: ="" -> 
A89: ="" -> 
A90: ="" -> 
A91: ="" -> 
A92: ="" -> 
A93: ="" -> 
A94: ="" -> 
A95: ="" -> 
A96: ="" -> 
A97: ="" -> 
A98: ="" -> 
A99: ="" -> 
A100: ="" -> 
A101: ="" -> 
A102: ="" -> 
A103: ="" -> 
A104: ="" -> 
A105: ="" -> 
A106: ="" -> 
A107: ="" -> 
A108: ="" -> 
A109: ="" -> 
A110: ="" -> 
A111: ="" -> 
A112: ="" -> 
A113: ="" -> 
A114: ="" -> 
A115: ="" -> 
A116: ="" -> 
A117: ="" -> 
A118: ="" -> 
A119: ="" -> 
A120: ="" -> 
A121: ="" -> 
A122: ="" -> 
A123: ="" -> 
A124: ="" -> 
A125: ="" -> 
A126: ="" -> 
A127: ="" -> 
A128: ="" -> 
A129: ="" -> 
A130: ="" -> 
A131: ="" -> 
A132: ="" -> 
A133: ="" -> 
A134: ="" -> 
A135: ="" -> 
A136: ="" -> 
A137: ="" -> 
A138: ="" -> 
A139: ="" -> 
A140: ="" -> 
A141: ="" -> 
A142: ="" -> 
A143: ="" -> 
A144: ="" -> 
A145: ="" -> 
A146: ="" -> 
A147: ="" -> 
A148: ="" -> 
A149: ="" -> 
A150: ="" -> 
A151: ="" -> 
A152: ="" -> 
A153: ="" -> 
A154: ="" -> 
A155: ="" -> 
A156: ="" -> 
A157: ="" -> 
A158: ="" -> 
A159: ="" -> 
A160: ="" -> 
A161: ="" -> 
A162: ="" -> 
A163: ="" -> 
A164: ="" -> 
A165: ="" -> 
A166: ="" -> 
A167: ="" -> 
A168: ="" -> 
A169: ="" -> 
A170: ="" -> 
A171: ="" -> 
A172: ="" -> 
A173: ="" -> 
A174: ="" -> 
A175: ="" -> 
A176: ="" -> 
A177: ="" -> 
A178: ="" -> 
A179: ="" -> 
A180: ="" -> 
A181: ="" -> 
A182: ="" -> 
A183: ="" -> 
A184: ="" -> 
A185: ="" -> 
A186: ="" -> 
A187: ="" -> 
A188: ="" -> 
A189: ="" -> 
A190: ="" -> 
A191: ="" -> 
A192: ="" -> 
A193: ="" -> 
A194: ="" -> 
A195: ="" -> 
A196: ="" -> 
A197: ="" -> 
A198: ="" -> 
A199: ="" -> 
A200: ="" -> 
... 21 more rows

Sheet McCormick (hidden)
A1: C-Max 60
A2: C-Max 75 - 105 TIER 2 and 3
A3: T90Max, T100Max, T110Max
A4: C70 - C100
A5: C70 - C100
A6: C60/70/80L
A7: CX70, 75, 80, 85, 90, 95, 100, 105 (Doncaster)
A8: CX90, 100, 110 TIER 3 (Italy)
A9: X60.20, X60.30, X60.40, X60.50
A10: MB55
A11: MB65, 85
A12: MC80, 90, 100 and MC95, 105 TIER 2
A13: MC105,115,130 TIER 3 and MC110 TIER 2
A14: MC120,135 Power VI TIER 2
A15: MC120,135 Power VI TIER 3
A16: MTX 110, 125, 140, 155
A17: MTX 175, 200
A18: MTX "B" 120, 135, 145, 150
A19: MTX "B" 165, 185
A20: XTX 145, 165 TIER 2 and 3
A21: XTX 185, 200, 215
A22: TTX 190, 210, 230
A23: ="" -> 
A24: ="" -> 
A25: ="" -> 
A26: ="" -> 
A27: ="" -> 
A28: ="" -> 
A29: ="" -> 
A30: ="" -> 
A31: ="" -> 
A32: ="" -> 
A33: ="" -> 
A34: ="" -> 
A35: ="" -> 
A36: ="" -> 
A37: ="" -> 
A38: ="" -> 
A39: ="" -> 
A40: ="" -> 
A41: ="" -> 
A42: ="" -> 
A43: ="" -> 
A44: ="" -> 
A45: ="" -> 
A46: ="" -> 
A47: ="" -> 
A48: ="" -> 
A49: ="" -> 
A50: ="" -> 
A51: ="" -> 
A52: ="" -> 
A53: ="" -> 
A54: ="" -> 
A55: ="" -> 
A56: ="" -> 
A57: ="" -> 
A58: ="" -> 
A59: ="" -> 
A60: ="" -> 
A61: ="" -> 
A62: ="" -> 
A63: ="" -> 
A64: ="" -> 
A65: ="" -> 
A66: ="" -> 
A67: ="" -> 
A68: ="" -> 
A69: ="" -> 
A70: ="" -> 
A71: ="" -> 
A72: ="" -> 
A73: ="" -> 
A74: ="" -> 
A75: ="" -> 
A76: ="" -> 
A77: ="" -> 
A78: ="" -> 
A79: ="" -> 
A80: ="" -> 
A81: ="" -> 
A82: ="" -> 
A83: ="" -> 
A84: ="" -> 
A85: ="" -> 
A86: ="" -> 
A87: ="" -> 
A88: ="" -> 
A89: ="" -> 
A90: ="" -> 
A91: ="" -> 
A92: ="" -> 
A93: ="" -> 
A94: ="" -> 
A95: ="" -> 
A96: ="" -> 
A97: ="" -> 
A98: ="" -> 
A99: ="" -> 
A100: ="" -> 
A101: ="" -> 
A102: ="" -> 
A103: ="" -> 
A104: ="" -> 
A105: ="" -> 
A106: ="" -> 
A107: ="" -> 
A108: ="" -> 
A109: ="" -> 
A110: ="" -> 
A111: ="" -> 
A112: ="" -> 
A113: ="" -> 
A114: ="" -> 
A115: ="" -> 
A116: ="" -> 
A117: ="" -> 
A118: ="" -> 
A119: ="" -> 
A120: ="" -> 
A121: ="" -> 
A122: ="" -> 
A123: ="" -> 
A124: ="" -> 
A125: ="" -> 
A126: ="" -> 
A127: ="" -> 
A128: ="" -> 
A129: ="" -> 
A130: ="" -> 
A131: ="" -> 
A132: ="" -> 
A133: ="" -> 
A134: ="" -> 
A135: ="" -> 
A136: ="" -> 
A137: ="" -> 
A138: ="" -> 
A139: ="" -> 
A140: ="" -> 
A141: ="" -> 
A142: ="" -> 
A143: ="" -> 
A144: ="" -> 
A145: ="" -> 
A146: ="" -> 
A147: ="" -> 
A148: ="" -> 
A149: ="" -> 
A150: ="" -> 
A151: ="" -> 
A152: ="" -> 
A153: ="" -> 
A154: ="" -> 
A155: ="" -> 
A156: ="" -> 
A157: ="" -> 
A158: ="" -> 
A159: ="" -> 
A160: ="" -> 
A161: ="" -> 
A162: ="" -> 
A163: ="" -> 
A164: ="" -> 
A165: ="" -> 
A166: ="" -> 
A167: ="" -> 
A168: ="" -> 
A169: ="" -> 
A170: ="" -> 
A171: ="" -> 
A172: ="" -> 
A173: ="" -> 
A174: ="" -> 
A175: ="" -> 
A176: ="" -> 
A177: ="" -> 
A178: ="" -> 
A179: ="" -> 
A180: ="" -> 
A181: ="" -> 
A182: ="" -> 
A183: ="" -> 
A184: ="" -> 
A185: ="" -> 

Sheet NH (hidden)
A1: Workmaster 50, 60, 70
A2: Powerstar T4.65, T4.75 T4B
A3: T4.85 - 120 T4
A4: T5.95 - 120 T4
A5: T6.120, .140, .150, .160
A6: T6.155, .165, .175
A7: T7.170, .185, .200, .210, .235 EP
A8: T7.220, .235, .250, .260, .270 EP
A9: T8.275, .300, .330, .360, .390, .420
A10: TN55, 65, 75, TN60A, 70A, 75A
A11: TN55D, 65D, 75D, TN60DA, 70DA, 75DA
A12: TN55S, 65S, 70S, 75S, TN60SA, 70SA, 75SA
A13: TN85A, 95A, 85DA, 95DA
A14: TT60A, TT65A,TT75A
A15: TD75D, 80D
A16: TD95D
A17: TL 70, 80, 90, 100
A18: TL70A, 80A, 90A, 100A
A19: TS90, 100, 110
A20: TS100A Plus / Deluxe
A21: TS100A, 110A Super Steer
A22: TS110A Standard
A23: TS115A, 125A, 135A Plus / Deluxe
A24: TS115A, 125A, 135A Super Steer
A25: TS115A, 130A Standard
A26: TM120-165
A27: TM120 - 165 Super Steer
A28: TM 175, 190 + Super Steer
A29: TG 210 - 305 Super Steer
A30: TB100, 110
A31: TB120
A32: 4835, 5635, 6635, 7635
A33: 5640, 6640, 7740
A34: 7840 - 8340
A35: 8160, 8260, 8360, 8560
A36: 8670, 8770, 8870, 8970
A37: ="" -> 
A38: Workmaster 45,55
A39: Workmaster 65, 75
A40: T4020, T4030
A41: T4020, T4030 Super Steer
A42: T4040, T4050
A43: T4040, T4050 Super Steer
A44: T5030,40,50,60,70
A45: TD 5020, 5030
A46: TD 5040, 5050
A47: TS 6020, 6030
A48: T 6010, 6020 Delta
A49: T 6010 Plus, T 6020 Plus/Elite
A50: T 6020, 6040 & T6060 Elite
A51: T 6010, T6020 Plus/Elite Supersteer
A52: T 6020, 6040 & T6060 Elite Supersteer
A53: T 6030 & T6050 Delta
A54: T 6030, 6050, 6070 Plus/Elite
A55: T 6030, 6050, 6070 Plus/Elite Supersteer
A56: T 7030 + Supersteer
A57: T 7040, 7050, 7060 CVT + Supersteer
A58: T 8020, 8030, 8040, 8050 + Supersteer
A59: 3930, 4630
A60: 5030
A61: 5610 - 7610
A62: 6710 - 7710
A63: ="" -> 
A64: T1110/Boomer1030
A65: T1530
A66: Boomer 3040,45,50/T2310,2320,2330/TC35-45
A67: Boomer 4055,60/T2410,2420/TC48,55DA
A68: Boomer 30,35
A69: Boomer 40, 50
A70: TC30, T1510,T1520
A71: Wormaster 33-37
A72: Wormaster 35-40 (Tier 3)
A73: ="" -> 
A75: ="" -> 
A76: ="" -> 
A77: ="" -> 
A78: ="" -> 
A79: ="" -> 
A80: ="" -> 
A81: ="" -> 
A82: ="" -> 

Sheet Valtra (hidden)
A1: 800, 900
A2: A72, A75, A82, A85, A92, A95
A3: C90, 100, 110, 120, 130, 150
A4: N82, N92
A5: N91, 101,111, 111e, 121, 141
A6: N121ADV, N141ADV
A7: N122, N142 Direct / Versu
A8: T121, 131, 151, 161, 171, 191 Classic
A9: T151, 161, 171, 191 ADV
A10: T120, 130, 140, 160, 170 Classic
A11: T120, 130, 140, 160, 170, 180, 190
A12: 6100 - 6850
A13: M120, 130, 150
A14: 8000 - 8450
A15: 8550 - 8950
A16: ="" -> 
A17: ="" -> 
A18: ="" -> 
A19: ="" -> 
A20: ="" -> 
A21: ="" -> 
A22: ="" -> 
A23: ="" -> 
A24: ="" -> 
A25: ="" -> 
A26: ="" -> 
A27: ="" -> 
A28: ="" -> 
A29: ="" -> 
A30: ="" -> 
A31: ="" -> 
A32: ="" -> 
A33: ="" -> 
A34: ="" -> 
A35: ="" -> 
A36: ="" -> 
A37: ="" -> 
A38: ="" -> 
A39: ="" -> 
A40: ="" -> 
A41: ="" -> 
A42: ="" -> 
A43: ="" -> 
A44: ="" -> 
A45: ="" -> 
A46: ="" -> 
A47: ="" -> 
A48: ="" -> 
A49: ="" -> 
A50: ="" -> 
A51: ="" -> 
A52: ="" -> 
A53: ="" -> 
A54: ="" -> 
A55: ="" -> 
A56: ="" -> 
A57: ="" -> 
A58: ="" -> 
A59: ="" -> 
A60: ="" -> 
A61: ="" -> 
A62: ="" -> 
A63: ="" -> 
A64: ="" -> 
A65: ="" -> 
A66: ="" -> 
A67: ="" -> 
A68: ="" -> 
A69: ="" -> 
A70: ="" -> 
A71: ="" -> 
A72: ="" -> 
A73: ="" -> 
A74: ="" -> 
A75: ="" -> 
A76: ="" -> 
A77: ="" -> 
A78: ="" -> 
A79: ="" -> 
A80: ="" -> 
A81: ="" -> 
A82: ="" -> 
A83: ="" -> 
A84: ="" -> 
A85: ="" -> 
A86: ="" -> 
A87: ="" -> 
A88: ="" -> 
A89: ="" -> 
A90: ="" -> 
A91: ="" -> 
A92: ="" -> 
A93: ="" -> 
A94: ="" -> 
A95: ="" -> 
A96: ="" -> 
A97: ="" -> 
A98: ="" -> 
A99: ="" -> 
A100: ="" -> 
A101: ="" -> 
A102: ="" -> 
A103: ="" -> 
A104: ="" -> 
A105: ="" -> 
A106: ="" -> 
A107: ="" -> 
A108: ="" -> 
A109: ="" -> 
A110: ="" -> 
A111: ="" -> 
A112: ="" -> 
A113: ="" -> 
A114: ="" -> 
A115: ="" -> 
A116: ="" -> 
A117: ="" -> 
A118: ="" -> 
A119: ="" -> 
A120: ="" -> 
A121: ="" -> 
A122: ="" -> 
A123: ="" -> 
A124: ="" -> 
A125: ="" -> 
A126: ="" -> 
A127: ="" -> 
A128: ="" -> 
A129: ="" -> 
A130: ="" -> 
A131: ="" -> 
A132: ="" -> 
A133: ="" -> 
A134: ="" -> 
A135: ="" -> 
A136: ="" -> 
A137: ="" -> 
A138: ="" -> 
A139: ="" -> 
A140: ="" -> 
A141: ="" -> 
A142: ="" -> 
A143: ="" -> 
A144: ="" -> 
A145: ="" -> 
A146: ="" -> 
A147: ="" -> 
A148: ="" -> 
A149: ="" -> 
A150: ="" -> 
A151: ="" -> 
A152: ="" -> 
A153: ="" -> 
A154: ="" -> 
A155: ="" -> 
A156: ="" -> 
A157: ="" -> 
A158: ="" -> 
A159: ="" -> 
A160: ="" -> 
A161: ="" -> 
A162: ="" -> 
A163: ="" -> 
A164: ="" -> 
A165: ="" -> 
A166: ="" -> 
A167: ="" -> 
A168: ="" -> 
A169: ="" -> 
A170: ="" -> 
A171: ="" -> 
A172: ="" -> 
A173: ="" -> 
A174: ="" -> 
A175: ="" -> 
A176: ="" -> 
A177: ="" -> 
A178: ="" -> 
A179: ="" -> 
A180: ="" -> 

Sheet KIOTI (hidden)
A1: CK20S, CK20SHST
A2: DK40SE, DK45SE , DK50SE + HST
A3: DK55, DK55C
A4: DK55, DK551C
A5: ="" -> 
A6: DK751, 801, 901, 902, 904, 1002
A7: ="" -> 
A8: DX 100PC, 7510, 7510PC, 9010, 9010PC
A9: ="" -> 
A10: ="" -> 
A11: ="" -> 
A12: ="" -> 
A13: ="" -> 
A14: ="" -> 
A15: ="" -> 
A16: ="" -> 
A17: ="" -> 
A18: ="" -> 
A19: ="" -> 
A20: ="" -> 
A21: ="" -> 
A22: ="" -> 
A23: ="" -> 
A24: ="" -> 
A25: ="" -> 
A26: ="" -> 
A27: ="" -> 
A28: ="" -> 
A29: ="" -> 
A30: ="" -> 
A31: ="" -> 
A32: ="" -> 
A33: ="" -> 
A34: ="" -> 
A35: ="" -> 
A36: ="" -> 
A37: ="" -> 
A38: ="" -> 
A39: ="" -> 
A40: ="" -> 
A41: ="" -> 
A42: ="" -> 
A43: ="" -> 
A44: ="" -> 
A45: ="" -> 
A46: ="" -> 
A47: ="" -> 
A48: ="" -> 
A49: ="" -> 
A50: ="" -> 
A51: ="" -> 
A52: ="" -> 
A53: ="" -> 
A54: ="" -> 
A55: ="" -> 
A56: ="" -> 
A57: ="" -> 
A58: ="" -> 
A59: ="" -> 
A60: ="" -> 
A61: ="" -> 
A62: ="" -> 
A63: ="" -> 
A64: ="" -> 
A65: ="" -> 
A66: ="" -> 
A67: ="" -> 
A68: ="" -> 
A69: ="" -> 
A70: ="" -> 
A71: ="" -> 
A72: ="" -> 
A73: ="" -> 
A74: ="" -> 
A75: ="" -> 
A76: ="" -> 
A77: ="" -> 
A78: ="" -> 
A79: ="" -> 
A80: ="" -> 
A81: ="" -> 
A82: ="" -> 
A83: ="" -> 
A84: ="" -> 
A85: ="" -> 
A86: ="" -> 
A87: ="" -> 
A88: ="" -> 
A89: ="" -> 
A90: ="" -> 
A91: ="" -> 
A92: ="" -> 
A93: ="" -> 
A94: ="" -> 
A95: ="" -> 
A96: ="" -> 
A97: ="" -> 
A98: ="" -> 
A99: ="" -> 
A100: ="" -> 
A101: ="" -> 
A102: ="" -> 
A103: ="" -> 
A104: ="" -> 
A105: ="" -> 
A106: ="" -> 
A107: ="" -> 
A108: ="" -> 
A109: ="" -> 
A110: ="" -> 
A111: ="" -> 
A112: ="" -> 
A113: ="" -> 
A114: ="" -> 
A115: ="" -> 
A116: ="" -> 
A117: ="" -> 
A118: ="" -> 
A119: ="" -> 
A120: ="" -> 
A121: ="" -> 
A122: ="" -> 
A123: ="" -> 
A124: ="" -> 
A125: ="" -> 
A126: ="" -> 
A127: ="" -> 
A128: ="" -> 
A129: ="" -> 
A130: ="" -> 
A131: ="" -> 
A132: ="" -> 
A133: ="" -> 
A134: ="" -> 
A135: ="" -> 
A136: ="" -> 
A137: ="" -> 
A138: ="" -> 
A139: ="" -> 
A140: ="" -> 
A141: ="" -> 
A142: ="" -> 
A143: ="" -> 
A144: ="" -> 
A145: ="" -> 
A146: ="" -> 
A147: ="" -> 
A148: ="" -> 
A149: ="" -> 
A150: ="" -> 
A151: ="" -> 
A152: ="" -> 
A153: ="" -> 
A154: ="" -> 
A155: ="" -> 
A156: ="" -> 
A157: ="" -> 
A158: ="" -> 
A159: ="" -> 
A160: ="" -> 
A161: ="" -> 
A162: ="" -> 
A163: ="" -> 
A164: ="" -> 
A165: ="" -> 
A166: ="" -> 
A167: ="" -> 
A168: ="" -> 
A169: ="" -> 
A170: ="" -> 
A171: ="" -> 
A172: ="" -> 
A173: ="" -> 
A174: ="" -> 
A175: ="" -> 
A176: ="" -> 
A177: ="" -> 
A178: ="" -> 
A179: ="" -> 
A180: ="" -> 
A181: ="" -> 
A182: ="" -> 
A183: ="" -> 
A184: ="" -> 
A185: ="" -> 
A186: ="" -> 
A187: ="" -> 
A188: ="" -> 
A189: ="" -> 
A190: ="" -> 
A191: ="" -> 
A192: ="" -> 
A193: ="" -> 
A194: ="" -> 
A195: ="" -> 
A196: ="" -> 
A197: ="" -> 
A198: ="" -> 
A199: ="" -> 
A200: ="" -> 
... 280 more rows

Sheet MAHINDRA (hidden)
A1: 5010'
A2: 5035'
A3: ="" -> 
A4: ="" -> 
A5: ="" -> 
A6: ="" -> 
A7: ="" -> 
A8: ="" -> 
A9: ="" -> 
A10: ="" -> 
A11: ="" -> 
A12: ="" -> 
A13: ="" -> 
A14: ="" -> 
A15: ="" -> 
A16: ="" -> 
A17: ="" -> 
A18: ="" -> 
A19: ="" -> 
A20: ="" -> 
A21: ="" -> 
A22: ="" -> 
A23: ="" -> 
A24: ="" -> 
A25: ="" -> 
A26: ="" -> 
A27: ="" -> 
A28: ="" -> 
A29: ="" -> 
A30: ="" -> 
A31: ="" -> 
A32: ="" -> 
A33: ="" -> 
A34: ="" -> 
A35: ="" -> 
A36: ="" -> 
A37: ="" -> 
A38: ="" -> 
A39: ="" -> 
A40: ="" -> 
A41: ="" -> 
A42: ="" -> 
A43: ="" -> 
A44: ="" -> 
A45: ="" -> 
A46: ="" -> 
A47: ="" -> 
A48: ="" -> 
A49: ="" -> 
A50: ="" -> 
A51: ="" -> 
A52: ="" -> 
A53: ="" -> 
A54: ="" -> 
A55: ="" -> 
A56: ="" -> 
A57: ="" -> 
A58: ="" -> 
A59: ="" -> 
A60: ="" -> 
A61: ="" -> 
A62: ="" -> 
A63: ="" -> 
A64: ="" -> 
A65: ="" -> 
A66: ="" -> 
A67: ="" -> 
A68: ="" -> 
A69: ="" -> 
A70: ="" -> 
A71: ="" -> 
A72: ="" -> 
A73: ="" -> 
A74: ="" -> 
A75: ="" -> 
A76: ="" -> 
A77: ="" -> 
A78: ="" -> 
A79: ="" -> 
A80: ="" -> 
A81: ="" -> 
A82: ="" -> 
A83: ="" -> 
A84: ="" -> 
A85: ="" -> 
A86: ="" -> 
A87: ="" -> 
A88: ="" -> 
A89: ="" -> 
A90: ="" -> 
A91: ="" -> 
A92: ="" -> 
A93: ="" -> 
A94: ="" -> 
A95: ="" -> 
A96: ="" -> 
A97: ="" -> 
A98: ="" -> 
A99: ="" -> 
A100: ="" -> 
A101: ="" -> 
A102: ="" -> 
A103: ="" -> 
A104: ="" -> 
A105: ="" -> 
A106: ="" -> 
A107: ="" -> 
A108: ="" -> 
A109: ="" -> 
A110: ="" -> 
A111: ="" -> 
A112: ="" -> 
A113: ="" -> 
A114: ="" -> 
A115: ="" -> 
A116: ="" -> 
A117: ="" -> 
A118: ="" -> 
A119: ="" -> 
A120: ="" -> 
A121: ="" -> 
A122: ="" -> 
A123: ="" -> 
A124: ="" -> 
A125: ="" -> 
A126: ="" -> 

Sheet TOC (hidden)
B1: =Notes!E2 -> CAD
AB3: TABLE OF CONTENTS
A5: Tractor Brand | E5: Versa X | M5: Dimension
A6: AGCO | B6: AXLE | C6: ROPS/CAB | D6: NOTES | U6: SUBFRAME NO. | V6: SUBFRAME $$ | W6: 2 Fctn Mech. | X6: 2 Func. Elec. | Y6: 2 Func Hose | Z6: 3 Func Hose
AB7: LOADER SPECIFICATIONS | AM7: 1
AB9: AGCO | AM9: 4
AB11: CASE IH | AM11: 6
AB13: CHALLENGER | AM13: 11
AB15: DEUTZ FAHR | AM15: 14
AB17: JOHN DEERE | AM17: 17
AB19: KIOTI | AM19: 21
AB21: KUBOTA | AM21: 24
AB23: LANDINI | AM23: 27
AB25: MASSEY FERGUSON | AM25: 29
AB27: MCCORMICK | AM27: 34
AB29: NEW HOLLAND | AM29: 36
AB31: VALTRA | AM31: 41
AB33: LOADER CONTROLS | AM33: 43
AB35: LOADER OPTIONS | AM35: 44
AB37: LOADER IMPLEMENTS | AM37: 46
AB39: LOADER WEIGHTS | AM39: 53
AB41: LIMITED LOADER WARRANTY | AM41: 54

Sheet SPEC COM (hidden)
A1: Jan.1, 2016 | B1: =Notes!E2 -> CAD
R3: C-SERIES | X3: LOADER SPECIFICATIONS
X4: 100c | Y4: 130c | Z4: 140c | AA4: 160c | AB4: 180c | AD4: 160c | AE4: 180c
A5: Tractor Brand
A6: CASE IH | B6: AXLE | C6: ROPS/CAB | D6: NOTES | E6: X11 | F6: X21 | G6: X31 | H6: X41 | I6: X51 | K6: X16 | L6: X26 | M6: X36 | N6: X46 | O6: X56
S7: Mechanical Self-leveling | X7: No | Y7: No | Z7: No | AA7: No | AB7: No | AD7: Yes | AE7: Yes
A9: Tractor PTO HP Range | E9: 30-60 | F9: 40-70 | G9: 50-80 | H9: 60-100 | I9: 70-120 | K9: 30-60 | L9: 40-70 | M9: 50-80 | N9: 60-100 | O9: 70-120 | S9: Tractor PTO HP Range | W9: hp | X9: 20-30 | Y9: 20-40 | Z9: 20-40 | AA9: 30-50 | AB9: 40-60 | AD9: 30-50 | AE9: 40-60
A10: Tractor weight (max) | E10: 3000 | F10: 3000 | G10: 4000 | H10: 5000 | I10: 6000 | K10: 3000 | L10: 3000 | M10: 4000 | N10: 5000 | O10: 6000
A12: Maximum Lift Height - Measured at Pivot Pin | S12: Maximum Lift Height - Measured at Pivot Pin | W12: in | X12: 75 | Y12: 92 | Z12: 95 | AA12: 103 | AB12: 110 | AD12: 103 | AE12: 110
A13: Maximum Lift Height - Under Level Bucket | S13: Maximum Lift Height - Under Level Bucket | W13: in | X13: 69 | Y13: 83 | Z13: 88 | AA13: 94 | AB13: 102 | AD13: 94 | AE13: 102
A15: Maximum Dump Angle at Maximum height | S15: Maximum Dump Angle at Maximum height | W15: deg | X15: 51 | Y15: 53 | Z15: 50 | AA15: 52 | AB15: 52 | AD15: 52 | AE15: 53
A16: Maximum Rollback Angle at ground | S16: Maximum Rollback Angle at ground | W16: deg | X16: 30 | Y16: 42 | Z16: 23 | AA16: 40 | AB16: 38 | AD16: 40 | AE16: 38
A18: Lift Capacity to Maximum Height -800mm (31.5 in) From Pivot Pin | S18: Lift Capacity to Maximum Height -800mm (31.5 in) From Pivot Pin | W18: lb | X18: 463 | Y18: 700 | Z18: 727 | AA18: 1102 | AB18: 1852 | AD18: 1653 | AE18: 2623
A19: Lift Capacity, 1,5m (59 in) Height -800mm (31.5 in) From Pivot Pin | S19: Lift Capacity, 1,5m (59 in) Height -800mm (31.5 in) From Pivot Pin | W19: lb | X19: 595 | Y19: 785 | Z19: 904 | AA19: 1411 | AB19: 2450 | AD19: 1852 | AE19: 3109
A20: Breakout Force -800mm (31.5 in) From Pivot Pin | S20: Breakout Force -800mm (31.5 in) From Pivot Pin | W20: lb | X20: 750 | Y20: 1150 | Z20: 1124 | AA20: 1720 | AB20: 3020 | AD20: 2116 | AE20: 3703
A22: Rollback Force at Ground Level -800mm (31.5 in) From Pivot Pin | S22: Rollback Force at Ground Level -800mm (31.5 in) From Pivot Pin | W22: lb | X22: 2050 | Y22: 2175 | Z22: 2310 | AA22: 2840 | AB22: 5750 | AD22: 2840 | AE22: 5730
A26: Digging Depth | S26: Digging Depth | W26: in | X26: 4 | Y26: 4 | Z26: 4 | AA26: 4 | AB26: 4 | AD26: 4 | AE26: 4
S36: EURO IMPLEMENT QUICK ATTACH | X36: N/A | Y36: N/A | Z36: N/A | AA36: N/A | AB36: N/A | AD36: N/A | AE36: N/A
S37: SKID STEER IMPLEMENT QUICK ATTACH | X37: O | Y37: S | Z37: N/A | AA37: S | AB37: S | AD37: S | AE37: S
S38: MULTI COUPLER MC4 | X38: N/A | Y38: N/A | Z38: N/A | AA38: N/A | AB38: N/A | AD38: N/A | AE38: N/A
S39: SOFT DRIVE | X39: N/A | Y39: N/A | Z39: N/A | AA39: O | AB39: O | AD39: O | AE39: O
S40: 3RD SERVICE (DIVERTER) | X40: N/A | Y40: N/A | Z40: N/A | AA40: O | AB40: O | AD40: O | AE40: O
S41: LIVE 3RD FUNCTION | X41: N/A | Y41: N/A | Z41: N/A | AA41: N/A | AB41: N/A | AD41: N/A | AE41: N/A
S42: Q-LOCK | X42: N/A | Y42: N/A | Z42: N/A | AA42: N/A | AB42: N/A | AD42: N/A | AE42: N/A
S43: Q COMPANION | X43: N/A | Y43: N/A | Z43: N/A | AA43: N/A | AB43: N/A | AD43: N/A | AE43: N/A
S45: O-OPTIONAL EQUIPMENT S-STANDARD EQUIPMENT N/A-NOT AVAILABLE | AH45: =Notes!E3 -> January 1, 2018

Sheet SPEC X (hidden)
A1: Jan.1, 2016 | B1: =Notes!E2 -> CAD
R3: X-SERIES | X3: LOADER SPECIFICATIONS
X4: =E6 -> X11 | Y4: =F6 -> X21 | Z4: X31 | AA4: X41 | AB4: X51 | AD4: X16 | AE4: X26 | AF4: X36 | AG4: X46 | AH4: X56
A5: Tractor Brand
A6: CASE IH | B6: AXLE | C6: ROPS/CAB | D6: NOTES | E6: X11 | F6: X21 | G6: X31 | H6: X41 | I6: X51 | K6: X16 | L6: X26 | M6: X36 | N6: X46 | O6: X56
S7: Mechanical Self-leveling | X7: No | Y7: No | Z7: No | AA7: No | AB7: No | AD7: Yes | AE7: Yes | AF7: Yes | AG7: Yes | AH7: Yes
A9: Tractor PTO HP Range | E9: 30-60 | F9: 40-70 | G9: 50-80 | H9: 60-100 | I9: 70-120 | K9: 30-60 | L9: 40-70 | M9: 50-80 | N9: 60-100 | O9: 70-120 | S9: Tractor PTO HP Range | W9: hp | X9: =E9 -> 30-60 | Y9: =F9 -> 40-70 | Z9: 50-80 | AA9: 60-100 | AB9: 70-120 | AD9: 30-60 | AE9: 40-70 | AF9: 50-80 | AG9: 60-100 | AH9: 70-120
A10: Tractor weight (max) | E10: 3000 | F10: 3000 | G10: 4000 | H10: 5000 | I10: 6000 | K10: 3000 | L10: 3000 | M10: 4000 | N10: 5000 | O10: 6000 | S10: Tractor weight (max) | W10: lb | X10: =E10*2.2 -> 6600 | Y10: =F10*2.2 -> 6600 | Z10: 8800 | AA10: 11000 | AB10: 13200 | AD10: =K10*2.2 -> 6600 | AE10: 6600 | AF10: 8800 | AG10: 11000 | AH10: 13200
A12: Maximum Lift Height - Measured at Pivot Pin | S12: Maximum Lift Height - Measured at Pivot Pin | W12: in | X12: 114 | Y12: 122 | Z12: 134 | AA12: 146 | AB12: 154 | AD12: 114 | AE12: 122 | AF12: 134 | AG12: 146 | AH12: 154
A13: Maximum Lift Height - Under Level Bucket | S13: Maximum Lift Height - Under Level Bucket | W13: in | X13: 106 | Y13: 113 | Z13: 124 | AA13: 136 | AB13: 144 | AD13: 106 | AE13: 113 | AF13: 124 | AG13: 136 | AH13: 144
A15: Maximum Dump Angle at Maximum height | S15: Maximum Dump Angle at Maximum height | W15: deg | X15: 47 | Y15: 50 | Z15: 50 | AA15: 49 | AB15: 46 | AD15: 47 | AE15: 50 | AF15: 50 | AG15: 49 | AH15: 46
A16: Maximum Rollback Angle at ground | S16: Maximum Rollback Angle at ground | W16: deg | X16: 46 | Y16: 42 | Z16: 44 | AA16: 42 | AB16: 43 | AD16: 46 | AE16: 42 | AF16: 44 | AG16: 42 | AH16: 43
A18: Lift Capacity to Maximum Height -800mm (31.5 in) From Pivot Pin | S18: Lift Capacity to Maximum Height -800mm (31.5 in) From Pivot Pin | W18: lb | X18: 1500 | Y18: 1920 | Z18: 2140 | AA18: 2220 | AB18: 2370 | AD18: 2120 | AE18: 2680 | AF18: 3340 | AG18: 3500 | AH18: 3700
A19: Lift Capacity, 1,5m (59 in) Height -800mm (31.5 in) From Pivot Pin | S19: Lift Capacity, 1,5m (59 in) Height -800mm (31.5 in) From Pivot Pin | W19: lb | X19: 2156 | Y19: 2660 | Z19: 3020 | AA19: 3350 | AB19: 3770 | AD19: 2580 | AE19: 3080 | AF19: 3430 | AG19: 3770 | AH19: 4160
A20: Breakout Force -800mm (31.5 in) From Pivot Pin | S20: Breakout Force -800mm (31.5 in) From Pivot Pin | W20: lb | X20: 2750 | Y20: 3200 | Z20: 3540 | AA20: 3900 | AB20: 4330 | AD20: 3090 | AE20: 3480 | AF20: 3660 | AG20: 4080 | AH20: 4590
A22: Rollback Force at Ground Level -800mm (31.5 in) From Pivot Pin | S22: Rollback Force at Ground Level -800mm (31.5 in) From Pivot Pin | W22: lb | X22: 3250 | Y22: 4140 | Z22: 4220 | AA22: 5070 | AB22: 6080 | AD22: 3300 | AE22: 3300 | AF22: 4180 | AG22: 5030 | AH22: 6050
A24: Clearance with bucket dumped 45 deg | S24: Clearance with bucket dumped 45 deg | W24: in | X24: =X13-20 -> 86 | Y24: =Y13-20 -> 93 | Z24: 104 | AA24: 116 | AB24: 124 | AD24: 86 | AE24: 93 | AF24: 104 | AG24: 116 | AH24: 124
A26: Digging Depth | S26: Digging Depth | W26: in | X26: 4 | Y26: 6 | Z26: 6 | AA26: 6 | AB26: 6 | AD26: 4 | AE26: 6 | AF26: 6 | AG26: 6 | AH26: 6
S36: EURO IMPLEMENT QUICK ATTACH | X36: S | Y36: S | Z36: S | AA36: S | AB36: S | AD36: S | AE36: S | AF36: S | AG36: S | AH36: S
S37: SKID STEER IMPLEMENT QUICK ATTACH | X37: O | Y37: O | Z37: O | AA37: O | AB37: N/A | AD37: O | AE37: O | AF37: O | AG37: O | AH37: N/A
S38: MULTI COUPLER MC4 | X38: O | Y38: O | Z38: O | AA38: O | AB38: O | AD38: O | AE38: O | AF38: O | AG38: O | AH38: O
S39: SOFT DRIVE | X39: O | Y39: O | Z39: O | AA39: O | AB39: O | AD39: O | AE39: O | AF39: O | AG39: O | AH39: O
S40: 3RD SERVICE (DIVERTER) | X40: O | Y40: O | Z40: O | AA40: O | AB40: O | AD40: O | AE40: O | AF40: O | AG40: O | AH40: O
S41: LIVE 3RD FUNCTION | X41: N/A | Y41: N/A | Z41: N/A | AA41: N/A | AB41: N/A | AD41: N/A | AE41: N/A | AF41: N/A | AG41: N/A | AH41: N/A
S42: Q-LOCK | X42: N/A | Y42: N/A | Z42: N/A | AA42: N/A | AB42: N/A | AD42: N/A | AE42: N/A | AF42: N/A | AG42: N/A | AH42: N/A
S43: Q COMPANION | X43: N/A | Y43: N/A | Z43: N/A | AA43: N/A | AB43: N/A | AD43: N/A | AE43: N/A | AF43: N/A | AG43: N/A | AH43: N/A
S45: O-OPTIONAL EQUIPMENT S-STANDARD EQUIPMENT N/A-NOT AVAILABLE | AH45: =Notes!E3 -> January 1, 2018

Sheet SPEC Q (hidden)
A1: Jan.1, 2016 | B1: =Notes!E2 -> CAD
R3: Q-SERIES | X3: LOADER SPECIFICATIONS
X4: Q3 | Y4: Q4 | Z4: Q5 | AA4: Q6 | AC4: Q3s | AD4: Q4s | AE4: Q5s | AF4: Q6m | AG4: Q7m | AH4: Q8m
A5: Tractor Brand
A6: CASE IH | B6: AXLE | C6: ROPS/CAB | D6: NOTES | E6: Q3 | F6: Q4 | G6: Q5 | H6: Q6 | J6: Q3s | K6: Q4s | L6: Q5s | M6: Q6m | N6: Q7m | O6: Q8m
A7: Mechanical Self-leveling | E7: No | F7: No | G7: No | H7: No | J7: Yes | K7: Yes | L7: Yes | M7: Yes | N7: Yes | O7: Yes | S7: Mechanical Self-leveling | X7: =E7 -> No | Y7: =F7 -> No | Z7: =G7 -> No | AA7: =H7 -> No | AC7: =J7 -> Yes | AD7: =K7 -> Yes | AE7: =L7 -> Yes | AF7: =M7 -> Yes | AG7: =N7 -> Yes | AH7: =O7 -> Yes
A9: Tractor PTO HP Range | E9: 60-100 | F9: 80-140 | G9: 100-180 | H9: 120-220 | J9: 60-100 | K9: 80-140 | L9: 100-180 | M9: 120-220 | N9: 140-280 | O9: 160+ | S9: Tractor PTO HP Range | W9: hp | X9: =E9 -> 60-100 | Y9: =F9 -> 80-140 | Z9: 100-180 | AA9: 120-220 | AC9: 60-100 | AD9: 80-140 | AE9: 100-180 | AF9: 120-220 | AG9: 140-280 | AH9: 160+
A10: Tractor weight (max) | E10: 4000 | F10: 5000 | G10: 6000 | H10: 7000 | J10: 4000 | K10: 5000 | L10: 6000 | M10: 7000 | N10: 8000 | O10: 9000 | S10: Tractor weight (max) | W10: lb | X10: =E10*2.2 -> 8800 | Y10: =F10*2.2 -> 11000 | Z10: 13200 | AA10: 15400 | AC10: =J10*2.2 -> 8800 | AD10: 11000 | AE10: 13200 | AF10: 15400 | AG10: =N10*2.2 -> 17600 | AH10: =O10*2.2 -> 19800
A12: Maximum Lift Height - Measured at Pivot Pin | E12: 3.55 | F12: 3.79 | G12: 4.06 | H12: 4.25 | J12: 3.55 | K12: 3.79 | L12: 4.06 | M12: 4.25 | N12: 4.6 | O12: 4.96 | S12: Maximum Lift Height - Measured at Pivot Pin | W12: in | X12: =E12*39 -> 138.45 | Y12: =F12*39 -> 147.81 | Z12: 158.34 | AA12: 165.75 | AC12: =J12*39 -> 138.45 | AD12: 147.81 | AE12: 158.34 | AF12: 165.75 | AG12: =N12*39 -> 179.4 | AH12: =O12*39 -> 193.44
A13: Maximum Lift Height - Under Level Bucket | E13: 3.25 | F13: 3.49 | G13: 3.76 | H13: 3.95 | J13: 3.25 | K13: 3.49 | L13: 3.76 | M13: 3.95 | N13: 4.3 | O13: 4.66 | S13: Maximum Lift Height - Under Level Bucket | W13: in | X13: =E13*39 -> 126.75 | Y13: 136.11 | Z13: 146.64 | AA13: 154.05 | AC13: 126.75 | AD13: 136.11 | AE13: 146.64 | AF13: 154.05 | AG13: 167.7 | AH13: 181.74
A15: Maximum Dump Angle at Maximum height | E15: 58 | F15: 58 | G15: 56 | H15: 57 | J15: 58 | K15: 58 | L15: 56 | M15: 57 | N15: 54 | O15: 53 | S15: Maximum Dump Angle at Maximum height | W15: deg | X15: =E15 -> 58 | Y15: =F15 -> 58 | Z15: 56 | AA15: 57 | AC15: =J15 -> 58 | AD15: 58 | AE15: 56 | AF15: 57 | AG15: =N15 -> 54 | AH15: =O15 -> 53
A16: Maximum Rollback Angle at ground | E16: 48 | F16: 48 | G16: 48 | H16: 48 | J16: 48 | K16: 48 | L16: 48 | M16: 48 | N16: 49 | O16: 47 | S16: Maximum Rollback Angle at ground | W16: deg | X16: =E16 -> 48 | Y16: 48 | Z16: 48 | AA16: 48 | AC16: 48 | AD16: 48 | AE16: 48 | AF16: 48 | AG16: 49 | AH16: 47
A18: Lift Capacity to Maximum Height -800mm (31.5 in) From Pivot Pin | E18: 1250 | F18: 1290 | G18: 1300 | H18: 1590 | J18: 1550 | K18: 1920 | L18: 1980 | M18: 2470 | N18: 2490 | O18: 2590 | S18: Lift Capacity to Maximum Height -800mm (31.5 in) From Pivot Pin | W18: lb | X18: =E18*2.2 -> 2750 | Y18: =F18*2.2 -> 2838 | Z18: =G18*2.2 -> 2860 | AA18: =H18*2.2 -> 3498 | AC18: =J18*2.2 -> 3410 | AD18: =K18*2.2 -> 4224 | AE18: =L18*2.2 -> 4356 | AF18: =M18*2.2 -> 5434 | AG18: =N18*2.2 -> 5478 | AH18: =O18*2.2 -> 5698
A19: Lift Capacity, 1,5m (59 in) Height -800mm (31.5 in) From Pivot Pin | E19: 1650 | F19: 1720 | G19: 1870 | H19: 2110 | J19: 1570 | K19: 1940 | L19: 2100 | M19: 2700 | N19: 2810 | O19: 2810 | S19: Lift Capacity, 1,5m (59 in) Height -800mm (31.5 in) From Pivot Pin | W19: lb | X19: 3630 | Y19: 3784 | Z19: 4114 | AA19: 4642 | AC19: 3454 | AD19: 4268 | AE19: 4620 | AF19: 5940 | AG19: 6182 | AH19: 6182
A20: Breakout Force -800mm (31.5 in) From Pivot Pin | E20: 1790 | F20: 1850 | G20: 2070 | H20: 2270 | J20: 1630 | K20: 1990 | L20: 2290 | M20: 2840 | N20: 2990 | O20: 3630 | S20: Breakout Force -800mm (31.5 in) From Pivot Pin | W20: lb | X20: 3938 | Y20: 4070 | Z20: 4554 | AA20: 4994 | AC20: 3586 | AD20: 4378 | AE20: 5038 | AF20: 6248 | AG20: 6578 | AH20: 7986
A22: Rollback Force at Ground Level -800mm (31.5 in) From Pivot Pin | E22: 2430 | F22: 3420 | G22: 3420 | H22: 4030 | J22: 2390 | K22: 3360 | L22: 3370 | M22: 4540 | N22: 4600 | O22: 4510 | S22: Rollback Force at Ground Level -800mm (31.5 in) From Pivot Pin | W22: lb | X22: =E22*2.2 -> 5346 | Y22: =F22*2.2 -> 7524 | Z22: =G22*2.2 -> 7524 | AA22: =H22*2.2 -> 8866 | AC22: =J22*2.2 -> 5258 | AD22: =K22*2.2 -> 7392 | AE22: =L22*2.2 -> 7414 | AF22: =M22*2.2 -> 9988 | AG22: =N22*2.2 -> 10120 | AH22: =O22*2.2 -> 9922
A24: Clearance with bucket dumped 45 deg | E24: 2.58 | F24: 2.82 | G24: 3.09 | H24: 3.28 | J24: 2.58 | K24: 2.82 | L24: 3.09 | M24: 3.28 | N24: 3.63 | O24: 3.99 | S24: Clearance with bucket dumped 45 deg | W24: in | X24: =E24*39 -> 100.62 | Y24: =F24*39 -> 109.98 | Z24: =G24*39 -> 120.51 | AA24: =H24*39 -> 127.92 | AC24: =J24*39 -> 100.62 | AD24: =K24*39 -> 109.98 | AE24: =L24*39 -> 120.51 | AF24: =M24*39 -> 127.92 | AG24: =N24*39 -> 141.57 | AH24: =O24*39 -> 155.61
A26: Digging Depth | E26: 0.16 | F26: 0.16 | G26: 0.16 | H26: 0.16 | J26: 0.16 | K26: 0.16 | L26: 0.16 | M26: 0.16 | N26: 0.16 | O26: 0.17 | S26: Digging Depth | W26: in | X26: =E26*39 -> 6.24 | Y26: =F26*39 -> 6.24 | Z26: =G26*39 -> 6.24 | AA26: =H26*39 -> 6.24 | AC26: =J26*39 -> 6.24 | AD26: =K26*39 -> 6.24 | AE26: =L26*39 -> 6.24 | AF26: =M26*39 -> 6.24 | AG26: =N26*39 -> 6.24 | AH26: =O26*39 -> 6.63
S35: EURO IMPLEMENT QUICK ATTACH | X35: S | Y35: S | Z35: S | AA35: S | AC35: S | AD35: S | AE35: S | AF35: S | AG35: S | AH35: S
S36: SKID STEER IMPLEMENT QUICK ATTACH | X36: O | Y36: O | Z36: N/A | AA36: N/A | AC36: O | AD36: O | AE36: N/A | AF36: N/A | AG36: N/A | AH36: N/A
S37: MULTI COUPLER MC4 | X37: S | Y37: S | Z37: S | AA37: S | AC37: S | AD37: S | AE37: S | AF37: S | AG37: S | AH37: S
S38: SOFT DRIVE | X38: O | Y38: O | Z38: O | AA38: O | AC38: O | AD38: O | AE38: S | AF38: S | AG38: S | AH38: S
S39: 3RD SERVICE (DIVERTER) | X39: O | Y39: O | Z39: O | AA39: O | AC39: O | AD39: O | AE39: O | AF39: O | AG39: O | AH39: O
S40: LIVE 3RD FUNCTION | X40: O | Y40: O | Z40: O | AA40: O | AC40: O | AD40: O | AE40: O | AF40: O | AG40: O | AH40: O
S41: Q-LOCK | X41: O | Y41: O | Z41: O | AA41: O | AC41: O | AD41: O | AE41: O | AF41: O | AG41: O | AH41: O
S42: Q COMPANION | X42: O | Y42: O | Z42: O | AA42: O | AC42: O | AD42: O | AE42: O | AF42: O | AG42: O | AH42: O
S45: O-OPTIONAL EQUIPMENT S-STANDARD EQUIPMENT N/A-NOT AVAILABLE | AH45: =Notes!E3 -> January 1, 2018

Sheet AGCO PL 1 (hidden)
B1: =Notes!E2 -> CAD
AB3: =A6 -> AGCO | AG3: Loaders | AX3: SUBFRAME SET | AZ3: HYDRAULIC OPTIONS
AG4: EURO TOOL CARRIER STANDARD ON ALL MODELS. SKID STEER AVAILABLE ON X11-X46 & Q3-4s MODELS ONLY | AX4: Part # | AY4: $ | AZ4: 2 Function Mechanical | BA4: 2 Function Hose Kit | BB4: 2 Function Electric
A5: Tractor Brand | E5: Versa X | M5: Dimension | AG5: Versa X (Utility) | AP5: Q - Series (Professional) Loaders are Standard in Black. Coloured Loaders available at extra cost
A6: AGCO | B6: AXLE | C6: ROPS/CAB | D6: NOTES | U6: SUBFRAME NO. | V6: SUBFRAME $$ | W6: 2 Fctn Mech. | X6: 2 Func. Elec. | Y6: 2 Func Hose | Z6: 3 Func Hose | AB6: Tractor Model | AD6: Axle | AE6: Version | AF6: Notes | AG6: Non-Self Levelling | AK6: Mechanical Self-Levelling | AP6: Non-Self Levelling | AT6: Mechanical Self-Levelling Soft Drive Std Q5s,Q6m,Q7m,Q8m | AZ6: =IF($B$1="USD",VLOOKUP(AZ4,Prices!A:D,3,0),VLOOKUP(AZ4,Prices!A:D,4,0)) -> 1709.4 | BA6: =IF($B$1="USD",VLOOKUP(BA4,Prices!A:D,3,0),VLOOKUP(BA4,Prices!A:D,4,0)) -> 606.1 | BB6: =IF($B$1="USD",VLOOKUP(BB4,Prices!A:D,3,0),VLOOKUP(BB4,Prices!A:D,4,0)) -> 3947.9
A7: ='Loader Details'!A2 ->  | B7: ='Loader Details'!B2 ->  | C7: ='Loader Details'!C2 ->  | D7: ='Loader Details'!E2&'Loader Details'!F2&'Loader Details'!G2&'Loader Details'!H2 ->  | E7: ='Loader Details'!I2 ->  | F7: =IF($B$1="USD",VLOOKUP(E7,Prices!$A:$D,3,0),VLOOKUP(E7,Prices!$A:$D,4,0)) ->  | G7: ='Loader Details'!J2 ->  | H7: =IF($B$1="USD",VLOOKUP(G7,Prices!$A:$D,3,0),VLOOKUP(G7,Prices!$A:$D,4,0)) ->  | I7: ='Loader Details'!K2 ->  | J7: =IF($B$1="USD",VLOOKUP(I7,Prices!$A:$D,3,0),VLOOKUP(I7,Prices!$A:$D,4,0)) ->  | K7: ='Loader Details'!L2 ->  | L7: =IF($B$1="USD",VLOOKUP(K7,Prices!$A:$D,3,0),VLOOKUP(K7,Prices!$A:$D,4,0)) ->  | M7: ='Loader Details'!M2 ->  | N7: =IF($B$1="USD",VLOOKUP(M7,Prices!$A:$D,3,0),VLOOKUP(M7,Prices!$A:$D,4,0)) ->  | O7: ='Loader Details'!N2 ->  | P7: =IF($B$1="USD",VLOOKUP(O7,Prices!$A:$D,3,0),VLOOKUP(O7,Prices!$A:$D,4,0)) ->  | Q7: ='Loader Details'!O2 ->  | R7: =IF($B$1="USD",VLOOKUP(Q7,Prices!$A:$D,3,0),VLOOKUP(Q7,Prices!$A:$D,4,0)) ->  | S7: ='Loader Details'!P2 ->  | T7: =IF($B$1="USD",VLOOKUP(S7,Prices!$A:$D,3,0),VLOOKUP(S7,Prices!$A:$D,4,0)) ->  | U7: ='Loader Details'!Q2 ->  | V7: =IF($B$1="USD",VLOOKUP(U7,Prices!A:D,3,0),VLOOKUP(U7,Prices!A:D,4,0)) ->  | W7: ='Loader Details'!T2 ->  | X7: ='Loader Details'!U2 ->  | Y7: ='Loader Details'!V2 ->  | Z7: ='Loader Details'!W2 ->  | AC7: =A7 ->  | AH7: =IF(AG7="","",F7) ->  | AI7: =G7 ->  | AJ7: =IF(AI7="","",H7) ->  | AK7: =I7 ->  | AL7: =IF(AK7="","",J7) ->  | AM7: =K7 ->  | AN7: =IF(AM7="","",L7) ->  | AP7: =M7 ->  | AQ7: =IF(AP7="","",N7) ->  | AR7: =O7 ->  | AS7: =IF(AR7="","",P7) ->  | AT7: =Q7 ->  | AU7: =IF(AT7="","",R7) ->  | AV7: =S7 ->  | AW7: =IF(AV7="","",T7) ->  | AX7: =U7 ->  | AY7: =IF(AX7="","",V7) ->  | BA7: =Y7 ->  | BB7: =X7 -> 
A8: ='Loader Details'!A3 ->  | B8: ='Loader Details'!B3 ->  | C8: ='Loader Details'!C3 ->  | D8: ='Loader Details'!E3&'Loader Details'!F3&'Loader Details'!G3&'Loader Details'!H3 ->  | E8: ='Loader Details'!I3 ->  | F8: =IF($B$1="USD",VLOOKUP(E8,Prices!$A:$D,3,0),VLOOKUP(E8,Prices!$A:$D,4,0)) ->  | G8: ='Loader Details'!J3 ->  | H8: =IF($B$1="USD",VLOOKUP(G8,Prices!$A:$D,3,0),VLOOKUP(G8,Prices!$A:$D,4,0)) ->  | I8: ='Loader Details'!K3 ->  | J8: =IF($B$1="USD",VLOOKUP(I8,Prices!$A:$D,3,0),VLOOKUP(I8,Prices!$A:$D,4,0)) ->  | K8: ='Loader Details'!L3 ->  | L8: =IF($B$1="USD",VLOOKUP(K8,Prices!$A:$D,3,0),VLOOKUP(K8,Prices!$A:$D,4,0)) ->  | M8: ='Loader Details'!M3 ->  | N8: =IF($B$1="USD",VLOOKUP(M8,Prices!$A:$D,3,0),VLOOKUP(M8,Prices!$A:$D,4,0)) ->  | O8: ='Loader Details'!N3 ->  | P8: =IF($B$1="USD",VLOOKUP(O8,Prices!$A:$D,3,0),VLOOKUP(O8,Prices!$A:$D,4,0)) ->  | Q8: ='Loader Details'!O3 ->  | R8: =IF($B$1="USD",VLOOKUP(Q8,Prices!$A:$D,3,0),VLOOKUP(Q8,Prices!$A:$D,4,0)) ->  | S8: ='Loader Details'!P3 ->  | T8: =IF($B$1="USD",VLOOKUP(S8,Prices!$A:$D,3,0),VLOOKUP(S8,Prices!$A:$D,4,0)) ->  | U8: ='Loader Details'!Q3 ->  | V8: =IF($B$1="USD",VLOOKUP(U8,Prices!A:D,3,0),VLOOKUP(U8,Prices!A:D,4,0)) ->  | W8: ='Loader Details'!T3 ->  | X8: ='Loader Details'!U3 ->  | Y8: ='Loader Details'!V3 ->  | Z8: ='Loader Details'!W3 ->  | AH8: =IF(AG8="","",F8) ->  | AP8: =M8 ->  | AQ8: =IF(AP8="","",N8) ->  | AR8: =O8 ->  | AS8: =IF(AR8="","",P8) ->  | AT8: =Q8 ->  | AU8: =IF(AT8="","",R8) ->  | AV8: =S8 ->  | AW8: =IF(AV8="","",T8) ->  | AY8: =IF(AX8="","",V8) ->  | BA8: =Y8 ->  | BB8: =X8 -> 
A9: ='Loader Details'!A4 -> LT75, 90 | B9: ='Loader Details'!B4 -> 2/4 | C9: ='Loader Details'!C4 -> ROPS/CAB | D9: ='Loader Details'!E4&'Loader Details'!F4&'Loader Details'!G4&'Loader Details'!H4 -> 1, | E9: ='Loader Details'!I4 -> X41 | F9: =IF($B$1="USD",VLOOKUP(E9,Prices!$A:$D,3,0),VLOOKUP(E9,Prices!$A:$D,4,0)) -> 4920.3 | G9: ='Loader Details'!J4 ->  | H9: =IF($B$1="USD",VLOOKUP(G9,Prices!$A:$D,3,0),VLOOKUP(G9,Prices!$A:$D,4,0)) ->  | I9: ='Loader Details'!K4 -> X46 | J9: =IF($B$1="USD",VLOOKUP(I9,Prices!$A:$D,3,0),VLOOKUP(I9,Prices!$A:$D,4,0)) -> 6212.8 | K9: ='Loader Details'!L4 ->  | L9: =IF($B$1="USD",VLOOKUP(K9,Prices!$A:$D,3,0),VLOOKUP(K9,Prices!$A:$D,4,0)) ->  | M9: ='Loader Details'!M4 -> Q4 | N9: =IF($B$1="USD",VLOOKUP(M9,Prices!$A:$D,3,0),VLOOKUP(M9,Prices!$A:$D,4,0)) -> 7461.3 | O9: ='Loader Details'!N4 ->  | P9: =IF($B$1="USD",VLOOKUP(O9,Prices!$A:$D,3,0),VLOOKUP(O9,Prices!$A:$D,4,0)) ->  | Q9: ='Loader Details'!O4 -> Q4s | R9: =IF($B$1="USD",VLOOKUP(Q9,Prices!$A:$D,3,0),VLOOKUP(Q9,Prices!$A:$D,4,0)) -> 9961.6 | S9: ='Loader Details'!P4 ->  | T9: =IF($B$1="USD",VLOOKUP(S9,Prices!$A:$D,3,0),VLOOKUP(S9,Prices!$A:$D,4,0)) ->  | U9: ='Loader Details'!Q4 -> 14321115 | V9: =IF($B$1="USD",VLOOKUP(U9,Prices!A:D,3,0),VLOOKUP(U9,Prices!A:D,4,0)) -> 2600.4 | W9: ='Loader Details'!T4 -> 15013BFA | X9: ='Loader Details'!U4 ->  | Y9: ='Loader Details'!V4 ->  | Z9: ='Loader Details'!W4 ->  | AC9: LT75, 90 | AD9: 2/4 | AE9: ROPS/CAB | AF9: 1, | AG9: X41 | AH9: 4920.3 | AK9: X46 | AL9: 6212.8 | AP9: Q4 | AQ9: 7461.3 | AT9: Q4s | AU9: 9961.6 | AX9: 14321115 | AY9: 2600.4 | AZ9: 15013BFA | BA9: =Y9 ->  | BB9: =X9 -> 
